Workbook

Sheet COVER
C2: Cover
C4: NAVIGATION
C6: COMMENTS
C9: Bonneville Power Administration
C10: 6P Energy Conservation Standards Savings Model
C11: Commercial Refrigeration Equipment
C13: Product Description
C14: DOE defines commercial refrigerator, freezer, and refrigerator-freezer as refrigeration equipment that— (1) Is not a consumer product (as defined in §430.2 of part 430); (2) Is not designed and marketed exclusively for medical, scientific, or research purposes; (3) Operates at a chilled, frozen, combination chilled and frozen, or variable temperature; (4) Displays or stores merchandise and other perishable materials horizontally, semi-vertically, or vertically; (5) Has transparent or solid doors, sliding or hinged doors, a combination of hinged, sliding, transparent, or solid doors, or no doors; (6) Is designed for pull-down temperature applications or holding temperature applications; and (7) Is connected to a self-contained condensing unit or to a remote condensing unit. Source: 10CFR431.62
C16: Standard Compliance Year
C17: 2017 (Source: DOE Commercial Refrigeration Equipment 2014 Final Rule, Federal Register Notice, page 17726, "Dates" section, http://www.regulations.gov/#!documentDetail;D=EERE-2010-BT-STD-0003-0104)
C19: Major changes from previous rulemaking (2012 effective standard)
C20: Before the 2014 final rule, CRE was regulated by two sets of standards. One was set directly by EPACT 2005 and applies to self-contained equipment with doors and pull-down equipment. The second set of standards was set by DOE in the 2009 final rule, which was initiated by the direction of EPACT 2005. In that rule, DOE set standards for open display cases, remote-condensing CRE, and ice cream freezers. For the 2014 final rule, DOE was directed by EPCA to review all standards – both EPACT and 2009 Final Rule. Therefore DOE reviewed standards for self-contained equipment with doors, pull-down equipment, open cases, remote-condensing equipment, and ice cream freezers, and set amended standards in the 2014 final rule.
C22: 6P Baseline
C23: The product was modeled in the 6P. The baseline captures the standard with an effective date of 2012 but the model reflects updated data that became available after 6P publication.
C25: Prepared By:
C26: Navigant Consulting | D26: Cadeo Group
C27: One Market Street | Spear Street Tower, Suite 1200 | D27: 840 First Street, Suite 300
C28: San Francisco, CA 94105 | D28: Washington, DC 20002

Sheet Definitions
C2: Definitions
C4: NAVIGATION
C6: COMMENTS
C9: Average Megawatt (aMW) | D9: The average number of megawatts over a specified time period
C10: Adjustment to 6P Baseline | D10: Adjustment to reconcile the 6P projected energy consumption and the modeled consumption calculated using best available data.
C11: Department of Energy Aggregate Lifecycle Savings | D11: Sum of 'Total First Year Savings'. This accounts for the cumulative savings in accordance with DOE Carbon Accounting Practices.
C12: Department of Energy Notice of Proposed Rulemaking (DOE NOPR) | D12: Federal Register notice detailing analyses conducted by the DOE to establish proposed energy conservation standards.
C13: Efficiency Level (EL) | D13: The discrete efficiency ratings of a product. Each efficiency level is associated with a different UEC.
C14: Efficiency Level Distribution | D14: The mix of various equipment efficiencies shipped in a given year.
C15: Incremental Savings | D15: Savings due to the higher standards for units installed in a particular year. First year savings are highest following the standards compliance year while the stock turns over, after which first year savings are only attributed to shipments associated with new construction.
C16: Governmental Regulatory Impact Model (GRIM) | D16: The industry cash flow model used by DOE to assess impacts on manufacturers due to proposed energy conservation standards
C17: Installed Unit Energy Consumption (Installed UEC) | D17: The average annual unit energy consumption of all installed units in a given year.
C18: Market Unit Energy Consumption (Market UEC) | D18: The average annual unit energy consumption of units shipped in a given year.
C19: National Impact Analysis (NIA) | D19: The energy impact analysis used by DOE to calculate energy savings associated with each standard.
C20: Pre-case | D20: The case representing 6P baseline assumptions where energy consumption due to the product accounts for shipment and shipment UEC by year, without the affect of standards announced following the development of the 6P.
C21: Post-case | D21: The case in which standards are implemented. If the 6P already captured the analyzed standard, the post-case will be the same as the pre-case.
C22: Product Class | D22: Product classificiation determined by product configuration, size, application, location, and other attributes that contribute to consumer utility. DOE is allowed to establish different standards for each product class.
C23: Product Class Distribution | D23: Market share/mix of each product class shipped in a given year.
C24: Product Lifetime | D24: The average time a given class of products stays in the field as part of the installed stock. Some products will last longer (delaying replacement) whereas others will fail and be retired earlier (accelerating replacement), but the lifetime represents the market average.
C25: Shipments | D25: Sales of products. This may be presented by product class, efficiency distribution, or delineated by other metrics. Shipments may be attributed to new construction and/or replacements and retrofits.
C26: Sixth Power Plan (6P) | D26: The Pacific Northwest Resource Plan published by the Northwest Power Conservation Council. The 6P timeframe is from 2010-2015.
C27: Sixth Power Plan Baseline (6P Baseline) | D27: The 6P assumes equipment efficiency and shipment units in the region. When available, the 6P assumptions are the baseline for each standard impact analysis.
C28: Standard Compliance Year | D28: The year when the appliance standard goes into effect.
C29: Stock | D29: All units installed in previous years which remain in operation.
C30: Technical Support Document (TSD) | D30: TSDs are published by the DOE as companion documents to Federal Register notices (e.g., ANOPRs/preliminary analyses and NOPRs). The TSDs include technical detail that supports the notices. The final rule TSD includes the discussion of the Manufacturer Impact Analysis (MIA) and National Impact Analysis (NIA).
C31: Cumulative Savings | D31: The sum of first year savings from 2010 through 2034
C32: Trial Standard Level (TSL) | D32: A proposed efficiency standard evaluated by DOE during the NOPR and Final Rule phase analyses. A TSL may specify different standard efficiency levels for each product class included in the rulemaking.

Sheet Comments
C2: Comments
C4: NAVIGATION
C7: Tab | D7: Comment
C8: Example | D8: Please use this space to document your comments as you review the model. We look forward to receiving your feedback. Thank you.

Sheet Navigation
C2: NAVIGATION
C4: COMMENTS
C7: INFORMATION TABS | E7: INPUT TABS | I7: UEC CALCULATIONS | K7: RESULTS | M7: CHARTS
C9: COVER | E9: PRODUCT CLASSES
C11: DEFINITIONS | E11: EFFICIENCY LEVELS | I11: UEC DEVELOPMENT
C13: COMMENTS | E13: EQUIPMENT SPECIFICATIONS
C15: NAVIGATION | E15: CONSTANTS AND MENUS
C17: CENTRAL COMMERCIAL MODEL (EXTERNAL) | E17: PRODUCT CLASS DISTRIBUTION | I17: UEC | K17: RESULTS | M17: CHARTS
E19: EFFICIENCY DISTRIBUTION
K20: SUMMARY RESULTS
E21: SHIPMENTS AND STOCK
E23: 6P UEC DEVELOPMENT

Sheet Product Classes
C2: Selection of Product Classes for Model
C4: NAVIGATION
C6: COMMENTS
C9: Equipment Category | D9: Condensing Unit Configuration | E9: Equipment Family | F9: Rating Temp. (°F) | G9: Operating Temp. (°F) | I9: 2014 DOE FR PCs 1 | J9: DOE Representative PCs 1 | K9: 6th Plan PCs | M9: Model PCs | O9: Model PCs (Consolidated) | P9: Rationale
C10: Remote Condensing Commercial Refrigerators and Commercial Freezers | D10: Remote (RC) | E10: Vertical Open (VOP) | F10: 38 (M) | G10: 32 | I10: VOP.RC.M | J10: =I10 -> VOP.RC.M | K10: =J10 -> VOP.RC.M | M10: =I10 -> VOP.RC.M | O10: =M10 -> VOP.RC.M | P10: 2014 DOE Final Rule Representative Product Class
F11: 0 (L) | G11: <32 | I11: VOP.RC.L | J11: =I11 -> VOP.RC.L | K11: VOP.RC.L | M11: =I11 -> VOP.RC.L | O11: =M11 -> VOP.RC.L | P11: 2014 DOE Final Rule Representative Product Class
E12: Semivertical Open (SVO) | F12: 38 (M) | G12: 32 | I12: SVO.RC.M | J12: SVO.RC.M | K12: SVO.RC.M | M12: SVO.RC.M | O12: SVO.RC.M | P12: 2014 DOE Final Rule Representative Product Class
F13: 0 (L) | G13: <32 | I13: SVO.RC.L | O13: =M14 -> HZO.RC.M | P13: 2014 DOE Final Rule Representative Product Class
E14: Horizontal Open (HZO) | F14: 38 (M) | G14: 32 | I14: HZO.RC.M | J14: HZO.RC.M | K14: =J14 -> HZO.RC.M | M14: HZO.RC.M | O14: =M15 -> HZO.RC.L | P14: 2014 DOE Final Rule Representative Product Class
F15: 0 (L) | G15: <32 | I15: HZO.RC.L | J15: HZO.RC.L | K15: =J15 -> HZO.RC.L | M15: HZO.RC.L | O15: =M16 -> VCT.RC.M | P15: 2014 DOE Final Rule Representative Product Class
E16: Vertical Closed Transparent (VCT) | F16: 38 (M) | G16: 32 | I16: VCT.RC.M | J16: VCT.RC.M | K16: VCT.RC.M | M16: VCT.RC.M | O16: =M17 -> VCT.RC.L | P16: 2014 DOE Final Rule Representative Product Class
F17: 0 (L) | G17: <32 | I17: VCT.RC.L | J17: VCT.RC.L | K17: VCT.RC.L | M17: VCT.RC.L | O17: =M24 -> SOC.RC.M | P17: 2014 DOE Final Rule Representative Product Class
E18: Horizontal Closed Transparent (HCT) | F18: 38 (M) | G18: 32 | I18: HCT.RC.M | O18: =M26 -> VOP.SC.M | P18: 2014 DOE Final Rule Representative Product Class
F19: 0 (L) | G19: <32 | I19: HCT.RC.L | O19: =M28 -> SVO.SC.M | P19: 2014 DOE Final Rule Representative Product Class
E20: Vertical Closed Solid (VCS) | F20: 38 (M) | G20: 32 | I20: VCS.RC.M | O20: =M30 -> HZO.SC.M | P20: 2014 DOE Final Rule Representative Product Class
F21: 0 (L) | G21: <32 | I21: VCS.RC.L | O21: =M31 -> HZO.SC.L | P21: 2014 DOE Final Rule Representative Product Class
E22: Horizontal Closed Solid (HCS) | F22: 38 (M) | G22: 32 | I22: HCS.RC.M | O22: =M32 -> VCT.SC.M | P22: 2014 DOE Final Rule Representative Product Class
F23: 0 (L) | G23: <32 | I23: HCS.RC.L | O23: VCT.SC.L | P23: 2014 DOE Final Rule Representative Product Class
E24: Service Over Counter (SOC) | F24: 38 (M) | G24: 32 | I24: SOC.RC.M | J24: SOC.RC.M | K24: =J24 -> SOC.RC.M | M24: SOC.RC.M | O24: VCS.SC.M | P24: 2014 DOE Final Rule Representative Product Class
F25: 0 (L) | G25: <32 | I25: SOC.RC.L | O25: VCS.SC.L | P25: 2014 DOE Final Rule Representative Product Class
C26: Self-Contained Commercial Refrigerators and Commercial Freezers without Doors | D26: Self-Contained (SC) | E26: Vertical Open (VOP) | F26: 38 (M) | G26: 32 | I26: VOP.SC.M | J26: VOP.SC.M | K26: VOP.SC.M | M26: VOP.SC.M | O26: HCT.SC.M | P26: 2014 DOE Final Rule Representative Product Class
F27: 0 (L) | G27: <32 | I27: VOP.SC.L | O27: HCT.SC.L | P27: 2014 DOE Final Rule Representative Product Class
E28: Semivertical Open (SVO) | F28: 38 (M) | G28: 32 | I28: SVO.SC.M | J28: SVO.SC.M | K28: SVO.SC.M | M28: SVO.SC.M | O28: HCS.SC.M | P28: 2014 DOE Final Rule Representative Product Class
F29: 0 (L) | G29: <32 | I29: SVO.SC.L | O29: HCS.SC.L | P29: 2014 DOE Final Rule Representative Product Class
E30: Horizontal Open | F30: 38 (M) | G30: 32 | I30: HZO.SC.M | J30: HZO.SC.M | K30: =J30 -> HZO.SC.M | M30: HZO.SC.M | O30: SOC.SC.M | P30: 2014 DOE Final Rule Representative Product Class
F31: 0 (L) | G31: <32 | I31: HZO.SC.L | J31: HZO.SC.L | K31: HZO.SC.L | M31: HZO.SC.L | O31: =M42 -> PD.SC.M | P31: 2014 DOE Final Rule Representative Product Class
C32: Self-Contained Commercial Refrigerators and Commercial Freezers with Doors | D32: Self-Contained (SC) | E32: Vertical Closed Transparent (VCT) | F32: 38 (M) | G32: 32 | I32: VCT.SC.M | J32: VCT.SC.M | K32: Refrigerators with transparent doors | M32: VCT.SC.M | O32: =M54 -> VCT.SC.I | P32: 2014 DOE Final Rule Representative Product Class
F33: 0 (L) | G33: <32 | I33: VCT.SC.L | J33: VCT.SC.L | K33: Freezers with transparent doors | M33: VCT.SC.L | O33: =M55 -> HCT.SC.I | P33: 2014 DOE Final Rule Representative Product Class
E34: Vertical Closed Solid (VCS) | F34: 38 (M) | G34: 32 | I34: VCS.SC.M | J34: VCS.SC.M | K34: Refrigerators with solid doors | M34: VCS.SC.M | O34: VCS.SC.I | P34: 2014 DOE Final Rule Representative Product Class
F35: 0 (L) | G35: <32 | I35: VCS.SC.L | J35: VCS.SC.L | K35: Freezers with solid doors | M35: VCS.SC.L
E36: Horizontal Closed Transparent (HCT) | F36: 38 (M) | G36: 32 | I36: HCT.SC.M | J36: HCT.SC.M | K36: Refrigerators with transparent doors | M36: HCT.SC.M
F37: 0 (L) | G37: <32 | I37: HCT.SC.L | J37: HCT.SC.L | K37: Freezers with transparent doors | M37: HCT.SC.L
E38: Horizontal Closed Solid (HCS) | F38: 38 (M) | G38: 32 | I38: HCS.SC.M | J38: HCS.SC.M | K38: Refrigerators with solid doors | M38: HCS.SC.M
F39: 0 (L) | G39: <32 | I39: HCS.SC.L | J39: HCS.SC.L | K39: Freezers with solid doors | M39: HCS.SC.L
E40: Service Over Counter (SOC) | F40: 38 (M) | G40: 32 | I40: SOC.SC.M | J40: SOC.SC.M | M40: SOC.SC.M
F41: 0 (L) | G41: <32 | I41: SOC.SC.L
C42: Self-Contained Commercial Refrigerators with Transparent Doors for Pull-Down Temperature Applications | D42: Self-Contained (SC) | E42: Pull-Down (PD) | F42: 38 (M) | G42: 32 | I42: PD.SC.M | J42: PD.SC.M | M42: PD.SC.M
C43: Commercial Ice-Cream Freezers | D43: Remote (RC) | E43: Vertical Open (VOP) | F43: -15 (I) | G43: -5 | I43: VOP.RC.I
E44: Semivertical Open (SVO) | F44: -15 (I) | G44: -5 | I44: SVO.RC.I
E45: Horizontal Open (HZO) | F45: -15 (I) | G45: -5 | I45: HZO.RC.I
E46: Vertical Closed Transparent (VCT) | F46: -15 (I) | G46: -5 | I46: VCT.RC.I
E47: Horizontal Closed Transparent (HCT) | F47: -15 (I) | G47: -5 | I47: HCT.RC.I
E48: Vertical Closed Solid (VCS) | F48: -15 (I) | G48: -5 | I48: VCS.RC.I
E49: Horizontal Closed Solid (HCS) | F49: -15 (I) | G49: -5 | I49: HCS.RC.I
E50: Service Over Counter (SVO) | F50: -15 (I) | G50: -5 | I50: SOC.RC.I
D51: Self-Contained (SC) | E51: Vertical Open (VOP) | F51: -15 (I) | G51: -5 | I51: VOP.SC.I
E52: Semivertical Open (SVO) | F52: -15 (I) | G52: -5 | I52: SVO.SC.I
E53: Horizontal Open (HZO) | F53: -15 (I) | G53: -5 | I53: HZO.SC.I
E54: Vertical Closed Transparent (VCT) | F54: -15 (I) | G54: -5 | I54: VCT.SC.I | J54: VCT.SC.I | K54: =J54 -> VCT.SC.I | M54: VCT.SC.I
E55: Horizontal Closed Transparent (HCT) | F55: -15 (I) | G55: -5 | I55: HCT.SC.I | J55: HCT.SC.I | K55: HCT.SC.I | M55: HCT.SC.I
E56: Vertical Closed Solid (VCS) | F56: -15 (I) | G56: -5 | I56: VCS.SC.I | J56: VCS.SC.I | K56: VCS.SC.I | M56: VCS.SC.I
E57: Horizontal Closed Solid (HCS) | F57: -15 (I) | G57: -5 | I57: HCS.SC.I
E58: Service Over Counter (SVO) | F58: -15 (I) | G58: -5 | I58: SOC.SC.I
C60: Selection rationale | D60: The DOE 2014 Final Rule NIA used these product classes, therefore the same product classes are used in this analysis
C62: Sources | D62: Equipment Class Descriptions: DOE Commercial Refrigeration Equipment 2014 Final Rule, Technical Support Document Chapter 3: Market and Technology Assessment, section 3.2.5 (page 3-13) Representative Equipment Classes: DOE Commercial Refrigeration Equipment 2014 Final Rule, Technical Support Document: National Impact Analysis Spreadsheet, 'Summary' tab, cells D29:AB29

Sheet Efficiency Levels
C2: Efficiency Levels and Standards for Each Product Class
C4: NAVIGATION
C6: COMMENTS
C9: ='Product Classes'!O10 -> VOP.RC.M
C11: Model ELs | D11: Energy Level (kWh/year) | E11: Compliance Year1 | F11: Model Efficiency Levels
C12: EL0 | D12: ='UEC Development'!D14 -> 17611.87657 | F12: Pre DOE 2012 Standard
C13: EL1 | D13: ='UEC Development'!D15 -> 14504.25415 | F13: DOE 2012 Standard
C14: EL2 | D14: ='UEC Development'!D16 -> 14246.11418 | E14: 2012 | F14: DOE 2014 Final Rule Baseline
C15: EL3 | D15: ='UEC Development'!D17 -> 11564.01125 | E15: 2017 | F15: DOE 2014 Final Rule EL1
C16: EL4 | D16: ='UEC Development'!D18 -> 11483.86454 | F16: DOE 2014 Final Rule EL2
C17: EL5 | D17: ='UEC Development'!D19 -> 10980.76952 | F17: DOE 2014 Final Rule EL3
C18: EL6 | D18: ='UEC Development'!D20 -> 10844.09597 | F18: DOE 2014 Final Rule EL4
C19: EL7 | D19: ='UEC Development'!D21 -> 10844.09597 | F19: DOE 2014 Final Rule EL5
C20: EL8 | D20: ='UEC Development'!D22 -> 10844.09597 | F20: DOE 2014 Final Rule EL6
C21: EL9 | D21: ='UEC Development'!D23 -> 10844.09597 | F21: DOE 2014 Final Rule EL7
C23: Sources | D23: 1. Standards were effective in 2012 (10CFR431.66). Assumed 2012 standards were equivalent to baseline standard in 2014 Final Rule. In the 2014 Final Rule, TSL 3 was the final selected TSL. (DOE Commercial Refrigeration Equipment 2014 Final Rule, Federal Register Notice, page 17810, "Benefits and Burdens of Trial Standard Levels Considered for Commercial Refrigeration" section, http://www.regulations.gov/#!documentDetail;D=EERE-2010-BT-STD-0003-0104) TSL Mapping used to determine EL for each product class at TSL 3. (DOE Commercial Refrigeration Equipment 2014 Final Rule, Technical Support Document: Final Rule National Impact Analysis Spreadsheet, 'TSL Mapping' tab, cells C7:AA7, http://www.regulations.gov/#!documentDetail;D=EERE-2010-BT-STD-0003-0101)
C27: ='Product Classes'!O11 -> VOP.RC.L
C29: Model ELs | D29: =$D$11 -> Energy Level (kWh/year) | E29: Compliance Year1 | F29: Model Efficiency Levels
C30: EL0 | D30: ='UEC Development'!D37 -> 40637.03898 | F30: Pre DOE 2012 Standard
C31: EL1 | D31: ='UEC Development'!D38 -> 32971.89553 | F31: DOE 2012 Standard
C32: EL2 | D32: ='UEC Development'!D39 -> 32119.88336 | E32: 2012 | F32: DOE 2014 Final Rule Baseline
C33: EL3 | D33: ='UEC Development'!D40 -> 31917.73851 | E33: 2017 | F33: DOE 2014 Final Rule EL1
C34: EL4 | D34: ='UEC Development'!D41 -> 30931.20202 | F34: DOE 2014 Final Rule EL2
C35: EL5 | D35: ='UEC Development'!D42 -> 30418.54112 | F35: DOE 2014 Final Rule EL3
C36: EL6 | D36: ='UEC Development'!D43 -> 30418.54112 | F36: DOE 2014 Final Rule EL4
C37: EL7 | D37: ='UEC Development'!D44 -> 30418.54112 | F37: DOE 2014 Final Rule EL5
C38: EL8 | D38: ='UEC Development'!D45 -> 30418.54112 | F38: DOE 2014 Final Rule EL6
C39: EL9 | D39: ='UEC Development'!D46 -> 30418.54112 | F39: DOE 2014 Final Rule EL7
C41: Sources | D41: 1. Standards were effective in 2012 (10CFR431.66). Assumed 2012 standards were equivalent to baseline standard in 2014 Final Rule. In the 2014 Final Rule, TSL 3 was the final selected TSL. (DOE Commercial Refrigeration Equipment 2014 Final Rule, Federal Register Notice, page 17810, "Benefits and Burdens of Trial Standard Levels Considered for Commercial Refrigeration" section, http://www.regulations.gov/#!documentDetail;D=EERE-2010-BT-STD-0003-0104) TSL Mapping used to determine EL for each product class at TSL 3. (DOE Commercial Refrigeration Equipment 2014 Final Rule, Technical Support Document: Final Rule National Impact Analysis Spreadsheet, 'TSL Mapping' tab, cells C7:AA7, http://www.regulations.gov/#!documentDetail;D=EERE-2010-BT-STD-0003-0101)
C45: ='Product Classes'!O12 -> SVO.RC.M
C47: Model ELs | D47: =$D$11 -> Energy Level (kWh/year) | E47: Compliance Year1 | F47: Model Efficiency Levels
C48: EL0 | D48: ='UEC Development'!D60 -> 13250.86175 | F48: Pre DOE 2012 Standard
C49: EL1 | D49: ='UEC Development'!D61 -> 11053.50071 | F49: DOE 2012 Standard
C50: EL2 | D50: ='UEC Development'!D62 -> 10869.84386 | E50: 2012 | F50: DOE 2014 Final Rule Baseline
C51: EL3 | D51: ='UEC Development'!D63 -> 8956.621383 | E51: 2017 | F51: DOE 2014 Final Rule EL1
C52: EL4 | D52: ='UEC Development'!D64 -> 8563.634712 | F52: DOE 2014 Final Rule EL2
C53: EL5 | D53: ='UEC Development'!D65 -> 8521.656576 | F53: DOE 2014 Final Rule EL3
C54: EL6 | D54: ='UEC Development'!D66 -> 8426.003025 | F54: DOE 2014 Final Rule EL4
C55: EL7 | D55: ='UEC Development'!D67 -> 8426.003025 | F55: DOE 2014 Final Rule EL5
C56: EL8 | D56: ='UEC Development'!D68 -> 8426.003025 | F56: DOE 2014 Final Rule EL6
C57: EL9 | D57: ='UEC Development'!D69 -> 8426.003025 | F57: DOE 2014 Final Rule EL7
C59: Sources | D59: 1. Standards were effective in 2012 (10CFR431.66). Assumed 2012 standards were equivalent to baseline standard in 2014 Final Rule. In the 2014 Final Rule, TSL 3 was the final selected TSL. (DOE Commercial Refrigeration Equipment 2014 Final Rule, Federal Register Notice, page 17810, "Benefits and Burdens of Trial Standard Levels Considered for Commercial Refrigeration" section, http://www.regulations.gov/#!documentDetail;D=EERE-2010-BT-STD-0003-0104) TSL Mapping used to determine EL for each product class at TSL 3. (DOE Commercial Refrigeration Equipment 2014 Final Rule, Technical Support Document: Final Rule National Impact Analysis Spreadsheet, 'TSL Mapping' tab, cells C7:AA7, http://www.regulations.gov/#!documentDetail;D=EERE-2010-BT-STD-0003-0101)
C63: ='Product Classes'!O13 -> HZO.RC.M
C65: Model ELs | D65: =$D$11 -> Energy Level (kWh/year) | E65: Compliance Year1 | F65: Model Efficiency Levels
C66: EL0 | D66: ='UEC Development'!D83 -> 5971.27193 | F66: Pre DOE 2012 Standard
C67: EL1 | D67: ='UEC Development'!D84 -> 4421.844582 | F67: DOE 2012 Standard
C68: EL2 | D68: ='UEC Development'!D85 -> 4401.409424 | E68: 2012, 2017 | F68: DOE 2014 Final Rule Baseline
C69: EL3 | D69: ='UEC Development'!D86 -> 4303.846939 | F69: DOE 2014 Final Rule EL1
C70: EL4 | D70: ='UEC Development'!D87 -> 4303.846939 | F70: DOE 2014 Final Rule EL2
C71: EL5 | D71: ='UEC Development'!D88 -> 4303.846939 | F71: DOE 2014 Final Rule EL3
C72: EL6 | D72: ='UEC Development'!D89 -> 4303.846939 | F72: DOE 2014 Final Rule EL4
C73: EL7 | D73: ='UEC Development'!D90 -> 4303.846939 | F73: DOE 2014 Final Rule EL5
C74: EL8 | D74: ='UEC Development'!D91 -> 4303.846939 | F74: DOE 2014 Final Rule EL6
C75: EL9 | D75: ='UEC Development'!D92 -> 4303.846939 | F75: DOE 2014 Final Rule EL7
C77: Sources | D77: 1. Standards were effective in 2012 (10CFR431.66). Assumed 2012 standards were equivalent to baseline standard in 2014 Final Rule. In the 2014 Final Rule, TSL 3 was the final selected TSL. (DOE Commercial Refrigeration Equipment 2014 Final Rule, Federal Register Notice, page 17810, "Benefits and Burdens of Trial Standard Levels Considered for Commercial Refrigeration" section, http://www.regulations.gov/#!documentDetail;D=EERE-2010-BT-STD-0003-0104) TSL Mapping used to determine EL for each product class at TSL 3. (DOE Commercial Refrigeration Equipment 2014 Final Rule, Technical Support Document: Final Rule National Impact Analysis Spreadsheet, 'TSL Mapping' tab, cells C7:AA7, http://www.regulations.gov/#!documentDetail;D=EERE-2010-BT-STD-0003-0101)
C81: ='Product Classes'!O14 -> HZO.RC.L
C83: Model ELs | D83: =$D$11 -> Energy Level (kWh/year) | E83: Compliance Year1 | F83: Model Efficiency Levels
C84: EL0 | D84: ='UEC Development'!D106 -> 11673.20245 | F84: Pre DOE 2012 Standard
C85: EL1 | D85: ='UEC Development'!D107 -> 10027.13578 | F85: DOE 2012 Standard
C86: EL2 | D86: ='UEC Development'!D108 -> 9843.05877 | E86: 2012, 2017 | F86: DOE 2014 Final Rule Baseline
C87: EL3 | D87: ='UEC Development'!D109 -> 9453.038769 | F87: DOE 2014 Final Rule EL1
C88: EL4 | D88: ='UEC Development'!D110 -> 9453.038769 | F88: DOE 2014 Final Rule EL2
C89: EL5 | D89: ='UEC Development'!D111 -> 9453.038769 | F89: DOE 2014 Final Rule EL3
C90: EL6 | D90: ='UEC Development'!D112 -> 9453.038769 | F90: DOE 2014 Final Rule EL4
C91: EL7 | D91: ='UEC Development'!D113 -> 9453.038769 | F91: DOE 2014 Final Rule EL5
C92: EL8 | D92: ='UEC Development'!D114 -> 9453.038769 | F92: DOE 2014 Final Rule EL6
C93: EL9 | D93: ='UEC Development'!D115 -> 9453.038769 | F93: DOE 2014 Final Rule EL7
C95: Sources | D95: 1. Standards were effective in 2012 (10CFR431.66). Assumed 2012 standards were equivalent to baseline standard in 2014 Final Rule. In the 2014 Final Rule, TSL 3 was the final selected TSL. (DOE Commercial Refrigeration Equipment 2014 Final Rule, Federal Register Notice, page 17810, "Benefits and Burdens of Trial Standard Levels Considered for Commercial Refrigeration" section, http://www.regulations.gov/#!documentDetail;D=EERE-2010-BT-STD-0003-0104) TSL Mapping used to determine EL for each product class at TSL 3. (DOE Commercial Refrigeration Equipment 2014 Final Rule, Technical Support Document: Final Rule National Impact Analysis Spreadsheet, 'TSL Mapping' tab, cells C7:AA7, http://www.regulations.gov/#!documentDetail;D=EERE-2010-BT-STD-0003-0101)
C99: ='Product Classes'!O15 -> VCT.RC.M
C101: Model ELs | D101: =$D$11 -> Energy Level (kWh/year) | E101: Compliance Year1 | F101: Model Efficiency Levels
C102: EL0 | D102: ='UEC Development'!D129 -> 9518.125464 | F102: Pre DOE 2012 Standard
C103: EL1 | D103: ='UEC Development'!D130 -> 4639.691892 | F103: DOE 2012 Standard
C104: EL2 | D104: ='UEC Development'!D131 -> 3914.021472 | E104: 2012 | F104: DOE 2014 Final Rule Baseline
C105: EL3 | D105: ='UEC Development'!D132 -> 3384.815267 | E105: 2017 | F105: DOE 2014 Final Rule EL1
C106: EL4 | D106: ='UEC Development'!D133 -> 3313.40124 | F106: DOE 2014 Final Rule EL2
C107: EL5 | D107: ='UEC Development'!D134 -> 3294.311543 | F107: DOE 2014 Final Rule EL3
C108: EL6 | D108: ='UEC Development'!D135 -> 3151.847562 | F108: DOE 2014 Final Rule EL4
C109: EL7 | D109: ='UEC Development'!D136 -> 3151.847562 | F109: DOE 2014 Final Rule EL5
C110: EL8 | D110: ='UEC Development'!D137 -> 3151.847562 | F110: DOE 2014 Final Rule EL6
C111: EL9 | D111: ='UEC Development'!D138 -> 3151.847562 | F111: DOE 2014 Final Rule EL7
C113: Sources | D113: 1. Standards were effective in 2012 (10CFR431.66). Assumed 2012 standards were equivalent to baseline standard in 2014 Final Rule. In the 2014 Final Rule, TSL 3 was the final selected TSL. (DOE Commercial Refrigeration Equipment 2014 Final Rule, Federal Register Notice, page 17810, "Benefits and Burdens of Trial Standard Levels Considered for Commercial Refrigeration" section, http://www.regulations.gov/#!documentDetail;D=EERE-2010-BT-STD-0003-0104) TSL Mapping used to determine EL for each product class at TSL 3. (DOE Commercial Refrigeration Equipment 2014 Final Rule, Technical Support Document: Final Rule National Impact Analysis Spreadsheet, 'TSL Mapping' tab, cells C7:AA7, http://www.regulations.gov/#!documentDetail;D=EERE-2010-BT-STD-0003-0101)
C117: ='Product Classes'!O16 -> VCT.RC.L
C119: Model ELs | D119: =$D$11 -> Energy Level (kWh/year) | E119: Compliance Year1 | F119: Model Efficiency Levels
C120: EL0 | D120: ='UEC Development'!D152 -> 19856.60125 | F120: Pre DOE 2012 Standard
C121: EL1 | D121: ='UEC Development'!D153 -> 11226.41415 | F121: DOE 2012 Standard
C122: EL2 | D122: ='UEC Development'!D154 -> 10741.1623 | E122: 2012 | F122: DOE 2014 Final Rule Baseline
C123: EL3 | D123: ='UEC Development'!D155 -> 10124.07001 | F123: DOE 2014 Final Rule EL1
C124: EL4 | D124: ='UEC Development'!D156 -> 9964.079975 | E124: 2017 | F124: DOE 2014 Final Rule EL2
C125: EL5 | D125: ='UEC Development'!D157 -> 9884.887808 | F125: DOE 2014 Final Rule EL3
C126: EL6 | D126: ='UEC Development'!D158 -> 9467.087066 | F126: DOE 2014 Final Rule EL4
C127: EL7 | D127: ='UEC Development'!D159 -> 9467.087066 | F127: DOE 2014 Final Rule EL5
C128: EL8 | D128: ='UEC Development'!D160 -> 9467.087066 | F128: DOE 2014 Final Rule EL6
C129: EL9 | D129: ='UEC Development'!D161 -> 9467.087066 | F129: DOE 2014 Final Rule EL7
C131: Sources | D131: 1. Standards were effective in 2012 (10CFR431.66). Assumed 2012 standards were equivalent to baseline standard in 2014 Final Rule. In the 2014 Final Rule, TSL 3 was the final selected TSL. (DOE Commercial Refrigeration Equipment 2014 Final Rule, Federal Register Notice, page 17810, "Benefits and Burdens of Trial Standard Levels Considered for Commercial Refrigeration" section, http://www.regulations.gov/#!documentDetail;D=EERE-2010-BT-STD-0003-0104) TSL Mapping used to determine EL for each product class at TSL 3. (DOE Commercial Refrigeration Equipment 2014 Final Rule, Technical Support Document: Final Rule National Impact Analysis Spreadsheet, 'TSL Mapping' tab, cells C7:AA7, http://www.regulations.gov/#!documentDetail;D=EERE-2010-BT-STD-0003-0101)
C135: ='Product Classes'!O17 -> SOC.RC.M
C137: Model ELs | D137: =$D$11 -> Energy Level (kWh/year) | E137: Compliance Year1 | F137: Model Efficiency Levels
C138: EL0 | D138: ='UEC Development'!D175 -> 7713.012822 | F138: Pre DOE 2012 Standard
C139: EL1 | D139: ='UEC Development'!D176 -> 6384.838274 | F139: DOE 2012 Standard
C140: EL2 | D140: ='UEC Development'!D177 -> 5533.450295 | E140: 2012, 2017 | F140: DOE 2014 Final Rule Baseline
C141: EL3 | D141: ='UEC Development'!D178 -> 5429.305629 | F141: DOE 2014 Final Rule EL1
C142: EL4 | D142: ='UEC Development'!D179 -> 5333.271721 | F142: DOE 2014 Final Rule EL2
C143: EL5 | D143: ='UEC Development'!D180 -> 5304.527429 | F143: DOE 2014 Final Rule EL3
C144: EL6 | D144: ='UEC Development'!D181 -> 5246.252128 | F144: DOE 2014 Final Rule EL4
C145: EL7 | D145: ='UEC Development'!D182 -> 5246.252128 | F145: DOE 2014 Final Rule EL5
C146: EL8 | D146: ='UEC Development'!D183 -> 5246.252128 | F146: DOE 2014 Final Rule EL6
C147: EL9 | D147: ='UEC Development'!D184 -> 5246.252128 | F147: DOE 2014 Final Rule EL7
C149: Sources | D149: 1. Standards were effective in 2012 (10CFR431.66). Assumed 2012 standards were equivalent to baseline standard in 2014 Final Rule. In the 2014 Final Rule, TSL 3 was the final selected TSL. (DOE Commercial Refrigeration Equipment 2014 Final Rule, Federal Register Notice, page 17810, "Benefits and Burdens of Trial Standard Levels Considered for Commercial Refrigeration" section, http://www.regulations.gov/#!documentDetail;D=EERE-2010-BT-STD-0003-0104) TSL Mapping used to determine EL for each product class at TSL 3. (DOE Commercial Refrigeration Equipment 2014 Final Rule, Technical Support Document: Final Rule National Impact Analysis Spreadsheet, 'TSL Mapping' tab, cells C7:AA7, http://www.regulations.gov/#!documentDetail;D=EERE-2010-BT-STD-0003-0101)
C153: ='Product Classes'!O18 -> VOP.SC.M
C155: Model ELs | D155: =$D$11 -> Energy Level (kWh/year) | E155: Compliance Year1 | F155: Model Efficiency Levels
C156: EL0 | D156: ='UEC Development'!D198 -> 14454.02289 | F156: Pre DOE 2012 Standard
C157: EL1 | D157: ='UEC Development'!D199 -> 11206.31092 | F157: DOE 2012 Standard
C158: EL2 | D158: ='UEC Development'!D200 -> 10952.58938 | E158: 2012, 2017 | F158: DOE 2014 Final Rule Baseline
C159: EL3 | D159: ='UEC Development'!D201 -> 10917.33283 | F159: DOE 2014 Final Rule EL1
C160: EL4 | D160: ='UEC Development'!D202 -> 10845.61048 | F160: DOE 2014 Final Rule EL2
C161: EL5 | D161: ='UEC Development'!D203 -> 10845.61048 | F161: DOE 2014 Final Rule EL3
C162: EL6 | D162: ='UEC Development'!D204 -> 10845.61048 | F162: DOE 2014 Final Rule EL4
C163: EL7 | D163: ='UEC Development'!D205 -> 10845.61048 | F163: DOE 2014 Final Rule EL5
C164: EL8 | D164: ='UEC Development'!D206 -> 10845.61048 | F164: DOE 2014 Final Rule EL6
C165: EL9 | D165: ='UEC Development'!D207 -> 10845.61048 | F165: DOE 2014 Final Rule EL7
C167: Sources | D167: 1. Standards were effective in 2012 (10CFR431.66). Assumed 2012 standards were equivalent to baseline standard in 2014 Final Rule. In the 2014 Final Rule, TSL 3 was the final selected TSL. (DOE Commercial Refrigeration Equipment 2014 Final Rule, Federal Register Notice, page 17810, "Benefits and Burdens of Trial Standard Levels Considered for Commercial Refrigeration" section, http://www.regulations.gov/#!documentDetail;D=EERE-2010-BT-STD-0003-0104) TSL Mapping used to determine EL for each product class at TSL 3. (DOE Commercial Refrigeration Equipment 2014 Final Rule, Technical Support Document: Final Rule National Impact Analysis Spreadsheet, 'TSL Mapping' tab, cells C7:AA7, http://www.regulations.gov/#!documentDetail;D=EERE-2010-BT-STD-0003-0101)
C171: ='Product Classes'!O19 -> SVO.SC.M
C173: Model ELs | D173: =$D$11 -> Energy Level (kWh/year) | E173: Compliance Year1 | F173: Model Efficiency Levels
C174: EL0 | D174: ='UEC Development'!D221 -> 12084.08387 | F174: Pre DOE 2012 Standard
C175: EL1 | D175: ='UEC Development'!D222 -> 9758.420762 | F175: DOE 2012 Standard
C176: EL2 | D176: ='UEC Development'!D223 -> 9607.7583 | E176: 2012, 2017 | F176: DOE 2014 Final Rule Baseline
C177: EL3 | D177: ='UEC Development'!D224 -> 9360.910243 | F177: DOE 2014 Final Rule EL1
C178: EL4 | D178: ='UEC Development'!D225 -> 9331.272689 | F178: DOE 2014 Final Rule EL2
C179: EL5 | D179: ='UEC Development'!D226 -> 9270.930575 | F179: DOE 2014 Final Rule EL3
C180: EL6 | D180: ='UEC Development'!D227 -> 9270.930575 | F180: DOE 2014 Final Rule EL4
C181: EL7 | D181: ='UEC Development'!D228 -> 9270.930575 | F181: DOE 2014 Final Rule EL5
C182: EL8 | D182: ='UEC Development'!D229 -> 9270.930575 | F182: DOE 2014 Final Rule EL6
C183: EL9 | D183: ='UEC Development'!D230 -> 9270.930575 | F183: DOE 2014 Final Rule EL7
C185: Sources | D185: 1. Standards were effective in 2012 (10CFR431.66). Assumed 2012 standards were equivalent to baseline standard in 2014 Final Rule. In the 2014 Final Rule, TSL 3 was the final selected TSL. (DOE Commercial Refrigeration Equipment 2014 Final Rule, Federal Register Notice, page 17810, "Benefits and Burdens of Trial Standard Levels Considered for Commercial Refrigeration" section, http://www.regulations.gov/#!documentDetail;D=EERE-2010-BT-STD-0003-0104) TSL Mapping used to determine EL for each product class at TSL 3. (DOE Commercial Refrigeration Equipment 2014 Final Rule, Technical Support Document: Final Rule National Impact Analysis Spreadsheet, 'TSL Mapping' tab, cells C7:AA7, http://www.regulations.gov/#!documentDetail;D=EERE-2010-BT-STD-0003-0101)
C189: ='Product Classes'!O20 -> HZO.SC.M
C191: Model ELs | D191: =$D$11 -> Energy Level (kWh/year) | E191: Compliance Year1 | F191: Model Efficiency Levels
C192: EL0 | D192: ='UEC Development'!D244 -> 7019.951209 | F192: Pre DOE 2012 Standard
C193: EL1 | D193: ='UEC Development'!D245 -> 5404.124826 | F193: DOE 2012 Standard
C194: EL2 | D194: ='UEC Development'!D246 -> 5351.238716 | E194: 2012 | F194: DOE 2014 Final Rule Baseline
C195: EL3 | D195: ='UEC Development'!D247 -> 5167.587923 | E195: 2017 | F195: DOE 2014 Final Rule EL1
C196: EL4 | D196: ='UEC Development'!D248 -> 5118.194588 | F196: DOE 2014 Final Rule EL2
C197: EL5 | D197: ='UEC Development'!D249 -> 5018.189226 | F197: DOE 2014 Final Rule EL3
C198: EL6 | D198: ='UEC Development'!D250 -> 5018.189226 | F198: DOE 2014 Final Rule EL4
C199: EL7 | D199: ='UEC Development'!D251 -> 5018.189226 | F199: DOE 2014 Final Rule EL5
C200: EL8 | D200: ='UEC Development'!D252 -> 5018.189226 | F200: DOE 2014 Final Rule EL6
C201: EL9 | D201: ='UEC Development'!D253 -> 5018.189226 | F201: DOE 2014 Final Rule EL7
C203: Sources | D203: 1. Standards were effective in 2012 (10CFR431.66). Assumed 2012 standards were equivalent to baseline standard in 2014 Final Rule. In the 2014 Final Rule, TSL 3 was the final selected TSL. (DOE Commercial Refrigeration Equipment 2014 Final Rule, Federal Register Notice, page 17810, "Benefits and Burdens of Trial Standard Levels Considered for Commercial Refrigeration" section, http://www.regulations.gov/#!documentDetail;D=EERE-2010-BT-STD-0003-0104) TSL Mapping used to determine EL for each product class at TSL 3. (DOE Commercial Refrigeration Equipment 2014 Final Rule, Technical Support Document: Final Rule National Impact Analysis Spreadsheet, 'TSL Mapping' tab, cells C7:AA7, http://www.regulations.gov/#!documentDetail;D=EERE-2010-BT-STD-0003-0101)
C207: ='Product Classes'!O21 -> HZO.SC.L
C209: Model ELs | D209: =$D$11 -> Energy Level (kWh/year) | E209: Compliance Year1 | F209: Model Efficiency Levels
C210: EL0 | D210: ='UEC Development'!D267 -> 14120.17024 | F210: Pre DOE 2012 Standard
C211: EL1 | D211: ='UEC Development'!D268 -> 11000.71333 | F211: DOE 2012 Standard
C212: EL2 | D212: ='UEC Development'!D269 -> 10921.51181 | E212: 2012, 2017 | F212: DOE 2014 Final Rule Baseline
C213: EL3 | D213: ='UEC Development'!D270 -> 10921.51181 | F213: DOE 2014 Final Rule EL1
C214: EL4 | D214: ='UEC Development'!D271 -> 10921.51181 | F214: DOE 2014 Final Rule EL2
C215: EL5 | D215: ='UEC Development'!D272 -> 10921.51181 | F215: DOE 2014 Final Rule EL3
C216: EL6 | D216: ='UEC Development'!D273 -> 10921.51181 | F216: DOE 2014 Final Rule EL4
C217: EL7 | D217: ='UEC Development'!D274 -> 10921.51181 | F217: DOE 2014 Final Rule EL5
C218: EL8 | D218: ='UEC Development'!D275 -> 10921.51181 | F218: DOE 2014 Final Rule EL6
C219: EL9 | D219: ='UEC Development'!D276 -> 10921.51181 | F219: DOE 2014 Final Rule EL7
C221: Sources | D221: 1. Standards were effective in 2012 (10CFR431.66). Assumed 2012 standards were equivalent to baseline standard in 2014 Final Rule. In the 2014 Final Rule, TSL 3 was the final selected TSL. (DOE Commercial Refrigeration Equipment 2014 Final Rule, Federal Register Notice, page 17810, "Benefits and Burdens of Trial Standard Levels Considered for Commercial Refrigeration" section, http://www.regulations.gov/#!documentDetail;D=EERE-2010-BT-STD-0003-0104) TSL Mapping used to determine EL for each product class at TSL 3. (DOE Commercial Refrigeration Equipment 2014 Final Rule, Technical Support Document: Final Rule National Impact Analysis Spreadsheet, 'TSL Mapping' tab, cells C7:AA7, http://www.regulations.gov/#!documentDetail;D=EERE-2010-BT-STD-0003-0101)
C225: ='Product Classes'!O22 -> VCT.SC.M
C227: Model ELs | D227: =$D$11 -> Energy Level (kWh/year) | E227: Compliance Year1 | F227: Model Efficiency Levels
C228: EL0 | D228: ='UEC Development'!D290 -> 2671.139894 | F228: Pre DOE 2010 Standard
C229: EL1 | D229: ='UEC Development'!D291 -> 2462.460851 | F229: DOE 2010 Standard
C230: EL2 | D230: ='UEC Development'!D292 -> 2267.102922 | E230: 2010 | F230: DOE 2014 Final Rule Baseline
C231: EL3 | D231: ='UEC Development'!D293 -> 2214.419987 | F231: DOE 2014 Final Rule EL1
C232: EL4 | D232: ='UEC Development'!D294 -> 1941.763443 | F232: DOE 2014 Final Rule EL2
C233: EL5 | D233: ='UEC Development'!D295 -> 1828.584363 | E233: 2017 | F233: DOE 2014 Final Rule EL3
C234: EL6 | D234: ='UEC Development'!D296 -> 1812.526998 | F234: DOE 2014 Final Rule EL4
C235: EL7 | D235: ='UEC Development'!D297 -> 1769.395033 | F235: DOE 2014 Final Rule EL5
C236: EL8 | D236: ='UEC Development'!D298 -> 1753.590016 | F236: DOE 2014 Final Rule EL6
C237: EL9 | D237: ='UEC Development'!D299 -> 1670.387957 | F237: DOE 2014 Final Rule EL7
C239: Sources | D239: 1. Standards were effective in 2012 (10CFR431.66). Assumed 2012 standards were equivalent to baseline standard in 2014 Final Rule. In the 2014 Final Rule, TSL 3 was the final selected TSL. (DOE Commercial Refrigeration Equipment 2014 Final Rule, Federal Register Notice, page 17810, "Benefits and Burdens of Trial Standard Levels Considered for Commercial Refrigeration" section, http://www.regulations.gov/#!documentDetail;D=EERE-2010-BT-STD-0003-0104) TSL Mapping used to determine EL for each product class at TSL 3. (DOE Commercial Refrigeration Equipment 2014 Final Rule, Technical Support Document: Final Rule National Impact Analysis Spreadsheet, 'TSL Mapping' tab, cells C7:AA7, http://www.regulations.gov/#!documentDetail;D=EERE-2010-BT-STD-0003-0101)
C243: ='Product Classes'!O23 -> VCT.SC.L
C245: Model ELs | D245: =$D$11 -> Energy Level (kWh/year) | E245: Compliance Year1 | F245: Model Efficiency Levels
C246: EL0 | D246: ='UEC Development'!D311 -> 10071.18048 | F246: Pre DOE 2010 Standard
C247: EL1 | D247: ='UEC Development'!D312 -> 8767.023174 | F247: DOE 2010 Standard
C248: EL2 | D248: ='UEC Development'!D313 -> 9845.736605 | E248: 2010 | F248: DOE 2014 Final Rule Baseline
C249: EL3 | D249: ='UEC Development'!D314 -> 7795.192716 | F249: DOE 2014 Final Rule EL1
C250: EL4 | D250: ='UEC Development'!D315 -> 5231.887683 | F250: DOE 2014 Final Rule EL2
C251: EL5 | D251: ='UEC Development'!D316 -> 5175.526163 | F251: DOE 2014 Final Rule EL3
C252: EL6 | D252: ='UEC Development'!D317 -> 4913.984281 | F252: DOE 2014 Final Rule EL4
C253: EL7 | D253: ='UEC Development'!D318 -> 4870.410436 | E253: 2017 | F253: DOE 2014 Final Rule EL5
C254: EL8 | D254: ='UEC Development'!D319 -> 4802.16337 | F254: DOE 2014 Final Rule EL6
C255: EL9 | D255: ='UEC Development'!D320 -> 4555.762282 | F255: DOE 2014 Final Rule EL7
C257: Sources | D257: 1. Standards were effective in 2012 (10CFR431.66). Assumed 2012 standards were equivalent to baseline standard in 2014 Final Rule. In the 2014 Final Rule, TSL 3 was the final selected TSL. (DOE Commercial Refrigeration Equipment 2014 Final Rule, Federal Register Notice, page 17810, "Benefits and Burdens of Trial Standard Levels Considered for Commercial Refrigeration" section, http://www.regulations.gov/#!documentDetail;D=EERE-2010-BT-STD-0003-0104) TSL Mapping used to determine EL for each product class at TSL 3. (DOE Commercial Refrigeration Equipment 2014 Final Rule, Technical Support Document: Final Rule National Impact Analysis Spreadsheet, 'TSL Mapping' tab, cells C7:AA7, http://www.regulations.gov/#!documentDetail;D=EERE-2010-BT-STD-0003-0101)
C261: ='Product Classes'!O24 -> VCS.SC.M
C263: Model ELs | D263: =$D$11 -> Energy Level (kWh/year) | E263: Compliance Year1 | F263: Model Efficiency Levels
C264: EL0 | D264: ='UEC Development'!D332 -> 2187.680729 | F264: Pre DOE 2010 Standard
C265: EL1 | D265: ='UEC Development'!D333 -> 2187.680729 | F265: DOE 2010 Standard
C266: EL2 | D266: ='UEC Development'!D334 -> 2047.410258 | E266: 2010 | F266: DOE 2014 Final Rule Baseline
C267: EL3 | D267: ='UEC Development'!D335 -> 1714.5937 | F267: DOE 2014 Final Rule EL1
C268: EL4 | D268: ='UEC Development'!D336 -> 1306.077722 | F268: DOE 2014 Final Rule EL2
C269: EL5 | D269: ='UEC Development'!D337 -> 1245.040436 | F269: DOE 2014 Final Rule EL3
C270: EL6 | D270: ='UEC Development'!D338 -> 1196.468952 | E270: 2017 | F270: DOE 2014 Final Rule EL4
C271: EL7 | D271: ='UEC Development'!D339 -> 1128.20502 | F271: DOE 2014 Final Rule EL5
C272: EL8 | D272: ='UEC Development'!D340 -> 1117.9113 | F272: DOE 2014 Final Rule EL6
C273: EL9 | D273: ='UEC Development'!D341 -> 982.2665848 | F273: DOE 2014 Final Rule EL7
C275: Sources | D275: 1. Standards were effective in 2012 (10CFR431.66). Assumed 2012 standards were equivalent to baseline standard in 2014 Final Rule. In the 2014 Final Rule, TSL 3 was the final selected TSL. (DOE Commercial Refrigeration Equipment 2014 Final Rule, Federal Register Notice, page 17810, "Benefits and Burdens of Trial Standard Levels Considered for Commercial Refrigeration" section, http://www.regulations.gov/#!documentDetail;D=EERE-2010-BT-STD-0003-0104) TSL Mapping used to determine EL for each product class at TSL 3. (DOE Commercial Refrigeration Equipment 2014 Final Rule, Technical Support Document: Final Rule National Impact Analysis Spreadsheet, 'TSL Mapping' tab, cells C7:AA7, http://www.regulations.gov/#!documentDetail;D=EERE-2010-BT-STD-0003-0101)
C279: ='Product Classes'!O25 -> VCS.SC.L
C281: Model ELs | D281: =$D$11 -> Energy Level (kWh/year) | E281: Compliance Year1 | F281: Model Efficiency Levels
... 124 more rows

Sheet Equipment Specifications
C2: Equipment Specifications
C4: NAVIGATION
C6: COMMENTS
C9: Equipment Specifications
C11: Product Class | D11: Length (ft)
C12: ='Product Classes'!O10 -> VOP.RC.M | D12: 10
C13: ='Product Classes'!O11 -> VOP.RC.L | D13: 10
C14: ='Product Classes'!O12 -> SVO.RC.M | D14: 10
C15: ='Product Classes'!O13 -> HZO.RC.M | D15: 10
C16: ='Product Classes'!O14 -> HZO.RC.L | D16: 10
C17: ='Product Classes'!O15 -> VCT.RC.M | D17: 10
C18: ='Product Classes'!O16 -> VCT.RC.L | D18: 10
C19: ='Product Classes'!O17 -> SOC.RC.M | D19: 8
C20: ='Product Classes'!O18 -> VOP.SC.M | D20: 4
C21: ='Product Classes'!O19 -> SVO.SC.M | D21: 4
C22: ='Product Classes'!O20 -> HZO.SC.M | D22: 4
C23: ='Product Classes'!O21 -> HZO.SC.L | D23: 4
C24: ='Product Classes'!O22 -> VCT.SC.M | D24: 4
C25: ='Product Classes'!O23 -> VCT.SC.L | D25: 3.5
C26: ='Product Classes'!O24 -> VCS.SC.M | D26: 4
C27: ='Product Classes'!O25 -> VCS.SC.L | D27: 3.5
C28: ='Product Classes'!O26 -> HCT.SC.M | D28: 3
C29: ='Product Classes'!O27 -> HCT.SC.L | D29: 3
C30: ='Product Classes'!O28 -> HCS.SC.M | D30: 4
C31: ='Product Classes'!O29 -> HCS.SC.L | D31: 5
C32: ='Product Classes'!O30 -> SOC.SC.M | D32: 5
C33: ='Product Classes'!O31 -> PD.SC.M | D33: 2.5
C34: ='Product Classes'!O32 -> VCT.SC.I | D34: 5
C35: ='Product Classes'!O33 -> HCT.SC.I | D35: 3.4
C36: ='Product Classes'!O34 -> VCS.SC.I | D36: 5
C38: Source | D38: DOE Commercial Refrigeration Equipment 2014 Final Rule, Technical Support Document: Final Rule National Impact Analysis Spreadsheet, 'Shipment Factors' tab, cells B3:C29, http://www.regulations.gov/#!documentDetail;D=EERE-2010-BT-STD-0003-0101

Sheet Constants and Menus
C2: Constants and Menus
C4: NAVIGATION
C6: COMMENTS
C9: Constant
C10: Hours/Day | D10: 24
C11: Days/Week | D11: 7
C12: Days per Year | D12: 365.25
C13: kW/MW | D13: 1000
C14: Equipment Lifetime (years) | D14: 12.28
C15: Standard Compliance Year | D15: 2017
C21: Building Types Included in Analysis
D22: Building Type
D23: Large Off
D24: Medium Off
D25: Small Off
D26: Big Box
D27: Small Box
D28: High End
D29: Anchor
D30: K-12
D31: University
D32: Warehouse
D33: Supermarket
D34: MiniMart
D35: Restaurant
D36: Lodging
D37: Hospital
D38: OtherHealth
D39: Assembly
D40: Other
D41: TOTAL

Sheet Product Class Dist
C2: Product Class Distributions
C4: NAVIGATION
C6: COMMENTS
C9: PRE-Case | D9: 1990 | E9: =D9+1 -> 1991 | F9: =E9+1 -> 1992 | G9: 1993 | H9: 1994 | I9: 1995 | J9: 1996 | K9: 1997 | L9: 1998 | M9: 1999 | N9: 2000 | O9: 2001 | P9: 2002 | Q9: 2003 | R9: 2004 | S9: 2005 | T9: 2006 | U9: 2007 | V9: 2008 | W9: =V9+1 -> 2009 | X9: 2010 | Y9: 2011 | Z9: 2012 | AA9: 2013 | AB9: 2014 | AC9: 2015 | AD9: 2016 | AE9: 2017 | AF9: 2018 | AG9: 2019 | AH9: 2020 | AI9: 2021 | AJ9: 2022 | AK9: 2023 | AL9: 2024 | AM9: 2025 | AN9: 2026 | AO9: 2027 | AP9: 2028 | AQ9: 2029 | AR9: 2030 | AS9: 2031 | AT9: 2032 | AU9: 2033 | AV9: 2034
C10: ='Product Classes'!O10 -> VOP.RC.M | D10: =E10 -> 0.04887383563 | E10: 0.04887383563 | F10: 0.04887383563 | G10: 0.04887383563 | H10: 0.04887383563 | I10: 0.04887383563 | J10: 0.04887383563 | K10: 0.04887383563 | L10: 0.04887383563 | M10: 0.04887383563 | N10: 0.04887383563 | O10: 0.04887383563 | P10: 0.04887383563 | Q10: 0.04887383563 | R10: 0.04887383563 | S10: 0.04887383563 | T10: 0.04887383563 | U10: 0.04887383563 | V10: 0.04887383563 | W10: =X10 -> 0.04887383563 | X10: 0.04887383563 | Y10: 0.04887383563 | Z10: 0.04887383563 | AA10: 0.04887383563 | AB10: 0.04887383563 | AC10: 0.04887383563 | AD10: 0.04887383563 | AE10: 0.04887383563 | AF10: 0.04887383563 | AG10: 0.04887383563 | AH10: 0.04887383563 | AI10: 0.04887383563 | AJ10: 0.04887383563 | AK10: 0.04887383563 | AL10: 0.04887383563 | AM10: 0.04887383563 | AN10: 0.04887383563 | AO10: 0.04887383563 | AP10: 0.04887383563 | AQ10: 0.04887383563 | AR10: 0.04887383563 | AS10: 0.04887383563 | AT10: 0.04887383563 | AU10: 0.04887383563 | AV10: 0.04887383563
C11: ='Product Classes'!O11 -> VOP.RC.L | D11: 0.002372516293 | E11: 0.002372516293 | F11: 0.002372516293 | G11: 0.002372516293 | H11: 0.002372516293 | I11: 0.002372516293 | J11: 0.002372516293 | K11: 0.002372516293 | L11: 0.002372516293 | M11: 0.002372516293 | N11: 0.002372516293 | O11: 0.002372516293 | P11: 0.002372516293 | Q11: 0.002372516293 | R11: 0.002372516293 | S11: 0.002372516293 | T11: 0.002372516293 | U11: 0.002372516293 | V11: 0.002372516293 | W11: =X11 -> 0.002372516293 | X11: 0.002372516293 | Y11: 0.002372516293 | Z11: 0.002372516293 | AA11: 0.002372516293 | AB11: 0.002372516293 | AC11: 0.002372516293 | AD11: 0.002372516293 | AE11: 0.002372516293 | AF11: 0.002372516293 | AG11: 0.002372516293 | AH11: 0.002372516293 | AI11: 0.002372516293 | AJ11: 0.002372516293 | AK11: 0.002372516293 | AL11: 0.002372516293 | AM11: 0.002372516293 | AN11: 0.002372516293 | AO11: 0.002372516293 | AP11: 0.002372516293 | AQ11: 0.002372516293 | AR11: 0.002372516293 | AS11: 0.002372516293 | AT11: 0.002372516293 | AU11: 0.002372516293 | AV11: 0.002372516293
C12: ='Product Classes'!O12 -> SVO.RC.M | D12: 0.0389092672 | E12: 0.0389092672 | F12: 0.0389092672 | G12: 0.0389092672 | H12: 0.0389092672 | I12: 0.0389092672 | J12: 0.0389092672 | K12: 0.0389092672 | L12: 0.0389092672 | M12: 0.0389092672 | N12: 0.0389092672 | O12: 0.0389092672 | P12: 0.0389092672 | Q12: 0.0389092672 | R12: 0.0389092672 | S12: 0.0389092672 | T12: 0.0389092672 | U12: 0.0389092672 | V12: 0.0389092672 | W12: 0.0389092672 | X12: 0.0389092672 | Y12: 0.0389092672 | Z12: 0.0389092672 | AA12: 0.0389092672 | AB12: 0.0389092672 | AC12: 0.0389092672 | AD12: 0.0389092672 | AE12: 0.0389092672 | AF12: 0.0389092672 | AG12: 0.0389092672 | AH12: 0.0389092672 | AI12: 0.0389092672 | AJ12: 0.0389092672 | AK12: 0.0389092672 | AL12: 0.0389092672 | AM12: 0.0389092672 | AN12: 0.0389092672 | AO12: 0.0389092672 | AP12: 0.0389092672 | AQ12: 0.0389092672 | AR12: 0.0389092672 | AS12: 0.0389092672 | AT12: 0.0389092672 | AU12: 0.0389092672 | AV12: 0.0389092672
C13: ='Product Classes'!O13 -> HZO.RC.M | D13: 0.006168542361 | E13: 0.006168542361 | F13: 0.006168542361 | G13: 0.006168542361 | H13: 0.006168542361 | I13: 0.006168542361 | J13: 0.006168542361 | K13: 0.006168542361 | L13: 0.006168542361 | M13: 0.006168542361 | N13: 0.006168542361 | O13: 0.006168542361 | P13: 0.006168542361 | Q13: 0.006168542361 | R13: 0.006168542361 | S13: 0.006168542361 | T13: 0.006168542361 | U13: 0.006168542361 | V13: 0.006168542361 | W13: 0.006168542361 | X13: 0.006168542361 | Y13: 0.006168542361 | Z13: 0.006168542361 | AA13: 0.006168542361 | AB13: 0.006168542361 | AC13: 0.006168542361 | AD13: 0.006168542361 | AE13: 0.006168542361 | AF13: 0.006168542361 | AG13: 0.006168542361 | AH13: 0.006168542361 | AI13: 0.006168542361 | AJ13: 0.006168542361 | AK13: 0.006168542361 | AL13: 0.006168542361 | AM13: 0.006168542361 | AN13: 0.006168542361 | AO13: 0.006168542361 | AP13: 0.006168542361 | AQ13: 0.006168542361 | AR13: 0.006168542361 | AS13: 0.006168542361 | AT13: 0.006168542361 | AU13: 0.006168542361 | AV13: 0.006168542361
C14: ='Product Classes'!O14 -> HZO.RC.L | D14: 0.01898013034 | E14: 0.01898013034 | F14: 0.01898013034 | G14: 0.01898013034 | H14: 0.01898013034 | I14: 0.01898013034 | J14: 0.01898013034 | K14: 0.01898013034 | L14: 0.01898013034 | M14: 0.01898013034 | N14: 0.01898013034 | O14: 0.01898013034 | P14: 0.01898013034 | Q14: 0.01898013034 | R14: 0.01898013034 | S14: 0.01898013034 | T14: 0.01898013034 | U14: 0.01898013034 | V14: 0.01898013034 | W14: 0.01898013034 | X14: 0.01898013034 | Y14: 0.01898013034 | Z14: 0.01898013034 | AA14: 0.01898013034 | AB14: 0.01898013034 | AC14: 0.01898013034 | AD14: 0.01898013034 | AE14: 0.01898013034 | AF14: 0.01898013034 | AG14: 0.01898013034 | AH14: 0.01898013034 | AI14: 0.01898013034 | AJ14: 0.01898013034 | AK14: 0.01898013034 | AL14: 0.01898013034 | AM14: 0.01898013034 | AN14: 0.01898013034 | AO14: 0.01898013034 | AP14: 0.01898013034 | AQ14: 0.01898013034 | AR14: 0.01898013034 | AS14: 0.01898013034 | AT14: 0.01898013034 | AU14: 0.01898013034 | AV14: 0.01898013034
C15: ='Product Classes'!O15 -> VCT.RC.M | D15: 0.003796026068 | E15: 0.003796026068 | F15: 0.003796026068 | G15: 0.003796026068 | H15: 0.003796026068 | I15: 0.003796026068 | J15: 0.003796026068 | K15: 0.003796026068 | L15: 0.003796026068 | M15: 0.003796026068 | N15: 0.003796026068 | O15: 0.003796026068 | P15: 0.003796026068 | Q15: 0.003796026068 | R15: 0.003796026068 | S15: 0.003796026068 | T15: 0.003796026068 | U15: 0.003796026068 | V15: 0.003796026068 | W15: 0.003796026068 | X15: 0.003796026068 | Y15: 0.003796026068 | Z15: 0.003796026068 | AA15: 0.003796026068 | AB15: 0.003796026068 | AC15: 0.003796026068 | AD15: 0.003796026068 | AE15: 0.003796026068 | AF15: 0.003796026068 | AG15: 0.003796026068 | AH15: 0.003796026068 | AI15: 0.003796026068 | AJ15: 0.003796026068 | AK15: 0.003796026068 | AL15: 0.003796026068 | AM15: 0.003796026068 | AN15: 0.003796026068 | AO15: 0.003796026068 | AP15: 0.003796026068 | AQ15: 0.003796026068 | AR15: 0.003796026068 | AS15: 0.003796026068 | AT15: 0.003796026068 | AU15: 0.003796026068 | AV15: 0.003796026068
C16: ='Product Classes'!O16 -> VCT.RC.L | D16: 0.05077184867 | E16: 0.05077184867 | F16: 0.05077184867 | G16: 0.05077184867 | H16: 0.05077184867 | I16: 0.05077184867 | J16: 0.05077184867 | K16: 0.05077184867 | L16: 0.05077184867 | M16: 0.05077184867 | N16: 0.05077184867 | O16: 0.05077184867 | P16: 0.05077184867 | Q16: 0.05077184867 | R16: 0.05077184867 | S16: 0.05077184867 | T16: 0.05077184867 | U16: 0.05077184867 | V16: 0.05077184867 | W16: 0.05077184867 | X16: 0.05077184867 | Y16: 0.05077184867 | Z16: 0.05077184867 | AA16: 0.05077184867 | AB16: 0.05077184867 | AC16: 0.05077184867 | AD16: 0.05077184867 | AE16: 0.05077184867 | AF16: 0.05077184867 | AG16: 0.05077184867 | AH16: 0.05077184867 | AI16: 0.05077184867 | AJ16: 0.05077184867 | AK16: 0.05077184867 | AL16: 0.05077184867 | AM16: 0.05077184867 | AN16: 0.05077184867 | AO16: 0.05077184867 | AP16: 0.05077184867 | AQ16: 0.05077184867 | AR16: 0.05077184867 | AS16: 0.05077184867 | AT16: 0.05077184867 | AU16: 0.05077184867 | AV16: 0.05077184867
C17: ='Product Classes'!O17 -> SOC.RC.M | D17: 0.01245571054 | E17: 0.01245571054 | F17: 0.01245571054 | G17: 0.01245571054 | H17: 0.01245571054 | I17: 0.01245571054 | J17: 0.01245571054 | K17: 0.01245571054 | L17: 0.01245571054 | M17: 0.01245571054 | N17: 0.01245571054 | O17: 0.01245571054 | P17: 0.01245571054 | Q17: 0.01245571054 | R17: 0.01245571054 | S17: 0.01245571054 | T17: 0.01245571054 | U17: 0.01245571054 | V17: 0.01245571054 | W17: 0.01245571054 | X17: 0.01245571054 | Y17: 0.01245571054 | Z17: 0.01245571054 | AA17: 0.01245571054 | AB17: 0.01245571054 | AC17: 0.01245571054 | AD17: 0.01245571054 | AE17: 0.01245571054 | AF17: 0.01245571054 | AG17: 0.01245571054 | AH17: 0.01245571054 | AI17: 0.01245571054 | AJ17: 0.01245571054 | AK17: 0.01245571054 | AL17: 0.01245571054 | AM17: 0.01245571054 | AN17: 0.01245571054 | AO17: 0.01245571054 | AP17: 0.01245571054 | AQ17: 0.01245571054 | AR17: 0.01245571054 | AS17: 0.01245571054 | AT17: 0.01245571054 | AU17: 0.01245571054 | AV17: 0.01245571054
C18: ='Product Classes'!O18 -> VOP.SC.M | D18: 0.0154213559 | E18: 0.0154213559 | F18: 0.0154213559 | G18: 0.0154213559 | H18: 0.0154213559 | I18: 0.0154213559 | J18: 0.0154213559 | K18: 0.0154213559 | L18: 0.0154213559 | M18: 0.0154213559 | N18: 0.0154213559 | O18: 0.0154213559 | P18: 0.0154213559 | Q18: 0.0154213559 | R18: 0.0154213559 | S18: 0.0154213559 | T18: 0.0154213559 | U18: 0.0154213559 | V18: 0.0154213559 | W18: 0.0154213559 | X18: 0.0154213559 | Y18: 0.0154213559 | Z18: 0.0154213559 | AA18: 0.0154213559 | AB18: 0.0154213559 | AC18: 0.0154213559 | AD18: 0.0154213559 | AE18: 0.0154213559 | AF18: 0.0154213559 | AG18: 0.0154213559 | AH18: 0.0154213559 | AI18: 0.0154213559 | AJ18: 0.0154213559 | AK18: 0.0154213559 | AL18: 0.0154213559 | AM18: 0.0154213559 | AN18: 0.0154213559 | AO18: 0.0154213559 | AP18: 0.0154213559 | AQ18: 0.0154213559 | AR18: 0.0154213559 | AS18: 0.0154213559 | AT18: 0.0154213559 | AU18: 0.0154213559 | AV18: 0.0154213559
C19: ='Product Classes'!O19 -> SVO.SC.M | D19: 0.01304883961 | E19: 0.01304883961 | F19: 0.01304883961 | G19: 0.01304883961 | H19: 0.01304883961 | I19: 0.01304883961 | J19: 0.01304883961 | K19: 0.01304883961 | L19: 0.01304883961 | M19: 0.01304883961 | N19: 0.01304883961 | O19: 0.01304883961 | P19: 0.01304883961 | Q19: 0.01304883961 | R19: 0.01304883961 | S19: 0.01304883961 | T19: 0.01304883961 | U19: 0.01304883961 | V19: 0.01304883961 | W19: 0.01304883961 | X19: 0.01304883961 | Y19: 0.01304883961 | Z19: 0.01304883961 | AA19: 0.01304883961 | AB19: 0.01304883961 | AC19: 0.01304883961 | AD19: 0.01304883961 | AE19: 0.01304883961 | AF19: 0.01304883961 | AG19: 0.01304883961 | AH19: 0.01304883961 | AI19: 0.01304883961 | AJ19: 0.01304883961 | AK19: 0.01304883961 | AL19: 0.01304883961 | AM19: 0.01304883961 | AN19: 0.01304883961 | AO19: 0.01304883961 | AP19: 0.01304883961 | AQ19: 0.01304883961 | AR19: 0.01304883961 | AS19: 0.01304883961 | AT19: 0.01304883961 | AU19: 0.01304883961 | AV19: 0.01304883961
C20: ='Product Classes'!O20 -> HZO.SC.M | D20: 0.001186258146 | E20: 0.001186258146 | F20: 0.001186258146 | G20: 0.001186258146 | H20: 0.001186258146 | I20: 0.001186258146 | J20: 0.001186258146 | K20: 0.001186258146 | L20: 0.001186258146 | M20: 0.001186258146 | N20: 0.001186258146 | O20: 0.001186258146 | P20: 0.001186258146 | Q20: 0.001186258146 | R20: 0.001186258146 | S20: 0.001186258146 | T20: 0.001186258146 | U20: 0.001186258146 | V20: 0.001186258146 | W20: 0.001186258146 | X20: 0.001186258146 | Y20: 0.001186258146 | Z20: 0.001186258146 | AA20: 0.001186258146 | AB20: 0.001186258146 | AC20: 0.001186258146 | AD20: 0.001186258146 | AE20: 0.001186258146 | AF20: 0.001186258146 | AG20: 0.001186258146 | AH20: 0.001186258146 | AI20: 0.001186258146 | AJ20: 0.001186258146 | AK20: 0.001186258146 | AL20: 0.001186258146 | AM20: 0.001186258146 | AN20: 0.001186258146 | AO20: 0.001186258146 | AP20: 0.001186258146 | AQ20: 0.001186258146 | AR20: 0.001186258146 | AS20: 0.001186258146 | AT20: 0.001186258146 | AU20: 0.001186258146 | AV20: 0.001186258146
C21: ='Product Classes'!O21 -> HZO.SC.L | D21: 0.002372516293 | E21: 0.002372516293 | F21: 0.002372516293 | G21: 0.002372516293 | H21: 0.002372516293 | I21: 0.002372516293 | J21: 0.002372516293 | K21: 0.002372516293 | L21: 0.002372516293 | M21: 0.002372516293 | N21: 0.002372516293 | O21: 0.002372516293 | P21: 0.002372516293 | Q21: 0.002372516293 | R21: 0.002372516293 | S21: 0.002372516293 | T21: 0.002372516293 | U21: 0.002372516293 | V21: 0.002372516293 | W21: 0.002372516293 | X21: 0.002372516293 | Y21: 0.002372516293 | Z21: 0.002372516293 | AA21: 0.002372516293 | AB21: 0.002372516293 | AC21: 0.002372516293 | AD21: 0.002372516293 | AE21: 0.002372516293 | AF21: 0.002372516293 | AG21: 0.002372516293 | AH21: 0.002372516293 | AI21: 0.002372516293 | AJ21: 0.002372516293 | AK21: 0.002372516293 | AL21: 0.002372516293 | AM21: 0.002372516293 | AN21: 0.002372516293 | AO21: 0.002372516293 | AP21: 0.002372516293 | AQ21: 0.002372516293 | AR21: 0.002372516293 | AS21: 0.002372516293 | AT21: 0.002372516293 | AU21: 0.002372516293 | AV21: 0.002372516293
C22: ='Product Classes'!O22 -> VCT.SC.M | D22: 0.05694039103 | E22: 0.05694039103 | F22: 0.05694039103 | G22: 0.05694039103 | H22: 0.05694039103 | I22: 0.05694039103 | J22: 0.05694039103 | K22: 0.05694039103 | L22: 0.05694039103 | M22: 0.05694039103 | N22: 0.05694039103 | O22: 0.05694039103 | P22: 0.05694039103 | Q22: 0.05694039103 | R22: 0.05694039103 | S22: 0.05694039103 | T22: 0.05694039103 | U22: 0.05694039103 | V22: 0.05694039103 | W22: 0.05694039103 | X22: 0.05694039103 | Y22: 0.05694039103 | Z22: 0.05694039103 | AA22: 0.05694039103 | AB22: 0.05694039103 | AC22: 0.05694039103 | AD22: 0.05694039103 | AE22: 0.05694039103 | AF22: 0.05694039103 | AG22: 0.05694039103 | AH22: 0.05694039103 | AI22: 0.05694039103 | AJ22: 0.05694039103 | AK22: 0.05694039103 | AL22: 0.05694039103 | AM22: 0.05694039103 | AN22: 0.05694039103 | AO22: 0.05694039103 | AP22: 0.05694039103 | AQ22: 0.05694039103 | AR22: 0.05694039103 | AS22: 0.05694039103 | AT22: 0.05694039103 | AU22: 0.05694039103 | AV22: 0.05694039103
C23: ='Product Classes'!O23 -> VCT.SC.L | D23: 0.002711447192 | E23: 0.002711447192 | F23: 0.002711447192 | G23: 0.002711447192 | H23: 0.002711447192 | I23: 0.002711447192 | J23: 0.002711447192 | K23: 0.002711447192 | L23: =M23 -> 0.002711447192 | M23: 0.002711447192 | N23: 0.002711447192 | O23: 0.002711447192 | P23: 0.002711447192 | Q23: 0.002711447192 | R23: 0.002711447192 | S23: 0.002711447192 | T23: 0.002711447192 | U23: 0.002711447192 | V23: 0.002711447192 | W23: 0.002711447192 | X23: 0.002711447192 | Y23: 0.002711447192 | Z23: 0.002711447192 | AA23: 0.002711447192 | AB23: 0.002711447192 | AC23: 0.002711447192 | AD23: 0.002711447192 | AE23: 0.002711447192 | AF23: 0.002711447192 | AG23: 0.002711447192 | AH23: 0.002711447192 | AI23: 0.002711447192 | AJ23: 0.002711447192 | AK23: 0.002711447192 | AL23: 0.002711447192 | AM23: 0.002711447192 | AN23: 0.002711447192 | AO23: 0.002711447192 | AP23: 0.002711447192 | AQ23: 0.002711447192 | AR23: 0.002711447192 | AS23: 0.002711447192 | AT23: 0.002711447192 | AU23: 0.002711447192 | AV23: 0.002711447192
C24: ='Product Classes'!O24 -> VCS.SC.M | D24: 0.3013095692 | E24: 0.3013095692 | F24: 0.3013095692 | G24: 0.3013095692 | H24: 0.3013095692 | I24: 0.3013095692 | J24: 0.3013095692 | K24: 0.3013095692 | L24: 0.3013095692 | M24: 0.3013095692 | N24: 0.3013095692 | O24: 0.3013095692 | P24: 0.3013095692 | Q24: 0.3013095692 | R24: 0.3013095692 | S24: 0.3013095692 | T24: 0.3013095692 | U24: 0.3013095692 | V24: 0.3013095692 | W24: 0.3013095692 | X24: 0.3013095692 | Y24: 0.3013095692 | Z24: 0.3013095692 | AA24: 0.3013095692 | AB24: 0.3013095692 | AC24: 0.3013095692 | AD24: 0.3013095692 | AE24: 0.3013095692 | AF24: 0.3013095692 | AG24: 0.3013095692 | AH24: 0.3013095692 | AI24: 0.3013095692 | AJ24: 0.3013095692 | AK24: 0.3013095692 | AL24: 0.3013095692 | AM24: 0.3013095692 | AN24: 0.3013095692 | AO24: 0.3013095692 | AP24: 0.3013095692 | AQ24: 0.3013095692 | AR24: 0.3013095692 | AS24: 0.3013095692 | AT24: 0.3013095692 | AU24: 0.3013095692 | AV24: 0.3013095692
C25: ='Product Classes'!O25 -> VCS.SC.L | D25: 0.2033585394 | E25: 0.2033585394 | F25: 0.2033585394 | G25: 0.2033585394 | H25: 0.2033585394 | I25: 0.2033585394 | J25: 0.2033585394 | K25: 0.2033585394 | L25: 0.2033585394 | M25: 0.2033585394 | N25: 0.2033585394 | O25: 0.2033585394 | P25: 0.2033585394 | Q25: 0.2033585394 | R25: 0.2033585394 | S25: 0.2033585394 | T25: 0.2033585394 | U25: 0.2033585394 | V25: 0.2033585394 | W25: 0.2033585394 | X25: 0.2033585394 | Y25: 0.2033585394 | Z25: 0.2033585394 | AA25: 0.2033585394 | AB25: 0.2033585394 | AC25: 0.2033585394 | AD25: 0.2033585394 | AE25: 0.2033585394 | AF25: 0.2033585394 | AG25: 0.2033585394 | AH25: 0.2033585394 | AI25: 0.2033585394 | AJ25: 0.2033585394 | AK25: 0.2033585394 | AL25: 0.2033585394 | AM25: 0.2033585394 | AN25: 0.2033585394 | AO25: 0.2033585394 | AP25: 0.2033585394 | AQ25: 0.2033585394 | AR25: 0.2033585394 | AS25: 0.2033585394 | AT25: 0.2033585394 | AU25: 0.2033585394 | AV25: 0.2033585394
C26: ='Product Classes'!O26 -> HCT.SC.M | D26: 0.001581677529 | E26: 0.001581677529 | F26: 0.001581677529 | G26: 0.001581677529 | H26: 0.001581677529 | I26: 0.001581677529 | J26: 0.001581677529 | K26: 0.001581677529 | L26: 0.001581677529 | M26: 0.001581677529 | N26: 0.001581677529 | O26: 0.001581677529 | P26: 0.001581677529 | Q26: 0.001581677529 | R26: 0.001581677529 | S26: 0.001581677529 | T26: 0.001581677529 | U26: 0.001581677529 | V26: 0.001581677529 | W26: 0.001581677529 | X26: 0.001581677529 | Y26: 0.001581677529 | Z26: 0.001581677529 | AA26: 0.001581677529 | AB26: 0.001581677529 | AC26: 0.001581677529 | AD26: 0.001581677529 | AE26: 0.001581677529 | AF26: 0.001581677529 | AG26: 0.001581677529 | AH26: 0.001581677529 | AI26: 0.001581677529 | AJ26: 0.001581677529 | AK26: 0.001581677529 | AL26: 0.001581677529 | AM26: 0.001581677529 | AN26: 0.001581677529 | AO26: 0.001581677529 | AP26: 0.001581677529 | AQ26: 0.001581677529 | AR26: 0.001581677529 | AS26: 0.001581677529 | AT26: 0.001581677529 | AU26: 0.001581677529 | AV26: 0.001581677529
C27: ='Product Classes'!O27 -> HCT.SC.L | D27: 0.006326710114 | E27: 0.006326710114 | F27: 0.006326710114 | G27: 0.006326710114 | H27: 0.006326710114 | I27: 0.006326710114 | J27: 0.006326710114 | K27: 0.006326710114 | L27: 0.006326710114 | M27: 0.006326710114 | N27: 0.006326710114 | O27: 0.006326710114 | P27: 0.006326710114 | Q27: 0.006326710114 | R27: 0.006326710114 | S27: 0.006326710114 | T27: 0.006326710114 | U27: 0.006326710114 | V27: 0.006326710114 | W27: 0.006326710114 | X27: 0.006326710114 | Y27: 0.006326710114 | Z27: 0.006326710114 | AA27: 0.006326710114 | AB27: 0.006326710114 | AC27: 0.006326710114 | AD27: 0.006326710114 | AE27: 0.006326710114 | AF27: 0.006326710114 | AG27: 0.006326710114 | AH27: 0.006326710114 | AI27: 0.006326710114 | AJ27: 0.006326710114 | AK27: 0.006326710114 | AL27: 0.006326710114 | AM27: 0.006326710114 | AN27: 0.006326710114 | AO27: 0.006326710114 | AP27: 0.006326710114 | AQ27: 0.006326710114 | AR27: 0.006326710114 | AS27: 0.006326710114 | AT27: 0.006326710114 | AU27: 0.006326710114 | AV27: 0.006326710114
C28: ='Product Classes'!O28 -> HCS.SC.M | D28: 0.05219535844 | E28: 0.05219535844 | F28: 0.05219535844 | G28: 0.05219535844 | H28: 0.05219535844 | I28: 0.05219535844 | J28: 0.05219535844 | K28: 0.05219535844 | L28: 0.05219535844 | M28: 0.05219535844 | N28: 0.05219535844 | O28: 0.05219535844 | P28: 0.05219535844 | Q28: 0.05219535844 | R28: 0.05219535844 | S28: 0.05219535844 | T28: 0.05219535844 | U28: 0.05219535844 | V28: 0.05219535844 | W28: 0.05219535844 | X28: 0.05219535844 | Y28: 0.05219535844 | Z28: 0.05219535844 | AA28: 0.05219535844 | AB28: 0.05219535844 | AC28: 0.05219535844 | AD28: 0.05219535844 | AE28: 0.05219535844 | AF28: 0.05219535844 | AG28: 0.05219535844 | AH28: 0.05219535844 | AI28: 0.05219535844 | AJ28: 0.05219535844 | AK28: 0.05219535844 | AL28: 0.05219535844 | AM28: 0.05219535844 | AN28: 0.05219535844 | AO28: 0.05219535844 | AP28: 0.05219535844 | AQ28: 0.05219535844 | AR28: 0.05219535844 | AS28: 0.05219535844 | AT28: 0.05219535844 | AU28: 0.05219535844 | AV28: 0.05219535844
C29: ='Product Classes'!O29 -> HCS.SC.L | D29: 0.005694039103 | E29: 0.005694039103 | F29: 0.005694039103 | G29: 0.005694039103 | H29: 0.005694039103 | I29: 0.005694039103 | J29: 0.005694039103 | K29: 0.005694039103 | L29: 0.005694039103 | M29: 0.005694039103 | N29: 0.005694039103 | O29: 0.005694039103 | P29: 0.005694039103 | Q29: 0.005694039103 | R29: 0.005694039103 | S29: 0.005694039103 | T29: 0.005694039103 | U29: 0.005694039103 | V29: 0.005694039103 | W29: 0.005694039103 | X29: 0.005694039103 | Y29: 0.005694039103 | Z29: 0.005694039103 | AA29: 0.005694039103 | AB29: 0.005694039103 | AC29: 0.005694039103 | AD29: 0.005694039103 | AE29: 0.005694039103 | AF29: 0.005694039103 | AG29: 0.005694039103 | AH29: 0.005694039103 | AI29: 0.005694039103 | AJ29: 0.005694039103 | AK29: 0.005694039103 | AL29: 0.005694039103 | AM29: 0.005694039103 | AN29: 0.005694039103 | AO29: 0.005694039103 | AP29: 0.005694039103 | AQ29: 0.005694039103 | AR29: 0.005694039103 | AS29: 0.005694039103 | AT29: 0.005694039103 | AU29: 0.005694039103 | AV29: 0.005694039103
C30: ='Product Classes'!O30 -> SOC.SC.M | D30: 0.001898013034 | E30: 0.001898013034 | F30: 0.001898013034 | G30: 0.001898013034 | H30: 0.001898013034 | I30: 0.001898013034 | J30: 0.001898013034 | K30: 0.001898013034 | L30: 0.001898013034 | M30: 0.001898013034 | N30: 0.001898013034 | O30: 0.001898013034 | P30: 0.001898013034 | Q30: 0.001898013034 | R30: 0.001898013034 | S30: 0.001898013034 | T30: 0.001898013034 | U30: 0.001898013034 | V30: 0.001898013034 | W30: 0.001898013034 | X30: 0.001898013034 | Y30: 0.001898013034 | Z30: 0.001898013034 | AA30: 0.001898013034 | AB30: 0.001898013034 | AC30: 0.001898013034 | AD30: 0.001898013034 | AE30: 0.001898013034 | AF30: 0.001898013034 | AG30: 0.001898013034 | AH30: 0.001898013034 | AI30: 0.001898013034 | AJ30: 0.001898013034 | AK30: 0.001898013034 | AL30: 0.001898013034 | AM30: 0.001898013034 | AN30: 0.001898013034 | AO30: 0.001898013034 | AP30: 0.001898013034 | AQ30: 0.001898013034 | AR30: 0.001898013034 | AS30: 0.001898013034 | AT30: 0.001898013034 | AU30: 0.001898013034 | AV30: 0.001898013034
C31: ='Product Classes'!O31 -> PD.SC.M | D31: 0.1442489906 | E31: 0.1442489906 | F31: 0.1442489906 | G31: 0.1442489906 | H31: 0.1442489906 | I31: 0.1442489906 | J31: 0.1442489906 | K31: 0.1442489906 | L31: 0.1442489906 | M31: 0.1442489906 | N31: 0.1442489906 | O31: 0.1442489906 | P31: 0.1442489906 | Q31: 0.1442489906 | R31: 0.1442489906 | S31: 0.1442489906 | T31: 0.1442489906 | U31: 0.1442489906 | V31: 0.1442489906 | W31: 0.1442489906 | X31: 0.1442489906 | Y31: 0.1442489906 | Z31: 0.1442489906 | AA31: 0.1442489906 | AB31: 0.1442489906 | AC31: 0.1442489906 | AD31: 0.1442489906 | AE31: 0.1442489906 | AF31: 0.1442489906 | AG31: 0.1442489906 | AH31: 0.1442489906 | AI31: 0.1442489906 | AJ31: 0.1442489906 | AK31: 0.1442489906 | AL31: 0.1442489906 | AM31: 0.1442489906 | AN31: 0.1442489906 | AO31: 0.1442489906 | AP31: 0.1442489906 | AQ31: 0.1442489906 | AR31: 0.1442489906 | AS31: 0.1442489906 | AT31: 0.1442489906 | AU31: 0.1442489906 | AV31: 0.1442489906
C32: ='Product Classes'!O32 -> VCT.SC.I | D32: 0.002847019551 | E32: 0.002847019551 | F32: 0.002847019551 | G32: 0.002847019551 | H32: 0.002847019551 | I32: 0.002847019551 | J32: 0.002847019551 | K32: 0.002847019551 | L32: 0.002847019551 | M32: 0.002847019551 | N32: 0.002847019551 | O32: 0.002847019551 | P32: 0.002847019551 | Q32: 0.002847019551 | R32: 0.002847019551 | S32: 0.002847019551 | T32: 0.002847019551 | U32: 0.002847019551 | V32: 0.002847019551 | W32: 0.002847019551 | X32: 0.002847019551 | Y32: 0.002847019551 | Z32: 0.002847019551 | AA32: 0.002847019551 | AB32: 0.002847019551 | AC32: 0.002847019551 | AD32: 0.002847019551 | AE32: 0.002847019551 | AF32: 0.002847019551 | AG32: 0.002847019551 | AH32: 0.002847019551 | AI32: 0.002847019551 | AJ32: 0.002847019551 | AK32: 0.002847019551 | AL32: 0.002847019551 | AM32: 0.002847019551 | AN32: 0.002847019551 | AO32: 0.002847019551 | AP32: 0.002847019551 | AQ32: 0.002847019551 | AR32: 0.002847019551 | AS32: 0.002847019551 | AT32: 0.002847019551 | AU32: 0.002847019551 | AV32: 0.002847019551
C33: ='Product Classes'!O33 -> HCT.SC.I | D33: 0.005582391277 | E33: 0.005582391277 | F33: 0.005582391277 | G33: 0.005582391277 | H33: 0.005582391277 | I33: 0.005582391277 | J33: 0.005582391277 | K33: 0.005582391277 | L33: 0.005582391277 | M33: 0.005582391277 | N33: 0.005582391277 | O33: 0.005582391277 | P33: 0.005582391277 | Q33: 0.005582391277 | R33: 0.005582391277 | S33: 0.005582391277 | T33: 0.005582391277 | U33: 0.005582391277 | V33: 0.005582391277 | W33: 0.005582391277 | X33: 0.005582391277 | Y33: 0.005582391277 | Z33: 0.005582391277 | AA33: 0.005582391277 | AB33: 0.005582391277 | AC33: 0.005582391277 | AD33: 0.005582391277 | AE33: 0.005582391277 | AF33: 0.005582391277 | AG33: 0.005582391277 | AH33: 0.005582391277 | AI33: 0.005582391277 | AJ33: 0.005582391277 | AK33: 0.005582391277 | AL33: 0.005582391277 | AM33: 0.005582391277 | AN33: 0.005582391277 | AO33: 0.005582391277 | AP33: 0.005582391277 | AQ33: 0.005582391277 | AR33: 0.005582391277 | AS33: 0.005582391277 | AT33: 0.005582391277 | AU33: 0.005582391277 | AV33: 0.005582391277
C34: ='Product Classes'!O34 -> VCS.SC.I | D34: 0.0009490065171 | E34: 0.0009490065171 | F34: 0.0009490065171 | G34: 0.0009490065171 | H34: 0.0009490065171 | I34: 0.0009490065171 | J34: 0.0009490065171 | K34: 0.0009490065171 | L34: 0.0009490065171 | M34: 0.0009490065171 | N34: 0.0009490065171 | O34: 0.0009490065171 | P34: 0.0009490065171 | Q34: 0.0009490065171 | R34: 0.0009490065171 | S34: 0.0009490065171 | T34: 0.0009490065171 | U34: 0.0009490065171 | V34: 0.0009490065171 | W34: 0.0009490065171 | X34: 0.0009490065171 | Y34: 0.0009490065171 | Z34: 0.0009490065171 | AA34: 0.0009490065171 | AB34: 0.0009490065171 | AC34: 0.0009490065171 | AD34: 0.0009490065171 | AE34: 0.0009490065171 | AF34: 0.0009490065171 | AG34: 0.0009490065171 | AH34: 0.0009490065171 | AI34: 0.0009490065171 | AJ34: 0.0009490065171 | AK34: 0.0009490065171 | AL34: 0.0009490065171 | AM34: 0.0009490065171 | AN34: 0.0009490065171 | AO34: 0.0009490065171 | AP34: 0.0009490065171 | AQ34: 0.0009490065171 | AR34: 0.0009490065171 | AS34: 0.0009490065171 | AT34: 0.0009490065171 | AU34: 0.0009490065171 | AV34: 0.0009490065171
C36: POST-Case | D36: 1990 | E36: =D36+1 -> 1991 | F36: 1992 | G36: 1993 | H36: 1994 | I36: 1995 | J36: 1996 | K36: 1997 | L36: 1998 | M36: 1999 | N36: 2000 | O36: 2001 | P36: 2002 | Q36: 2003 | R36: 2004 | S36: 2005 | T36: 2006 | U36: 2007 | V36: 2008 | W36: 2009 | X36: 2010 | Y36: 2011 | Z36: 2012 | AA36: 2013 | AB36: 2014 | AC36: 2015 | AD36: 2016 | AE36: 2017 | AF36: 2018 | AG36: 2019 | AH36: 2020 | AI36: 2021 | AJ36: 2022 | AK36: 2023 | AL36: 2024 | AM36: 2025 | AN36: 2026 | AO36: 2027 | AP36: 2028 | AQ36: 2029 | AR36: 2030 | AS36: 2031 | AT36: 2032 | AU36: 2033 | AV36: 2034
C37: =C10 -> VOP.RC.M | D37: =E37 -> 0.04887383563 | E37: 0.04887383563 | F37: 0.04887383563 | G37: 0.04887383563 | H37: 0.04887383563 | I37: 0.04887383563 | J37: 0.04887383563 | K37: 0.04887383563 | L37: 0.04887383563 | M37: 0.04887383563 | N37: 0.04887383563 | O37: 0.04887383563 | P37: 0.04887383563 | Q37: 0.04887383563 | R37: 0.04887383563 | S37: 0.04887383563 | T37: 0.04887383563 | U37: 0.04887383563 | V37: 0.04887383563 | W37: =X37 -> 0.04887383563 | X37: 0.04887383563 | Y37: 0.04887383563 | Z37: 0.04887383563 | AA37: 0.04887383563 | AB37: 0.04887383563 | AC37: 0.04887383563 | AD37: 0.04887383563 | AE37: 0.04887383563 | AF37: 0.04887383563 | AG37: 0.04887383563 | AH37: 0.04887383563 | AI37: 0.04887383563 | AJ37: 0.04887383563 | AK37: 0.04887383563 | AL37: 0.04887383563 | AM37: 0.04887383563 | AN37: 0.04887383563 | AO37: 0.04887383563 | AP37: 0.04887383563 | AQ37: 0.04887383563 | AR37: 0.04887383563 | AS37: 0.04887383563 | AT37: 0.04887383563 | AU37: 0.04887383563 | AV37: 0.04887383563
C38: =C11 -> VOP.RC.L | D38: 0.002372516293 | E38: 0.002372516293 | F38: 0.002372516293 | G38: 0.002372516293 | H38: 0.002372516293 | I38: 0.002372516293 | J38: 0.002372516293 | K38: 0.002372516293 | L38: 0.002372516293 | M38: 0.002372516293 | N38: 0.002372516293 | O38: 0.002372516293 | P38: 0.002372516293 | Q38: 0.002372516293 | R38: 0.002372516293 | S38: 0.002372516293 | T38: 0.002372516293 | U38: 0.002372516293 | V38: 0.002372516293 | W38: =X38 -> 0.002372516293 | X38: 0.002372516293 | Y38: 0.002372516293 | Z38: 0.002372516293 | AA38: 0.002372516293 | AB38: 0.002372516293 | AC38: 0.002372516293 | AD38: 0.002372516293 | AE38: 0.002372516293 | AF38: 0.002372516293 | AG38: 0.002372516293 | AH38: 0.002372516293 | AI38: 0.002372516293 | AJ38: 0.002372516293 | AK38: 0.002372516293 | AL38: 0.002372516293 | AM38: 0.002372516293 | AN38: 0.002372516293 | AO38: 0.002372516293 | AP38: 0.002372516293 | AQ38: 0.002372516293 | AR38: 0.002372516293 | AS38: 0.002372516293 | AT38: 0.002372516293 | AU38: 0.002372516293 | AV38: 0.002372516293
C39: SVO.RC.M | D39: 0.0389092672 | E39: 0.0389092672 | F39: 0.0389092672 | G39: 0.0389092672 | H39: 0.0389092672 | I39: 0.0389092672 | J39: 0.0389092672 | K39: 0.0389092672 | L39: 0.0389092672 | M39: 0.0389092672 | N39: 0.0389092672 | O39: 0.0389092672 | P39: 0.0389092672 | Q39: 0.0389092672 | R39: 0.0389092672 | S39: 0.0389092672 | T39: 0.0389092672 | U39: 0.0389092672 | V39: 0.0389092672 | W39: 0.0389092672 | X39: 0.0389092672 | Y39: 0.0389092672 | Z39: 0.0389092672 | AA39: 0.0389092672 | AB39: 0.0389092672 | AC39: 0.0389092672 | AD39: 0.0389092672 | AE39: 0.0389092672 | AF39: 0.0389092672 | AG39: 0.0389092672 | AH39: 0.0389092672 | AI39: 0.0389092672 | AJ39: 0.0389092672 | AK39: 0.0389092672 | AL39: 0.0389092672 | AM39: 0.0389092672 | AN39: 0.0389092672 | AO39: 0.0389092672 | AP39: 0.0389092672 | AQ39: 0.0389092672 | AR39: 0.0389092672 | AS39: 0.0389092672 | AT39: 0.0389092672 | AU39: 0.0389092672 | AV39: 0.0389092672
C40: HZO.RC.M | D40: 0.006168542361 | E40: 0.006168542361 | F40: 0.006168542361 | G40: 0.006168542361 | H40: 0.006168542361 | I40: 0.006168542361 | J40: 0.006168542361 | K40: 0.006168542361 | L40: 0.006168542361 | M40: 0.006168542361 | N40: 0.006168542361 | O40: 0.006168542361 | P40: 0.006168542361 | Q40: 0.006168542361 | R40: 0.006168542361 | S40: 0.006168542361 | T40: 0.006168542361 | U40: 0.006168542361 | V40: 0.006168542361 | W40: 0.006168542361 | X40: 0.006168542361 | Y40: 0.006168542361 | Z40: 0.006168542361 | AA40: 0.006168542361 | AB40: 0.006168542361 | AC40: 0.006168542361 | AD40: 0.006168542361 | AE40: 0.006168542361 | AF40: 0.006168542361 | AG40: 0.006168542361 | AH40: 0.006168542361 | AI40: 0.006168542361 | AJ40: 0.006168542361 | AK40: 0.006168542361 | AL40: 0.006168542361 | AM40: 0.006168542361 | AN40: 0.006168542361 | AO40: 0.006168542361 | AP40: 0.006168542361 | AQ40: 0.006168542361 | AR40: 0.006168542361 | AS40: 0.006168542361 | AT40: 0.006168542361 | AU40: 0.006168542361 | AV40: 0.006168542361
C41: HZO.RC.L | D41: 0.01898013034 | E41: 0.01898013034 | F41: 0.01898013034 | G41: 0.01898013034 | H41: 0.01898013034 | I41: 0.01898013034 | J41: 0.01898013034 | K41: 0.01898013034 | L41: 0.01898013034 | M41: 0.01898013034 | N41: 0.01898013034 | O41: 0.01898013034 | P41: 0.01898013034 | Q41: 0.01898013034 | R41: 0.01898013034 | S41: 0.01898013034 | T41: 0.01898013034 | U41: 0.01898013034 | V41: 0.01898013034 | W41: 0.01898013034 | X41: 0.01898013034 | Y41: 0.01898013034 | Z41: 0.01898013034 | AA41: 0.01898013034 | AB41: 0.01898013034 | AC41: 0.01898013034 | AD41: 0.01898013034 | AE41: 0.01898013034 | AF41: 0.01898013034 | AG41: 0.01898013034 | AH41: 0.01898013034 | AI41: 0.01898013034 | AJ41: 0.01898013034 | AK41: 0.01898013034 | AL41: 0.01898013034 | AM41: 0.01898013034 | AN41: 0.01898013034 | AO41: 0.01898013034 | AP41: 0.01898013034 | AQ41: 0.01898013034 | AR41: 0.01898013034 | AS41: 0.01898013034 | AT41: 0.01898013034 | AU41: 0.01898013034 | AV41: 0.01898013034
C42: VCT.RC.M | D42: 0.003796026068 | E42: 0.003796026068 | F42: 0.003796026068 | G42: 0.003796026068 | H42: 0.003796026068 | I42: 0.003796026068 | J42: 0.003796026068 | K42: 0.003796026068 | L42: 0.003796026068 | M42: 0.003796026068 | N42: 0.003796026068 | O42: 0.003796026068 | P42: 0.003796026068 | Q42: 0.003796026068 | R42: 0.003796026068 | S42: 0.003796026068 | T42: 0.003796026068 | U42: 0.003796026068 | V42: 0.003796026068 | W42: 0.003796026068 | X42: 0.003796026068 | Y42: 0.003796026068 | Z42: 0.003796026068 | AA42: 0.003796026068 | AB42: 0.003796026068 | AC42: 0.003796026068 | AD42: 0.003796026068 | AE42: 0.003796026068 | AF42: 0.003796026068 | AG42: 0.003796026068 | AH42: 0.003796026068 | AI42: 0.003796026068 | AJ42: 0.003796026068 | AK42: 0.003796026068 | AL42: 0.003796026068 | AM42: 0.003796026068 | AN42: 0.003796026068 | AO42: 0.003796026068 | AP42: 0.003796026068 | AQ42: 0.003796026068 | AR42: 0.003796026068 | AS42: 0.003796026068 | AT42: 0.003796026068 | AU42: 0.003796026068 | AV42: 0.003796026068
C43: VCT.RC.L | D43: 0.05077184867 | E43: 0.05077184867 | F43: 0.05077184867 | G43: 0.05077184867 | H43: 0.05077184867 | I43: 0.05077184867 | J43: 0.05077184867 | K43: 0.05077184867 | L43: 0.05077184867 | M43: 0.05077184867 | N43: 0.05077184867 | O43: 0.05077184867 | P43: 0.05077184867 | Q43: 0.05077184867 | R43: 0.05077184867 | S43: 0.05077184867 | T43: 0.05077184867 | U43: 0.05077184867 | V43: 0.05077184867 | W43: 0.05077184867 | X43: 0.05077184867 | Y43: 0.05077184867 | Z43: 0.05077184867 | AA43: 0.05077184867 | AB43: 0.05077184867 | AC43: 0.05077184867 | AD43: 0.05077184867 | AE43: 0.05077184867 | AF43: 0.05077184867 | AG43: 0.05077184867 | AH43: 0.05077184867 | AI43: 0.05077184867 | AJ43: 0.05077184867 | AK43: 0.05077184867 | AL43: 0.05077184867 | AM43: 0.05077184867 | AN43: 0.05077184867 | AO43: 0.05077184867 | AP43: 0.05077184867 | AQ43: 0.05077184867 | AR43: 0.05077184867 | AS43: 0.05077184867 | AT43: 0.05077184867 | AU43: 0.05077184867 | AV43: 0.05077184867
C44: SOC.RC.M | D44: 0.01245571054 | E44: 0.01245571054 | F44: 0.01245571054 | G44: 0.01245571054 | H44: 0.01245571054 | I44: 0.01245571054 | J44: 0.01245571054 | K44: 0.01245571054 | L44: 0.01245571054 | M44: 0.01245571054 | N44: 0.01245571054 | O44: 0.01245571054 | P44: 0.01245571054 | Q44: 0.01245571054 | R44: 0.01245571054 | S44: 0.01245571054 | T44: 0.01245571054 | U44: 0.01245571054 | V44: 0.01245571054 | W44: 0.01245571054 | X44: 0.01245571054 | Y44: 0.01245571054 | Z44: 0.01245571054 | AA44: 0.01245571054 | AB44: 0.01245571054 | AC44: 0.01245571054 | AD44: 0.01245571054 | AE44: 0.01245571054 | AF44: 0.01245571054 | AG44: 0.01245571054 | AH44: 0.01245571054 | AI44: 0.01245571054 | AJ44: 0.01245571054 | AK44: 0.01245571054 | AL44: 0.01245571054 | AM44: 0.01245571054 | AN44: 0.01245571054 | AO44: 0.01245571054 | AP44: 0.01245571054 | AQ44: 0.01245571054 | AR44: 0.01245571054 | AS44: 0.01245571054 | AT44: 0.01245571054 | AU44: 0.01245571054 | AV44: 0.01245571054
C45: VOP.SC.M | D45: 0.0154213559 | E45: 0.0154213559 | F45: 0.0154213559 | G45: 0.0154213559 | H45: 0.0154213559 | I45: 0.0154213559 | J45: 0.0154213559 | K45: 0.0154213559 | L45: 0.0154213559 | M45: 0.0154213559 | N45: 0.0154213559 | O45: 0.0154213559 | P45: 0.0154213559 | Q45: 0.0154213559 | R45: 0.0154213559 | S45: 0.0154213559 | T45: 0.0154213559 | U45: 0.0154213559 | V45: 0.0154213559 | W45: 0.0154213559 | X45: 0.0154213559 | Y45: 0.0154213559 | Z45: 0.0154213559 | AA45: 0.0154213559 | AB45: 0.0154213559 | AC45: 0.0154213559 | AD45: 0.0154213559 | AE45: 0.0154213559 | AF45: 0.0154213559 | AG45: 0.0154213559 | AH45: 0.0154213559 | AI45: 0.0154213559 | AJ45: 0.0154213559 | AK45: 0.0154213559 | AL45: 0.0154213559 | AM45: 0.0154213559 | AN45: 0.0154213559 | AO45: 0.0154213559 | AP45: 0.0154213559 | AQ45: 0.0154213559 | AR45: 0.0154213559 | AS45: 0.0154213559 | AT45: 0.0154213559 | AU45: 0.0154213559 | AV45: 0.0154213559
C46: SVO.SC.M | D46: 0.01304883961 | E46: 0.01304883961 | F46: 0.01304883961 | G46: 0.01304883961 | H46: 0.01304883961 | I46: 0.01304883961 | J46: 0.01304883961 | K46: 0.01304883961 | L46: 0.01304883961 | M46: 0.01304883961 | N46: 0.01304883961 | O46: 0.01304883961 | P46: 0.01304883961 | Q46: 0.01304883961 | R46: 0.01304883961 | S46: 0.01304883961 | T46: 0.01304883961 | U46: 0.01304883961 | V46: 0.01304883961 | W46: 0.01304883961 | X46: 0.01304883961 | Y46: 0.01304883961 | Z46: 0.01304883961 | AA46: 0.01304883961 | AB46: 0.01304883961 | AC46: 0.01304883961 | AD46: 0.01304883961 | AE46: 0.01304883961 | AF46: 0.01304883961 | AG46: 0.01304883961 | AH46: 0.01304883961 | AI46: 0.01304883961 | AJ46: 0.01304883961 | AK46: 0.01304883961 | AL46: 0.01304883961 | AM46: 0.01304883961 | AN46: 0.01304883961 | AO46: 0.01304883961 | AP46: 0.01304883961 | AQ46: 0.01304883961 | AR46: 0.01304883961 | AS46: 0.01304883961 | AT46: 0.01304883961 | AU46: 0.01304883961 | AV46: 0.01304883961
C47: HZO.SC.M | D47: 0.001186258146 | E47: 0.001186258146 | F47: 0.001186258146 | G47: 0.001186258146 | H47: 0.001186258146 | I47: 0.001186258146 | J47: 0.001186258146 | K47: 0.001186258146 | L47: 0.001186258146 | M47: 0.001186258146 | N47: 0.001186258146 | O47: 0.001186258146 | P47: 0.001186258146 | Q47: 0.001186258146 | R47: 0.001186258146 | S47: 0.001186258146 | T47: 0.001186258146 | U47: 0.001186258146 | V47: 0.001186258146 | W47: 0.001186258146 | X47: 0.001186258146 | Y47: 0.001186258146 | Z47: 0.001186258146 | AA47: 0.001186258146 | AB47: 0.001186258146 | AC47: 0.001186258146 | AD47: 0.001186258146 | AE47: 0.001186258146 | AF47: 0.001186258146 | AG47: 0.001186258146 | AH47: 0.001186258146 | AI47: 0.001186258146 | AJ47: 0.001186258146 | AK47: 0.001186258146 | AL47: 0.001186258146 | AM47: 0.001186258146 | AN47: 0.001186258146 | AO47: 0.001186258146 | AP47: 0.001186258146 | AQ47: 0.001186258146 | AR47: 0.001186258146 | AS47: 0.001186258146 | AT47: 0.001186258146 | AU47: 0.001186258146 | AV47: 0.001186258146
C48: HZO.SC.L | D48: 0.002372516293 | E48: 0.002372516293 | F48: 0.002372516293 | G48: 0.002372516293 | H48: 0.002372516293 | I48: 0.002372516293 | J48: 0.002372516293 | K48: 0.002372516293 | L48: 0.002372516293 | M48: 0.002372516293 | N48: 0.002372516293 | O48: 0.002372516293 | P48: 0.002372516293 | Q48: 0.002372516293 | R48: 0.002372516293 | S48: 0.002372516293 | T48: 0.002372516293 | U48: 0.002372516293 | V48: 0.002372516293 | W48: 0.002372516293 | X48: 0.002372516293 | Y48: 0.002372516293 | Z48: 0.002372516293 | AA48: 0.002372516293 | AB48: 0.002372516293 | AC48: 0.002372516293 | AD48: 0.002372516293 | AE48: 0.002372516293 | AF48: 0.002372516293 | AG48: 0.002372516293 | AH48: 0.002372516293 | AI48: 0.002372516293 | AJ48: 0.002372516293 | AK48: 0.002372516293 | AL48: 0.002372516293 | AM48: 0.002372516293 | AN48: 0.002372516293 | AO48: 0.002372516293 | AP48: 0.002372516293 | AQ48: 0.002372516293 | AR48: 0.002372516293 | AS48: 0.002372516293 | AT48: 0.002372516293 | AU48: 0.002372516293 | AV48: 0.002372516293
C49: VCT.SC.M | D49: 0.05694039103 | E49: 0.05694039103 | F49: 0.05694039103 | G49: 0.05694039103 | H49: 0.05694039103 | I49: 0.05694039103 | J49: 0.05694039103 | K49: 0.05694039103 | L49: 0.05694039103 | M49: 0.05694039103 | N49: 0.05694039103 | O49: 0.05694039103 | P49: 0.05694039103 | Q49: 0.05694039103 | R49: 0.05694039103 | S49: 0.05694039103 | T49: 0.05694039103 | U49: 0.05694039103 | V49: 0.05694039103 | W49: 0.05694039103 | X49: 0.05694039103 | Y49: 0.05694039103 | Z49: 0.05694039103 | AA49: 0.05694039103 | AB49: 0.05694039103 | AC49: 0.05694039103 | AD49: 0.05694039103 | AE49: 0.05694039103 | AF49: 0.05694039103 | AG49: 0.05694039103 | AH49: 0.05694039103 | AI49: 0.05694039103 | AJ49: 0.05694039103 | AK49: 0.05694039103 | AL49: 0.05694039103 | AM49: 0.05694039103 | AN49: 0.05694039103 | AO49: 0.05694039103 | AP49: 0.05694039103 | AQ49: 0.05694039103 | AR49: 0.05694039103 | AS49: 0.05694039103 | AT49: 0.05694039103 | AU49: 0.05694039103 | AV49: 0.05694039103
C50: VCT.SC.L | D50: 0.002711447192 | E50: 0.002711447192 | F50: 0.002711447192 | G50: 0.002711447192 | H50: 0.002711447192 | I50: 0.002711447192 | J50: 0.002711447192 | K50: 0.002711447192 | L50: =M50 -> 0.002711447192 | M50: 0.002711447192 | N50: 0.002711447192 | O50: 0.002711447192 | P50: 0.002711447192 | Q50: 0.002711447192 | R50: 0.002711447192 | S50: 0.002711447192 | T50: 0.002711447192 | U50: 0.002711447192 | V50: 0.002711447192 | W50: 0.002711447192 | X50: 0.002711447192 | Y50: 0.002711447192 | Z50: 0.002711447192 | AA50: 0.002711447192 | AB50: 0.002711447192 | AC50: 0.002711447192 | AD50: 0.002711447192 | AE50: 0.002711447192 | AF50: 0.002711447192 | AG50: 0.002711447192 | AH50: 0.002711447192 | AI50: 0.002711447192 | AJ50: 0.002711447192 | AK50: 0.002711447192 | AL50: 0.002711447192 | AM50: 0.002711447192 | AN50: 0.002711447192 | AO50: 0.002711447192 | AP50: 0.002711447192 | AQ50: 0.002711447192 | AR50: 0.002711447192 | AS50: 0.002711447192 | AT50: 0.002711447192 | AU50: 0.002711447192 | AV50: 0.002711447192
C51: VCS.SC.M | D51: 0.3013095692 | E51: 0.3013095692 | F51: 0.3013095692 | G51: 0.3013095692 | H51: 0.3013095692 | I51: 0.3013095692 | J51: 0.3013095692 | K51: 0.3013095692 | L51: 0.3013095692 | M51: 0.3013095692 | N51: 0.3013095692 | O51: 0.3013095692 | P51: 0.3013095692 | Q51: 0.3013095692 | R51: 0.3013095692 | S51: 0.3013095692 | T51: 0.3013095692 | U51: 0.3013095692 | V51: 0.3013095692 | W51: 0.3013095692 | X51: 0.3013095692 | Y51: 0.3013095692 | Z51: 0.3013095692 | AA51: 0.3013095692 | AB51: 0.3013095692 | AC51: 0.3013095692 | AD51: 0.3013095692 | AE51: 0.3013095692 | AF51: 0.3013095692 | AG51: 0.3013095692 | AH51: 0.3013095692 | AI51: 0.3013095692 | AJ51: 0.3013095692 | AK51: 0.3013095692 | AL51: 0.3013095692 | AM51: 0.3013095692 | AN51: 0.3013095692 | AO51: 0.3013095692 | AP51: 0.3013095692 | AQ51: 0.3013095692 | AR51: 0.3013095692 | AS51: 0.3013095692 | AT51: 0.3013095692 | AU51: 0.3013095692 | AV51: 0.3013095692
C52: VCS.SC.L | D52: 0.2033585394 | E52: 0.2033585394 | F52: 0.2033585394 | G52: 0.2033585394 | H52: 0.2033585394 | I52: 0.2033585394 | J52: 0.2033585394 | K52: 0.2033585394 | L52: 0.2033585394 | M52: 0.2033585394 | N52: 0.2033585394 | O52: 0.2033585394 | P52: 0.2033585394 | Q52: 0.2033585394 | R52: 0.2033585394 | S52: 0.2033585394 | T52: 0.2033585394 | U52: 0.2033585394 | V52: 0.2033585394 | W52: 0.2033585394 | X52: 0.2033585394 | Y52: 0.2033585394 | Z52: 0.2033585394 | AA52: 0.2033585394 | AB52: 0.2033585394 | AC52: 0.2033585394 | AD52: 0.2033585394 | AE52: 0.2033585394 | AF52: 0.2033585394 | AG52: 0.2033585394 | AH52: 0.2033585394 | AI52: 0.2033585394 | AJ52: 0.2033585394 | AK52: 0.2033585394 | AL52: 0.2033585394 | AM52: 0.2033585394 | AN52: 0.2033585394 | AO52: 0.2033585394 | AP52: 0.2033585394 | AQ52: 0.2033585394 | AR52: 0.2033585394 | AS52: 0.2033585394 | AT52: 0.2033585394 | AU52: 0.2033585394 | AV52: 0.2033585394
C53: HCT.SC.M | D53: 0.001581677529 | E53: 0.001581677529 | F53: 0.001581677529 | G53: 0.001581677529 | H53: 0.001581677529 | I53: 0.001581677529 | J53: 0.001581677529 | K53: 0.001581677529 | L53: 0.001581677529 | M53: 0.001581677529 | N53: 0.001581677529 | O53: 0.001581677529 | P53: 0.001581677529 | Q53: 0.001581677529 | R53: 0.001581677529 | S53: 0.001581677529 | T53: 0.001581677529 | U53: 0.001581677529 | V53: 0.001581677529 | W53: 0.001581677529 | X53: 0.001581677529 | Y53: 0.001581677529 | Z53: 0.001581677529 | AA53: 0.001581677529 | AB53: 0.001581677529 | AC53: 0.001581677529 | AD53: 0.001581677529 | AE53: 0.001581677529 | AF53: 0.001581677529 | AG53: 0.001581677529 | AH53: 0.001581677529 | AI53: 0.001581677529 | AJ53: 0.001581677529 | AK53: 0.001581677529 | AL53: 0.001581677529 | AM53: 0.001581677529 | AN53: 0.001581677529 | AO53: 0.001581677529 | AP53: 0.001581677529 | AQ53: 0.001581677529 | AR53: 0.001581677529 | AS53: 0.001581677529 | AT53: 0.001581677529 | AU53: 0.001581677529 | AV53: 0.001581677529
C54: HCT.SC.L | D54: 0.006326710114 | E54: 0.006326710114 | F54: 0.006326710114 | G54: 0.006326710114 | H54: 0.006326710114 | I54: 0.006326710114 | J54: 0.006326710114 | K54: 0.006326710114 | L54: 0.006326710114 | M54: 0.006326710114 | N54: 0.006326710114 | O54: 0.006326710114 | P54: 0.006326710114 | Q54: 0.006326710114 | R54: 0.006326710114 | S54: 0.006326710114 | T54: 0.006326710114 | U54: 0.006326710114 | V54: 0.006326710114 | W54: 0.006326710114 | X54: 0.006326710114 | Y54: 0.006326710114 | Z54: 0.006326710114 | AA54: 0.006326710114 | AB54: 0.006326710114 | AC54: 0.006326710114 | AD54: 0.006326710114 | AE54: 0.006326710114 | AF54: 0.006326710114 | AG54: 0.006326710114 | AH54: 0.006326710114 | AI54: 0.006326710114 | AJ54: 0.006326710114 | AK54: 0.006326710114 | AL54: 0.006326710114 | AM54: 0.006326710114 | AN54: 0.006326710114 | AO54: 0.006326710114 | AP54: 0.006326710114 | AQ54: 0.006326710114 | AR54: 0.006326710114 | AS54: 0.006326710114 | AT54: 0.006326710114 | AU54: 0.006326710114 | AV54: 0.006326710114
C55: HCS.SC.M | D55: 0.05219535844 | E55: 0.05219535844 | F55: 0.05219535844 | G55: 0.05219535844 | H55: 0.05219535844 | I55: 0.05219535844 | J55: 0.05219535844 | K55: 0.05219535844 | L55: 0.05219535844 | M55: 0.05219535844 | N55: 0.05219535844 | O55: 0.05219535844 | P55: 0.05219535844 | Q55: 0.05219535844 | R55: 0.05219535844 | S55: 0.05219535844 | T55: 0.05219535844 | U55: 0.05219535844 | V55: 0.05219535844 | W55: 0.05219535844 | X55: 0.05219535844 | Y55: 0.05219535844 | Z55: 0.05219535844 | AA55: 0.05219535844 | AB55: 0.05219535844 | AC55: 0.05219535844 | AD55: 0.05219535844 | AE55: 0.05219535844 | AF55: 0.05219535844 | AG55: 0.05219535844 | AH55: 0.05219535844 | AI55: 0.05219535844 | AJ55: 0.05219535844 | AK55: 0.05219535844 | AL55: 0.05219535844 | AM55: 0.05219535844 | AN55: 0.05219535844 | AO55: 0.05219535844 | AP55: 0.05219535844 | AQ55: 0.05219535844 | AR55: 0.05219535844 | AS55: 0.05219535844 | AT55: 0.05219535844 | AU55: 0.05219535844 | AV55: 0.05219535844
C56: HCS.SC.L | D56: 0.005694039103 | E56: 0.005694039103 | F56: 0.005694039103 | G56: 0.005694039103 | H56: 0.005694039103 | I56: 0.005694039103 | J56: 0.005694039103 | K56: 0.005694039103 | L56: 0.005694039103 | M56: 0.005694039103 | N56: 0.005694039103 | O56: 0.005694039103 | P56: 0.005694039103 | Q56: 0.005694039103 | R56: 0.005694039103 | S56: 0.005694039103 | T56: 0.005694039103 | U56: 0.005694039103 | V56: 0.005694039103 | W56: 0.005694039103 | X56: 0.005694039103 | Y56: 0.005694039103 | Z56: 0.005694039103 | AA56: 0.005694039103 | AB56: 0.005694039103 | AC56: 0.005694039103 | AD56: 0.005694039103 | AE56: 0.005694039103 | AF56: 0.005694039103 | AG56: 0.005694039103 | AH56: 0.005694039103 | AI56: 0.005694039103 | AJ56: 0.005694039103 | AK56: 0.005694039103 | AL56: 0.005694039103 | AM56: 0.005694039103 | AN56: 0.005694039103 | AO56: 0.005694039103 | AP56: 0.005694039103 | AQ56: 0.005694039103 | AR56: 0.005694039103 | AS56: 0.005694039103 | AT56: 0.005694039103 | AU56: 0.005694039103 | AV56: 0.005694039103
C57: SOC.SC.M | D57: 0.001898013034 | E57: 0.001898013034 | F57: 0.001898013034 | G57: 0.001898013034 | H57: 0.001898013034 | I57: 0.001898013034 | J57: 0.001898013034 | K57: 0.001898013034 | L57: 0.001898013034 | M57: 0.001898013034 | N57: 0.001898013034 | O57: 0.001898013034 | P57: 0.001898013034 | Q57: 0.001898013034 | R57: 0.001898013034 | S57: 0.001898013034 | T57: 0.001898013034 | U57: 0.001898013034 | V57: 0.001898013034 | W57: 0.001898013034 | X57: 0.001898013034 | Y57: 0.001898013034 | Z57: 0.001898013034 | AA57: 0.001898013034 | AB57: 0.001898013034 | AC57: 0.001898013034 | AD57: 0.001898013034 | AE57: 0.001898013034 | AF57: 0.001898013034 | AG57: 0.001898013034 | AH57: 0.001898013034 | AI57: 0.001898013034 | AJ57: 0.001898013034 | AK57: 0.001898013034 | AL57: 0.001898013034 | AM57: 0.001898013034 | AN57: 0.001898013034 | AO57: 0.001898013034 | AP57: 0.001898013034 | AQ57: 0.001898013034 | AR57: 0.001898013034 | AS57: 0.001898013034 | AT57: 0.001898013034 | AU57: 0.001898013034 | AV57: 0.001898013034
C58: PD.SC.M | D58: 0.1442489906 | E58: 0.1442489906 | F58: 0.1442489906 | G58: 0.1442489906 | H58: 0.1442489906 | I58: 0.1442489906 | J58: 0.1442489906 | K58: 0.1442489906 | L58: 0.1442489906 | M58: 0.1442489906 | N58: 0.1442489906 | O58: 0.1442489906 | P58: 0.1442489906 | Q58: 0.1442489906 | R58: 0.1442489906 | S58: 0.1442489906 | T58: 0.1442489906 | U58: 0.1442489906 | V58: 0.1442489906 | W58: 0.1442489906 | X58: 0.1442489906 | Y58: 0.1442489906 | Z58: 0.1442489906 | AA58: 0.1442489906 | AB58: 0.1442489906 | AC58: 0.1442489906 | AD58: 0.1442489906 | AE58: 0.1442489906 | AF58: 0.1442489906 | AG58: 0.1442489906 | AH58: 0.1442489906 | AI58: 0.1442489906 | AJ58: 0.1442489906 | AK58: 0.1442489906 | AL58: 0.1442489906 | AM58: 0.1442489906 | AN58: 0.1442489906 | AO58: 0.1442489906 | AP58: 0.1442489906 | AQ58: 0.1442489906 | AR58: 0.1442489906 | AS58: 0.1442489906 | AT58: 0.1442489906 | AU58: 0.1442489906 | AV58: 0.1442489906
C59: VCT.SC.I | D59: 0.002847019551 | E59: 0.002847019551 | F59: 0.002847019551 | G59: 0.002847019551 | H59: 0.002847019551 | I59: 0.002847019551 | J59: 0.002847019551 | K59: 0.002847019551 | L59: 0.002847019551 | M59: 0.002847019551 | N59: 0.002847019551 | O59: 0.002847019551 | P59: 0.002847019551 | Q59: 0.002847019551 | R59: 0.002847019551 | S59: 0.002847019551 | T59: 0.002847019551 | U59: 0.002847019551 | V59: 0.002847019551 | W59: 0.002847019551 | X59: 0.002847019551 | Y59: 0.002847019551 | Z59: 0.002847019551 | AA59: 0.002847019551 | AB59: 0.002847019551 | AC59: 0.002847019551 | AD59: 0.002847019551 | AE59: 0.002847019551 | AF59: 0.002847019551 | AG59: 0.002847019551 | AH59: 0.002847019551 | AI59: 0.002847019551 | AJ59: 0.002847019551 | AK59: 0.002847019551 | AL59: 0.002847019551 | AM59: 0.002847019551 | AN59: 0.002847019551 | AO59: 0.002847019551 | AP59: 0.002847019551 | AQ59: 0.002847019551 | AR59: 0.002847019551 | AS59: 0.002847019551 | AT59: 0.002847019551 | AU59: 0.002847019551 | AV59: 0.002847019551
C60: HCT.SC.I | D60: 0.005582391277 | E60: 0.005582391277 | F60: 0.005582391277 | G60: 0.005582391277 | H60: 0.005582391277 | I60: 0.005582391277 | J60: 0.005582391277 | K60: 0.005582391277 | L60: 0.005582391277 | M60: 0.005582391277 | N60: 0.005582391277 | O60: 0.005582391277 | P60: 0.005582391277 | Q60: 0.005582391277 | R60: 0.005582391277 | S60: 0.005582391277 | T60: 0.005582391277 | U60: 0.005582391277 | V60: 0.005582391277 | W60: 0.005582391277 | X60: 0.005582391277 | Y60: 0.005582391277 | Z60: 0.005582391277 | AA60: 0.005582391277 | AB60: 0.005582391277 | AC60: 0.005582391277 | AD60: 0.005582391277 | AE60: 0.005582391277 | AF60: 0.005582391277 | AG60: 0.005582391277 | AH60: 0.005582391277 | AI60: 0.005582391277 | AJ60: 0.005582391277 | AK60: 0.005582391277 | AL60: 0.005582391277 | AM60: 0.005582391277 | AN60: 0.005582391277 | AO60: 0.005582391277 | AP60: 0.005582391277 | AQ60: 0.005582391277 | AR60: 0.005582391277 | AS60: 0.005582391277 | AT60: 0.005582391277 | AU60: 0.005582391277 | AV60: 0.005582391277
C61: VCS.SC.I | D61: 0.0009490065171 | E61: 0.0009490065171 | F61: 0.0009490065171 | G61: 0.0009490065171 | H61: 0.0009490065171 | I61: 0.0009490065171 | J61: 0.0009490065171 | K61: 0.0009490065171 | L61: 0.0009490065171 | M61: 0.0009490065171 | N61: 0.0009490065171 | O61: 0.0009490065171 | P61: 0.0009490065171 | Q61: 0.0009490065171 | R61: 0.0009490065171 | S61: 0.0009490065171 | T61: 0.0009490065171 | U61: 0.0009490065171 | V61: 0.0009490065171 | W61: 0.0009490065171 | X61: 0.0009490065171 | Y61: 0.0009490065171 | Z61: 0.0009490065171 | AA61: 0.0009490065171 | AB61: 0.0009490065171 | AC61: 0.0009490065171 | AD61: 0.0009490065171 | AE61: 0.0009490065171 | AF61: 0.0009490065171 | AG61: 0.0009490065171 | AH61: 0.0009490065171 | AI61: 0.0009490065171 | AJ61: 0.0009490065171 | AK61: 0.0009490065171 | AL61: 0.0009490065171 | AM61: 0.0009490065171 | AN61: 0.0009490065171 | AO61: 0.0009490065171 | AP61: 0.0009490065171 | AQ61: 0.0009490065171 | AR61: 0.0009490065171 | AS61: 0.0009490065171 | AT61: 0.0009490065171 | AU61: 0.0009490065171 | AV61: 0.0009490065171
C63: Source/Rationale | D63: Calculated from DOE Commercial Refrigeration Equipment 2014 Final Rule, Technical Support Document: Final Rule Government Regulatory Impact Model (GRIM), 'Shipments' tab, cells F20:AD20, F32:AD32, F44:AD44, F256:AD56, F68:AD68, F80:AD80, F92:AD92, F104:AD104, F116:AD116, F128:AD128, F140:AD140, F152:AD152, F164:AD164, F176:AD176, F188:AD188, F200:AD200, F212:AD212, F224:AD224, F236:AD236, F248:AD248, F260:AD260, F272:AD272, F284:AD284, F296:AD296, F308:AD308, http://www.regulations.gov/#!documentDetail;D=EERE-2010-BT-STD-0003-0099

Sheet Efficiency Dist
C2: Efficiency Distributions by Product Class - Single Family
C4: =Navigation!$C$15 -> NAVIGATION
C6: COMMENTS
D9: ='Product Classes'!O10 -> VOP.RC.M
D11: PRE-Case | F11: Static Distribution
D12: Efficiency Level | E12: EL (kWh/year) | F12: 2006 | H12: 1990 | I12: =H12+1 -> 1991 | J12: =I12+1 -> 1992 | K12: 1993 | L12: 1994 | M12: 1995 | N12: 1996 | O12: 1997 | P12: 1998 | Q12: 1999 | R12: 2000 | S12: 2001 | T12: 2002 | U12: 2003 | V12: 2004 | W12: 2005 | X12: 2006 | Y12: 2007 | Z12: 2008 | AA12: 2009 | AB12: 2010 | AC12: 2011 | AD12: 2012 | AE12: 2013 | AF12: 2014 | AG12: 2015 | AH12: 2016 | AI12: 2017 | AJ12: 2018 | AK12: 2019 | AL12: 2020 | AM12: 2021 | AN12: 2022 | AO12: 2023 | AP12: 2024 | AQ12: 2025 | AR12: 2026 | AS12: 2027 | AT12: 2028 | AU12: 2029 | AV12: 2030 | AW12: 2031 | AX12: 2032 | AY12: 2033 | AZ12: 2034
D13: ='Efficiency Levels'!C12 -> EL0 | E13: ='Efficiency Levels'!D12 -> 17611.87657 | F13: 1 | H13: =$F13 -> 1 | I13: 1 | J13: 1 | K13: 1 | L13: 1 | M13: 1 | N13: 1 | O13: 1 | P13: 1 | Q13: 1 | R13: 1 | S13: 1 | T13: 1 | U13: 1 | V13: 1 | W13: 1 | X13: =$F13 -> 1 | Y13: 1 | Z13: 1 | AA13: 1 | AB13: 1 | AC13: 1 | AD13: 0 | AE13: 0 | AF13: 0 | AG13: 0 | AH13: 0 | AI13: 0 | AJ13: 0 | AK13: 0 | AL13: 0 | AM13: 0 | AN13: 0 | AO13: 0 | AP13: 0 | AQ13: 0 | AR13: 0 | AS13: 0 | AT13: 0 | AU13: 0 | AV13: 0 | AW13: 0 | AX13: 0 | AY13: 0 | AZ13: 0
D14: ='Efficiency Levels'!C13 -> EL1 | E14: ='Efficiency Levels'!D13 -> 14504.25415 | F14: 0 | H14: 0 | I14: =$F14 -> 0 | J14: 0 | K14: 0 | L14: 0 | M14: 0 | N14: 0 | O14: 0 | P14: 0 | Q14: 0 | R14: 0 | S14: 0 | T14: 0 | U14: 0 | V14: 0 | W14: 0 | X14: 0 | Y14: 0 | Z14: 0 | AA14: 0 | AB14: 0 | AC14: 0 | AD14: 0 | AE14: 0 | AF14: 0 | AG14: 0 | AH14: 0 | AI14: 0 | AJ14: 0 | AK14: 0 | AL14: 0 | AM14: 0 | AN14: 0 | AO14: 0 | AP14: 0 | AQ14: 0 | AR14: 0 | AS14: 0 | AT14: 0 | AU14: 0 | AV14: 0 | AW14: 0 | AX14: 0 | AY14: 0 | AZ14: 0
D15: ='Efficiency Levels'!C14 -> EL2 | E15: ='Efficiency Levels'!D14 -> 14246.11418 | F15: 0 | H15: 0 | I15: =$F15 -> 0 | J15: 0 | K15: 0 | L15: 0 | M15: 0 | N15: 0 | O15: 0 | P15: 0 | Q15: 0 | R15: 0 | S15: 0 | T15: 0 | U15: 0 | V15: 0 | W15: 0 | X15: 0 | Y15: 0 | Z15: 0 | AA15: 0 | AB15: 0 | AC15: 0 | AD15: 0.6 | AE15: 0.6 | AF15: 0.6 | AG15: 0.6 | AH15: 0.6 | AI15: 0.6 | AJ15: 0.6 | AK15: 0.6 | AL15: 0.6 | AM15: 0.6 | AN15: 0.6 | AO15: 0.6 | AP15: 0.6 | AQ15: 0.6 | AR15: 0.6 | AS15: 0.6 | AT15: 0.6 | AU15: 0.6 | AV15: 0.6 | AW15: 0.6 | AX15: 0.6 | AY15: 0.6 | AZ15: 0.6
D16: ='Efficiency Levels'!C15 -> EL3 | E16: ='Efficiency Levels'!D15 -> 11564.01125 | F16: 0 | H16: 0 | I16: =$F16 -> 0 | J16: 0 | K16: 0 | L16: 0 | M16: 0 | N16: 0 | O16: 0 | P16: 0 | Q16: 0 | R16: 0 | S16: 0 | T16: 0 | U16: 0 | V16: 0 | W16: 0 | X16: 0 | Y16: 0 | Z16: 0 | AA16: 0 | AB16: 0 | AC16: 0 | AD16: 0.4 | AE16: 0.4 | AF16: 0.4 | AG16: 0.4 | AH16: 0.4 | AI16: 0.4 | AJ16: 0.4 | AK16: 0.4 | AL16: 0.4 | AM16: 0.4 | AN16: 0.4 | AO16: 0.4 | AP16: 0.4 | AQ16: 0.4 | AR16: 0.4 | AS16: 0.4 | AT16: 0.4 | AU16: 0.4 | AV16: 0.4 | AW16: 0.4 | AX16: 0.4 | AY16: 0.4 | AZ16: 0.4
D17: ='Efficiency Levels'!C16 -> EL4 | E17: ='Efficiency Levels'!D16 -> 11483.86454 | F17: 0 | H17: 0 | I17: 0 | J17: 0 | K17: 0 | L17: 0 | M17: 0 | N17: 0 | O17: 0 | P17: 0 | Q17: 0 | R17: 0 | S17: 0 | T17: 0 | U17: 0 | V17: 0 | W17: 0 | X17: 0 | Y17: 0 | Z17: 0 | AA17: 0 | AB17: 0 | AC17: 0 | AD17: 0 | AE17: 0 | AF17: 0 | AG17: 0 | AH17: 0 | AI17: 0 | AJ17: 0 | AK17: 0 | AL17: 0 | AM17: 0 | AN17: 0 | AO17: 0 | AP17: 0 | AQ17: 0 | AR17: 0 | AS17: 0 | AT17: 0 | AU17: 0 | AV17: 0 | AW17: 0 | AX17: 0 | AY17: 0 | AZ17: 0
D18: ='Efficiency Levels'!C17 -> EL5 | E18: ='Efficiency Levels'!D17 -> 10980.76952 | F18: 0 | H18: 0 | I18: 0 | J18: 0 | K18: 0 | L18: 0 | M18: 0 | N18: 0 | O18: 0 | P18: 0 | Q18: 0 | R18: 0 | S18: 0 | T18: 0 | U18: 0 | V18: 0 | W18: 0 | X18: 0 | Y18: 0 | Z18: 0 | AA18: 0 | AB18: 0 | AC18: 0 | AD18: 0 | AE18: 0 | AF18: 0 | AG18: 0 | AH18: 0 | AI18: 0 | AJ18: 0 | AK18: 0 | AL18: 0 | AM18: 0 | AN18: =$F18 -> 0 | AO18: 0 | AP18: 0 | AQ18: 0 | AR18: 0 | AS18: 0 | AT18: 0 | AU18: 0 | AV18: 0 | AW18: 0 | AX18: 0 | AY18: 0 | AZ18: 0
D19: ='Efficiency Levels'!C18 -> EL6 | E19: ='Efficiency Levels'!D18 -> 10844.09597 | F19: 0 | H19: 0 | I19: 0 | J19: 0 | K19: 0 | L19: 0 | M19: 0 | N19: 0 | O19: 0 | P19: 0 | Q19: 0 | R19: 0 | S19: 0 | T19: 0 | U19: 0 | V19: 0 | W19: 0 | X19: 0 | Y19: 0 | Z19: 0 | AA19: 0 | AB19: 0 | AC19: 0 | AD19: 0 | AE19: 0 | AF19: 0 | AG19: 0 | AH19: 0 | AI19: 0 | AJ19: 0 | AK19: 0 | AL19: 0 | AM19: 0 | AN19: 0 | AO19: 0 | AP19: 0 | AQ19: 0 | AR19: 0 | AS19: 0 | AT19: 0 | AU19: 0 | AV19: 0 | AW19: 0 | AX19: 0 | AY19: 0 | AZ19: 0
D20: ='Efficiency Levels'!C19 -> EL7 | E20: ='Efficiency Levels'!D19 -> 10844.09597 | F20: 0 | H20: 0 | I20: 0 | J20: 0 | K20: 0 | L20: 0 | M20: 0 | N20: 0 | O20: 0 | P20: 0 | Q20: 0 | R20: 0 | S20: 0 | T20: 0 | U20: 0 | V20: 0 | W20: 0 | X20: 0 | Y20: 0 | Z20: 0 | AA20: 0 | AB20: 0 | AC20: 0 | AD20: 0 | AE20: 0 | AF20: 0 | AG20: 0 | AH20: 0 | AI20: 0 | AJ20: 0 | AK20: 0 | AL20: 0 | AM20: 0 | AN20: 0 | AO20: 0 | AP20: 0 | AQ20: 0 | AR20: 0 | AS20: 0 | AT20: 0 | AU20: 0 | AV20: 0 | AW20: 0 | AX20: 0 | AY20: 0 | AZ20: 0
D21: ='Efficiency Levels'!C20 -> EL8 | E21: ='Efficiency Levels'!D20 -> 10844.09597 | F21: 0 | H21: 0 | I21: 0 | J21: 0 | K21: 0 | L21: 0 | M21: 0 | N21: 0 | O21: 0 | P21: 0 | Q21: 0 | R21: 0 | S21: 0 | T21: 0 | U21: 0 | V21: 0 | W21: 0 | X21: 0 | Y21: 0 | Z21: 0 | AA21: 0 | AB21: 0 | AC21: 0 | AD21: 0 | AE21: 0 | AF21: 0 | AG21: 0 | AH21: 0 | AI21: 0 | AJ21: 0 | AK21: 0 | AL21: 0 | AM21: 0 | AN21: 0 | AO21: 0 | AP21: 0 | AQ21: 0 | AR21: 0 | AS21: 0 | AT21: 0 | AU21: 0 | AV21: 0 | AW21: 0 | AX21: 0 | AY21: 0 | AZ21: 0
D22: ='Efficiency Levels'!C21 -> EL9 | E22: ='Efficiency Levels'!D21 -> 10844.09597 | F22: 0 | H22: 0 | I22: 0 | J22: 0 | K22: 0 | L22: 0 | M22: 0 | N22: 0 | O22: 0 | P22: 0 | Q22: 0 | R22: 0 | S22: 0 | T22: 0 | U22: 0 | V22: 0 | W22: 0 | X22: 0 | Y22: 0 | Z22: 0 | AA22: 0 | AB22: 0 | AC22: 0 | AD22: 0 | AE22: 0 | AF22: 0 | AG22: 0 | AH22: 0 | AI22: 0 | AJ22: 0 | AK22: 0 | AL22: 0 | AM22: 0 | AN22: 0 | AO22: 0 | AP22: 0 | AQ22: 0 | AR22: 0 | AS22: 0 | AT22: 0 | AU22: 0 | AV22: 0 | AW22: 0 | AX22: 0 | AY22: 0 | AZ22: 0
D23: TOTAL | F23: =SUM(F13:F22) -> 1 | H23: =SUM(H13:H22) -> 1 | I23: =SUM(I13:I22) -> 1 | J23: 1 | K23: 1 | L23: 1 | M23: 1 | N23: 1 | O23: 1 | P23: 1 | Q23: 1 | R23: 1 | S23: 1 | T23: 1 | U23: 1 | V23: 1 | W23: 1 | X23: 1 | Y23: 1 | Z23: 1 | AA23: 1 | AB23: 1 | AC23: 1 | AD23: 1 | AE23: 1 | AF23: 1 | AG23: 1 | AH23: 1 | AI23: 1 | AJ23: 1 | AK23: 1 | AL23: 1 | AM23: 1 | AN23: 1 | AO23: 1 | AP23: 1 | AQ23: 1 | AR23: 1 | AS23: 1 | AT23: 1 | AU23: 1 | AV23: 1 | AW23: 1 | AX23: 1 | AY23: 1 | AZ23: 1
D25: POST-Case
D26: Efficiency Level | E26: EL (kWh/year) | H26: 1990 | I26: =H26+1 -> 1991 | J26: =I26+1 -> 1992 | K26: 1993 | L26: 1994 | M26: 1995 | N26: 1996 | O26: 1997 | P26: 1998 | Q26: 1999 | R26: 2000 | S26: 2001 | T26: 2002 | U26: 2003 | V26: 2004 | W26: 2005 | X26: =X12 -> 2006 | Y26: 2007 | Z26: 2008 | AA26: 2009 | AB26: 2010 | AC26: 2011 | AD26: 2012 | AE26: 2013 | AF26: 2014 | AG26: 2015 | AH26: 2016 | AI26: 2017 | AJ26: 2018 | AK26: 2019 | AL26: 2020 | AM26: 2021 | AN26: 2022 | AO26: 2023 | AP26: 2024 | AQ26: 2025 | AR26: 2026 | AS26: 2027 | AT26: 2028 | AU26: 2029 | AV26: 2030 | AW26: 2031 | AX26: 2032 | AY26: 2033 | AZ26: 2034
D27: =D13 -> EL0 | E27: =E13 -> 17611.87657 | H27: =H13 -> 1 | I27: =I13 -> 1 | J27: 1 | K27: 1 | L27: 1 | M27: 1 | N27: 1 | O27: 1 | P27: 1 | Q27: 1 | R27: 1 | S27: 1 | T27: 1 | U27: 1 | V27: 1 | W27: 1 | X27: 1 | Y27: 1 | Z27: 1 | AA27: 1 | AB27: 1 | AC27: 1 | AD27: 0 | AE27: 0 | AF27: 0 | AG27: 0 | AH27: 0 | AI27: 0 | AJ27: 0 | AK27: 0 | AL27: 0 | AM27: 0 | AN27: 0 | AO27: 0 | AP27: 0 | AQ27: 0 | AR27: 0 | AS27: 0 | AT27: 0 | AU27: 0 | AV27: 0 | AW27: 0 | AX27: 0 | AY27: 0 | AZ27: 0
D28: =D14 -> EL1 | E28: 14504.25415 | H28: 0 | I28: =I14 -> 0 | J28: 0 | K28: 0 | L28: 0 | M28: 0 | N28: 0 | O28: 0 | P28: 0 | Q28: 0 | R28: 0 | S28: 0 | T28: 0 | U28: 0 | V28: 0 | W28: 0 | X28: 0 | Y28: 0 | Z28: 0 | AA28: 0 | AB28: 0 | AC28: 0 | AD28: 0 | AE28: 0 | AF28: 0 | AG28: 0 | AH28: 0 | AI28: 0 | AJ28: 0 | AK28: 0 | AL28: 0 | AM28: 0 | AN28: 0 | AO28: 0 | AP28: 0 | AQ28: 0 | AR28: 0 | AS28: 0 | AT28: 0 | AU28: 0 | AV28: 0 | AW28: 0 | AX28: 0 | AY28: 0 | AZ28: 0
D29: =D15 -> EL2 | E29: 14246.11418 | H29: 0 | I29: =I15 -> 0 | J29: 0 | K29: 0 | L29: 0 | M29: 0 | N29: 0 | O29: 0 | P29: 0 | Q29: 0 | R29: 0 | S29: 0 | T29: 0 | U29: 0 | V29: 0 | W29: 0 | X29: 0 | Y29: 0 | Z29: 0 | AA29: 0 | AB29: 0 | AC29: 0 | AD29: 0.6 | AE29: 0.6 | AF29: 0.6 | AG29: 0.6 | AH29: 0.6 | AI29: 0 | AJ29: 0 | AK29: 0 | AL29: 0 | AM29: 0 | AN29: 0 | AO29: 0 | AP29: 0 | AQ29: 0 | AR29: 0 | AS29: 0 | AT29: 0 | AU29: 0 | AV29: 0 | AW29: 0 | AX29: 0 | AY29: 0 | AZ29: 0
D30: =D16 -> EL3 | E30: 11564.01125 | H30: 0 | I30: =I16 -> 0 | J30: 0 | K30: 0 | L30: 0 | M30: 0 | N30: 0 | O30: 0 | P30: 0 | Q30: 0 | R30: 0 | S30: 0 | T30: 0 | U30: 0 | V30: 0 | W30: 0 | X30: 0 | Y30: 0 | Z30: 0 | AA30: 0 | AB30: 0 | AC30: 0 | AD30: 0.4 | AE30: 0.4 | AF30: 0.4 | AG30: 0.4 | AH30: 0.4 | AI30: =SUM(AI13:AI16) -> 1 | AJ30: =SUM(AJ13:AJ16) -> 1 | AK30: 1 | AL30: 1 | AM30: 1 | AN30: 1 | AO30: 1 | AP30: 1 | AQ30: 1 | AR30: 1 | AS30: 1 | AT30: 1 | AU30: 1 | AV30: 1 | AW30: 1 | AX30: 1 | AY30: 1 | AZ30: 1
D31: =D17 -> EL4 | E31: 11483.86454 | H31: 0 | I31: =I17 -> 0 | J31: 0 | K31: 0 | L31: 0 | M31: 0 | N31: 0 | O31: 0 | P31: 0 | Q31: 0 | R31: 0 | S31: 0 | T31: 0 | U31: 0 | V31: 0 | W31: 0 | X31: 0 | Y31: 0 | Z31: 0 | AA31: 0 | AB31: 0 | AC31: 0 | AD31: 0 | AE31: 0 | AF31: 0 | AG31: 0 | AH31: 0 | AI31: 0 | AJ31: 0 | AK31: 0 | AL31: 0 | AM31: 0 | AN31: 0 | AO31: 0 | AP31: 0 | AQ31: 0 | AR31: 0 | AS31: 0 | AT31: 0 | AU31: 0 | AV31: 0 | AW31: 0 | AX31: 0 | AY31: 0 | AZ31: 0
D32: =D18 -> EL5 | E32: 10980.76952 | H32: 0 | I32: =I18 -> 0 | J32: 0 | K32: 0 | L32: 0 | M32: 0 | N32: 0 | O32: 0 | P32: 0 | Q32: 0 | R32: 0 | S32: 0 | T32: 0 | U32: 0 | V32: 0 | W32: 0 | X32: 0 | Y32: 0 | Z32: 0 | AA32: 0 | AB32: 0 | AC32: 0 | AD32: 0 | AE32: 0 | AF32: 0 | AG32: 0 | AH32: 0 | AI32: 0 | AJ32: 0 | AK32: 0 | AL32: 0 | AM32: 0 | AN32: 0 | AO32: 0 | AP32: 0 | AQ32: 0 | AR32: 0 | AS32: 0 | AT32: 0 | AU32: 0 | AV32: 0 | AW32: 0 | AX32: 0 | AY32: 0 | AZ32: 0
D33: =D19 -> EL6 | E33: 10844.09597 | H33: 0 | I33: =I19 -> 0 | J33: 0 | K33: 0 | L33: 0 | M33: 0 | N33: 0 | O33: 0 | P33: 0 | Q33: 0 | R33: 0 | S33: 0 | T33: 0 | U33: 0 | V33: 0 | W33: 0 | X33: 0 | Y33: 0 | Z33: 0 | AA33: 0 | AB33: 0 | AC33: 0 | AD33: 0 | AE33: 0 | AF33: 0 | AG33: 0 | AH33: 0 | AI33: 0 | AJ33: 0 | AK33: 0 | AL33: 0 | AM33: 0 | AN33: 0 | AO33: 0 | AP33: 0 | AQ33: 0 | AR33: 0 | AS33: 0 | AT33: 0 | AU33: 0 | AV33: 0 | AW33: 0 | AX33: 0 | AY33: 0 | AZ33: 0
D34: =D20 -> EL7 | E34: 10844.09597 | H34: =H20 -> 0 | I34: 0 | J34: 0 | K34: 0 | L34: 0 | M34: 0 | N34: 0 | O34: 0 | P34: 0 | Q34: 0 | R34: 0 | S34: 0 | T34: 0 | U34: 0 | V34: 0 | W34: 0 | X34: 0 | Y34: 0 | Z34: 0 | AA34: 0 | AB34: 0 | AC34: 0 | AD34: 0 | AE34: 0 | AF34: 0 | AG34: 0 | AH34: 0 | AI34: 0 | AJ34: 0 | AK34: 0 | AL34: 0 | AM34: 0 | AN34: 0 | AO34: 0 | AP34: 0 | AQ34: 0 | AR34: 0 | AS34: 0 | AT34: 0 | AU34: 0 | AV34: 0 | AW34: 0 | AX34: 0 | AY34: 0 | AZ34: 0
D35: =D21 -> EL8 | E35: 10844.09597 | H35: 0 | I35: 0 | J35: 0 | K35: 0 | L35: 0 | M35: 0 | N35: 0 | O35: 0 | P35: 0 | Q35: 0 | R35: 0 | S35: 0 | T35: 0 | U35: 0 | V35: 0 | W35: 0 | X35: 0 | Y35: 0 | Z35: 0 | AA35: 0 | AB35: 0 | AC35: 0 | AD35: 0 | AE35: 0 | AF35: 0 | AG35: 0 | AH35: 0 | AI35: 0 | AJ35: 0 | AK35: 0 | AL35: 0 | AM35: 0 | AN35: 0 | AO35: 0 | AP35: 0 | AQ35: 0 | AR35: 0 | AS35: 0 | AT35: 0 | AU35: 0 | AV35: 0 | AW35: 0 | AX35: 0 | AY35: 0 | AZ35: 0
D36: =D22 -> EL9 | E36: 10844.09597 | H36: 0 | I36: 0 | J36: 0 | K36: 0 | L36: 0 | M36: 0 | N36: 0 | O36: 0 | P36: 0 | Q36: 0 | R36: 0 | S36: 0 | T36: 0 | U36: 0 | V36: 0 | W36: 0 | X36: 0 | Y36: 0 | Z36: 0 | AA36: 0 | AB36: 0 | AC36: 0 | AD36: 0 | AE36: 0 | AF36: 0 | AG36: 0 | AH36: 0 | AI36: 0 | AJ36: 0 | AK36: 0 | AL36: 0 | AM36: 0 | AN36: 0 | AO36: 0 | AP36: 0 | AQ36: 0 | AR36: 0 | AS36: 0 | AT36: 0 | AU36: 0 | AV36: 0 | AW36: 0 | AX36: 0 | AY36: 0 | AZ36: 0
D37: TOTAL | H37: =SUM(H27:H36) -> 1 | I37: =SUM(I27:I36) -> 1 | J37: 1 | K37: 1 | L37: 1 | M37: 1 | N37: 1 | O37: 1 | P37: 1 | Q37: 1 | R37: 1 | S37: 1 | T37: 1 | U37: 1 | V37: 1 | W37: 1 | X37: 1 | Y37: 1 | Z37: 1 | AA37: 1 | AB37: 1 | AC37: 1 | AD37: 1 | AE37: 1 | AF37: 1 | AG37: 1 | AH37: 1 | AI37: 1 | AJ37: 1 | AK37: 1 | AL37: 1 | AM37: 1 | AN37: 1 | AO37: 1 | AP37: 1 | AQ37: 1 | AR37: 1 | AS37: 1 | AT37: 1 | AU37: 1 | AV37: 1 | AW37: 1 | AX37: 1 | AY37: 1 | AZ37: 1
D39: Sources | E39: DOE Commercial Refrigeration Equipment 2014 Final Rule, Technical Support Document: Final Rule National Impact Analysis Spreadsheet, 'Market Share Inputs' tab, cells B3:J35, http://www.regulations.gov/#!documentDetail;D=EERE-2010-BT-STD-0003-0101
D44: ='Product Classes'!O11 -> VOP.RC.L
D46: PRE-Case | F46: Static Distribution
D47: Efficiency Level | E47: EL (kWh/year) | F47: 2006 | H47: 1990 | I47: =H47+1 -> 1991 | J47: =I47+1 -> 1992 | K47: =J47+1 -> 1993 | L47: =K47+1 -> 1994 | M47: =L47+1 -> 1995 | N47: =M47+1 -> 1996 | O47: =N47+1 -> 1997 | P47: =O47+1 -> 1998 | Q47: =P47+1 -> 1999 | R47: =Q47+1 -> 2000 | S47: =R47+1 -> 2001 | T47: =S47+1 -> 2002 | U47: =T47+1 -> 2003 | V47: =U47+1 -> 2004 | W47: =V47+1 -> 2005 | X47: =W47+1 -> 2006 | Y47: =X47+1 -> 2007 | Z47: =Y47+1 -> 2008 | AA47: =Z47+1 -> 2009 | AB47: =AA47+1 -> 2010 | AC47: =AB47+1 -> 2011 | AD47: =AC47+1 -> 2012 | AE47: =AD47+1 -> 2013 | AF47: =AE47+1 -> 2014 | AG47: =AF47+1 -> 2015 | AH47: =AG47+1 -> 2016 | AI47: =AH47+1 -> 2017 | AJ47: =AI47+1 -> 2018 | AK47: =AJ47+1 -> 2019 | AL47: =AK47+1 -> 2020 | AM47: =AL47+1 -> 2021 | AN47: =AM47+1 -> 2022 | AO47: =AN47+1 -> 2023 | AP47: =AO47+1 -> 2024 | AQ47: =AP47+1 -> 2025 | AR47: =AQ47+1 -> 2026 | AS47: =AR47+1 -> 2027 | AT47: =AS47+1 -> 2028 | AU47: =AT47+1 -> 2029 | AV47: =AU47+1 -> 2030 | AW47: =AV47+1 -> 2031 | AX47: =AW47+1 -> 2032 | AY47: =AX47+1 -> 2033 | AZ47: =AY47+1 -> 2034
D48: ='Efficiency Levels'!C30 -> EL0 | E48: ='Efficiency Levels'!D30 -> 40637.03898 | F48: 1 | H48: =$F48 -> 1 | I48: 1 | J48: 1 | K48: 1 | L48: 1 | M48: 1 | N48: 1 | O48: 1 | P48: 1 | Q48: 1 | R48: 1 | S48: 1 | T48: 1 | U48: 1 | V48: 1 | W48: 1 | X48: =$F48 -> 1 | Y48: 1 | Z48: 1 | AA48: 1 | AB48: 1 | AC48: 1 | AD48: 0 | AE48: 0 | AF48: 0 | AG48: 0 | AH48: 0 | AI48: 0 | AJ48: 0 | AK48: 0 | AL48: 0 | AM48: 0 | AN48: 0 | AO48: 0 | AP48: 0 | AQ48: 0 | AR48: 0 | AS48: 0 | AT48: 0 | AU48: 0 | AV48: 0 | AW48: 0 | AX48: 0 | AY48: 0 | AZ48: 0
D49: ='Efficiency Levels'!C31 -> EL1 | E49: ='Efficiency Levels'!D31 -> 32971.89553 | F49: 0 | H49: 0 | I49: 0 | J49: 0 | K49: 0 | L49: 0 | M49: 0 | N49: 0 | O49: 0 | P49: 0 | Q49: 0 | R49: 0 | S49: 0 | T49: 0 | U49: 0 | V49: 0 | W49: 0 | X49: 0 | Y49: 0 | Z49: 0 | AA49: 0 | AB49: 0 | AC49: 0 | AD49: 0 | AE49: 0 | AF49: 0 | AG49: 0 | AH49: 0 | AI49: 0 | AJ49: 0 | AK49: 0 | AL49: 0 | AM49: 0 | AN49: =$F49 -> 0 | AO49: 0 | AP49: 0 | AQ49: 0 | AR49: 0 | AS49: 0 | AT49: 0 | AU49: 0 | AV49: 0 | AW49: 0 | AX49: 0 | AY49: 0 | AZ49: 0
D50: ='Efficiency Levels'!C32 -> EL2 | E50: ='Efficiency Levels'!D32 -> 32119.88336 | F50: 0 | H50: 0 | I50: 0 | J50: 0 | K50: 0 | L50: 0 | M50: 0 | N50: 0 | O50: 0 | P50: 0 | Q50: 0 | R50: 0 | S50: 0 | T50: 0 | U50: 0 | V50: 0 | W50: 0 | X50: 0 | Y50: 0 | Z50: 0 | AA50: 0 | AB50: 0 | AC50: 0 | AD50: 0.6 | AE50: 0.6 | AF50: 0.6 | AG50: 0.6 | AH50: 0.6 | AI50: 0.6 | AJ50: 0.6 | AK50: 0.6 | AL50: 0.6 | AM50: 0.6 | AN50: 0.6 | AO50: 0.6 | AP50: 0.6 | AQ50: 0.6 | AR50: 0.6 | AS50: 0.6 | AT50: 0.6 | AU50: 0.6 | AV50: 0.6 | AW50: 0.6 | AX50: 0.6 | AY50: 0.6 | AZ50: 0.6
D51: ='Efficiency Levels'!C33 -> EL3 | E51: ='Efficiency Levels'!D33 -> 31917.73851 | F51: 0 | H51: 0 | I51: 0 | J51: 0 | K51: 0 | L51: 0 | M51: 0 | N51: 0 | O51: 0 | P51: 0 | Q51: 0 | R51: 0 | S51: 0 | T51: 0 | U51: 0 | V51: 0 | W51: 0 | X51: 0 | Y51: 0 | Z51: 0 | AA51: 0 | AB51: 0 | AC51: 0 | AD51: 0.2 | AE51: 0.2 | AF51: 0.2 | AG51: 0.2 | AH51: 0.2 | AI51: 0.2 | AJ51: 0.2 | AK51: 0.2 | AL51: 0.2 | AM51: 0.2 | AN51: 0.2 | AO51: 0.2 | AP51: 0.2 | AQ51: 0.2 | AR51: 0.2 | AS51: 0.2 | AT51: 0.2 | AU51: 0.2 | AV51: 0.2 | AW51: 0.2 | AX51: 0.2 | AY51: 0.2 | AZ51: 0.2
D52: ='Efficiency Levels'!C34 -> EL4 | E52: ='Efficiency Levels'!D34 -> 30931.20202 | F52: 0 | H52: 0 | I52: 0 | J52: 0 | K52: 0 | L52: 0 | M52: 0 | N52: 0 | O52: 0 | P52: 0 | Q52: 0 | R52: 0 | S52: 0 | T52: 0 | U52: 0 | V52: 0 | W52: 0 | X52: 0 | Y52: 0 | Z52: 0 | AA52: 0 | AB52: 0 | AC52: 0 | AD52: 0.2 | AE52: 0.2 | AF52: 0.2 | AG52: 0.2 | AH52: 0.2 | AI52: 0.2 | AJ52: 0.2 | AK52: 0.2 | AL52: 0.2 | AM52: 0.2 | AN52: 0.2 | AO52: 0.2 | AP52: 0.2 | AQ52: 0.2 | AR52: 0.2 | AS52: 0.2 | AT52: 0.2 | AU52: 0.2 | AV52: 0.2 | AW52: 0.2 | AX52: 0.2 | AY52: 0.2 | AZ52: 0.2
D53: ='Efficiency Levels'!C35 -> EL5 | E53: ='Efficiency Levels'!D35 -> 30418.54112 | F53: 0 | H53: 0 | I53: 0 | J53: 0 | K53: 0 | L53: 0 | M53: 0 | N53: 0 | O53: 0 | P53: 0 | Q53: 0 | R53: 0 | S53: 0 | T53: 0 | U53: 0 | V53: 0 | W53: 0 | X53: 0 | Y53: 0 | Z53: 0 | AA53: 0 | AB53: 0 | AC53: 0 | AD53: 0 | AE53: 0 | AF53: 0 | AG53: 0 | AH53: 0 | AI53: 0 | AJ53: 0 | AK53: 0 | AL53: 0 | AM53: 0 | AN53: =$F53 -> 0 | AO53: 0 | AP53: 0 | AQ53: 0 | AR53: 0 | AS53: 0 | AT53: 0 | AU53: 0 | AV53: 0 | AW53: 0 | AX53: 0 | AY53: 0 | AZ53: 0
D54: ='Efficiency Levels'!C36 -> EL6 | E54: ='Efficiency Levels'!D36 -> 30418.54112 | F54: 0 | H54: 0 | I54: 0 | J54: 0 | K54: 0 | L54: 0 | M54: 0 | N54: 0 | O54: 0 | P54: 0 | Q54: 0 | R54: 0 | S54: 0 | T54: 0 | U54: 0 | V54: 0 | W54: 0 | X54: 0 | Y54: 0 | Z54: 0 | AA54: 0 | AB54: 0 | AC54: 0 | AD54: 0 | AE54: 0 | AF54: 0 | AG54: 0 | AH54: 0 | AI54: 0 | AJ54: 0 | AK54: 0 | AL54: 0 | AM54: 0 | AN54: 0 | AO54: 0 | AP54: 0 | AQ54: 0 | AR54: 0 | AS54: 0 | AT54: 0 | AU54: 0 | AV54: 0 | AW54: 0 | AX54: 0 | AY54: 0 | AZ54: 0
D55: ='Efficiency Levels'!C37 -> EL7 | E55: ='Efficiency Levels'!D37 -> 30418.54112 | F55: 0 | H55: 0 | I55: 0 | J55: 0 | K55: 0 | L55: 0 | M55: 0 | N55: 0 | O55: 0 | P55: 0 | Q55: 0 | R55: 0 | S55: 0 | T55: 0 | U55: 0 | V55: 0 | W55: 0 | X55: 0 | Y55: 0 | Z55: 0 | AA55: 0 | AB55: 0 | AC55: 0 | AD55: 0 | AE55: 0 | AF55: 0 | AG55: 0 | AH55: 0 | AI55: 0 | AJ55: 0 | AK55: 0 | AL55: 0 | AM55: 0 | AN55: 0 | AO55: 0 | AP55: 0 | AQ55: 0 | AR55: 0 | AS55: 0 | AT55: 0 | AU55: 0 | AV55: 0 | AW55: 0 | AX55: 0 | AY55: 0 | AZ55: 0
D56: ='Efficiency Levels'!C38 -> EL8 | E56: ='Efficiency Levels'!D38 -> 30418.54112 | F56: 0 | H56: 0 | I56: 0 | J56: 0 | K56: 0 | L56: 0 | M56: 0 | N56: 0 | O56: 0 | P56: 0 | Q56: 0 | R56: 0 | S56: 0 | T56: 0 | U56: 0 | V56: 0 | W56: 0 | X56: 0 | Y56: 0 | Z56: 0 | AA56: 0 | AB56: 0 | AC56: 0 | AD56: 0 | AE56: 0 | AF56: 0 | AG56: 0 | AH56: 0 | AI56: 0 | AJ56: 0 | AK56: 0 | AL56: 0 | AM56: 0 | AN56: 0 | AO56: 0 | AP56: 0 | AQ56: 0 | AR56: 0 | AS56: 0 | AT56: 0 | AU56: 0 | AV56: 0 | AW56: 0 | AX56: 0 | AY56: 0 | AZ56: 0
D57: ='Efficiency Levels'!C39 -> EL9 | E57: ='Efficiency Levels'!D39 -> 30418.54112 | F57: 0 | H57: 0 | I57: 0 | J57: 0 | K57: 0 | L57: 0 | M57: 0 | N57: 0 | O57: 0 | P57: 0 | Q57: 0 | R57: 0 | S57: 0 | T57: 0 | U57: 0 | V57: 0 | W57: 0 | X57: 0 | Y57: 0 | Z57: 0 | AA57: 0 | AB57: 0 | AC57: 0 | AD57: 0 | AE57: 0 | AF57: 0 | AG57: 0 | AH57: 0 | AI57: 0 | AJ57: 0 | AK57: 0 | AL57: 0 | AM57: 0 | AN57: 0 | AO57: 0 | AP57: 0 | AQ57: 0 | AR57: 0 | AS57: 0 | AT57: 0 | AU57: 0 | AV57: 0 | AW57: 0 | AX57: 0 | AY57: 0 | AZ57: 0
D58: TOTAL | F58: =SUM(F48:F57) -> 1 | H58: =SUM(H48:H57) -> 1 | I58: =SUM(I48:I57) -> 1 | J58: 1 | K58: 1 | L58: 1 | M58: 1 | N58: 1 | O58: 1 | P58: 1 | Q58: 1 | R58: 1 | S58: 1 | T58: 1 | U58: 1 | V58: 1 | W58: 1 | X58: 1 | Y58: 1 | Z58: 1 | AA58: 1 | AB58: 1 | AC58: 1 | AD58: 1 | AE58: 1 | AF58: 1 | AG58: 1 | AH58: 1 | AI58: 1 | AJ58: 1 | AK58: 1 | AL58: 1 | AM58: 1 | AN58: 1 | AO58: 1 | AP58: 1 | AQ58: 1 | AR58: 1 | AS58: 1 | AT58: 1 | AU58: 1 | AV58: 1 | AW58: 1 | AX58: 1 | AY58: 1 | AZ58: 1
D60: POST-Case
D61: Efficiency Level | E61: EL (kWh/year) | H61: 1990 | I61: =H61+1 -> 1991 | J61: =I61+1 -> 1992 | K61: =J61+1 -> 1993 | L61: =K61+1 -> 1994 | M61: =L61+1 -> 1995 | N61: =M61+1 -> 1996 | O61: =N61+1 -> 1997 | P61: =O61+1 -> 1998 | Q61: =P61+1 -> 1999 | R61: =Q61+1 -> 2000 | S61: =R61+1 -> 2001 | T61: =S61+1 -> 2002 | U61: =T61+1 -> 2003 | V61: =U61+1 -> 2004 | W61: =V61+1 -> 2005 | X61: =X47 -> 2006 | Y61: 2007 | Z61: 2008 | AA61: 2009 | AB61: 2010 | AC61: 2011 | AD61: 2012 | AE61: 2013 | AF61: 2014 | AG61: 2015 | AH61: 2016 | AI61: 2017 | AJ61: 2018 | AK61: 2019 | AL61: 2020 | AM61: 2021 | AN61: 2022 | AO61: 2023 | AP61: 2024 | AQ61: 2025 | AR61: 2026 | AS61: 2027 | AT61: 2028 | AU61: 2029 | AV61: 2030 | AW61: 2031 | AX61: 2032 | AY61: 2033 | AZ61: 2034
D62: =D48 -> EL0 | E62: =E48 -> 40637.03898 | H62: =H48 -> 1 | I62: 1 | J62: 1 | K62: 1 | L62: 1 | M62: 1 | N62: 1 | O62: 1 | P62: 1 | Q62: 1 | R62: 1 | S62: 1 | T62: 1 | U62: 1 | V62: 1 | W62: 1 | X62: 1 | Y62: 1 | Z62: 1 | AA62: 1 | AB62: 1 | AC62: 1 | AD62: 0 | AE62: 0 | AF62: 0 | AG62: 0 | AH62: 0 | AI62: 0 | AJ62: 0 | AK62: 0 | AL62: 0 | AM62: 0 | AN62: 0 | AO62: 0 | AP62: 0 | AQ62: 0 | AR62: 0 | AS62: 0 | AT62: 0 | AU62: 0 | AV62: 0 | AW62: 0 | AX62: 0 | AY62: 0 | AZ62: 0
D63: =D49 -> EL1 | E63: 32971.89553 | H63: 0 | I63: 0 | J63: 0 | K63: 0 | L63: 0 | M63: 0 | N63: 0 | O63: 0 | P63: 0 | Q63: 0 | R63: 0 | S63: 0 | T63: 0 | U63: 0 | V63: 0 | W63: 0 | X63: 0 | Y63: 0 | Z63: 0 | AA63: 0 | AB63: 0 | AC63: 0 | AD63: 0 | AE63: 0 | AF63: 0 | AG63: 0 | AH63: 0 | AI63: 0 | AJ63: 0 | AK63: 0 | AL63: 0 | AM63: 0 | AN63: 0 | AO63: 0 | AP63: 0 | AQ63: 0 | AR63: 0 | AS63: 0 | AT63: 0 | AU63: 0 | AV63: 0 | AW63: 0 | AX63: 0 | AY63: 0 | AZ63: 0
D64: =D50 -> EL2 | E64: 32119.88336 | H64: 0 | I64: 0 | J64: 0 | K64: 0 | L64: 0 | M64: 0 | N64: 0 | O64: 0 | P64: 0 | Q64: 0 | R64: 0 | S64: 0 | T64: 0 | U64: 0 | V64: 0 | W64: 0 | X64: 0 | Y64: 0 | Z64: 0 | AA64: 0 | AB64: 0 | AC64: 0 | AD64: 0.6 | AE64: 0.6 | AF64: 0.6 | AG64: 0.6 | AH64: 0.6 | AI64: 0 | AJ64: 0 | AK64: 0 | AL64: 0 | AM64: 0 | AN64: 0 | AO64: 0 | AP64: 0 | AQ64: 0 | AR64: 0 | AS64: 0 | AT64: 0 | AU64: 0 | AV64: 0 | AW64: 0 | AX64: 0 | AY64: 0 | AZ64: 0
D65: =D51 -> EL3 | E65: 31917.73851 | H65: 0 | I65: 0 | J65: 0 | K65: 0 | L65: 0 | M65: 0 | N65: 0 | O65: 0 | P65: 0 | Q65: 0 | R65: 0 | S65: 0 | T65: 0 | U65: 0 | V65: 0 | W65: 0 | X65: 0 | Y65: 0 | Z65: 0 | AA65: 0 | AB65: 0 | AC65: 0 | AD65: 0.2 | AE65: 0.2 | AF65: 0.2 | AG65: 0.2 | AH65: 0.2 | AI65: =SUM(AI48:AI51) -> 0.8 | AJ65: =SUM(AJ48:AJ51) -> 0.8 | AK65: 0.8 | AL65: 0.8 | AM65: 0.8 | AN65: 0.8 | AO65: 0.8 | AP65: 0.8 | AQ65: 0.8 | AR65: 0.8 | AS65: 0.8 | AT65: 0.8 | AU65: 0.8 | AV65: 0.8 | AW65: 0.8 | AX65: 0.8 | AY65: 0.8 | AZ65: 0.8
D66: =D52 -> EL4 | E66: 30931.20202 | H66: 0 | I66: 0 | J66: 0 | K66: 0 | L66: 0 | M66: 0 | N66: 0 | O66: 0 | P66: 0 | Q66: 0 | R66: 0 | S66: 0 | T66: 0 | U66: 0 | V66: 0 | W66: 0 | X66: 0 | Y66: 0 | Z66: 0 | AA66: 0 | AB66: 0 | AC66: 0 | AD66: 0.2 | AE66: 0.2 | AF66: 0.2 | AG66: 0.2 | AH66: 0.2 | AI66: =AI52 -> 0.2 | AJ66: 0.2 | AK66: 0.2 | AL66: 0.2 | AM66: 0.2 | AN66: 0.2 | AO66: 0.2 | AP66: 0.2 | AQ66: 0.2 | AR66: 0.2 | AS66: 0.2 | AT66: 0.2 | AU66: 0.2 | AV66: 0.2 | AW66: 0.2 | AX66: 0.2 | AY66: 0.2 | AZ66: 0.2
D67: =D53 -> EL5 | E67: 30418.54112 | H67: 0 | I67: 0 | J67: 0 | K67: 0 | L67: 0 | M67: 0 | N67: 0 | O67: 0 | P67: 0 | Q67: 0 | R67: 0 | S67: 0 | T67: 0 | U67: 0 | V67: 0 | W67: 0 | X67: 0 | Y67: 0 | Z67: 0 | AA67: 0 | AB67: 0 | AC67: 0 | AD67: 0 | AE67: 0 | AF67: 0 | AG67: 0 | AH67: 0 | AI67: =AI53 -> 0 | AJ67: 0 | AK67: 0 | AL67: 0 | AM67: 0 | AN67: 0 | AO67: 0 | AP67: 0 | AQ67: 0 | AR67: 0 | AS67: 0 | AT67: 0 | AU67: 0 | AV67: 0 | AW67: 0 | AX67: 0 | AY67: 0 | AZ67: 0
D68: =D54 -> EL6 | E68: 30418.54112 | H68: 0 | I68: 0 | J68: 0 | K68: 0 | L68: 0 | M68: 0 | N68: 0 | O68: 0 | P68: 0 | Q68: 0 | R68: 0 | S68: 0 | T68: 0 | U68: 0 | V68: 0 | W68: 0 | X68: 0 | Y68: 0 | Z68: 0 | AA68: 0 | AB68: 0 | AC68: 0 | AD68: 0 | AE68: 0 | AF68: 0 | AG68: 0 | AH68: 0 | AI68: =AI54 -> 0 | AJ68: 0 | AK68: 0 | AL68: 0 | AM68: 0 | AN68: 0 | AO68: 0 | AP68: 0 | AQ68: 0 | AR68: 0 | AS68: 0 | AT68: 0 | AU68: 0 | AV68: 0 | AW68: 0 | AX68: 0 | AY68: 0 | AZ68: 0
D69: =D55 -> EL7 | E69: 30418.54112 | H69: =H55 -> 0 | I69: 0 | J69: 0 | K69: 0 | L69: 0 | M69: 0 | N69: 0 | O69: 0 | P69: 0 | Q69: 0 | R69: 0 | S69: 0 | T69: 0 | U69: 0 | V69: 0 | W69: 0 | X69: 0 | Y69: 0 | Z69: 0 | AA69: 0 | AB69: 0 | AC69: 0 | AD69: 0 | AE69: 0 | AF69: 0 | AG69: 0 | AH69: 0 | AI69: 0 | AJ69: 0 | AK69: 0 | AL69: 0 | AM69: 0 | AN69: 0 | AO69: 0 | AP69: 0 | AQ69: 0 | AR69: 0 | AS69: 0 | AT69: 0 | AU69: 0 | AV69: 0 | AW69: 0 | AX69: 0 | AY69: 0 | AZ69: 0
D70: =D56 -> EL8 | E70: 30418.54112 | H70: =H56 -> 0 | I70: 0 | J70: 0 | K70: 0 | L70: 0 | M70: 0 | N70: 0 | O70: 0 | P70: 0 | Q70: 0 | R70: 0 | S70: 0 | T70: 0 | U70: 0 | V70: 0 | W70: 0 | X70: 0 | Y70: 0 | Z70: 0 | AA70: 0 | AB70: 0 | AC70: 0 | AD70: 0 | AE70: 0 | AF70: 0 | AG70: 0 | AH70: 0 | AI70: 0 | AJ70: 0 | AK70: 0 | AL70: 0 | AM70: 0 | AN70: 0 | AO70: 0 | AP70: 0 | AQ70: 0 | AR70: 0 | AS70: 0 | AT70: 0 | AU70: 0 | AV70: 0 | AW70: 0 | AX70: 0 | AY70: 0 | AZ70: 0
D71: =D57 -> EL9 | E71: 30418.54112 | H71: =H57 -> 0 | I71: 0 | J71: 0 | K71: 0 | L71: 0 | M71: 0 | N71: 0 | O71: 0 | P71: 0 | Q71: 0 | R71: 0 | S71: 0 | T71: 0 | U71: 0 | V71: 0 | W71: 0 | X71: 0 | Y71: 0 | Z71: 0 | AA71: 0 | AB71: 0 | AC71: 0 | AD71: 0 | AE71: 0 | AF71: 0 | AG71: 0 | AH71: 0 | AI71: 0 | AJ71: 0 | AK71: 0 | AL71: 0 | AM71: 0 | AN71: 0 | AO71: 0 | AP71: 0 | AQ71: 0 | AR71: 0 | AS71: 0 | AT71: 0 | AU71: 0 | AV71: 0 | AW71: 0 | AX71: 0 | AY71: 0 | AZ71: 0
D72: TOTAL | H72: =SUM(H62:H71) -> 1 | I72: =SUM(I62:I71) -> 1 | J72: 1 | K72: 1 | L72: 1 | M72: 1 | N72: 1 | O72: 1 | P72: 1 | Q72: 1 | R72: 1 | S72: 1 | T72: 1 | U72: 1 | V72: 1 | W72: 1 | X72: 1 | Y72: 1 | Z72: 1 | AA72: 1 | AB72: 1 | AC72: 1 | AD72: 1 | AE72: 1 | AF72: 1 | AG72: 1 | AH72: 1 | AI72: 1 | AJ72: 1 | AK72: 1 | AL72: 1 | AM72: 1 | AN72: 1 | AO72: 1 | AP72: 1 | AQ72: 1 | AR72: 1 | AS72: 1 | AT72: 1 | AU72: 1 | AV72: 1 | AW72: 1 | AX72: 1 | AY72: 1 | AZ72: 1
D74: Sources | E74: DOE Commercial Refrigeration Equipment 2014 Final Rule, Technical Support Document: Final Rule National Impact Analysis Spreadsheet, 'Market Share Inputs' tab, cells L3:T35, http://www.regulations.gov/#!documentDetail;D=EERE-2010-BT-STD-0003-0101
D79: ='Product Classes'!O12 -> SVO.RC.M
D81: PRE-Case | F81: Static Distribution
D82: Efficiency Level | E82: EL (kWh/year) | F82: 2006 | H82: 1990 | I82: =H82+1 -> 1991 | J82: =I82+1 -> 1992 | K82: =J82+1 -> 1993 | L82: =K82+1 -> 1994 | M82: =L82+1 -> 1995 | N82: =M82+1 -> 1996 | O82: =N82+1 -> 1997 | P82: =O82+1 -> 1998 | Q82: =P82+1 -> 1999 | R82: =Q82+1 -> 2000 | S82: =R82+1 -> 2001 | T82: =S82+1 -> 2002 | U82: =T82+1 -> 2003 | V82: =U82+1 -> 2004 | W82: =V82+1 -> 2005 | X82: =W82+1 -> 2006 | Y82: =X82+1 -> 2007 | Z82: =Y82+1 -> 2008 | AA82: =Z82+1 -> 2009 | AB82: =AA82+1 -> 2010 | AC82: =AB82+1 -> 2011 | AD82: =AC82+1 -> 2012 | AE82: =AD82+1 -> 2013 | AF82: =AE82+1 -> 2014 | AG82: =AF82+1 -> 2015 | AH82: =AG82+1 -> 2016 | AI82: =AH82+1 -> 2017 | AJ82: =AI82+1 -> 2018 | AK82: =AJ82+1 -> 2019 | AL82: =AK82+1 -> 2020 | AM82: =AL82+1 -> 2021 | AN82: =AM82+1 -> 2022 | AO82: =AN82+1 -> 2023 | AP82: =AO82+1 -> 2024 | AQ82: =AP82+1 -> 2025 | AR82: =AQ82+1 -> 2026 | AS82: =AR82+1 -> 2027 | AT82: =AS82+1 -> 2028 | AU82: =AT82+1 -> 2029 | AV82: =AU82+1 -> 2030 | AW82: =AV82+1 -> 2031 | AX82: =AW82+1 -> 2032 | AY82: =AX82+1 -> 2033 | AZ82: =AY82+1 -> 2034
D83: ='Efficiency Levels'!C48 -> EL0 | E83: ='Efficiency Levels'!D48 -> 13250.86175 | F83: 1 | H83: =$F83 -> 1 | I83: 1 | J83: 1 | K83: 1 | L83: 1 | M83: 1 | N83: 1 | O83: 1 | P83: 1 | Q83: 1 | R83: 1 | S83: 1 | T83: 1 | U83: 1 | V83: 1 | W83: 1 | X83: =$F83 -> 1 | Y83: 1 | Z83: 1 | AA83: 1 | AB83: 1 | AC83: 1 | AD83: 0 | AE83: 0 | AF83: 0 | AG83: 0 | AH83: 0 | AI83: 0 | AJ83: 0 | AK83: 0 | AL83: 0 | AM83: 0 | AN83: 0 | AO83: 0 | AP83: 0 | AQ83: 0 | AR83: 0 | AS83: 0 | AT83: 0 | AU83: 0 | AV83: 0 | AW83: 0 | AX83: 0 | AY83: 0 | AZ83: 0
D84: ='Efficiency Levels'!C49 -> EL1 | E84: ='Efficiency Levels'!D49 -> 11053.50071 | F84: 0 | H84: 0 | I84: 0 | J84: 0 | K84: 0 | L84: 0 | M84: 0 | N84: 0 | O84: 0 | P84: 0 | Q84: 0 | R84: 0 | S84: 0 | T84: 0 | U84: 0 | V84: 0 | W84: 0 | X84: 0 | Y84: 0 | Z84: 0 | AA84: 0 | AB84: 0 | AC84: 0 | AD84: 0 | AE84: 0 | AF84: 0 | AG84: 0 | AH84: 0 | AI84: 0 | AJ84: 0 | AK84: 0 | AL84: 0 | AM84: 0 | AN84: =$F84 -> 0 | AO84: 0 | AP84: 0 | AQ84: 0 | AR84: 0 | AS84: 0 | AT84: 0 | AU84: 0 | AV84: 0 | AW84: 0 | AX84: 0 | AY84: 0 | AZ84: 0
D85: ='Efficiency Levels'!C50 -> EL2 | E85: ='Efficiency Levels'!D50 -> 10869.84386 | F85: 0 | H85: 0 | I85: 0 | J85: 0 | K85: 0 | L85: 0 | M85: 0 | N85: 0 | O85: 0 | P85: 0 | Q85: 0 | R85: 0 | S85: 0 | T85: 0 | U85: 0 | V85: 0 | W85: 0 | X85: 0 | Y85: 0 | Z85: 0 | AA85: 0 | AB85: 0 | AC85: 0 | AD85: 0.6 | AE85: 0.6 | AF85: 0.6 | AG85: 0.6 | AH85: 0.6 | AI85: 0.6 | AJ85: 0.6 | AK85: 0.6 | AL85: 0.6 | AM85: 0.6 | AN85: 0.6 | AO85: 0.6 | AP85: 0.6 | AQ85: 0.6 | AR85: 0.6 | AS85: 0.6 | AT85: 0.6 | AU85: 0.6 | AV85: 0.6 | AW85: 0.6 | AX85: 0.6 | AY85: 0.6 | AZ85: 0.6
D86: ='Efficiency Levels'!C51 -> EL3 | E86: ='Efficiency Levels'!D51 -> 8956.621383 | F86: 0 | H86: 0 | I86: 0 | J86: 0 | K86: 0 | L86: 0 | M86: 0 | N86: 0 | O86: 0 | P86: 0 | Q86: 0 | R86: 0 | S86: 0 | T86: 0 | U86: 0 | V86: 0 | W86: 0 | X86: 0 | Y86: 0 | Z86: 0 | AA86: 0 | AB86: 0 | AC86: 0 | AD86: 0.4 | AE86: 0.4 | AF86: 0.4 | AG86: 0.4 | AH86: 0.4 | AI86: 0.4 | AJ86: 0.4 | AK86: 0.4 | AL86: 0.4 | AM86: 0.4 | AN86: 0.4 | AO86: 0.4 | AP86: 0.4 | AQ86: 0.4 | AR86: 0.4 | AS86: 0.4 | AT86: 0.4 | AU86: 0.4 | AV86: 0.4 | AW86: 0.4 | AX86: 0.4 | AY86: 0.4 | AZ86: 0.4
D87: ='Efficiency Levels'!C52 -> EL4 | E87: ='Efficiency Levels'!D52 -> 8563.634712 | F87: 0 | H87: 0 | I87: 0 | J87: 0 | K87: 0 | L87: 0 | M87: 0 | N87: 0 | O87: 0 | P87: 0 | Q87: 0 | R87: 0 | S87: 0 | T87: 0 | U87: 0 | V87: 0 | W87: 0 | X87: 0 | Y87: 0 | Z87: 0 | AA87: 0 | AB87: 0 | AC87: 0 | AD87: 0 | AE87: 0 | AF87: 0 | AG87: 0 | AH87: 0 | AI87: 0 | AJ87: 0 | AK87: 0 | AL87: 0 | AM87: 0 | AN87: =$F87 -> 0 | AO87: 0 | AP87: 0 | AQ87: 0 | AR87: 0 | AS87: 0 | AT87: 0 | AU87: 0 | AV87: 0 | AW87: 0 | AX87: 0 | AY87: 0 | AZ87: 0
D88: ='Efficiency Levels'!C53 -> EL5 | E88: ='Efficiency Levels'!D53 -> 8521.656576 | F88: 0 | H88: 0 | I88: 0 | J88: 0 | K88: 0 | L88: 0 | M88: 0 | N88: 0 | O88: 0 | P88: 0 | Q88: 0 | R88: 0 | S88: 0 | T88: 0 | U88: 0 | V88: 0 | W88: 0 | X88: 0 | Y88: 0 | Z88: 0 | AA88: 0 | AB88: 0 | AC88: 0 | AD88: 0 | AE88: 0 | AF88: 0 | AG88: 0 | AH88: 0 | AI88: 0 | AJ88: 0 | AK88: 0 | AL88: 0 | AM88: 0 | AN88: 0 | AO88: 0 | AP88: 0 | AQ88: 0 | AR88: 0 | AS88: 0 | AT88: 0 | AU88: 0 | AV88: 0 | AW88: 0 | AX88: 0 | AY88: 0 | AZ88: 0
D89: ='Efficiency Levels'!C54 -> EL6 | E89: ='Efficiency Levels'!D54 -> 8426.003025 | F89: 0 | H89: 0 | I89: 0 | J89: 0 | K89: 0 | L89: 0 | M89: 0 | N89: 0 | O89: 0 | P89: 0 | Q89: 0 | R89: 0 | S89: 0 | T89: 0 | U89: 0 | V89: 0 | W89: 0 | X89: 0 | Y89: 0 | Z89: 0 | AA89: 0 | AB89: 0 | AC89: 0 | AD89: 0 | AE89: 0 | AF89: 0 | AG89: 0 | AH89: 0 | AI89: 0 | AJ89: 0 | AK89: 0 | AL89: 0 | AM89: 0 | AN89: 0 | AO89: 0 | AP89: 0 | AQ89: 0 | AR89: 0 | AS89: 0 | AT89: 0 | AU89: 0 | AV89: 0 | AW89: 0 | AX89: 0 | AY89: 0 | AZ89: 0
D90: ='Efficiency Levels'!C55 -> EL7 | E90: ='Efficiency Levels'!D55 -> 8426.003025 | F90: 0 | H90: 0 | I90: 0 | J90: 0 | K90: 0 | L90: 0 | M90: 0 | N90: 0 | O90: 0 | P90: 0 | Q90: 0 | R90: 0 | S90: 0 | T90: 0 | U90: 0 | V90: 0 | W90: 0 | X90: 0 | Y90: 0 | Z90: 0 | AA90: 0 | AB90: 0 | AC90: 0 | AD90: 0 | AE90: 0 | AF90: 0 | AG90: 0 | AH90: 0 | AI90: 0 | AJ90: 0 | AK90: 0 | AL90: 0 | AM90: 0 | AN90: 0 | AO90: 0 | AP90: 0 | AQ90: 0 | AR90: 0 | AS90: 0 | AT90: 0 | AU90: 0 | AV90: 0 | AW90: 0 | AX90: 0 | AY90: 0 | AZ90: 0
D91: ='Efficiency Levels'!C56 -> EL8 | E91: ='Efficiency Levels'!D56 -> 8426.003025 | F91: 0 | H91: 0 | I91: 0 | J91: 0 | K91: 0 | L91: 0 | M91: 0 | N91: 0 | O91: 0 | P91: 0 | Q91: 0 | R91: 0 | S91: 0 | T91: 0 | U91: 0 | V91: 0 | W91: 0 | X91: 0 | Y91: 0 | Z91: 0 | AA91: 0 | AB91: 0 | AC91: 0 | AD91: 0 | AE91: 0 | AF91: 0 | AG91: 0 | AH91: 0 | AI91: 0 | AJ91: 0 | AK91: 0 | AL91: 0 | AM91: 0 | AN91: 0 | AO91: 0 | AP91: 0 | AQ91: 0 | AR91: 0 | AS91: 0 | AT91: 0 | AU91: 0 | AV91: 0 | AW91: 0 | AX91: 0 | AY91: 0 | AZ91: 0
D92: ='Efficiency Levels'!C57 -> EL9 | E92: ='Efficiency Levels'!D57 -> 8426.003025 | F92: 0 | H92: 0 | I92: 0 | J92: 0 | K92: 0 | L92: 0 | M92: 0 | N92: 0 | O92: 0 | P92: 0 | Q92: 0 | R92: 0 | S92: 0 | T92: 0 | U92: 0 | V92: 0 | W92: 0 | X92: 0 | Y92: 0 | Z92: 0 | AA92: 0 | AB92: 0 | AC92: 0 | AD92: 0 | AE92: 0 | AF92: 0 | AG92: 0 | AH92: 0 | AI92: 0 | AJ92: 0 | AK92: 0 | AL92: 0 | AM92: 0 | AN92: 0 | AO92: 0 | AP92: 0 | AQ92: 0 | AR92: 0 | AS92: 0 | AT92: 0 | AU92: 0 | AV92: 0 | AW92: 0 | AX92: 0 | AY92: 0 | AZ92: 0
D93: TOTAL | F93: =SUM(F83:F92) -> 1 | H93: =SUM(H83:H92) -> 1 | I93: =SUM(I83:I92) -> 1 | J93: 1 | K93: 1 | L93: 1 | M93: 1 | N93: 1 | O93: 1 | P93: 1 | Q93: 1 | R93: 1 | S93: 1 | T93: 1 | U93: 1 | V93: 1 | W93: 1 | X93: 1 | Y93: 1 | Z93: 1 | AA93: 1 | AB93: 1 | AC93: 1 | AD93: 1 | AE93: 1 | AF93: 1 | AG93: 1 | AH93: 1 | AI93: 1 | AJ93: 1 | AK93: 1 | AL93: 1 | AM93: 1 | AN93: 1 | AO93: 1 | AP93: 1 | AQ93: 1 | AR93: 1 | AS93: 1 | AT93: 1 | AU93: 1 | AV93: 1 | AW93: 1 | AX93: 1 | AY93: 1 | AZ93: 1
D95: POST-Case
D96: Efficiency Level | E96: EL (kWh/year) | H96: 1990 | I96: =H96+1 -> 1991 | J96: =I96+1 -> 1992 | K96: =J96+1 -> 1993 | L96: =K96+1 -> 1994 | M96: =L96+1 -> 1995 | N96: =M96+1 -> 1996 | O96: =N96+1 -> 1997 | P96: =O96+1 -> 1998 | Q96: =P96+1 -> 1999 | R96: =Q96+1 -> 2000 | S96: =R96+1 -> 2001 | T96: =S96+1 -> 2002 | U96: =T96+1 -> 2003 | V96: =U96+1 -> 2004 | W96: =V96+1 -> 2005 | X96: =X82 -> 2006 | Y96: 2007 | Z96: 2008 | AA96: 2009 | AB96: 2010 | AC96: 2011 | AD96: 2012 | AE96: 2013 | AF96: 2014 | AG96: 2015 | AH96: 2016 | AI96: 2017 | AJ96: 2018 | AK96: 2019 | AL96: 2020 | AM96: 2021 | AN96: 2022 | AO96: 2023 | AP96: 2024 | AQ96: 2025 | AR96: 2026 | AS96: 2027 | AT96: 2028 | AU96: 2029 | AV96: 2030 | AW96: 2031 | AX96: 2032 | AY96: 2033 | AZ96: 2034
D97: =D83 -> EL0 | E97: =E83 -> 13250.86175 | H97: =H83 -> 1 | I97: 1 | J97: 1 | K97: 1 | L97: 1 | M97: 1 | N97: 1 | O97: 1 | P97: 1 | Q97: 1 | R97: 1 | S97: 1 | T97: 1 | U97: 1 | V97: 1 | W97: 1 | X97: 1 | Y97: 1 | Z97: 1 | AA97: 1 | AB97: 1 | AC97: 1 | AD97: 0 | AE97: 0 | AF97: 0 | AG97: 0 | AH97: 0 | AI97: 0 | AJ97: 0 | AK97: 0 | AL97: 0 | AM97: 0 | AN97: 0 | AO97: 0 | AP97: 0 | AQ97: 0 | AR97: 0 | AS97: 0 | AT97: 0 | AU97: 0 | AV97: 0 | AW97: 0 | AX97: 0 | AY97: 0 | AZ97: 0
D98: =D84 -> EL1 | E98: 11053.50071 | H98: 0 | I98: 0 | J98: 0 | K98: 0 | L98: 0 | M98: 0 | N98: 0 | O98: 0 | P98: 0 | Q98: 0 | R98: 0 | S98: 0 | T98: 0 | U98: 0 | V98: 0 | W98: 0 | X98: 0 | Y98: 0 | Z98: 0 | AA98: 0 | AB98: 0 | AC98: 0 | AD98: 0 | AE98: 0 | AF98: 0 | AG98: 0 | AH98: 0 | AI98: 0 | AJ98: 0 | AK98: 0 | AL98: 0 | AM98: 0 | AN98: 0 | AO98: 0 | AP98: 0 | AQ98: 0 | AR98: 0 | AS98: 0 | AT98: 0 | AU98: 0 | AV98: 0 | AW98: 0 | AX98: 0 | AY98: 0 | AZ98: 0
D99: =D85 -> EL2 | E99: 10869.84386 | H99: 0 | I99: 0 | J99: 0 | K99: 0 | L99: 0 | M99: 0 | N99: 0 | O99: 0 | P99: 0 | Q99: 0 | R99: 0 | S99: 0 | T99: 0 | U99: 0 | V99: 0 | W99: 0 | X99: 0 | Y99: 0 | Z99: 0 | AA99: 0 | AB99: 0 | AC99: 0 | AD99: 0.6 | AE99: 0.6 | AF99: 0.6 | AG99: 0.6 | AH99: 0.6 | AI99: 0 | AJ99: 0 | AK99: 0 | AL99: 0 | AM99: 0 | AN99: 0 | AO99: 0 | AP99: 0 | AQ99: 0 | AR99: 0 | AS99: 0 | AT99: 0 | AU99: 0 | AV99: 0 | AW99: 0 | AX99: 0 | AY99: 0 | AZ99: 0
D100: =D86 -> EL3 | E100: 8956.621383 | H100: 0 | I100: 0 | J100: 0 | K100: 0 | L100: 0 | M100: 0 | N100: 0 | O100: 0 | P100: 0 | Q100: 0 | R100: 0 | S100: 0 | T100: 0 | U100: 0 | V100: 0 | W100: 0 | X100: 0 | Y100: 0 | Z100: 0 | AA100: 0 | AB100: 0 | AC100: 0 | AD100: 0.4 | AE100: 0.4 | AF100: 0.4 | AG100: 0.4 | AH100: 0.4 | AI100: =SUM(AI83:AI86) -> 1 | AJ100: =SUM(AJ83:AJ86) -> 1 | AK100: 1 | AL100: 1 | AM100: 1 | AN100: 1 | AO100: 1 | AP100: 1 | AQ100: 1 | AR100: 1 | AS100: 1 | AT100: 1 | AU100: 1 | AV100: 1 | AW100: 1 | AX100: 1 | AY100: 1 | AZ100: 1
D101: =D87 -> EL4 | E101: 8563.634712 | H101: 0 | I101: 0 | J101: 0 | K101: 0 | L101: 0 | M101: 0 | N101: 0 | O101: 0 | P101: 0 | Q101: 0 | R101: 0 | S101: 0 | T101: 0 | U101: 0 | V101: 0 | W101: 0 | X101: 0 | Y101: 0 | Z101: 0 | AA101: 0 | AB101: 0 | AC101: 0 | AD101: 0 | AE101: 0 | AF101: 0 | AG101: 0 | AH101: 0 | AI101: =AI87 -> 0 | AJ101: 0 | AK101: 0 | AL101: 0 | AM101: 0 | AN101: 0 | AO101: 0 | AP101: 0 | AQ101: 0 | AR101: 0 | AS101: 0 | AT101: 0 | AU101: 0 | AV101: 0 | AW101: 0 | AX101: 0 | AY101: 0 | AZ101: 0
D102: =D88 -> EL5 | E102: 8521.656576 | H102: 0 | I102: 0 | J102: 0 | K102: 0 | L102: 0 | M102: 0 | N102: 0 | O102: 0 | P102: 0 | Q102: 0 | R102: 0 | S102: 0 | T102: 0 | U102: 0 | V102: 0 | W102: 0 | X102: 0 | Y102: 0 | Z102: 0 | AA102: 0 | AB102: 0 | AC102: 0 | AD102: 0 | AE102: 0 | AF102: 0 | AG102: 0 | AH102: 0 | AI102: =AI88 -> 0 | AJ102: 0 | AK102: 0 | AL102: 0 | AM102: 0 | AN102: 0 | AO102: 0 | AP102: 0 | AQ102: 0 | AR102: 0 | AS102: 0 | AT102: 0 | AU102: 0 | AV102: 0 | AW102: 0 | AX102: 0 | AY102: 0 | AZ102: 0
D103: =D89 -> EL6 | E103: 8426.003025 | H103: 0 | I103: 0 | J103: 0 | K103: 0 | L103: 0 | M103: 0 | N103: 0 | O103: 0 | P103: 0 | Q103: 0 | R103: 0 | S103: 0 | T103: 0 | U103: 0 | V103: 0 | W103: 0 | X103: 0 | Y103: 0 | Z103: 0 | AA103: 0 | AB103: 0 | AC103: 0 | AD103: 0 | AE103: 0 | AF103: 0 | AG103: 0 | AH103: 0 | AI103: =AI89 -> 0 | AJ103: 0 | AK103: 0 | AL103: 0 | AM103: 0 | AN103: 0 | AO103: 0 | AP103: 0 | AQ103: 0 | AR103: 0 | AS103: 0 | AT103: 0 | AU103: 0 | AV103: 0 | AW103: 0 | AX103: 0 | AY103: 0 | AZ103: 0
D104: =D90 -> EL7 | E104: 8426.003025 | H104: =H90 -> 0 | I104: 0 | J104: 0 | K104: 0 | L104: 0 | M104: 0 | N104: 0 | O104: 0 | P104: 0 | Q104: 0 | R104: 0 | S104: 0 | T104: 0 | U104: 0 | V104: 0 | W104: 0 | X104: 0 | Y104: 0 | Z104: 0 | AA104: 0 | AB104: 0 | AC104: 0 | AD104: 0 | AE104: 0 | AF104: 0 | AG104: 0 | AH104: 0 | AI104: 0 | AJ104: 0 | AK104: 0 | AL104: 0 | AM104: 0 | AN104: 0 | AO104: 0 | AP104: 0 | AQ104: 0 | AR104: 0 | AS104: 0 | AT104: 0 | AU104: 0 | AV104: 0 | AW104: 0 | AX104: 0 | AY104: 0 | AZ104: 0
D105: =D91 -> EL8 | E105: 8426.003025 | H105: =H91 -> 0 | I105: 0 | J105: 0 | K105: 0 | L105: 0 | M105: 0 | N105: 0 | O105: 0 | P105: 0 | Q105: 0 | R105: 0 | S105: 0 | T105: 0 | U105: 0 | V105: 0 | W105: 0 | X105: 0 | Y105: 0 | Z105: 0 | AA105: 0 | AB105: 0 | AC105: 0 | AD105: 0 | AE105: 0 | AF105: 0 | AG105: 0 | AH105: 0 | AI105: 0 | AJ105: 0 | AK105: 0 | AL105: 0 | AM105: 0 | AN105: 0 | AO105: 0 | AP105: 0 | AQ105: 0 | AR105: 0 | AS105: 0 | AT105: 0 | AU105: 0 | AV105: 0 | AW105: 0 | AX105: 0 | AY105: 0 | AZ105: 0
D106: =D92 -> EL9 | E106: 8426.003025 | H106: =H92 -> 0 | I106: 0 | J106: 0 | K106: 0 | L106: 0 | M106: 0 | N106: 0 | O106: 0 | P106: 0 | Q106: 0 | R106: 0 | S106: 0 | T106: 0 | U106: 0 | V106: 0 | W106: 0 | X106: 0 | Y106: 0 | Z106: 0 | AA106: 0 | AB106: 0 | AC106: 0 | AD106: 0 | AE106: 0 | AF106: 0 | AG106: 0 | AH106: 0 | AI106: 0 | AJ106: 0 | AK106: 0 | AL106: 0 | AM106: 0 | AN106: 0 | AO106: 0 | AP106: 0 | AQ106: 0 | AR106: 0 | AS106: 0 | AT106: 0 | AU106: 0 | AV106: 0 | AW106: 0 | AX106: 0 | AY106: 0 | AZ106: 0
D107: TOTAL | H107: =SUM(H97:H106) -> 1 | I107: =SUM(I97:I106) -> 1 | J107: 1 | K107: 1 | L107: 1 | M107: 1 | N107: 1 | O107: 1 | P107: 1 | Q107: 1 | R107: 1 | S107: 1 | T107: 1 | U107: 1 | V107: 1 | W107: 1 | X107: 1 | Y107: 1 | Z107: 1 | AA107: 1 | AB107: 1 | AC107: 1 | AD107: 1 | AE107: 1 | AF107: 1 | AG107: 1 | AH107: 1 | AI107: 1 | AJ107: 1 | AK107: 1 | AL107: 1 | AM107: 1 | AN107: 1 | AO107: 1 | AP107: 1 | AQ107: 1 | AR107: 1 | AS107: 1 | AT107: 1 | AU107: 1 | AV107: 1 | AW107: 1 | AX107: 1 | AY107: 1 | AZ107: 1
D109: Sources | E109: DOE Commercial Refrigeration Equipment 2014 Final Rule, Technical Support Document: Final Rule National Impact Analysis Spreadsheet, 'Market Share Inputs' tab, cells DH3:DP35, http://www.regulations.gov/#!documentDetail;D=EERE-2010-BT-STD-0003-0101
D114: ='Product Classes'!O13 -> HZO.RC.M
D116: PRE-Case | F116: Static Distribution
D117: Efficiency Level | E117: EL (kWh/year) | F117: 2006 | H117: 1990 | I117: =H117+1 -> 1991 | J117: =I117+1 -> 1992 | K117: =J117+1 -> 1993 | L117: =K117+1 -> 1994 | M117: =L117+1 -> 1995 | N117: =M117+1 -> 1996 | O117: =N117+1 -> 1997 | P117: =O117+1 -> 1998 | Q117: =P117+1 -> 1999 | R117: =Q117+1 -> 2000 | S117: =R117+1 -> 2001 | T117: =S117+1 -> 2002 | U117: =T117+1 -> 2003 | V117: =U117+1 -> 2004 | W117: =V117+1 -> 2005 | X117: =W117+1 -> 2006 | Y117: =X117+1 -> 2007 | Z117: =Y117+1 -> 2008 | AA117: =Z117+1 -> 2009 | AB117: =AA117+1 -> 2010 | AC117: =AB117+1 -> 2011 | AD117: =AC117+1 -> 2012 | AE117: =AD117+1 -> 2013 | AF117: =AE117+1 -> 2014 | AG117: =AF117+1 -> 2015 | AH117: =AG117+1 -> 2016 | AI117: =AH117+1 -> 2017 | AJ117: =AI117+1 -> 2018 | AK117: =AJ117+1 -> 2019 | AL117: =AK117+1 -> 2020 | AM117: =AL117+1 -> 2021 | AN117: =AM117+1 -> 2022 | AO117: =AN117+1 -> 2023 | AP117: =AO117+1 -> 2024 | AQ117: =AP117+1 -> 2025 | AR117: =AQ117+1 -> 2026 | AS117: =AR117+1 -> 2027 | AT117: =AS117+1 -> 2028 | AU117: =AT117+1 -> 2029 | AV117: =AU117+1 -> 2030 | AW117: =AV117+1 -> 2031 | AX117: =AW117+1 -> 2032 | AY117: =AX117+1 -> 2033 | AZ117: =AY117+1 -> 2034
D118: ='Efficiency Levels'!C66 -> EL0 | E118: ='Efficiency Levels'!D66 -> 5971.27193 | F118: 1 | H118: =$F118 -> 1 | I118: 1 | J118: 1 | K118: 1 | L118: 1 | M118: 1 | N118: 1 | O118: 1 | P118: 1 | Q118: 1 | R118: 1 | S118: 1 | T118: 1 | U118: 1 | V118: 1 | W118: 1 | X118: =$F118 -> 1 | Y118: 1 | Z118: 1 | AA118: 1 | AB118: 1 | AC118: 1 | AD118: 0 | AE118: 0 | AF118: 0 | AG118: 0 | AH118: 0 | AI118: 0 | AJ118: 0 | AK118: 0 | AL118: 0 | AM118: 0 | AN118: 0 | AO118: 0 | AP118: 0 | AQ118: 0 | AR118: 0 | AS118: 0 | AT118: 0 | AU118: 0 | AV118: 0 | AW118: 0 | AX118: 0 | AY118: 0 | AZ118: 0
D119: ='Efficiency Levels'!C67 -> EL1 | E119: ='Efficiency Levels'!D67 -> 4421.844582 | F119: 0 | H119: 0 | I119: 0 | J119: 0 | K119: 0 | L119: 0 | M119: 0 | N119: 0 | O119: 0 | P119: 0 | Q119: 0 | R119: 0 | S119: 0 | T119: 0 | U119: 0 | V119: 0 | W119: 0 | X119: 0 | Y119: 0 | Z119: 0 | AA119: 0 | AB119: 0 | AC119: 0 | AD119: 0 | AE119: 0 | AF119: 0 | AG119: 0 | AH119: 0 | AI119: 0 | AJ119: 0 | AK119: 0 | AL119: 0 | AM119: 0 | AN119: =$F119 -> 0 | AO119: 0 | AP119: 0 | AQ119: 0 | AR119: 0 | AS119: 0 | AT119: 0 | AU119: 0 | AV119: 0 | AW119: 0 | AX119: 0 | AY119: 0 | AZ119: 0
D120: ='Efficiency Levels'!C68 -> EL2 | E120: ='Efficiency Levels'!D68 -> 4401.409424 | F120: 0 | H120: 0 | I120: 0 | J120: 0 | K120: 0 | L120: 0 | M120: 0 | N120: 0 | O120: 0 | P120: 0 | Q120: 0 | R120: 0 | S120: 0 | T120: 0 | U120: 0 | V120: 0 | W120: 0 | X120: 0 | Y120: 0 | Z120: 0 | AA120: 0 | AB120: 0 | AC120: 0 | AD120: 0.6 | AE120: 0.6 | AF120: 0.6 | AG120: 0.6 | AH120: 0.6 | AI120: 0.6 | AJ120: 0.6 | AK120: 0.6 | AL120: 0.6 | AM120: 0.6 | AN120: 0.6 | AO120: 0.6 | AP120: 0.6 | AQ120: 0.6 | AR120: 0.6 | AS120: 0.6 | AT120: 0.6 | AU120: 0.6 | AV120: 0.6 | AW120: 0.6 | AX120: 0.6 | AY120: 0.6 | AZ120: 0.6
D121: ='Efficiency Levels'!C69 -> EL3 | E121: ='Efficiency Levels'!D69 -> 4303.846939 | F121: 0 | H121: 0 | I121: 0 | J121: 0 | K121: 0 | L121: 0 | M121: 0 | N121: 0 | O121: 0 | P121: 0 | Q121: 0 | R121: 0 | S121: 0 | T121: 0 | U121: 0 | V121: 0 | W121: 0 | X121: 0 | Y121: 0 | Z121: 0 | AA121: 0 | AB121: 0 | AC121: 0 | AD121: 0.4 | AE121: 0.4 | AF121: 0.4 | AG121: 0.4 | AH121: 0.4 | AI121: 0.4 | AJ121: 0.4 | AK121: 0.4 | AL121: 0.4 | AM121: 0.4 | AN121: 0.4 | AO121: 0.4 | AP121: 0.4 | AQ121: 0.4 | AR121: 0.4 | AS121: 0.4 | AT121: 0.4 | AU121: 0.4 | AV121: 0.4 | AW121: 0.4 | AX121: 0.4 | AY121: 0.4 | AZ121: 0.4
D122: ='Efficiency Levels'!C70 -> EL4 | E122: ='Efficiency Levels'!D70 -> 4303.846939 | F122: 0 | H122: 0 | I122: 0 | J122: 0 | K122: 0 | L122: 0 | M122: 0 | N122: 0 | O122: 0 | P122: 0 | Q122: 0 | R122: 0 | S122: 0 | T122: 0 | U122: 0 | V122: 0 | W122: 0 | X122: 0 | Y122: 0 | Z122: 0 | AA122: 0 | AB122: 0 | AC122: 0 | AD122: 0 | AE122: 0 | AF122: 0 | AG122: 0 | AH122: 0 | AI122: 0 | AJ122: 0 | AK122: 0 | AL122: 0 | AM122: 0 | AN122: =$F122 -> 0 | AO122: 0 | AP122: 0 | AQ122: 0 | AR122: 0 | AS122: 0 | AT122: 0 | AU122: 0 | AV122: 0 | AW122: 0 | AX122: 0 | AY122: 0 | AZ122: 0
D123: ='Efficiency Levels'!C71 -> EL5 | E123: ='Efficiency Levels'!D71 -> 4303.846939 | F123: 0 | H123: 0 | I123: 0 | J123: 0 | K123: 0 | L123: 0 | M123: 0 | N123: 0 | O123: 0 | P123: 0 | Q123: 0 | R123: 0 | S123: 0 | T123: 0 | U123: 0 | V123: 0 | W123: 0 | X123: 0 | Y123: 0 | Z123: 0 | AA123: 0 | AB123: 0 | AC123: 0 | AD123: 0 | AE123: 0 | AF123: 0 | AG123: 0 | AH123: 0 | AI123: 0 | AJ123: 0 | AK123: 0 | AL123: 0 | AM123: 0 | AN123: 0 | AO123: 0 | AP123: 0 | AQ123: 0 | AR123: 0 | AS123: 0 | AT123: 0 | AU123: 0 | AV123: 0 | AW123: 0 | AX123: 0 | AY123: 0 | AZ123: 0
D124: ='Efficiency Levels'!C72 -> EL6 | E124: ='Efficiency Levels'!D72 -> 4303.846939 | F124: 0 | H124: 0 | I124: 0 | J124: 0 | K124: 0 | L124: 0 | M124: 0 | N124: 0 | O124: 0 | P124: 0 | Q124: 0 | R124: 0 | S124: 0 | T124: 0 | U124: 0 | V124: 0 | W124: 0 | X124: 0 | Y124: 0 | Z124: 0 | AA124: 0 | AB124: 0 | AC124: 0 | AD124: 0 | AE124: 0 | AF124: 0 | AG124: 0 | AH124: 0 | AI124: 0 | AJ124: 0 | AK124: 0 | AL124: 0 | AM124: 0 | AN124: 0 | AO124: 0 | AP124: 0 | AQ124: 0 | AR124: 0 | AS124: 0 | AT124: 0 | AU124: 0 | AV124: 0 | AW124: 0 | AX124: 0 | AY124: 0 | AZ124: 0
D125: ='Efficiency Levels'!C73 -> EL7 | E125: ='Efficiency Levels'!D73 -> 4303.846939 | F125: 0 | H125: 0 | I125: 0 | J125: 0 | K125: 0 | L125: 0 | M125: 0 | N125: 0 | O125: 0 | P125: 0 | Q125: 0 | R125: 0 | S125: 0 | T125: 0 | U125: 0 | V125: 0 | W125: 0 | X125: 0 | Y125: 0 | Z125: 0 | AA125: 0 | AB125: 0 | AC125: 0 | AD125: 0 | AE125: 0 | AF125: 0 | AG125: 0 | AH125: 0 | AI125: 0 | AJ125: 0 | AK125: 0 | AL125: 0 | AM125: 0 | AN125: 0 | AO125: 0 | AP125: 0 | AQ125: 0 | AR125: 0 | AS125: 0 | AT125: 0 | AU125: 0 | AV125: 0 | AW125: 0 | AX125: 0 | AY125: 0 | AZ125: 0
D126: ='Efficiency Levels'!C74 -> EL8 | E126: ='Efficiency Levels'!D74 -> 4303.846939 | F126: 0 | H126: 0 | I126: 0 | J126: 0 | K126: 0 | L126: 0 | M126: 0 | N126: 0 | O126: 0 | P126: 0 | Q126: 0 | R126: 0 | S126: 0 | T126: 0 | U126: 0 | V126: 0 | W126: 0 | X126: 0 | Y126: 0 | Z126: 0 | AA126: 0 | AB126: 0 | AC126: 0 | AD126: 0 | AE126: 0 | AF126: 0 | AG126: 0 | AH126: 0 | AI126: 0 | AJ126: 0 | AK126: 0 | AL126: 0 | AM126: 0 | AN126: 0 | AO126: 0 | AP126: 0 | AQ126: 0 | AR126: 0 | AS126: 0 | AT126: 0 | AU126: 0 | AV126: 0 | AW126: 0 | AX126: 0 | AY126: 0 | AZ126: 0
D127: ='Efficiency Levels'!C75 -> EL9 | E127: ='Efficiency Levels'!D75 -> 4303.846939 | F127: 0 | H127: 0 | I127: 0 | J127: 0 | K127: 0 | L127: 0 | M127: 0 | N127: 0 | O127: 0 | P127: 0 | Q127: 0 | R127: 0 | S127: 0 | T127: 0 | U127: 0 | V127: 0 | W127: 0 | X127: 0 | Y127: 0 | Z127: 0 | AA127: 0 | AB127: 0 | AC127: 0 | AD127: 0 | AE127: 0 | AF127: 0 | AG127: 0 | AH127: 0 | AI127: 0 | AJ127: 0 | AK127: 0 | AL127: 0 | AM127: 0 | AN127: 0 | AO127: 0 | AP127: 0 | AQ127: 0 | AR127: 0 | AS127: 0 | AT127: 0 | AU127: 0 | AV127: 0 | AW127: 0 | AX127: 0 | AY127: 0 | AZ127: 0
D128: TOTAL | F128: =SUM(F118:F127) -> 1 | H128: =SUM(H118:H127) -> 1 | I128: =SUM(I118:I127) -> 1 | J128: 1 | K128: 1 | L128: 1 | M128: 1 | N128: 1 | O128: 1 | P128: 1 | Q128: 1 | R128: 1 | S128: 1 | T128: 1 | U128: 1 | V128: 1 | W128: 1 | X128: 1 | Y128: 1 | Z128: 1 | AA128: 1 | AB128: 1 | AC128: 1 | AD128: 1 | AE128: 1 | AF128: 1 | AG128: 1 | AH128: 1 | AI128: 1 | AJ128: 1 | AK128: 1 | AL128: 1 | AM128: 1 | AN128: 1 | AO128: 1 | AP128: 1 | AQ128: 1 | AR128: 1 | AS128: 1 | AT128: 1 | AU128: 1 | AV128: 1 | AW128: 1 | AX128: 1 | AY128: 1 | AZ128: 1
D130: POST-Case
D131: Efficiency Level | E131: EL (kWh/year) | H131: 1990 | I131: =H131+1 -> 1991 | J131: =I131+1 -> 1992 | K131: =J131+1 -> 1993 | L131: =K131+1 -> 1994 | M131: =L131+1 -> 1995 | N131: =M131+1 -> 1996 | O131: =N131+1 -> 1997 | P131: =O131+1 -> 1998 | Q131: =P131+1 -> 1999 | R131: =Q131+1 -> 2000 | S131: =R131+1 -> 2001 | T131: =S131+1 -> 2002 | U131: =T131+1 -> 2003 | V131: =U131+1 -> 2004 | W131: =V131+1 -> 2005 | X131: =X117 -> 2006 | Y131: 2007 | Z131: 2008 | AA131: 2009 | AB131: 2010 | AC131: 2011 | AD131: 2012 | AE131: 2013 | AF131: 2014 | AG131: 2015 | AH131: 2016 | AI131: 2017 | AJ131: 2018 | AK131: 2019 | AL131: 2020 | AM131: 2021 | AN131: 2022 | AO131: 2023 | AP131: 2024 | AQ131: 2025 | AR131: 2026 | AS131: 2027 | AT131: 2028 | AU131: 2029 | AV131: 2030 | AW131: 2031 | AX131: 2032 | AY131: 2033 | AZ131: 2034
D132: =D118 -> EL0 | E132: =E118 -> 5971.27193 | H132: =H118 -> 1 | I132: 1 | J132: 1 | K132: 1 | L132: 1 | M132: 1 | N132: 1 | O132: 1 | P132: 1 | Q132: 1 | R132: 1 | S132: 1 | T132: 1 | U132: 1 | V132: 1 | W132: 1 | X132: 1 | Y132: 1 | Z132: 1 | AA132: 1 | AB132: 1 | AC132: 1 | AD132: 0 | AE132: 0 | AF132: 0 | AG132: 0 | AH132: 0 | AI132: 0 | AJ132: 0 | AK132: 0 | AL132: 0 | AM132: 0 | AN132: 0 | AO132: 0 | AP132: 0 | AQ132: 0 | AR132: 0 | AS132: 0 | AT132: 0 | AU132: 0 | AV132: 0 | AW132: 0 | AX132: 0 | AY132: 0 | AZ132: 0
D133: =D119 -> EL1 | E133: 4421.844582 | H133: 0 | I133: 0 | J133: 0 | K133: 0 | L133: 0 | M133: 0 | N133: 0 | O133: 0 | P133: 0 | Q133: 0 | R133: 0 | S133: 0 | T133: 0 | U133: 0 | V133: 0 | W133: 0 | X133: 0 | Y133: 0 | Z133: 0 | AA133: 0 | AB133: 0 | AC133: 0 | AD133: 0 | AE133: 0 | AF133: 0 | AG133: 0 | AH133: 0 | AI133: 0 | AJ133: 0 | AK133: 0 | AL133: 0 | AM133: 0 | AN133: 0 | AO133: 0 | AP133: 0 | AQ133: 0 | AR133: 0 | AS133: 0 | AT133: 0 | AU133: 0 | AV133: 0 | AW133: 0 | AX133: 0 | AY133: 0 | AZ133: 0
D134: =D120 -> EL2 | E134: 4401.409424 | H134: 0 | I134: 0 | J134: 0 | K134: 0 | L134: 0 | M134: 0 | N134: 0 | O134: 0 | P134: 0 | Q134: 0 | R134: 0 | S134: 0 | T134: 0 | U134: 0 | V134: 0 | W134: 0 | X134: 0 | Y134: 0 | Z134: 0 | AA134: 0 | AB134: 0 | AC134: 0 | AD134: 0.6 | AE134: 0.6 | AF134: 0.6 | AG134: 0.6 | AH134: 0.6 | AI134: =SUM(AI118:AI120) -> 0.6 | AJ134: =SUM(AJ118:AJ120) -> 0.6 | AK134: 0.6 | AL134: 0.6 | AM134: 0.6 | AN134: 0.6 | AO134: 0.6 | AP134: 0.6 | AQ134: 0.6 | AR134: 0.6 | AS134: 0.6 | AT134: 0.6 | AU134: 0.6 | AV134: 0.6 | AW134: 0.6 | AX134: 0.6 | AY134: 0.6 | AZ134: 0.6
D135: =D121 -> EL3 | E135: 4303.846939 | H135: 0 | I135: 0 | J135: 0 | K135: 0 | L135: 0 | M135: 0 | N135: 0 | O135: 0 | P135: 0 | Q135: 0 | R135: 0 | S135: 0 | T135: 0 | U135: 0 | V135: 0 | W135: 0 | X135: 0 | Y135: 0 | Z135: 0 | AA135: 0 | AB135: 0 | AC135: 0 | AD135: 0.4 | AE135: 0.4 | AF135: 0.4 | AG135: 0.4 | AH135: 0.4 | AI135: =AI121 -> 0.4 | AJ135: =AJ121 -> 0.4 | AK135: 0.4 | AL135: 0.4 | AM135: 0.4 | AN135: 0.4 | AO135: 0.4 | AP135: 0.4 | AQ135: 0.4 | AR135: 0.4 | AS135: 0.4 | AT135: 0.4 | AU135: 0.4 | AV135: 0.4 | AW135: 0.4 | AX135: 0.4 | AY135: 0.4 | AZ135: 0.4
D136: =D122 -> EL4 | E136: 4303.846939 | H136: 0 | I136: 0 | J136: 0 | K136: 0 | L136: 0 | M136: 0 | N136: 0 | O136: 0 | P136: 0 | Q136: 0 | R136: 0 | S136: 0 | T136: 0 | U136: 0 | V136: 0 | W136: 0 | X136: 0 | Y136: 0 | Z136: 0 | AA136: 0 | AB136: 0 | AC136: 0 | AD136: 0 | AE136: 0 | AF136: 0 | AG136: 0 | AH136: 0 | AI136: 0 | AJ136: =AJ122 -> 0 | AK136: 0 | AL136: 0 | AM136: 0 | AN136: 0 | AO136: 0 | AP136: 0 | AQ136: 0 | AR136: 0 | AS136: 0 | AT136: 0 | AU136: 0 | AV136: 0 | AW136: 0 | AX136: 0 | AY136: 0 | AZ136: 0
D137: =D123 -> EL5 | E137: 4303.846939 | H137: 0 | I137: 0 | J137: 0 | K137: 0 | L137: 0 | M137: 0 | N137: 0 | O137: 0 | P137: 0 | Q137: 0 | R137: 0 | S137: 0 | T137: 0 | U137: 0 | V137: 0 | W137: 0 | X137: 0 | Y137: 0 | Z137: 0 | AA137: 0 | AB137: 0 | AC137: 0 | AD137: 0 | AE137: 0 | AF137: 0 | AG137: 0 | AH137: 0 | AI137: =AI123 -> 0 | AJ137: =AJ123 -> 0 | AK137: 0 | AL137: 0 | AM137: 0 | AN137: 0 | AO137: 0 | AP137: 0 | AQ137: 0 | AR137: 0 | AS137: 0 | AT137: 0 | AU137: 0 | AV137: 0 | AW137: 0 | AX137: 0 | AY137: 0 | AZ137: 0
D138: =D124 -> EL6 | E138: 4303.846939 | H138: 0 | I138: 0 | J138: 0 | K138: 0 | L138: 0 | M138: 0 | N138: 0 | O138: 0 | P138: 0 | Q138: 0 | R138: 0 | S138: 0 | T138: 0 | U138: 0 | V138: 0 | W138: 0 | X138: 0 | Y138: 0 | Z138: 0 | AA138: 0 | AB138: 0 | AC138: 0 | AD138: 0 | AE138: 0 | AF138: 0 | AG138: 0 | AH138: 0 | AI138: =AI124 -> 0 | AJ138: =AJ124 -> 0 | AK138: 0 | AL138: 0 | AM138: 0 | AN138: 0 | AO138: 0 | AP138: 0 | AQ138: 0 | AR138: 0 | AS138: 0 | AT138: 0 | AU138: 0 | AV138: 0 | AW138: 0 | AX138: 0 | AY138: 0 | AZ138: 0
D139: =D125 -> EL7 | E139: 4303.846939 | H139: =H125 -> 0 | I139: 0 | J139: 0 | K139: 0 | L139: 0 | M139: 0 | N139: 0 | O139: 0 | P139: 0 | Q139: 0 | R139: 0 | S139: 0 | T139: 0 | U139: 0 | V139: 0 | W139: 0 | X139: 0 | Y139: 0 | Z139: 0 | AA139: 0 | AB139: 0 | AC139: 0 | AD139: 0 | AE139: 0 | AF139: 0 | AG139: 0 | AH139: 0 | AI139: 0 | AJ139: =AJ125 -> 0 | AK139: 0 | AL139: 0 | AM139: 0 | AN139: 0 | AO139: 0 | AP139: 0 | AQ139: 0 | AR139: 0 | AS139: 0 | AT139: 0 | AU139: 0 | AV139: 0 | AW139: 0 | AX139: 0 | AY139: 0 | AZ139: 0
D140: =D126 -> EL8 | E140: 4303.846939 | H140: =H126 -> 0 | I140: 0 | J140: 0 | K140: 0 | L140: 0 | M140: 0 | N140: 0 | O140: 0 | P140: 0 | Q140: 0 | R140: 0 | S140: 0 | T140: 0 | U140: 0 | V140: 0 | W140: 0 | X140: 0 | Y140: 0 | Z140: 0 | AA140: 0 | AB140: 0 | AC140: 0 | AD140: 0 | AE140: 0 | AF140: 0 | AG140: 0 | AH140: 0 | AI140: 0 | AJ140: =AJ126 -> 0 | AK140: 0 | AL140: 0 | AM140: 0 | AN140: 0 | AO140: 0 | AP140: 0 | AQ140: 0 | AR140: 0 | AS140: 0 | AT140: 0 | AU140: 0 | AV140: 0 | AW140: 0 | AX140: 0 | AY140: 0 | AZ140: 0
D141: =D127 -> EL9 | E141: 4303.846939 | H141: =H127 -> 0 | I141: 0 | J141: 0 | K141: 0 | L141: 0 | M141: 0 | N141: 0 | O141: 0 | P141: 0 | Q141: 0 | R141: 0 | S141: 0 | T141: 0 | U141: 0 | V141: 0 | W141: 0 | X141: 0 | Y141: 0 | Z141: 0 | AA141: 0 | AB141: 0 | AC141: 0 | AD141: 0 | AE141: 0 | AF141: 0 | AG141: 0 | AH141: 0 | AI141: 0 | AJ141: =AJ127 -> 0 | AK141: 0 | AL141: 0 | AM141: 0 | AN141: 0 | AO141: 0 | AP141: 0 | AQ141: 0 | AR141: 0 | AS141: 0 | AT141: 0 | AU141: 0 | AV141: 0 | AW141: 0 | AX141: 0 | AY141: 0 | AZ141: 0
D142: TOTAL | H142: =SUM(H132:H141) -> 1 | I142: =SUM(I132:I141) -> 1 | J142: 1 | K142: 1 | L142: 1 | M142: 1 | N142: 1 | O142: 1 | P142: 1 | Q142: 1 | R142: 1 | S142: 1 | T142: 1 | U142: 1 | V142: 1 | W142: 1 | X142: 1 | Y142: 1 | Z142: 1 | AA142: 1 | AB142: 1 | AC142: 1 | AD142: 1 | AE142: 1 | AF142: 1 | AG142: 1 | AH142: 1 | AI142: 1 | AJ142: =SUM(AJ132:AJ141) -> 1 | AK142: 1 | AL142: 1 | AM142: 1 | AN142: 1 | AO142: 1 | AP142: 1 | AQ142: 1 | AR142: 1 | AS142: 1 | AT142: 1 | AU142: 1 | AV142: 1 | AW142: 1 | AX142: 1 | AY142: 1 | AZ142: 1
D144: Sources | E144: DOE Commercial Refrigeration Equipment 2014 Final Rule, Technical Support Document: Final Rule National Impact Analysis Spreadsheet, 'Market Share Inputs' tab, cells EV3:FD35, http://www.regulations.gov/#!documentDetail;D=EERE-2010-BT-STD-0003-0101
D149: ='Product Classes'!O14 -> HZO.RC.L
D151: PRE-Case | F151: Static Distribution
D152: Efficiency Level | E152: EL (kWh/year) | F152: 2006 | H152: 1990 | I152: =H152+1 -> 1991 | J152: =I152+1 -> 1992 | K152: =J152+1 -> 1993 | L152: =K152+1 -> 1994 | M152: =L152+1 -> 1995 | N152: =M152+1 -> 1996 | O152: =N152+1 -> 1997 | P152: =O152+1 -> 1998 | Q152: =P152+1 -> 1999 | R152: =Q152+1 -> 2000 | S152: =R152+1 -> 2001 | T152: =S152+1 -> 2002 | U152: =T152+1 -> 2003 | V152: =U152+1 -> 2004 | W152: =V152+1 -> 2005 | X152: =W152+1 -> 2006 | Y152: =X152+1 -> 2007 | Z152: =Y152+1 -> 2008 | AA152: =Z152+1 -> 2009 | AB152: =AA152+1 -> 2010 | AC152: =AB152+1 -> 2011 | AD152: =AC152+1 -> 2012 | AE152: =AD152+1 -> 2013 | AF152: =AE152+1 -> 2014 | AG152: =AF152+1 -> 2015 | AH152: =AG152+1 -> 2016 | AI152: =AH152+1 -> 2017 | AJ152: =AI152+1 -> 2018 | AK152: =AJ152+1 -> 2019 | AL152: =AK152+1 -> 2020 | AM152: =AL152+1 -> 2021 | AN152: =AM152+1 -> 2022 | AO152: =AN152+1 -> 2023 | AP152: =AO152+1 -> 2024 | AQ152: =AP152+1 -> 2025 | AR152: =AQ152+1 -> 2026 | AS152: =AR152+1 -> 2027 | AT152: =AS152+1 -> 2028 | AU152: =AT152+1 -> 2029 | AV152: =AU152+1 -> 2030 | AW152: =AV152+1 -> 2031 | AX152: =AW152+1 -> 2032 | AY152: =AX152+1 -> 2033 | AZ152: =AY152+1 -> 2034
D153: ='Efficiency Levels'!C84 -> EL0 | E153: ='Efficiency Levels'!D84 -> 11673.20245 | F153: 1 | H153: =$F153 -> 1 | I153: 1 | J153: 1 | K153: 1 | L153: 1 | M153: 1 | N153: 1 | O153: 1 | P153: 1 | Q153: 1 | R153: 1 | S153: 1 | T153: 1 | U153: 1 | V153: 1 | W153: 1 | X153: =$F153 -> 1 | Y153: 1 | Z153: 1 | AA153: 1 | AB153: 1 | AC153: 1 | AD153: 0 | AE153: 0 | AF153: 0 | AG153: 0 | AH153: 0 | AI153: 0 | AJ153: 0 | AK153: 0 | AL153: 0 | AM153: 0 | AN153: 0 | AO153: 0 | AP153: 0 | AQ153: 0 | AR153: 0 | AS153: 0 | AT153: 0 | AU153: 0 | AV153: 0 | AW153: 0 | AX153: 0 | AY153: 0 | AZ153: 0
D154: ='Efficiency Levels'!C85 -> EL1 | E154: ='Efficiency Levels'!D85 -> 10027.13578 | F154: 0 | H154: 0 | I154: 0 | J154: 0 | K154: 0 | L154: 0 | M154: 0 | N154: 0 | O154: 0 | P154: 0 | Q154: 0 | R154: 0 | S154: 0 | T154: 0 | U154: 0 | V154: 0 | W154: 0 | X154: 0 | Y154: 0 | Z154: 0 | AA154: 0 | AB154: 0 | AC154: 0 | AD154: 0 | AE154: 0 | AF154: 0 | AG154: 0 | AH154: 0 | AI154: 0 | AJ154: 0 | AK154: 0 | AL154: 0 | AM154: 0 | AN154: =$F154 -> 0 | AO154: 0 | AP154: 0 | AQ154: 0 | AR154: 0 | AS154: 0 | AT154: 0 | AU154: 0 | AV154: 0 | AW154: 0 | AX154: 0 | AY154: 0 | AZ154: 0
D155: ='Efficiency Levels'!C86 -> EL2 | E155: ='Efficiency Levels'!D86 -> 9843.05877 | F155: 0 | H155: 0 | I155: 0 | J155: 0 | K155: 0 | L155: 0 | M155: 0 | N155: 0 | O155: 0 | P155: 0 | Q155: 0 | R155: 0 | S155: 0 | T155: 0 | U155: 0 | V155: 0 | W155: 0 | X155: 0 | Y155: 0 | Z155: 0 | AA155: 0 | AB155: 0 | AC155: 0 | AD155: 0.6 | AE155: 0.6 | AF155: 0.6 | AG155: 0.6 | AH155: 0.6 | AI155: 0.6 | AJ155: 0.6 | AK155: 0.6 | AL155: 0.6 | AM155: 0.6 | AN155: 0.6 | AO155: 0.6 | AP155: 0.6 | AQ155: 0.6 | AR155: 0.6 | AS155: 0.6 | AT155: 0.6 | AU155: 0.6 | AV155: 0.6 | AW155: 0.6 | AX155: 0.6 | AY155: 0.6 | AZ155: 0.6
D156: ='Efficiency Levels'!C87 -> EL3 | E156: ='Efficiency Levels'!D87 -> 9453.038769 | F156: 0 | H156: 0 | I156: 0 | J156: 0 | K156: 0 | L156: 0 | M156: 0 | N156: 0 | O156: 0 | P156: 0 | Q156: 0 | R156: 0 | S156: 0 | T156: 0 | U156: 0 | V156: 0 | W156: 0 | X156: 0 | Y156: 0 | Z156: 0 | AA156: 0 | AB156: 0 | AC156: 0 | AD156: 0.2 | AE156: 0.2 | AF156: 0.2 | AG156: 0.2 | AH156: 0.2 | AI156: 0.2 | AJ156: 0.2 | AK156: 0.2 | AL156: 0.2 | AM156: 0.2 | AN156: 0.2 | AO156: 0.2 | AP156: 0.2 | AQ156: 0.2 | AR156: 0.2 | AS156: 0.2 | AT156: 0.2 | AU156: 0.2 | AV156: 0.2 | AW156: 0.2 | AX156: 0.2 | AY156: 0.2 | AZ156: 0.2
D157: ='Efficiency Levels'!C88 -> EL4 | E157: ='Efficiency Levels'!D88 -> 9453.038769 | F157: 0 | H157: 0 | I157: 0 | J157: 0 | K157: 0 | L157: 0 | M157: 0 | N157: 0 | O157: 0 | P157: 0 | Q157: 0 | R157: 0 | S157: 0 | T157: 0 | U157: 0 | V157: 0 | W157: 0 | X157: 0 | Y157: 0 | Z157: 0 | AA157: 0 | AB157: 0 | AC157: 0 | AD157: 0.2 | AE157: 0.2 | AF157: 0.2 | AG157: 0.2 | AH157: 0.2 | AI157: 0.2 | AJ157: 0.2 | AK157: 0.2 | AL157: 0.2 | AM157: 0.2 | AN157: 0.2 | AO157: 0.2 | AP157: 0.2 | AQ157: 0.2 | AR157: 0.2 | AS157: 0.2 | AT157: 0.2 | AU157: 0.2 | AV157: 0.2 | AW157: 0.2 | AX157: 0.2 | AY157: 0.2 | AZ157: 0.2
D158: ='Efficiency Levels'!C89 -> EL5 | E158: ='Efficiency Levels'!D89 -> 9453.038769 | F158: 0 | H158: 0 | I158: 0 | J158: 0 | K158: 0 | L158: 0 | M158: 0 | N158: 0 | O158: 0 | P158: 0 | Q158: 0 | R158: 0 | S158: 0 | T158: 0 | U158: 0 | V158: 0 | W158: 0 | X158: 0 | Y158: 0 | Z158: 0 | AA158: 0 | AB158: 0 | AC158: 0 | AD158: 0 | AE158: 0 | AF158: 0 | AG158: 0 | AH158: 0 | AI158: 0 | AJ158: 0 | AK158: 0 | AL158: 0 | AM158: 0 | AN158: =$F158 -> 0 | AO158: 0 | AP158: 0 | AQ158: 0 | AR158: 0 | AS158: 0 | AT158: 0 | AU158: 0 | AV158: 0 | AW158: 0 | AX158: 0 | AY158: 0 | AZ158: 0
D159: ='Efficiency Levels'!C90 -> EL6 | E159: ='Efficiency Levels'!D90 -> 9453.038769 | F159: 0 | H159: 0 | I159: 0 | J159: 0 | K159: 0 | L159: 0 | M159: 0 | N159: 0 | O159: 0 | P159: 0 | Q159: 0 | R159: 0 | S159: 0 | T159: 0 | U159: 0 | V159: 0 | W159: 0 | X159: 0 | Y159: 0 | Z159: 0 | AA159: 0 | AB159: 0 | AC159: 0 | AD159: 0 | AE159: 0 | AF159: 0 | AG159: 0 | AH159: 0 | AI159: 0 | AJ159: 0 | AK159: 0 | AL159: 0 | AM159: 0 | AN159: 0 | AO159: 0 | AP159: 0 | AQ159: 0 | AR159: 0 | AS159: 0 | AT159: 0 | AU159: 0 | AV159: 0 | AW159: 0 | AX159: 0 | AY159: 0 | AZ159: 0
D160: ='Efficiency Levels'!C91 -> EL7 | E160: ='Efficiency Levels'!D91 -> 9453.038769 | F160: 0 | H160: 0 | I160: 0 | J160: 0 | K160: 0 | L160: 0 | M160: 0 | N160: 0 | O160: 0 | P160: 0 | Q160: 0 | R160: 0 | S160: 0 | T160: 0 | U160: 0 | V160: 0 | W160: 0 | X160: 0 | Y160: 0 | Z160: 0 | AA160: 0 | AB160: 0 | AC160: 0 | AD160: 0 | AE160: 0 | AF160: 0 | AG160: 0 | AH160: 0 | AI160: 0 | AJ160: 0 | AK160: 0 | AL160: 0 | AM160: 0 | AN160: 0 | AO160: 0 | AP160: 0 | AQ160: 0 | AR160: 0 | AS160: 0 | AT160: 0 | AU160: 0 | AV160: 0 | AW160: 0 | AX160: 0 | AY160: 0 | AZ160: 0
D161: ='Efficiency Levels'!C92 -> EL8 | E161: ='Efficiency Levels'!D92 -> 9453.038769 | F161: 0 | H161: 0 | I161: 0 | J161: 0 | K161: 0 | L161: 0 | M161: 0 | N161: 0 | O161: 0 | P161: 0 | Q161: 0 | R161: 0 | S161: 0 | T161: 0 | U161: 0 | V161: 0 | W161: 0 | X161: 0 | Y161: 0 | Z161: 0 | AA161: 0 | AB161: 0 | AC161: 0 | AD161: 0 | AE161: 0 | AF161: 0 | AG161: 0 | AH161: 0 | AI161: 0 | AJ161: 0 | AK161: 0 | AL161: 0 | AM161: 0 | AN161: 0 | AO161: 0 | AP161: 0 | AQ161: 0 | AR161: 0 | AS161: 0 | AT161: 0 | AU161: 0 | AV161: 0 | AW161: 0 | AX161: 0 | AY161: 0 | AZ161: 0
D162: ='Efficiency Levels'!C93 -> EL9 | E162: ='Efficiency Levels'!D93 -> 9453.038769 | F162: 0 | H162: 0 | I162: 0 | J162: 0 | K162: 0 | L162: 0 | M162: 0 | N162: 0 | O162: 0 | P162: 0 | Q162: 0 | R162: 0 | S162: 0 | T162: 0 | U162: 0 | V162: 0 | W162: 0 | X162: 0 | Y162: 0 | Z162: 0 | AA162: 0 | AB162: 0 | AC162: 0 | AD162: 0 | AE162: 0 | AF162: 0 | AG162: 0 | AH162: 0 | AI162: 0 | AJ162: 0 | AK162: 0 | AL162: 0 | AM162: 0 | AN162: 0 | AO162: 0 | AP162: 0 | AQ162: 0 | AR162: 0 | AS162: 0 | AT162: 0 | AU162: 0 | AV162: 0 | AW162: 0 | AX162: 0 | AY162: 0 | AZ162: 0
D163: TOTAL | F163: =SUM(F153:F162) -> 1 | H163: =SUM(H153:H162) -> 1 | I163: =SUM(I153:I162) -> 1 | J163: 1 | K163: 1 | L163: 1 | M163: 1 | N163: 1 | O163: 1 | P163: 1 | Q163: 1 | R163: 1 | S163: 1 | T163: 1 | U163: 1 | V163: 1 | W163: 1 | X163: 1 | Y163: 1 | Z163: 1 | AA163: 1 | AB163: 1 | AC163: 1 | AD163: 1 | AE163: 1 | AF163: 1 | AG163: 1 | AH163: 1 | AI163: 1 | AJ163: 1 | AK163: 1 | AL163: 1 | AM163: 1 | AN163: 1 | AO163: 1 | AP163: 1 | AQ163: 1 | AR163: 1 | AS163: 1 | AT163: 1 | AU163: 1 | AV163: 1 | AW163: 1 | AX163: 1 | AY163: 1 | AZ163: 1
D165: POST-Case
D166: Efficiency Level | E166: EL (kWh/year) | H166: 1990 | I166: =H166+1 -> 1991 | J166: =I166+1 -> 1992 | K166: =J166+1 -> 1993 | L166: =K166+1 -> 1994 | M166: =L166+1 -> 1995 | N166: =M166+1 -> 1996 | O166: =N166+1 -> 1997 | P166: =O166+1 -> 1998 | Q166: =P166+1 -> 1999 | R166: =Q166+1 -> 2000 | S166: =R166+1 -> 2001 | T166: =S166+1 -> 2002 | U166: =T166+1 -> 2003 | V166: =U166+1 -> 2004 | W166: =V166+1 -> 2005 | X166: =X152 -> 2006 | Y166: 2007 | Z166: 2008 | AA166: 2009 | AB166: 2010 | AC166: 2011 | AD166: 2012 | AE166: 2013 | AF166: 2014 | AG166: 2015 | AH166: 2016 | AI166: 2017 | AJ166: 2018 | AK166: 2019 | AL166: 2020 | AM166: 2021 | AN166: 2022 | AO166: 2023 | AP166: 2024 | AQ166: 2025 | AR166: 2026 | AS166: 2027 | AT166: 2028 | AU166: 2029 | AV166: 2030 | AW166: 2031 | AX166: 2032 | AY166: 2033 | AZ166: 2034
D167: =D153 -> EL0 | E167: =E153 -> 11673.20245 | H167: =H153 -> 1 | I167: 1 | J167: 1 | K167: 1 | L167: 1 | M167: 1 | N167: 1 | O167: 1 | P167: 1 | Q167: 1 | R167: 1 | S167: 1 | T167: 1 | U167: 1 | V167: 1 | W167: 1 | X167: 1 | Y167: 1 | Z167: 1 | AA167: 1 | AB167: 1 | AC167: 1 | AD167: 0 | AE167: 0 | AF167: 0 | AG167: 0 | AH167: 0 | AI167: 0 | AJ167: 0 | AK167: 0 | AL167: 0 | AM167: 0 | AN167: 0 | AO167: 0 | AP167: 0 | AQ167: 0 | AR167: 0 | AS167: 0 | AT167: 0 | AU167: 0 | AV167: 0 | AW167: 0 | AX167: 0 | AY167: 0 | AZ167: 0
D168: =D154 -> EL1 | E168: 10027.13578 | H168: 0 | I168: 0 | J168: 0 | K168: 0 | L168: 0 | M168: 0 | N168: 0 | O168: 0 | P168: 0 | Q168: 0 | R168: 0 | S168: 0 | T168: 0 | U168: 0 | V168: 0 | W168: 0 | X168: 0 | Y168: 0 | Z168: 0 | AA168: 0 | AB168: 0 | AC168: 0 | AD168: 0 | AE168: 0 | AF168: 0 | AG168: 0 | AH168: 0 | AI168: 0 | AJ168: 0 | AK168: 0 | AL168: 0 | AM168: 0 | AN168: 0 | AO168: 0 | AP168: 0 | AQ168: 0 | AR168: 0 | AS168: 0 | AT168: 0 | AU168: 0 | AV168: 0 | AW168: 0 | AX168: 0 | AY168: 0 | AZ168: 0
D169: =D155 -> EL2 | E169: 9843.05877 | H169: 0 | I169: 0 | J169: 0 | K169: 0 | L169: 0 | M169: 0 | N169: 0 | O169: 0 | P169: 0 | Q169: 0 | R169: 0 | S169: 0 | T169: 0 | U169: 0 | V169: 0 | W169: 0 | X169: 0 | Y169: 0 | Z169: 0 | AA169: 0 | AB169: 0 | AC169: 0 | AD169: 0.6 | AE169: 0.6 | AF169: 0.6 | AG169: 0.6 | AH169: 0.6 | AI169: =SUM(AI153:AI155) -> 0.6 | AJ169: =SUM(AJ153:AJ155) -> 0.6 | AK169: 0.6 | AL169: 0.6 | AM169: 0.6 | AN169: 0.6 | AO169: 0.6 | AP169: 0.6 | AQ169: 0.6 | AR169: 0.6 | AS169: 0.6 | AT169: 0.6 | AU169: 0.6 | AV169: 0.6 | AW169: 0.6 | AX169: 0.6 | AY169: 0.6 | AZ169: 0.6
D170: =D156 -> EL3 | E170: 9453.038769 | H170: 0 | I170: 0 | J170: 0 | K170: 0 | L170: 0 | M170: 0 | N170: 0 | O170: 0 | P170: 0 | Q170: 0 | R170: 0 | S170: 0 | T170: 0 | U170: 0 | V170: 0 | W170: 0 | X170: 0 | Y170: 0 | Z170: 0 | AA170: 0 | AB170: 0 | AC170: 0 | AD170: 0.2 | AE170: 0.2 | AF170: 0.2 | AG170: 0.2 | AH170: 0.2 | AI170: =AI156 -> 0.2 | AJ170: =AJ156 -> 0.2 | AK170: 0.2 | AL170: 0.2 | AM170: 0.2 | AN170: 0.2 | AO170: 0.2 | AP170: 0.2 | AQ170: 0.2 | AR170: 0.2 | AS170: 0.2 | AT170: 0.2 | AU170: 0.2 | AV170: 0.2 | AW170: 0.2 | AX170: 0.2 | AY170: 0.2 | AZ170: 0.2
D171: =D157 -> EL4 | E171: 9453.038769 | H171: 0 | I171: 0 | J171: 0 | K171: 0 | L171: 0 | M171: 0 | N171: 0 | O171: 0 | P171: 0 | Q171: 0 | R171: 0 | S171: 0 | T171: 0 | U171: 0 | V171: 0 | W171: 0 | X171: 0 | Y171: 0 | Z171: 0 | AA171: 0 | AB171: 0 | AC171: 0 | AD171: 0.2 | AE171: 0.2 | AF171: 0.2 | AG171: 0.2 | AH171: 0.2 | AI171: 0.2 | AJ171: =AJ157 -> 0.2 | AK171: 0.2 | AL171: 0.2 | AM171: 0.2 | AN171: 0.2 | AO171: 0.2 | AP171: 0.2 | AQ171: 0.2 | AR171: 0.2 | AS171: 0.2 | AT171: 0.2 | AU171: 0.2 | AV171: 0.2 | AW171: 0.2 | AX171: 0.2 | AY171: 0.2 | AZ171: 0.2
D172: =D158 -> EL5 | E172: 9453.038769 | H172: 0 | I172: 0 | J172: 0 | K172: 0 | L172: 0 | M172: 0 | N172: 0 | O172: 0 | P172: 0 | Q172: 0 | R172: 0 | S172: 0 | T172: 0 | U172: 0 | V172: 0 | W172: 0 | X172: 0 | Y172: 0 | Z172: 0 | AA172: 0 | AB172: 0 | AC172: 0 | AD172: 0 | AE172: 0 | AF172: 0 | AG172: 0 | AH172: 0 | AI172: =AI158 -> 0 | AJ172: =AJ158 -> 0 | AK172: 0 | AL172: 0 | AM172: 0 | AN172: 0 | AO172: 0 | AP172: 0 | AQ172: 0 | AR172: 0 | AS172: 0 | AT172: 0 | AU172: 0 | AV172: 0 | AW172: 0 | AX172: 0 | AY172: 0 | AZ172: 0
D173: =D159 -> EL6 | E173: 9453.038769 | H173: 0 | I173: 0 | J173: 0 | K173: 0 | L173: 0 | M173: 0 | N173: 0 | O173: 0 | P173: 0 | Q173: 0 | R173: 0 | S173: 0 | T173: 0 | U173: 0 | V173: 0 | W173: 0 | X173: 0 | Y173: 0 | Z173: 0 | AA173: 0 | AB173: 0 | AC173: 0 | AD173: 0 | AE173: 0 | AF173: 0 | AG173: 0 | AH173: 0 | AI173: =AI159 -> 0 | AJ173: =AJ159 -> 0 | AK173: 0 | AL173: 0 | AM173: 0 | AN173: 0 | AO173: 0 | AP173: 0 | AQ173: 0 | AR173: 0 | AS173: 0 | AT173: 0 | AU173: 0 | AV173: 0 | AW173: 0 | AX173: 0 | AY173: 0 | AZ173: 0
D174: =D160 -> EL7 | E174: 9453.038769 | H174: =H160 -> 0 | I174: 0 | J174: 0 | K174: 0 | L174: 0 | M174: 0 | N174: 0 | O174: 0 | P174: 0 | Q174: 0 | R174: 0 | S174: 0 | T174: 0 | U174: 0 | V174: 0 | W174: 0 | X174: 0 | Y174: 0 | Z174: 0 | AA174: 0 | AB174: 0 | AC174: 0 | AD174: 0 | AE174: 0 | AF174: 0 | AG174: 0 | AH174: 0 | AI174: 0 | AJ174: =AJ160 -> 0 | AK174: 0 | AL174: 0 | AM174: 0 | AN174: 0 | AO174: 0 | AP174: 0 | AQ174: 0 | AR174: 0 | AS174: 0 | AT174: 0 | AU174: 0 | AV174: 0 | AW174: 0 | AX174: 0 | AY174: 0 | AZ174: 0
D175: =D161 -> EL8 | E175: 9453.038769 | H175: =H161 -> 0 | I175: 0 | J175: 0 | K175: 0 | L175: 0 | M175: 0 | N175: 0 | O175: 0 | P175: 0 | Q175: 0 | R175: 0 | S175: 0 | T175: 0 | U175: 0 | V175: 0 | W175: 0 | X175: 0 | Y175: 0 | Z175: 0 | AA175: 0 | AB175: 0 | AC175: 0 | AD175: 0 | AE175: 0 | AF175: 0 | AG175: 0 | AH175: 0 | AI175: 0 | AJ175: =AJ161 -> 0 | AK175: 0 | AL175: 0 | AM175: 0 | AN175: 0 | AO175: 0 | AP175: 0 | AQ175: 0 | AR175: 0 | AS175: 0 | AT175: 0 | AU175: 0 | AV175: 0 | AW175: 0 | AX175: 0 | AY175: 0 | AZ175: 0
D176: =D162 -> EL9 | E176: 9453.038769 | H176: =H162 -> 0 | I176: 0 | J176: 0 | K176: 0 | L176: 0 | M176: 0 | N176: 0 | O176: 0 | P176: 0 | Q176: 0 | R176: 0 | S176: 0 | T176: 0 | U176: 0 | V176: 0 | W176: 0 | X176: 0 | Y176: 0 | Z176: 0 | AA176: 0 | AB176: 0 | AC176: 0 | AD176: 0 | AE176: 0 | AF176: 0 | AG176: 0 | AH176: 0 | AI176: 0 | AJ176: =AJ162 -> 0 | AK176: 0 | AL176: 0 | AM176: 0 | AN176: 0 | AO176: 0 | AP176: 0 | AQ176: 0 | AR176: 0 | AS176: 0 | AT176: 0 | AU176: 0 | AV176: 0 | AW176: 0 | AX176: 0 | AY176: 0 | AZ176: 0
D177: TOTAL | H177: =SUM(H167:H176) -> 1 | I177: =SUM(I167:I176) -> 1 | J177: 1 | K177: 1 | L177: 1 | M177: 1 | N177: 1 | O177: 1 | P177: 1 | Q177: 1 | R177: 1 | S177: 1 | T177: 1 | U177: 1 | V177: 1 | W177: 1 | X177: 1 | Y177: 1 | Z177: 1 | AA177: 1 | AB177: 1 | AC177: 1 | AD177: 1 | AE177: 1 | AF177: 1 | AG177: 1 | AH177: 1 | AI177: 1 | AJ177: =SUM(AJ167:AJ176) -> 1 | AK177: 1 | AL177: 1 | AM177: 1 | AN177: 1 | AO177: 1 | AP177: 1 | AQ177: 1 | AR177: 1 | AS177: 1 | AT177: 1 | AU177: 1 | AV177: 1 | AW177: 1 | AX177: 1 | AY177: 1 | AZ177: 1
D179: Sources | E179: DOE Commercial Refrigeration Equipment 2014 Final Rule, Technical Support Document: Final Rule National Impact Analysis Spreadsheet, 'Market Share Inputs' tab, cells FF3:FN35, http://www.regulations.gov/#!documentDetail;D=EERE-2010-BT-STD-0003-0101
D184: ='Product Classes'!O15 -> VCT.RC.M
D186: PRE-Case | F186: Static Distribution
D187: Efficiency Level | E187: EL (kWh/year) | F187: 2006 | H187: 1990 | I187: =H187+1 -> 1991 | J187: =I187+1 -> 1992 | K187: =J187+1 -> 1993 | L187: =K187+1 -> 1994 | M187: =L187+1 -> 1995 | N187: =M187+1 -> 1996 | O187: =N187+1 -> 1997 | P187: =O187+1 -> 1998 | Q187: =P187+1 -> 1999 | R187: =Q187+1 -> 2000 | S187: =R187+1 -> 2001 | T187: =S187+1 -> 2002 | U187: =T187+1 -> 2003 | V187: =U187+1 -> 2004 | W187: =V187+1 -> 2005 | X187: =W187+1 -> 2006 | Y187: =X187+1 -> 2007 | Z187: =Y187+1 -> 2008 | AA187: =Z187+1 -> 2009 | AB187: =AA187+1 -> 2010 | AC187: =AB187+1 -> 2011 | AD187: =AC187+1 -> 2012 | AE187: =AD187+1 -> 2013 | AF187: =AE187+1 -> 2014 | AG187: =AF187+1 -> 2015 | AH187: =AG187+1 -> 2016 | AI187: =AH187+1 -> 2017 | AJ187: =AI187+1 -> 2018 | AK187: =AJ187+1 -> 2019 | AL187: =AK187+1 -> 2020 | AM187: =AL187+1 -> 2021 | AN187: =AM187+1 -> 2022 | AO187: =AN187+1 -> 2023 | AP187: =AO187+1 -> 2024 | AQ187: =AP187+1 -> 2025 | AR187: =AQ187+1 -> 2026 | AS187: =AR187+1 -> 2027 | AT187: =AS187+1 -> 2028 | AU187: =AT187+1 -> 2029 | AV187: =AU187+1 -> 2030 | AW187: =AV187+1 -> 2031 | AX187: =AW187+1 -> 2032 | AY187: =AX187+1 -> 2033 | AZ187: =AY187+1 -> 2034
D188: ='Efficiency Levels'!C102 -> EL0 | E188: ='Efficiency Levels'!D102 -> 9518.125464 | F188: 1 | H188: =$F188 -> 1 | I188: 1 | J188: 1 | K188: 1 | L188: 1 | M188: 1 | N188: 1 | O188: 1 | P188: 1 | Q188: 1 | R188: 1 | S188: 1 | T188: 1 | U188: 1 | V188: 1 | W188: 1 | X188: =$F188 -> 1 | Y188: 1 | Z188: 1 | AA188: 1 | AB188: 1 | AC188: 1 | AD188: 0 | AE188: 0 | AF188: 0 | AG188: 0 | AH188: 0 | AI188: 0 | AJ188: 0 | AK188: 0 | AL188: 0 | AM188: 0 | AN188: 0 | AO188: 0 | AP188: 0 | AQ188: 0 | AR188: 0 | AS188: 0 | AT188: 0 | AU188: 0 | AV188: 0 | AW188: 0 | AX188: 0 | AY188: 0 | AZ188: 0
D189: ='Efficiency Levels'!C103 -> EL1 | E189: ='Efficiency Levels'!D103 -> 4639.691892 | F189: 0 | H189: 0 | I189: 0 | J189: 0 | K189: 0 | L189: 0 | M189: 0 | N189: 0 | O189: 0 | P189: 0 | Q189: 0 | R189: 0 | S189: 0 | T189: 0 | U189: 0 | V189: 0 | W189: 0 | X189: 0 | Y189: 0 | Z189: 0 | AA189: 0 | AB189: 0 | AC189: 0 | AD189: 0 | AE189: 0 | AF189: 0 | AG189: 0 | AH189: 0 | AI189: 0 | AJ189: 0 | AK189: 0 | AL189: 0 | AM189: 0 | AN189: =$F189 -> 0 | AO189: 0 | AP189: 0 | AQ189: 0 | AR189: 0 | AS189: 0 | AT189: 0 | AU189: 0 | AV189: 0 | AW189: 0 | AX189: 0 | AY189: 0 | AZ189: 0
D190: ='Efficiency Levels'!C104 -> EL2 | E190: ='Efficiency Levels'!D104 -> 3914.021472 | F190: 0 | H190: 0 | I190: 0 | J190: 0 | K190: 0 | L190: 0 | M190: 0 | N190: 0 | O190: 0 | P190: 0 | Q190: 0 | R190: 0 | S190: 0 | T190: 0 | U190: 0 | V190: 0 | W190: 0 | X190: 0 | Y190: 0 | Z190: 0 | AA190: 0 | AB190: 0 | AC190: 0 | AD190: =AE190 -> 0.6 | AE190: 0.6 | AF190: 0.6 | AG190: 0.6 | AH190: =AI190 -> 0.6 | AI190: 0.6 | AJ190: 0.6 | AK190: 0.6 | AL190: 0.6 | AM190: 0.6 | AN190: 0.6 | AO190: 0.6 | AP190: 0.6 | AQ190: 0.6 | AR190: 0.6 | AS190: 0.6 | AT190: 0.6 | AU190: 0.6 | AV190: 0.6 | AW190: 0.6 | AX190: 0.6 | AY190: 0.6 | AZ190: 0.6
D191: ='Efficiency Levels'!C105 -> EL3 | E191: ='Efficiency Levels'!D105 -> 3384.815267 | F191: 0 | H191: 0 | I191: 0 | J191: 0 | K191: 0 | L191: 0 | M191: 0 | N191: 0 | O191: 0 | P191: 0 | Q191: 0 | R191: 0 | S191: 0 | T191: 0 | U191: 0 | V191: 0 | W191: 0 | X191: 0 | Y191: 0 | Z191: 0 | AA191: 0 | AB191: 0 | AC191: 0 | AD191: 0.14 | AE191: 0.14 | AF191: 0.14 | AG191: 0.14 | AH191: =AI191 -> 0.14 | AI191: 0.14 | AJ191: 0.14 | AK191: 0.14 | AL191: 0.14 | AM191: 0.14 | AN191: 0.14 | AO191: 0.14 | AP191: 0.14 | AQ191: 0.14 | AR191: 0.14 | AS191: 0.14 | AT191: 0.14 | AU191: 0.14 | AV191: 0.14 | AW191: 0.14 | AX191: 0.14 | AY191: 0.14 | AZ191: 0.14
D192: ='Efficiency Levels'!C106 -> EL4 | E192: ='Efficiency Levels'!D106 -> 3313.40124 | F192: 0 | H192: 0 | I192: 0 | J192: 0 | K192: 0 | L192: 0 | M192: 0 | N192: 0 | O192: 0 | P192: 0 | Q192: 0 | R192: 0 | S192: 0 | T192: 0 | U192: 0 | V192: 0 | W192: 0 | X192: 0 | Y192: 0 | Z192: 0 | AA192: 0 | AB192: 0 | AC192: 0 | AD192: 0.13 | AE192: 0.13 | AF192: 0.13 | AG192: 0.13 | AH192: 0.13 | AI192: 0.13 | AJ192: 0.13 | AK192: 0.13 | AL192: 0.13 | AM192: 0.13 | AN192: 0.13 | AO192: 0.13 | AP192: 0.13 | AQ192: 0.13 | AR192: 0.13 | AS192: 0.13 | AT192: 0.13 | AU192: 0.13 | AV192: 0.13 | AW192: 0.13 | AX192: 0.13 | AY192: 0.13 | AZ192: 0.13
D193: ='Efficiency Levels'!C107 -> EL5 | E193: ='Efficiency Levels'!D107 -> 3294.311543 | F193: 0 | H193: 0 | I193: 0 | J193: 0 | K193: 0 | L193: 0 | M193: 0 | N193: 0 | O193: 0 | P193: 0 | Q193: 0 | R193: 0 | S193: 0 | T193: 0 | U193: 0 | V193: 0 | W193: 0 | X193: 0 | Y193: 0 | Z193: 0 | AA193: 0 | AB193: 0 | AC193: 0 | AD193: 0.13 | AE193: 0.13 | AF193: 0.13 | AG193: 0.13 | AH193: 0.13 | AI193: 0.13 | AJ193: 0.13 | AK193: 0.13 | AL193: 0.13 | AM193: 0.13 | AN193: 0.13 | AO193: 0.13 | AP193: 0.13 | AQ193: 0.13 | AR193: 0.13 | AS193: 0.13 | AT193: 0.13 | AU193: 0.13 | AV193: 0.13 | AW193: 0.13 | AX193: 0.13 | AY193: 0.13 | AZ193: 0.13
D194: ='Efficiency Levels'!C108 -> EL6 | E194: ='Efficiency Levels'!D108 -> 3151.847562 | F194: 0 | H194: 0 | I194: 0 | J194: 0 | K194: 0 | L194: 0 | M194: 0 | N194: 0 | O194: 0 | P194: 0 | Q194: 0 | R194: 0 | S194: 0 | T194: 0 | U194: 0 | V194: 0 | W194: 0 | X194: 0 | Y194: 0 | Z194: 0 | AA194: 0 | AB194: 0 | AC194: 0 | AD194: 0 | AE194: 0 | AF194: 0 | AG194: 0 | AH194: 0 | AI194: 0 | AJ194: 0 | AK194: 0 | AL194: 0 | AM194: 0 | AN194: =$F194 -> 0 | AO194: 0 | AP194: 0 | AQ194: 0 | AR194: 0 | AS194: 0 | AT194: 0 | AU194: 0 | AV194: 0 | AW194: 0 | AX194: 0 | AY194: 0 | AZ194: 0
D195: ='Efficiency Levels'!C109 -> EL7 | E195: ='Efficiency Levels'!D109 -> 3151.847562 | F195: 0 | H195: 0 | I195: 0 | J195: 0 | K195: 0 | L195: 0 | M195: 0 | N195: 0 | O195: 0 | P195: 0 | Q195: 0 | R195: 0 | S195: 0 | T195: 0 | U195: 0 | V195: 0 | W195: 0 | X195: 0 | Y195: 0 | Z195: 0 | AA195: 0 | AB195: 0 | AC195: 0 | AD195: 0 | AE195: 0 | AF195: 0 | AG195: 0 | AH195: 0 | AI195: 0 | AJ195: 0 | AK195: 0 | AL195: 0 | AM195: 0 | AN195: 0 | AO195: 0 | AP195: 0 | AQ195: 0 | AR195: 0 | AS195: 0 | AT195: 0 | AU195: 0 | AV195: 0 | AW195: 0 | AX195: 0 | AY195: 0 | AZ195: 0
D196: ='Efficiency Levels'!C110 -> EL8 | E196: ='Efficiency Levels'!D110 -> 3151.847562 | F196: 0 | H196: 0 | I196: 0 | J196: 0 | K196: 0 | L196: 0 | M196: 0 | N196: 0 | O196: 0 | P196: 0 | Q196: 0 | R196: 0 | S196: 0 | T196: 0 | U196: 0 | V196: 0 | W196: 0 | X196: 0 | Y196: 0 | Z196: 0 | AA196: 0 | AB196: 0 | AC196: 0 | AD196: 0 | AE196: 0 | AF196: 0 | AG196: 0 | AH196: 0 | AI196: 0 | AJ196: 0 | AK196: 0 | AL196: 0 | AM196: 0 | AN196: 0 | AO196: 0 | AP196: 0 | AQ196: 0 | AR196: 0 | AS196: 0 | AT196: 0 | AU196: 0 | AV196: 0 | AW196: 0 | AX196: 0 | AY196: 0 | AZ196: 0
D197: ='Efficiency Levels'!C111 -> EL9 | E197: ='Efficiency Levels'!D111 -> 3151.847562 | F197: 0 | H197: 0 | I197: 0 | J197: 0 | K197: 0 | L197: 0 | M197: 0 | N197: 0 | O197: 0 | P197: 0 | Q197: 0 | R197: 0 | S197: 0 | T197: 0 | U197: 0 | V197: 0 | W197: 0 | X197: 0 | Y197: 0 | Z197: 0 | AA197: 0 | AB197: 0 | AC197: 0 | AD197: 0 | AE197: 0 | AF197: 0 | AG197: 0 | AH197: 0 | AI197: 0 | AJ197: 0 | AK197: 0 | AL197: 0 | AM197: 0 | AN197: 0 | AO197: 0 | AP197: 0 | AQ197: 0 | AR197: 0 | AS197: 0 | AT197: 0 | AU197: 0 | AV197: 0 | AW197: 0 | AX197: 0 | AY197: 0 | AZ197: 0
D198: TOTAL | F198: =SUM(F188:F197) -> 1 | H198: =SUM(H188:H197) -> 1 | I198: =SUM(I188:I197) -> 1 | J198: 1 | K198: 1 | L198: 1 | M198: 1 | N198: 1 | O198: 1 | P198: 1 | Q198: 1 | R198: 1 | S198: 1 | T198: 1 | U198: 1 | V198: 1 | W198: 1 | X198: 1 | Y198: 1 | Z198: 1 | AA198: 1 | AB198: 1 | AC198: 1 | AD198: 1 | AE198: 1 | AF198: 1 | AG198: 1 | AH198: 1 | AI198: 1 | AJ198: 1 | AK198: 1 | AL198: 1 | AM198: 1 | AN198: 1 | AO198: 1 | AP198: 1 | AQ198: 1 | AR198: 1 | AS198: 1 | AT198: 1 | AU198: 1 | AV198: 1 | AW198: 1 | AX198: 1 | AY198: 1 | AZ198: 1
D200: POST-Case
D201: Efficiency Level | E201: EL (kWh/year) | H201: 1990 | I201: =H201+1 -> 1991 | J201: =I201+1 -> 1992 | K201: =J201+1 -> 1993 | L201: =K201+1 -> 1994 | M201: =L201+1 -> 1995 | N201: =M201+1 -> 1996 | O201: =N201+1 -> 1997 | P201: =O201+1 -> 1998 | Q201: =P201+1 -> 1999 | R201: =Q201+1 -> 2000 | S201: =R201+1 -> 2001 | T201: =S201+1 -> 2002 | U201: =T201+1 -> 2003 | V201: =U201+1 -> 2004 | W201: =V201+1 -> 2005 | X201: =X187 -> 2006 | Y201: 2007 | Z201: 2008 | AA201: 2009 | AB201: 2010 | AC201: 2011 | AD201: 2012 | AE201: 2013 | AF201: 2014 | AG201: 2015 | AH201: 2016 | AI201: 2017 | AJ201: 2018 | AK201: 2019 | AL201: 2020 | AM201: 2021 | AN201: 2022 | AO201: 2023 | AP201: 2024 | AQ201: 2025 | AR201: 2026 | AS201: 2027 | AT201: 2028 | AU201: 2029 | AV201: 2030 | AW201: 2031 | AX201: 2032 | AY201: 2033 | AZ201: 2034
D202: =D188 -> EL0 | E202: =E188 -> 9518.125464 | H202: =H188 -> 1 | I202: 1 | J202: 1 | K202: 1 | L202: 1 | M202: 1 | N202: 1 | O202: 1 | P202: 1 | Q202: 1 | R202: 1 | S202: 1 | T202: 1 | U202: 1 | V202: 1 | W202: 1 | X202: 1 | Y202: 1 | Z202: 1 | AA202: 1 | AB202: 1 | AC202: 1 | AD202: 0 | AE202: 0 | AF202: 0 | AG202: 0 | AH202: 0 | AI202: 0 | AJ202: 0 | AK202: 0 | AL202: 0 | AM202: 0 | AN202: 0 | AO202: 0 | AP202: 0 | AQ202: 0 | AR202: 0 | AS202: 0 | AT202: 0 | AU202: 0 | AV202: 0 | AW202: 0 | AX202: 0 | AY202: 0 | AZ202: 0
D203: =D189 -> EL1 | E203: 4639.691892 | H203: 0 | I203: 0 | J203: 0 | K203: 0 | L203: 0 | M203: 0 | N203: 0 | O203: 0 | P203: 0 | Q203: 0 | R203: 0 | S203: 0 | T203: 0 | U203: 0 | V203: 0 | W203: 0 | X203: 0 | Y203: 0 | Z203: 0 | AA203: 0 | AB203: 0 | AC203: 0 | AD203: 0 | AE203: 0 | AF203: 0 | AG203: 0 | AH203: 0 | AI203: 0 | AJ203: 0 | AK203: 0 | AL203: 0 | AM203: 0 | AN203: 0 | AO203: 0 | AP203: 0 | AQ203: 0 | AR203: 0 | AS203: 0 | AT203: 0 | AU203: 0 | AV203: 0 | AW203: 0 | AX203: 0 | AY203: 0 | AZ203: 0
D204: =D190 -> EL2 | E204: 3914.021472 | H204: 0 | I204: 0 | J204: 0 | K204: 0 | L204: 0 | M204: 0 | N204: 0 | O204: 0 | P204: 0 | Q204: 0 | R204: 0 | S204: 0 | T204: 0 | U204: 0 | V204: 0 | W204: 0 | X204: 0 | Y204: 0 | Z204: 0 | AA204: 0 | AB204: 0 | AC204: 0 | AD204: 0.6 | AE204: 0.6 | AF204: 0.6 | AG204: 0.6 | AH204: 0.6 | AI204: 0 | AJ204: 0 | AK204: 0 | AL204: 0 | AM204: 0 | AN204: 0 | AO204: 0 | AP204: 0 | AQ204: 0 | AR204: 0 | AS204: 0 | AT204: 0 | AU204: 0 | AV204: 0 | AW204: 0 | AX204: 0 | AY204: 0 | AZ204: 0
D205: =D191 -> EL3 | E205: 3384.815267 | H205: 0 | I205: 0 | J205: 0 | K205: 0 | L205: 0 | M205: 0 | N205: 0 | O205: 0 | P205: 0 | Q205: 0 | R205: 0 | S205: 0 | T205: 0 | U205: 0 | V205: 0 | W205: 0 | X205: 0 | Y205: 0 | Z205: 0 | AA205: 0 | AB205: 0 | AC205: 0 | AD205: 0.14 | AE205: 0.14 | AF205: 0.14 | AG205: 0.14 | AH205: 0.14 | AI205: =SUM(AI188:AI191) -> 0.74 | AJ205: =SUM(AJ188:AJ191) -> 0.74 | AK205: 0.74 | AL205: 0.74 | AM205: 0.74 | AN205: 0.74 | AO205: 0.74 | AP205: 0.74 | AQ205: 0.74 | AR205: 0.74 | AS205: 0.74 | AT205: 0.74 | AU205: 0.74 | AV205: 0.74 | AW205: 0.74 | AX205: 0.74 | AY205: 0.74 | AZ205: 0.74
D206: =D192 -> EL4 | E206: 3313.40124 | H206: 0 | I206: 0 | J206: 0 | K206: 0 | L206: 0 | M206: 0 | N206: 0 | O206: 0 | P206: 0 | Q206: 0 | R206: 0 | S206: 0 | T206: 0 | U206: 0 | V206: 0 | W206: 0 | X206: 0 | Y206: 0 | Z206: 0 | AA206: 0 | AB206: 0 | AC206: 0 | AD206: 0.13 | AE206: 0.13 | AF206: 0.13 | AG206: 0.13 | AH206: 0.13 | AI206: =AI192 -> 0.13 | AJ206: 0.13 | AK206: 0.13 | AL206: 0.13 | AM206: 0.13 | AN206: 0.13 | AO206: 0.13 | AP206: 0.13 | AQ206: 0.13 | AR206: 0.13 | AS206: 0.13 | AT206: 0.13 | AU206: 0.13 | AV206: 0.13 | AW206: 0.13 | AX206: 0.13 | AY206: 0.13 | AZ206: 0.13
D207: =D193 -> EL5 | E207: 3294.311543 | H207: 0 | I207: 0 | J207: 0 | K207: 0 | L207: 0 | M207: 0 | N207: 0 | O207: 0 | P207: 0 | Q207: 0 | R207: 0 | S207: 0 | T207: 0 | U207: 0 | V207: 0 | W207: 0 | X207: 0 | Y207: 0 | Z207: 0 | AA207: 0 | AB207: 0 | AC207: 0 | AD207: 0.13 | AE207: 0.13 | AF207: 0.13 | AG207: 0.13 | AH207: 0.13 | AI207: =AI193 -> 0.13 | AJ207: 0.13 | AK207: 0.13 | AL207: 0.13 | AM207: 0.13 | AN207: 0.13 | AO207: 0.13 | AP207: 0.13 | AQ207: 0.13 | AR207: 0.13 | AS207: 0.13 | AT207: 0.13 | AU207: 0.13 | AV207: 0.13 | AW207: 0.13 | AX207: 0.13 | AY207: 0.13 | AZ207: 0.13
D208: =D194 -> EL6 | E208: 3151.847562 | H208: 0 | I208: 0 | J208: 0 | K208: 0 | L208: 0 | M208: 0 | N208: 0 | O208: 0 | P208: 0 | Q208: 0 | R208: 0 | S208: 0 | T208: 0 | U208: 0 | V208: 0 | W208: 0 | X208: 0 | Y208: 0 | Z208: 0 | AA208: 0 | AB208: 0 | AC208: 0 | AD208: 0 | AE208: 0 | AF208: 0 | AG208: 0 | AH208: 0 | AI208: =AI194 -> 0 | AJ208: 0 | AK208: 0 | AL208: 0 | AM208: 0 | AN208: 0 | AO208: 0 | AP208: 0 | AQ208: 0 | AR208: 0 | AS208: 0 | AT208: 0 | AU208: 0 | AV208: 0 | AW208: 0 | AX208: 0 | AY208: 0 | AZ208: 0
D209: =D195 -> EL7 | E209: 3151.847562 | H209: =H195 -> 0 | I209: 0 | J209: 0 | K209: 0 | L209: 0 | M209: 0 | N209: 0 | O209: 0 | P209: 0 | Q209: 0 | R209: 0 | S209: 0 | T209: 0 | U209: 0 | V209: 0 | W209: 0 | X209: 0 | Y209: 0 | Z209: 0 | AA209: 0 | AB209: 0 | AC209: 0 | AD209: 0 | AE209: 0 | AF209: 0 | AG209: 0 | AH209: 0 | AI209: 0 | AJ209: 0 | AK209: 0 | AL209: 0 | AM209: 0 | AN209: 0 | AO209: 0 | AP209: 0 | AQ209: 0 | AR209: 0 | AS209: 0 | AT209: 0 | AU209: 0 | AV209: 0 | AW209: 0 | AX209: 0 | AY209: 0 | AZ209: 0
D210: =D196 -> EL8 | E210: 3151.847562 | H210: =H196 -> 0 | I210: 0 | J210: 0 | K210: 0 | L210: 0 | M210: 0 | N210: 0 | O210: 0 | P210: 0 | Q210: 0 | R210: 0 | S210: 0 | T210: 0 | U210: 0 | V210: 0 | W210: 0 | X210: 0 | Y210: 0 | Z210: 0 | AA210: 0 | AB210: 0 | AC210: 0 | AD210: 0 | AE210: 0 | AF210: 0 | AG210: 0 | AH210: 0 | AI210: 0 | AJ210: 0 | AK210: 0 | AL210: 0 | AM210: 0 | AN210: 0 | AO210: 0 | AP210: 0 | AQ210: 0 | AR210: 0 | AS210: 0 | AT210: 0 | AU210: 0 | AV210: 0 | AW210: 0 | AX210: 0 | AY210: 0 | AZ210: 0
D211: =D197 -> EL9 | E211: 3151.847562 | H211: =H197 -> 0 | I211: 0 | J211: 0 | K211: 0 | L211: 0 | M211: 0 | N211: 0 | O211: 0 | P211: 0 | Q211: 0 | R211: 0 | S211: 0 | T211: 0 | U211: 0 | V211: 0 | W211: 0 | X211: 0 | Y211: 0 | Z211: 0 | AA211: 0 | AB211: 0 | AC211: 0 | AD211: 0 | AE211: 0 | AF211: 0 | AG211: 0 | AH211: 0 | AI211: 0 | AJ211: 0 | AK211: 0 | AL211: 0 | AM211: 0 | AN211: 0 | AO211: 0 | AP211: 0 | AQ211: 0 | AR211: 0 | AS211: 0 | AT211: 0 | AU211: 0 | AV211: 0 | AW211: 0 | AX211: 0 | AY211: 0 | AZ211: 0
D212: TOTAL | H212: =SUM(H202:H211) -> 1 | I212: =SUM(I202:I211) -> 1 | J212: 1 | K212: 1 | L212: 1 | M212: 1 | N212: 1 | O212: 1 | P212: 1 | Q212: 1 | R212: 1 | S212: 1 | T212: 1 | U212: 1 | V212: 1 | W212: 1 | X212: 1 | Y212: 1 | Z212: 1 | AA212: 1 | AB212: 1 | AC212: 1 | AD212: 1 | AE212: 1 | AF212: 1 | AG212: 1 | AH212: 1 | AI212: 1 | AJ212: 1 | AK212: 1 | AL212: 1 | AM212: 1 | AN212: 1 | AO212: 1 | AP212: 1 | AQ212: 1 | AR212: 1 | AS212: 1 | AT212: 1 | AU212: 1 | AV212: 1 | AW212: 1 | AX212: 1 | AY212: 1 | AZ212: 1
D214: Sources | E214: DOE Commercial Refrigeration Equipment 2014 Final Rule, Technical Support Document: Final Rule National Impact Analysis Spreadsheet, 'Market Share Inputs' tab, cells AF3:AN35, http://www.regulations.gov/#!documentDetail;D=EERE-2010-BT-STD-0003-0101
D219: ='Product Classes'!O16 -> VCT.RC.L
D221: PRE-Case | F221: Static Distribution
D222: Efficiency Level | E222: EL (kWh/year) | F222: 2006 | H222: 1990 | I222: =H222+1 -> 1991 | J222: =I222+1 -> 1992 | K222: =J222+1 -> 1993 | L222: =K222+1 -> 1994 | M222: =L222+1 -> 1995 | N222: =M222+1 -> 1996 | O222: =N222+1 -> 1997 | P222: =O222+1 -> 1998 | Q222: =P222+1 -> 1999 | R222: =Q222+1 -> 2000 | S222: =R222+1 -> 2001 | T222: =S222+1 -> 2002 | U222: =T222+1 -> 2003 | V222: =U222+1 -> 2004 | W222: =V222+1 -> 2005 | X222: =W222+1 -> 2006 | Y222: =X222+1 -> 2007 | Z222: =Y222+1 -> 2008 | AA222: =Z222+1 -> 2009 | AB222: =AA222+1 -> 2010 | AC222: =AB222+1 -> 2011 | AD222: =AC222+1 -> 2012 | AE222: =AD222+1 -> 2013 | AF222: =AE222+1 -> 2014 | AG222: =AF222+1 -> 2015 | AH222: =AG222+1 -> 2016 | AI222: =AH222+1 -> 2017 | AJ222: =AI222+1 -> 2018 | AK222: =AJ222+1 -> 2019 | AL222: =AK222+1 -> 2020 | AM222: =AL222+1 -> 2021 | AN222: =AM222+1 -> 2022 | AO222: =AN222+1 -> 2023 | AP222: =AO222+1 -> 2024 | AQ222: =AP222+1 -> 2025 | AR222: =AQ222+1 -> 2026 | AS222: =AR222+1 -> 2027 | AT222: =AS222+1 -> 2028 | AU222: =AT222+1 -> 2029 | AV222: =AU222+1 -> 2030 | AW222: =AV222+1 -> 2031 | AX222: =AW222+1 -> 2032 | AY222: =AX222+1 -> 2033 | AZ222: =AY222+1 -> 2034
D223: ='Efficiency Levels'!C120 -> EL0 | E223: ='Efficiency Levels'!D120 -> 19856.60125 | F223: 1 | H223: =$F223 -> 1 | I223: 1 | J223: 1 | K223: 1 | L223: 1 | M223: 1 | N223: 1 | O223: 1 | P223: 1 | Q223: 1 | R223: 1 | S223: 1 | T223: 1 | U223: 1 | V223: 1 | W223: 1 | X223: =$F223 -> 1 | Y223: 1 | Z223: 1 | AA223: 1 | AB223: 1 | AC223: 1 | AD223: 0 | AE223: 0 | AF223: 0 | AG223: 0 | AH223: 0 | AI223: 0 | AJ223: 0 | AK223: 0 | AL223: 0 | AM223: 0 | AN223: 0 | AO223: 0 | AP223: 0 | AQ223: 0 | AR223: 0 | AS223: 0 | AT223: 0 | AU223: 0 | AV223: 0 | AW223: 0 | AX223: 0 | AY223: 0 | AZ223: 0
D224: ='Efficiency Levels'!C121 -> EL1 | E224: ='Efficiency Levels'!D121 -> 11226.41415 | F224: 0 | H224: 0 | I224: 0 | J224: 0 | K224: 0 | L224: 0 | M224: 0 | N224: 0 | O224: 0 | P224: 0 | Q224: 0 | R224: 0 | S224: 0 | T224: 0 | U224: 0 | V224: 0 | W224: 0 | X224: 0 | Y224: 0 | Z224: 0 | AA224: 0 | AB224: 0 | AC224: 0 | AD224: 0 | AE224: 0 | AF224: 0 | AG224: 0 | AH224: 0 | AI224: 0 | AJ224: 0 | AK224: 0 | AL224: 0 | AM224: 0 | AN224: =$F224 -> 0 | AO224: 0 | AP224: 0 | AQ224: 0 | AR224: 0 | AS224: 0 | AT224: 0 | AU224: 0 | AV224: 0 | AW224: 0 | AX224: 0 | AY224: 0 | AZ224: 0
D225: ='Efficiency Levels'!C122 -> EL2 | E225: ='Efficiency Levels'!D122 -> 10741.1623 | F225: 0 | H225: 0 | I225: 0 | J225: 0 | K225: 0 | L225: 0 | M225: 0 | N225: 0 | O225: 0 | P225: 0 | Q225: 0 | R225: 0 | S225: 0 | T225: 0 | U225: 0 | V225: 0 | W225: 0 | X225: 0 | Y225: 0 | Z225: 0 | AA225: 0 | AB225: 0 | AC225: 0 | AD225: 0.6 | AE225: 0.6 | AF225: 0.6 | AG225: 0.6 | AH225: 0.6 | AI225: 0.6 | AJ225: 0.6 | AK225: 0.6 | AL225: 0.6 | AM225: 0.6 | AN225: 0.6 | AO225: 0.6 | AP225: 0.6 | AQ225: 0.6 | AR225: 0.6 | AS225: 0.6 | AT225: 0.6 | AU225: 0.6 | AV225: 0.6 | AW225: 0.6 | AX225: 0.6 | AY225: 0.6 | AZ225: 0.6
D226: ='Efficiency Levels'!C123 -> EL3 | E226: ='Efficiency Levels'!D123 -> 10124.07001 | F226: 0 | H226: 0 | I226: 0 | J226: 0 | K226: 0 | L226: 0 | M226: 0 | N226: 0 | O226: 0 | P226: 0 | Q226: 0 | R226: 0 | S226: 0 | T226: 0 | U226: 0 | V226: 0 | W226: 0 | X226: 0 | Y226: 0 | Z226: 0 | AA226: 0 | AB226: 0 | AC226: 0 | AD226: 0.2 | AE226: 0.2 | AF226: 0.2 | AG226: 0.2 | AH226: 0.2 | AI226: 0.2 | AJ226: 0.2 | AK226: 0.2 | AL226: 0.2 | AM226: 0.2 | AN226: 0.2 | AO226: 0.2 | AP226: 0.2 | AQ226: 0.2 | AR226: 0.2 | AS226: 0.2 | AT226: 0.2 | AU226: 0.2 | AV226: 0.2 | AW226: 0.2 | AX226: 0.2 | AY226: 0.2 | AZ226: 0.2
D227: ='Efficiency Levels'!C124 -> EL4 | E227: ='Efficiency Levels'!D124 -> 9964.079975 | F227: 0 | H227: 0 | I227: 0 | J227: 0 | K227: 0 | L227: 0 | M227: 0 | N227: 0 | O227: 0 | P227: 0 | Q227: 0 | R227: 0 | S227: 0 | T227: 0 | U227: 0 | V227: 0 | W227: 0 | X227: 0 | Y227: 0 | Z227: 0 | AA227: 0 | AB227: 0 | AC227: 0 | AD227: 0.2 | AE227: 0.2 | AF227: 0.2 | AG227: 0.2 | AH227: 0.2 | AI227: 0.2 | AJ227: 0.2 | AK227: 0.2 | AL227: 0.2 | AM227: 0.2 | AN227: 0.2 | AO227: 0.2 | AP227: 0.2 | AQ227: 0.2 | AR227: 0.2 | AS227: 0.2 | AT227: 0.2 | AU227: 0.2 | AV227: 0.2 | AW227: 0.2 | AX227: 0.2 | AY227: 0.2 | AZ227: 0.2
D228: ='Efficiency Levels'!C125 -> EL5 | E228: ='Efficiency Levels'!D125 -> 9884.887808 | F228: 0 | H228: 0 | I228: 0 | J228: 0 | K228: 0 | L228: 0 | M228: 0 | N228: 0 | O228: 0 | P228: 0 | Q228: 0 | R228: 0 | S228: 0 | T228: 0 | U228: 0 | V228: 0 | W228: 0 | X228: 0 | Y228: 0 | Z228: 0 | AA228: 0 | AB228: 0 | AC228: 0 | AD228: 0 | AE228: 0 | AF228: 0 | AG228: 0 | AH228: 0 | AI228: 0 | AJ228: 0 | AK228: 0 | AL228: 0 | AM228: 0 | AN228: =$F228 -> 0 | AO228: 0 | AP228: 0 | AQ228: 0 | AR228: 0 | AS228: 0 | AT228: 0 | AU228: 0 | AV228: 0 | AW228: 0 | AX228: 0 | AY228: 0 | AZ228: 0
D229: ='Efficiency Levels'!C126 -> EL6 | E229: ='Efficiency Levels'!D126 -> 9467.087066 | F229: 0 | H229: 0 | I229: 0 | J229: 0 | K229: 0 | L229: 0 | M229: 0 | N229: 0 | O229: 0 | P229: 0 | Q229: 0 | R229: 0 | S229: 0 | T229: 0 | U229: 0 | V229: 0 | W229: 0 | X229: 0 | Y229: 0 | Z229: 0 | AA229: 0 | AB229: 0 | AC229: 0 | AD229: 0 | AE229: 0 | AF229: 0 | AG229: 0 | AH229: 0 | AI229: 0 | AJ229: 0 | AK229: 0 | AL229: 0 | AM229: 0 | AN229: 0 | AO229: 0 | AP229: 0 | AQ229: 0 | AR229: 0 | AS229: 0 | AT229: 0 | AU229: 0 | AV229: 0 | AW229: 0 | AX229: 0 | AY229: 0 | AZ229: 0
D230: ='Efficiency Levels'!C127 -> EL7 | E230: ='Efficiency Levels'!D127 -> 9467.087066 | F230: 0 | H230: 0 | I230: 0 | J230: 0 | K230: 0 | L230: 0 | M230: 0 | N230: 0 | O230: 0 | P230: 0 | Q230: 0 | R230: 0 | S230: 0 | T230: 0 | U230: 0 | V230: 0 | W230: 0 | X230: 0 | Y230: 0 | Z230: 0 | AA230: 0 | AB230: 0 | AC230: 0 | AD230: 0 | AE230: 0 | AF230: 0 | AG230: 0 | AH230: 0 | AI230: 0 | AJ230: 0 | AK230: 0 | AL230: 0 | AM230: 0 | AN230: 0 | AO230: 0 | AP230: 0 | AQ230: 0 | AR230: 0 | AS230: 0 | AT230: 0 | AU230: 0 | AV230: 0 | AW230: 0 | AX230: 0 | AY230: 0 | AZ230: 0
D231: ='Efficiency Levels'!C128 -> EL8 | E231: ='Efficiency Levels'!D128 -> 9467.087066 | F231: 0 | H231: 0 | I231: 0 | J231: 0 | K231: 0 | L231: 0 | M231: 0 | N231: 0 | O231: 0 | P231: 0 | Q231: 0 | R231: 0 | S231: 0 | T231: 0 | U231: 0 | V231: 0 | W231: 0 | X231: 0 | Y231: 0 | Z231: 0 | AA231: 0 | AB231: 0 | AC231: 0 | AD231: 0 | AE231: 0 | AF231: 0 | AG231: 0 | AH231: 0 | AI231: 0 | AJ231: 0 | AK231: 0 | AL231: 0 | AM231: 0 | AN231: 0 | AO231: 0 | AP231: 0 | AQ231: 0 | AR231: 0 | AS231: 0 | AT231: 0 | AU231: 0 | AV231: 0 | AW231: 0 | AX231: 0 | AY231: 0 | AZ231: 0
D232: ='Efficiency Levels'!C129 -> EL9 | E232: ='Efficiency Levels'!D129 -> 9467.087066 | F232: 0 | H232: 0 | I232: 0 | J232: 0 | K232: 0 | L232: 0 | M232: 0 | N232: 0 | O232: 0 | P232: 0 | Q232: 0 | R232: 0 | S232: 0 | T232: 0 | U232: 0 | V232: 0 | W232: 0 | X232: 0 | Y232: 0 | Z232: 0 | AA232: 0 | AB232: 0 | AC232: 0 | AD232: 0 | AE232: 0 | AF232: 0 | AG232: 0 | AH232: 0 | AI232: 0 | AJ232: 0 | AK232: 0 | AL232: 0 | AM232: 0 | AN232: 0 | AO232: 0 | AP232: 0 | AQ232: 0 | AR232: 0 | AS232: 0 | AT232: 0 | AU232: 0 | AV232: 0 | AW232: 0 | AX232: 0 | AY232: 0 | AZ232: 0
D233: TOTAL | F233: =SUM(F223:F232) -> 1 | H233: =SUM(H223:H232) -> 1 | I233: =SUM(I223:I232) -> 1 | J233: 1 | K233: 1 | L233: 1 | M233: 1 | N233: 1 | O233: 1 | P233: 1 | Q233: 1 | R233: 1 | S233: 1 | T233: 1 | U233: 1 | V233: 1 | W233: 1 | X233: 1 | Y233: 1 | Z233: 1 | AA233: 1 | AB233: 1 | AC233: 1 | AD233: 1 | AE233: 1 | AF233: 1 | AG233: 1 | AH233: 1 | AI233: 1 | AJ233: 1 | AK233: 1 | AL233: 1 | AM233: 1 | AN233: 1 | AO233: 1 | AP233: 1 | AQ233: 1 | AR233: 1 | AS233: 1 | AT233: 1 | AU233: 1 | AV233: 1 | AW233: 1 | AX233: 1 | AY233: 1 | AZ233: 1
D235: POST-Case
D236: Efficiency Level | E236: EL (kWh/year) | H236: 1990 | I236: =H236+1 -> 1991 | J236: =I236+1 -> 1992 | K236: =J236+1 -> 1993 | L236: =K236+1 -> 1994 | M236: =L236+1 -> 1995 | N236: =M236+1 -> 1996 | O236: =N236+1 -> 1997 | P236: =O236+1 -> 1998 | Q236: =P236+1 -> 1999 | R236: =Q236+1 -> 2000 | S236: =R236+1 -> 2001 | T236: =S236+1 -> 2002 | U236: =T236+1 -> 2003 | V236: =U236+1 -> 2004 | W236: =V236+1 -> 2005 | X236: =X222 -> 2006 | Y236: 2007 | Z236: 2008 | AA236: 2009 | AB236: 2010 | AC236: 2011 | AD236: 2012 | AE236: 2013 | AF236: 2014 | AG236: 2015 | AH236: 2016 | AI236: 2017 | AJ236: 2018 | AK236: 2019 | AL236: 2020 | AM236: 2021 | AN236: 2022 | AO236: 2023 | AP236: 2024 | AQ236: 2025 | AR236: 2026 | AS236: 2027 | AT236: 2028 | AU236: 2029 | AV236: 2030 | AW236: 2031 | AX236: 2032 | AY236: 2033 | AZ236: 2034
D237: =D223 -> EL0 | E237: =E223 -> 19856.60125 | H237: =H223 -> 1 | I237: 1 | J237: 1 | K237: 1 | L237: 1 | M237: 1 | N237: 1 | O237: 1 | P237: 1 | Q237: 1 | R237: 1 | S237: 1 | T237: 1 | U237: 1 | V237: 1 | W237: 1 | X237: 1 | Y237: 1 | Z237: 1 | AA237: 1 | AB237: 1 | AC237: 1 | AD237: 0 | AE237: 0 | AF237: 0 | AG237: 0 | AH237: 0 | AI237: 0 | AJ237: 0 | AK237: 0 | AL237: 0 | AM237: 0 | AN237: 0 | AO237: 0 | AP237: 0 | AQ237: 0 | AR237: 0 | AS237: 0 | AT237: 0 | AU237: 0 | AV237: 0 | AW237: 0 | AX237: 0 | AY237: 0 | AZ237: 0
D238: =D224 -> EL1 | E238: 11226.41415 | H238: 0 | I238: 0 | J238: 0 | K238: 0 | L238: 0 | M238: 0 | N238: 0 | O238: 0 | P238: 0 | Q238: 0 | R238: 0 | S238: 0 | T238: 0 | U238: 0 | V238: 0 | W238: 0 | X238: 0 | Y238: 0 | Z238: 0 | AA238: 0 | AB238: 0 | AC238: 0 | AD238: 0 | AE238: 0 | AF238: 0 | AG238: 0 | AH238: 0 | AI238: 0 | AJ238: 0 | AK238: 0 | AL238: 0 | AM238: 0 | AN238: 0 | AO238: 0 | AP238: 0 | AQ238: 0 | AR238: 0 | AS238: 0 | AT238: 0 | AU238: 0 | AV238: 0 | AW238: 0 | AX238: 0 | AY238: 0 | AZ238: 0
D239: =D225 -> EL2 | E239: 10741.1623 | H239: 0 | I239: 0 | J239: 0 | K239: 0 | L239: 0 | M239: 0 | N239: 0 | O239: 0 | P239: 0 | Q239: 0 | R239: 0 | S239: 0 | T239: 0 | U239: 0 | V239: 0 | W239: 0 | X239: 0 | Y239: 0 | Z239: 0 | AA239: 0 | AB239: 0 | AC239: 0 | AD239: 0.6 | AE239: 0.6 | AF239: 0.6 | AG239: 0.6 | AH239: 0.6 | AI239: 0 | AJ239: 0 | AK239: 0 | AL239: 0 | AM239: 0 | AN239: 0 | AO239: 0 | AP239: 0 | AQ239: 0 | AR239: 0 | AS239: 0 | AT239: 0 | AU239: 0 | AV239: 0 | AW239: 0 | AX239: 0 | AY239: 0 | AZ239: 0
D240: =D226 -> EL3 | E240: 10124.07001 | H240: 0 | I240: 0 | J240: 0 | K240: 0 | L240: 0 | M240: 0 | N240: 0 | O240: 0 | P240: 0 | Q240: 0 | R240: 0 | S240: 0 | T240: 0 | U240: 0 | V240: 0 | W240: 0 | X240: 0 | Y240: 0 | Z240: 0 | AA240: 0 | AB240: 0 | AC240: 0 | AD240: 0.2 | AE240: 0.2 | AF240: 0.2 | AG240: 0.2 | AH240: 0.2 | AI240: 0 | AJ240: 0 | AK240: 0 | AL240: 0 | AM240: 0 | AN240: 0 | AO240: 0 | AP240: 0 | AQ240: 0 | AR240: 0 | AS240: 0 | AT240: 0 | AU240: 0 | AV240: 0 | AW240: 0 | AX240: 0 | AY240: 0 | AZ240: 0
D241: =D227 -> EL4 | E241: 9964.079975 | H241: 0 | I241: 0 | J241: 0 | K241: 0 | L241: 0 | M241: 0 | N241: 0 | O241: 0 | P241: 0 | Q241: 0 | R241: 0 | S241: 0 | T241: 0 | U241: 0 | V241: 0 | W241: 0 | X241: 0 | Y241: 0 | Z241: 0 | AA241: 0 | AB241: 0 | AC241: 0 | AD241: 0.2 | AE241: 0.2 | AF241: 0.2 | AG241: 0.2 | AH241: 0.2 | AI241: =SUM(AI223:AI227) -> 1 | AJ241: =SUM(AJ223:AJ227) -> 1 | AK241: 1 | AL241: 1 | AM241: 1 | AN241: 1 | AO241: 1 | AP241: 1 | AQ241: 1 | AR241: 1 | AS241: 1 | AT241: 1 | AU241: 1 | AV241: 1 | AW241: 1 | AX241: 1 | AY241: 1 | AZ241: 1
D242: =D228 -> EL5 | E242: 9884.887808 | H242: 0 | I242: 0 | J242: 0 | K242: 0 | L242: 0 | M242: 0 | N242: 0 | O242: 0 | P242: 0 | Q242: 0 | R242: 0 | S242: 0 | T242: 0 | U242: 0 | V242: 0 | W242: 0 | X242: 0 | Y242: 0 | Z242: 0 | AA242: 0 | AB242: 0 | AC242: 0 | AD242: 0 | AE242: 0 | AF242: 0 | AG242: 0 | AH242: 0 | AI242: =AI228 -> 0 | AJ242: 0 | AK242: 0 | AL242: 0 | AM242: 0 | AN242: 0 | AO242: 0 | AP242: 0 | AQ242: 0 | AR242: 0 | AS242: 0 | AT242: 0 | AU242: 0 | AV242: 0 | AW242: 0 | AX242: 0 | AY242: 0 | AZ242: 0
D243: =D229 -> EL6 | E243: 9467.087066 | H243: 0 | I243: 0 | J243: 0 | K243: 0 | L243: 0 | M243: 0 | N243: 0 | O243: 0 | P243: 0 | Q243: 0 | R243: 0 | S243: 0 | T243: 0 | U243: 0 | V243: 0 | W243: 0 | X243: 0 | Y243: 0 | Z243: 0 | AA243: 0 | AB243: 0 | AC243: 0 | AD243: 0 | AE243: 0 | AF243: 0 | AG243: 0 | AH243: 0 | AI243: =AI229 -> 0 | AJ243: 0 | AK243: 0 | AL243: 0 | AM243: 0 | AN243: 0 | AO243: 0 | AP243: 0 | AQ243: 0 | AR243: 0 | AS243: 0 | AT243: 0 | AU243: 0 | AV243: 0 | AW243: 0 | AX243: 0 | AY243: 0 | AZ243: 0
D244: =D230 -> EL7 | E244: 9467.087066 | H244: =H230 -> 0 | I244: 0 | J244: 0 | K244: 0 | L244: 0 | M244: 0 | N244: 0 | O244: 0 | P244: 0 | Q244: 0 | R244: 0 | S244: 0 | T244: 0 | U244: 0 | V244: 0 | W244: 0 | X244: 0 | Y244: 0 | Z244: 0 | AA244: 0 | AB244: 0 | AC244: 0 | AD244: 0 | AE244: 0 | AF244: 0 | AG244: 0 | AH244: 0 | AI244: 0 | AJ244: 0 | AK244: 0 | AL244: 0 | AM244: 0 | AN244: 0 | AO244: 0 | AP244: 0 | AQ244: 0 | AR244: 0 | AS244: 0 | AT244: 0 | AU244: 0 | AV244: 0 | AW244: 0 | AX244: 0 | AY244: 0 | AZ244: 0
D245: =D231 -> EL8 | E245: 9467.087066 | H245: =H231 -> 0 | I245: 0 | J245: 0 | K245: 0 | L245: 0 | M245: 0 | N245: 0 | O245: 0 | P245: 0 | Q245: 0 | R245: 0 | S245: 0 | T245: 0 | U245: 0 | V245: 0 | W245: 0 | X245: 0 | Y245: 0 | Z245: 0 | AA245: 0 | AB245: 0 | AC245: 0 | AD245: 0 | AE245: 0 | AF245: 0 | AG245: 0 | AH245: 0 | AI245: 0 | AJ245: 0 | AK245: 0 | AL245: 0 | AM245: 0 | AN245: 0 | AO245: 0 | AP245: 0 | AQ245: 0 | AR245: 0 | AS245: 0 | AT245: 0 | AU245: 0 | AV245: 0 | AW245: 0 | AX245: 0 | AY245: 0 | AZ245: 0
D246: =D232 -> EL9 | E246: 9467.087066 | H246: =H232 -> 0 | I246: 0 | J246: 0 | K246: 0 | L246: 0 | M246: 0 | N246: 0 | O246: 0 | P246: 0 | Q246: 0 | R246: 0 | S246: 0 | T246: 0 | U246: 0 | V246: 0 | W246: 0 | X246: 0 | Y246: 0 | Z246: 0 | AA246: 0 | AB246: 0 | AC246: 0 | AD246: 0 | AE246: 0 | AF246: 0 | AG246: 0 | AH246: 0 | AI246: 0 | AJ246: 0 | AK246: 0 | AL246: 0 | AM246: 0 | AN246: 0 | AO246: 0 | AP246: 0 | AQ246: 0 | AR246: 0 | AS246: 0 | AT246: 0 | AU246: 0 | AV246: 0 | AW246: 0 | AX246: 0 | AY246: 0 | AZ246: 0
D247: TOTAL | H247: =SUM(H237:H246) -> 1 | I247: =SUM(I237:I246) -> 1 | J247: 1 | K247: 1 | L247: 1 | M247: 1 | N247: 1 | O247: 1 | P247: 1 | Q247: 1 | R247: 1 | S247: 1 | T247: 1 | U247: 1 | V247: 1 | W247: 1 | X247: 1 | Y247: 1 | Z247: 1 | AA247: 1 | AB247: 1 | AC247: 1 | AD247: 1 | AE247: 1 | AF247: 1 | AG247: 1 | AH247: 1 | AI247: 1 | AJ247: 1 | AK247: 1 | AL247: 1 | AM247: 1 | AN247: 1 | AO247: 1 | AP247: 1 | AQ247: 1 | AR247: 1 | AS247: 1 | AT247: 1 | AU247: 1 | AV247: 1 | AW247: 1 | AX247: 1 | AY247: 1 | AZ247: 1
D249: Sources | E249: DOE Commercial Refrigeration Equipment 2014 Final Rule, Technical Support Document: Final Rule National Impact Analysis Spreadsheet, 'Market Share Inputs' tab, cells AP3:AX35, http://www.regulations.gov/#!documentDetail;D=EERE-2010-BT-STD-0003-0101
D254: ='Product Classes'!O17 -> SOC.RC.M
... 495 more rows

Sheet Shipments and Stock
C2: Shipments and Stock
C4: =Navigation!$C$15 -> NAVIGATION
C6: COMMENTS
C8: Building Type
C9: =RESULTS!C9 -> TOTAL
C12: Commercial_Refrigeration_Equipment
E13: 1987 | F13: 1988 | G13: 1989 | H13: 1990 | I13: 1991 | J13: 1992 | K13: 1993 | L13: 1994 | M13: 1995 | N13: 1996 | O13: 1997 | P13: 1998 | Q13: 1999 | R13: 2000 | S13: 2001 | T13: 2002 | U13: 2003 | V13: 2004 | W13: 2005 | X13: 2006 | Y13: 2007 | Z13: 2008 | AA13: 2009 | AB13: 2010 | AC13: 2011 | AD13: 2012 | AE13: 2013 | AF13: 2014 | AG13: 2015 | AH13: 2016 | AI13: 2017 | AJ13: 2018 | AK13: 2019 | AL13: 2020 | AM13: 2021 | AN13: 2022 | AO13: 2023 | AP13: 2024 | AQ13: 2025 | AR13: 2026 | AS13: 2027 | AT13: 2028 | AU13: 2029 | AV13: 2030 | AW13: 2031 | AX13: 2032 | AY13: 2033 | AZ13: 2034
C14: 6P Shipments | D14: (units) | E14: pre-dates plan | F14: pre-dates plan | G14: pre-dates plan | H14: pre-dates plan | I14: pre-dates plan | J14: pre-dates plan | K14: pre-dates plan | L14: pre-dates plan | M14: pre-dates plan | N14: pre-dates plan | O14: pre-dates plan | P14: pre-dates plan | Q14: pre-dates plan | R14: pre-dates plan | S14: pre-dates plan | T14: pre-dates plan | U14: pre-dates plan | V14: pre-dates plan | W14: pre-dates plan | X14: pre-dates plan | Y14: pre-dates plan | Z14: pre-dates plan | AA14: pre-dates plan | AB14: =INDEX('[1]6P Shipments'!$D$11:$L$35,MATCH(AB$13,'[1]6P Shipments'!$C$11:$C$35,0),MATCH($C$12,'[1]6P Shipments'!$D$10:$L$10,0)) -> 32423.47384 | AC14: =INDEX('[1]6P Shipments'!$D$11:$L$35,MATCH(AC$13,'[1]6P Shipments'!$C$11:$C$35,0),MATCH($C$12,'[1]6P Shipments'!$D$10:$L$10,0)) -> 33169.23295 | AD14: =INDEX('[1]6P Shipments'!$D$11:$L$35,MATCH(AD$13,'[1]6P Shipments'!$C$11:$C$35,0),MATCH($C$12,'[1]6P Shipments'!$D$10:$L$10,0)) -> 33900.85665 | AE14: =INDEX('[1]6P Shipments'!$D$11:$L$35,MATCH(AE$13,'[1]6P Shipments'!$C$11:$C$35,0),MATCH($C$12,'[1]6P Shipments'!$D$10:$L$10,0)) -> 34594.50158 | AF14: =INDEX('[1]6P Shipments'!$D$11:$L$35,MATCH(AF$13,'[1]6P Shipments'!$C$11:$C$35,0),MATCH($C$12,'[1]6P Shipments'!$D$10:$L$10,0)) -> 35130.62555 | AG14: =INDEX('[1]6P Shipments'!$D$11:$L$35,MATCH(AG$13,'[1]6P Shipments'!$C$11:$C$35,0),MATCH($C$12,'[1]6P Shipments'!$D$10:$L$10,0)) -> 35603.64591 | AH14: =INDEX('[1]6P Shipments'!$D$11:$L$35,MATCH(AH$13,'[1]6P Shipments'!$C$11:$C$35,0),MATCH($C$12,'[1]6P Shipments'!$D$10:$L$10,0)) -> 36026.39006 | AI14: =INDEX('[1]6P Shipments'!$D$11:$L$35,MATCH(AI$13,'[1]6P Shipments'!$C$11:$C$35,0),MATCH($C$12,'[1]6P Shipments'!$D$10:$L$10,0)) -> 36410.70553 | AJ14: =INDEX('[1]6P Shipments'!$D$11:$L$35,MATCH(AJ$13,'[1]6P Shipments'!$C$11:$C$35,0),MATCH($C$12,'[1]6P Shipments'!$D$10:$L$10,0)) -> 36769.89466 | AK14: =INDEX('[1]6P Shipments'!$D$11:$L$35,MATCH(AK$13,'[1]6P Shipments'!$C$11:$C$35,0),MATCH($C$12,'[1]6P Shipments'!$D$10:$L$10,0)) -> 37110.80192 | AL14: =INDEX('[1]6P Shipments'!$D$11:$L$35,MATCH(AL$13,'[1]6P Shipments'!$C$11:$C$35,0),MATCH($C$12,'[1]6P Shipments'!$D$10:$L$10,0)) -> 37442.5852 | AM14: =INDEX('[1]6P Shipments'!$D$11:$L$35,MATCH(AM$13,'[1]6P Shipments'!$C$11:$C$35,0),MATCH($C$12,'[1]6P Shipments'!$D$10:$L$10,0)) -> 37766.59242 | AN14: =INDEX('[1]6P Shipments'!$D$11:$L$35,MATCH(AN$13,'[1]6P Shipments'!$C$11:$C$35,0),MATCH($C$12,'[1]6P Shipments'!$D$10:$L$10,0)) -> 38075.07965 | AO14: =INDEX('[1]6P Shipments'!$D$11:$L$35,MATCH(AO$13,'[1]6P Shipments'!$C$11:$C$35,0),MATCH($C$12,'[1]6P Shipments'!$D$10:$L$10,0)) -> 38365.04573 | AP14: =INDEX('[1]6P Shipments'!$D$11:$L$35,MATCH(AP$13,'[1]6P Shipments'!$C$11:$C$35,0),MATCH($C$12,'[1]6P Shipments'!$D$10:$L$10,0)) -> 38643.70662 | AQ14: =INDEX('[1]6P Shipments'!$D$11:$L$35,MATCH(AQ$13,'[1]6P Shipments'!$C$11:$C$35,0),MATCH($C$12,'[1]6P Shipments'!$D$10:$L$10,0)) -> 38925.15339 | AR14: =INDEX('[1]6P Shipments'!$D$11:$L$35,MATCH(AR$13,'[1]6P Shipments'!$C$11:$C$35,0),MATCH($C$12,'[1]6P Shipments'!$D$10:$L$10,0)) -> 39220.5789 | AS14: =INDEX('[1]6P Shipments'!$D$11:$L$35,MATCH(AS$13,'[1]6P Shipments'!$C$11:$C$35,0),MATCH($C$12,'[1]6P Shipments'!$D$10:$L$10,0)) -> 39536.59837 | AT14: =INDEX('[1]6P Shipments'!$D$11:$L$35,MATCH(AT$13,'[1]6P Shipments'!$C$11:$C$35,0),MATCH($C$12,'[1]6P Shipments'!$D$10:$L$10,0)) -> 39877.38137 | AU14: =INDEX('[1]6P Shipments'!$D$11:$L$35,MATCH(AU$13,'[1]6P Shipments'!$C$11:$C$35,0),MATCH($C$12,'[1]6P Shipments'!$D$10:$L$10,0)) -> 40240.70422 | AV14: =INDEX('[1]6P Shipments'!$D$11:$L$35,MATCH(AV$13,'[1]6P Shipments'!$C$11:$C$35,0),MATCH($C$12,'[1]6P Shipments'!$D$10:$L$10,0)) -> 40620.45563 | AW14: =INDEX('[1]6P Shipments'!$D$11:$L$35,MATCH(AW$13,'[1]6P Shipments'!$C$11:$C$35,0),MATCH($C$12,'[1]6P Shipments'!$D$10:$L$10,0)) -> 40620.45563 | AX14: =INDEX('[1]6P Shipments'!$D$11:$L$35,MATCH(AX$13,'[1]6P Shipments'!$C$11:$C$35,0),MATCH($C$12,'[1]6P Shipments'!$D$10:$L$10,0)) -> 40620.45563 | AY14: =INDEX('[1]6P Shipments'!$D$11:$L$35,MATCH(AY$13,'[1]6P Shipments'!$C$11:$C$35,0),MATCH($C$12,'[1]6P Shipments'!$D$10:$L$10,0)) -> 40620.45563 | AZ14: =INDEX('[1]6P Shipments'!$D$11:$L$35,MATCH(AZ$13,'[1]6P Shipments'!$C$11:$C$35,0),MATCH($C$12,'[1]6P Shipments'!$D$10:$L$10,0)) -> 40620.45563
C15: Replacement Shipments | D15: (units) | E15: =OFFSET(INDEX('[1]SHIPMENTS - TOTAL'!$E$8:$BF$467,MATCH($C$12,'[1]SHIPMENTS - TOTAL'!$C$8:$C$25,0),MATCH(E$13,'[1]SHIPMENTS - TOTAL'!$E$7:$BF$7,0)),MATCH($C$9,'[1]SHIPMENTS - TOTAL'!$D$2:$D$467,0)-1,0) ->  | F15: =OFFSET(INDEX('[1]SHIPMENTS - TOTAL'!$E$8:$BF$467,MATCH($C$12,'[1]SHIPMENTS - TOTAL'!$C$8:$C$25,0),MATCH(F$13,'[1]SHIPMENTS - TOTAL'!$E$7:$BF$7,0)),MATCH($C$9,'[1]SHIPMENTS - TOTAL'!$D$2:$D$467,0)-1,0) ->  | G15: =OFFSET(INDEX('[1]SHIPMENTS - TOTAL'!$E$8:$BF$467,MATCH($C$12,'[1]SHIPMENTS - TOTAL'!$C$8:$C$25,0),MATCH(G$13,'[1]SHIPMENTS - TOTAL'!$E$7:$BF$7,0)),MATCH($C$9,'[1]SHIPMENTS - TOTAL'!$D$2:$D$467,0)-1,0) ->  | H15: =OFFSET(INDEX('[1]SHIPMENTS - TOTAL'!$E$8:$BF$467,MATCH($C$12,'[1]SHIPMENTS - TOTAL'!$C$8:$C$25,0),MATCH(H$13,'[1]SHIPMENTS - TOTAL'!$E$7:$BF$7,0)),MATCH($C$9,'[1]SHIPMENTS - TOTAL'!$D$2:$D$467,0)-1,0) ->  | I15: =OFFSET(INDEX('[1]SHIPMENTS - TOTAL'!$E$8:$BF$467,MATCH($C$12,'[1]SHIPMENTS - TOTAL'!$C$8:$C$25,0),MATCH(I$13,'[1]SHIPMENTS - TOTAL'!$E$7:$BF$7,0)),MATCH($C$9,'[1]SHIPMENTS - TOTAL'!$D$2:$D$467,0)-1,0) ->  | J15: =OFFSET(INDEX('[1]SHIPMENTS - TOTAL'!$E$8:$BF$467,MATCH($C$12,'[1]SHIPMENTS - TOTAL'!$C$8:$C$25,0),MATCH(J$13,'[1]SHIPMENTS - TOTAL'!$E$7:$BF$7,0)),MATCH($C$9,'[1]SHIPMENTS - TOTAL'!$D$2:$D$467,0)-1,0) ->  | K15: =OFFSET(INDEX('[1]SHIPMENTS - TOTAL'!$E$8:$BF$467,MATCH($C$12,'[1]SHIPMENTS - TOTAL'!$C$8:$C$25,0),MATCH(K$13,'[1]SHIPMENTS - TOTAL'!$E$7:$BF$7,0)),MATCH($C$9,'[1]SHIPMENTS - TOTAL'!$D$2:$D$467,0)-1,0) ->  | L15: =OFFSET(INDEX('[1]SHIPMENTS - TOTAL'!$E$8:$BF$467,MATCH($C$12,'[1]SHIPMENTS - TOTAL'!$C$8:$C$25,0),MATCH(L$13,'[1]SHIPMENTS - TOTAL'!$E$7:$BF$7,0)),MATCH($C$9,'[1]SHIPMENTS - TOTAL'!$D$2:$D$467,0)-1,0) ->  | M15: =OFFSET(INDEX('[1]SHIPMENTS - TOTAL'!$E$8:$BF$467,MATCH($C$12,'[1]SHIPMENTS - TOTAL'!$C$8:$C$25,0),MATCH(M$13,'[1]SHIPMENTS - TOTAL'!$E$7:$BF$7,0)),MATCH($C$9,'[1]SHIPMENTS - TOTAL'!$D$2:$D$467,0)-1,0) ->  | N15: =OFFSET(INDEX('[1]SHIPMENTS - TOTAL'!$E$8:$BF$467,MATCH($C$12,'[1]SHIPMENTS - TOTAL'!$C$8:$C$25,0),MATCH(N$13,'[1]SHIPMENTS - TOTAL'!$E$7:$BF$7,0)),MATCH($C$9,'[1]SHIPMENTS - TOTAL'!$D$2:$D$467,0)-1,0) ->  | O15: =OFFSET(INDEX('[1]SHIPMENTS - TOTAL'!$E$8:$BF$467,MATCH($C$12,'[1]SHIPMENTS - TOTAL'!$C$8:$C$25,0),MATCH(O$13,'[1]SHIPMENTS - TOTAL'!$E$7:$BF$7,0)),MATCH($C$9,'[1]SHIPMENTS - TOTAL'!$D$2:$D$467,0)-1,0) ->  | P15: =OFFSET(INDEX('[1]SHIPMENTS - TOTAL'!$E$8:$BF$467,MATCH($C$12,'[1]SHIPMENTS - TOTAL'!$C$8:$C$25,0),MATCH(P$13,'[1]SHIPMENTS - TOTAL'!$E$7:$BF$7,0)),MATCH($C$9,'[1]SHIPMENTS - TOTAL'!$D$2:$D$467,0)-1,0) ->  | Q15: =OFFSET(INDEX('[1]SHIPMENTS - TOTAL'!$E$8:$BF$467,MATCH($C$12,'[1]SHIPMENTS - TOTAL'!$C$8:$C$25,0),MATCH(Q$13,'[1]SHIPMENTS - TOTAL'!$E$7:$BF$7,0)),MATCH($C$9,'[1]SHIPMENTS - TOTAL'!$D$2:$D$467,0)-1,0) ->  | R15: =OFFSET(INDEX('[1]SHIPMENTS - TOTAL'!$E$8:$BF$467,MATCH($C$12,'[1]SHIPMENTS - TOTAL'!$C$8:$C$25,0),MATCH(R$13,'[1]SHIPMENTS - TOTAL'!$E$7:$BF$7,0)),MATCH($C$9,'[1]SHIPMENTS - TOTAL'!$D$2:$D$467,0)-1,0) ->  | S15: =OFFSET(INDEX('[1]SHIPMENTS - TOTAL'!$E$8:$BF$467,MATCH($C$12,'[1]SHIPMENTS - TOTAL'!$C$8:$C$25,0),MATCH(S$13,'[1]SHIPMENTS - TOTAL'!$E$7:$BF$7,0)),MATCH($C$9,'[1]SHIPMENTS - TOTAL'!$D$2:$D$467,0)-1,0) ->  | T15: =OFFSET(INDEX('[1]SHIPMENTS - TOTAL'!$E$8:$BF$467,MATCH($C$12,'[1]SHIPMENTS - TOTAL'!$C$8:$C$25,0),MATCH(T$13,'[1]SHIPMENTS - TOTAL'!$E$7:$BF$7,0)),MATCH($C$9,'[1]SHIPMENTS - TOTAL'!$D$2:$D$467,0)-1,0) ->  | U15: =OFFSET(INDEX('[1]SHIPMENTS - TOTAL'!$E$8:$BF$467,MATCH($C$12,'[1]SHIPMENTS - TOTAL'!$C$8:$C$25,0),MATCH(U$13,'[1]SHIPMENTS - TOTAL'!$E$7:$BF$7,0)),MATCH($C$9,'[1]SHIPMENTS - TOTAL'!$D$2:$D$467,0)-1,0) ->  | V15: =OFFSET(INDEX('[1]SHIPMENTS - TOTAL'!$E$8:$BF$467,MATCH($C$12,'[1]SHIPMENTS - TOTAL'!$C$8:$C$25,0),MATCH(V$13,'[1]SHIPMENTS - TOTAL'!$E$7:$BF$7,0)),MATCH($C$9,'[1]SHIPMENTS - TOTAL'!$D$2:$D$467,0)-1,0) ->  | W15: =OFFSET(INDEX('[1]SHIPMENTS - TOTAL'!$E$8:$BF$467,MATCH($C$12,'[1]SHIPMENTS - TOTAL'!$C$8:$C$25,0),MATCH(W$13,'[1]SHIPMENTS - TOTAL'!$E$7:$BF$7,0)),MATCH($C$9,'[1]SHIPMENTS - TOTAL'!$D$2:$D$467,0)-1,0) ->  | X15: =OFFSET(INDEX('[1]SHIPMENTS - TOTAL'!$E$8:$BF$467,MATCH($C$12,'[1]SHIPMENTS - TOTAL'!$C$8:$C$25,0),MATCH(X$13,'[1]SHIPMENTS - TOTAL'!$E$7:$BF$7,0)),MATCH($C$9,'[1]SHIPMENTS - TOTAL'!$D$2:$D$467,0)-1,0) ->  | Y15: =OFFSET(INDEX('[1]SHIPMENTS - TOTAL'!$E$8:$BF$467,MATCH($C$12,'[1]SHIPMENTS - TOTAL'!$C$8:$C$25,0),MATCH(Y$13,'[1]SHIPMENTS - TOTAL'!$E$7:$BF$7,0)),MATCH($C$9,'[1]SHIPMENTS - TOTAL'!$D$2:$D$467,0)-1,0) ->  | Z15: =OFFSET(INDEX('[1]SHIPMENTS - TOTAL'!$E$8:$BF$467,MATCH($C$12,'[1]SHIPMENTS - TOTAL'!$C$8:$C$25,0),MATCH(Z$13,'[1]SHIPMENTS - TOTAL'!$E$7:$BF$7,0)),MATCH($C$9,'[1]SHIPMENTS - TOTAL'!$D$2:$D$467,0)-1,0) ->  | AA15: =OFFSET(INDEX('[1]SHIPMENTS - TOTAL'!$E$8:$BF$467,MATCH($C$12,'[1]SHIPMENTS - TOTAL'!$C$8:$C$25,0),MATCH(AA$13,'[1]SHIPMENTS - TOTAL'!$E$7:$BF$7,0)),MATCH($C$9,'[1]SHIPMENTS - TOTAL'!$D$2:$D$467,0)-1,0) ->  | AB15: =OFFSET(INDEX('[1]SHIPMENTS - TOTAL'!$E$8:$BF$467,MATCH($C$12,'[1]SHIPMENTS - TOTAL'!$C$8:$C$25,0),MATCH(AB$13,'[1]SHIPMENTS - TOTAL'!$E$7:$BF$7,0)),MATCH($C$9,'[1]SHIPMENTS - TOTAL'!$D$2:$D$467,0)-1,0) ->  | AC15: =OFFSET(INDEX('[1]SHIPMENTS - TOTAL'!$E$8:$BF$467,MATCH($C$12,'[1]SHIPMENTS - TOTAL'!$C$8:$C$25,0),MATCH(AC$13,'[1]SHIPMENTS - TOTAL'!$E$7:$BF$7,0)),MATCH($C$9,'[1]SHIPMENTS - TOTAL'!$D$2:$D$467,0)-1,0) ->  | AD15: =OFFSET(INDEX('[1]SHIPMENTS - TOTAL'!$E$8:$BF$467,MATCH($C$12,'[1]SHIPMENTS - TOTAL'!$C$8:$C$25,0),MATCH(AD$13,'[1]SHIPMENTS - TOTAL'!$E$7:$BF$7,0)),MATCH($C$9,'[1]SHIPMENTS - TOTAL'!$D$2:$D$467,0)-1,0) ->  | AE15: =OFFSET(INDEX('[1]SHIPMENTS - TOTAL'!$E$8:$BF$467,MATCH($C$12,'[1]SHIPMENTS - TOTAL'!$C$8:$C$25,0),MATCH(AE$13,'[1]SHIPMENTS - TOTAL'!$E$7:$BF$7,0)),MATCH($C$9,'[1]SHIPMENTS - TOTAL'!$D$2:$D$467,0)-1,0) ->  | AF15: =OFFSET(INDEX('[1]SHIPMENTS - TOTAL'!$E$8:$BF$467,MATCH($C$12,'[1]SHIPMENTS - TOTAL'!$C$8:$C$25,0),MATCH(AF$13,'[1]SHIPMENTS - TOTAL'!$E$7:$BF$7,0)),MATCH($C$9,'[1]SHIPMENTS - TOTAL'!$D$2:$D$467,0)-1,0) ->  | AG15: =OFFSET(INDEX('[1]SHIPMENTS - TOTAL'!$E$8:$BF$467,MATCH($C$12,'[1]SHIPMENTS - TOTAL'!$C$8:$C$25,0),MATCH(AG$13,'[1]SHIPMENTS - TOTAL'!$E$7:$BF$7,0)),MATCH($C$9,'[1]SHIPMENTS - TOTAL'!$D$2:$D$467,0)-1,0) ->  | AH15: =OFFSET(INDEX('[1]SHIPMENTS - TOTAL'!$E$8:$BF$467,MATCH($C$12,'[1]SHIPMENTS - TOTAL'!$C$8:$C$25,0),MATCH(AH$13,'[1]SHIPMENTS - TOTAL'!$E$7:$BF$7,0)),MATCH($C$9,'[1]SHIPMENTS - TOTAL'!$D$2:$D$467,0)-1,0) ->  | AI15: =OFFSET(INDEX('[1]SHIPMENTS - TOTAL'!$E$8:$BF$467,MATCH($C$12,'[1]SHIPMENTS - TOTAL'!$C$8:$C$25,0),MATCH(AI$13,'[1]SHIPMENTS - TOTAL'!$E$7:$BF$7,0)),MATCH($C$9,'[1]SHIPMENTS - TOTAL'!$D$2:$D$467,0)-1,0) ->  | AJ15: =OFFSET(INDEX('[1]SHIPMENTS - TOTAL'!$E$8:$BF$467,MATCH($C$12,'[1]SHIPMENTS - TOTAL'!$C$8:$C$25,0),MATCH(AJ$13,'[1]SHIPMENTS - TOTAL'!$E$7:$BF$7,0)),MATCH($C$9,'[1]SHIPMENTS - TOTAL'!$D$2:$D$467,0)-1,0) ->  | AK15: =OFFSET(INDEX('[1]SHIPMENTS - TOTAL'!$E$8:$BF$467,MATCH($C$12,'[1]SHIPMENTS - TOTAL'!$C$8:$C$25,0),MATCH(AK$13,'[1]SHIPMENTS - TOTAL'!$E$7:$BF$7,0)),MATCH($C$9,'[1]SHIPMENTS - TOTAL'!$D$2:$D$467,0)-1,0) ->  | AL15: =OFFSET(INDEX('[1]SHIPMENTS - TOTAL'!$E$8:$BF$467,MATCH($C$12,'[1]SHIPMENTS - TOTAL'!$C$8:$C$25,0),MATCH(AL$13,'[1]SHIPMENTS - TOTAL'!$E$7:$BF$7,0)),MATCH($C$9,'[1]SHIPMENTS - TOTAL'!$D$2:$D$467,0)-1,0) ->  | AM15: =OFFSET(INDEX('[1]SHIPMENTS - TOTAL'!$E$8:$BF$467,MATCH($C$12,'[1]SHIPMENTS - TOTAL'!$C$8:$C$25,0),MATCH(AM$13,'[1]SHIPMENTS - TOTAL'!$E$7:$BF$7,0)),MATCH($C$9,'[1]SHIPMENTS - TOTAL'!$D$2:$D$467,0)-1,0) ->  | AN15: =OFFSET(INDEX('[1]SHIPMENTS - TOTAL'!$E$8:$BF$467,MATCH($C$12,'[1]SHIPMENTS - TOTAL'!$C$8:$C$25,0),MATCH(AN$13,'[1]SHIPMENTS - TOTAL'!$E$7:$BF$7,0)),MATCH($C$9,'[1]SHIPMENTS - TOTAL'!$D$2:$D$467,0)-1,0) ->  | AO15: =OFFSET(INDEX('[1]SHIPMENTS - TOTAL'!$E$8:$BF$467,MATCH($C$12,'[1]SHIPMENTS - TOTAL'!$C$8:$C$25,0),MATCH(AO$13,'[1]SHIPMENTS - TOTAL'!$E$7:$BF$7,0)),MATCH($C$9,'[1]SHIPMENTS - TOTAL'!$D$2:$D$467,0)-1,0) ->  | AP15: =OFFSET(INDEX('[1]SHIPMENTS - TOTAL'!$E$8:$BF$467,MATCH($C$12,'[1]SHIPMENTS - TOTAL'!$C$8:$C$25,0),MATCH(AP$13,'[1]SHIPMENTS - TOTAL'!$E$7:$BF$7,0)),MATCH($C$9,'[1]SHIPMENTS - TOTAL'!$D$2:$D$467,0)-1,0) ->  | AQ15: =OFFSET(INDEX('[1]SHIPMENTS - TOTAL'!$E$8:$BF$467,MATCH($C$12,'[1]SHIPMENTS - TOTAL'!$C$8:$C$25,0),MATCH(AQ$13,'[1]SHIPMENTS - TOTAL'!$E$7:$BF$7,0)),MATCH($C$9,'[1]SHIPMENTS - TOTAL'!$D$2:$D$467,0)-1,0) ->  | AR15: =OFFSET(INDEX('[1]SHIPMENTS - TOTAL'!$E$8:$BF$467,MATCH($C$12,'[1]SHIPMENTS - TOTAL'!$C$8:$C$25,0),MATCH(AR$13,'[1]SHIPMENTS - TOTAL'!$E$7:$BF$7,0)),MATCH($C$9,'[1]SHIPMENTS - TOTAL'!$D$2:$D$467,0)-1,0) ->  | AS15: =OFFSET(INDEX('[1]SHIPMENTS - TOTAL'!$E$8:$BF$467,MATCH($C$12,'[1]SHIPMENTS - TOTAL'!$C$8:$C$25,0),MATCH(AS$13,'[1]SHIPMENTS - TOTAL'!$E$7:$BF$7,0)),MATCH($C$9,'[1]SHIPMENTS - TOTAL'!$D$2:$D$467,0)-1,0) ->  | AT15: =OFFSET(INDEX('[1]SHIPMENTS - TOTAL'!$E$8:$BF$467,MATCH($C$12,'[1]SHIPMENTS - TOTAL'!$C$8:$C$25,0),MATCH(AT$13,'[1]SHIPMENTS - TOTAL'!$E$7:$BF$7,0)),MATCH($C$9,'[1]SHIPMENTS - TOTAL'!$D$2:$D$467,0)-1,0) ->  | AU15: =OFFSET(INDEX('[1]SHIPMENTS - TOTAL'!$E$8:$BF$467,MATCH($C$12,'[1]SHIPMENTS - TOTAL'!$C$8:$C$25,0),MATCH(AU$13,'[1]SHIPMENTS - TOTAL'!$E$7:$BF$7,0)),MATCH($C$9,'[1]SHIPMENTS - TOTAL'!$D$2:$D$467,0)-1,0) ->  | AV15: =OFFSET(INDEX('[1]SHIPMENTS - TOTAL'!$E$8:$BF$467,MATCH($C$12,'[1]SHIPMENTS - TOTAL'!$C$8:$C$25,0),MATCH(AV$13,'[1]SHIPMENTS - TOTAL'!$E$7:$BF$7,0)),MATCH($C$9,'[1]SHIPMENTS - TOTAL'!$D$2:$D$467,0)-1,0) ->  | AW15: =OFFSET(INDEX('[1]SHIPMENTS - TOTAL'!$E$8:$BF$467,MATCH($C$12,'[1]SHIPMENTS - TOTAL'!$C$8:$C$25,0),MATCH(AW$13,'[1]SHIPMENTS - TOTAL'!$E$7:$BF$7,0)),MATCH($C$9,'[1]SHIPMENTS - TOTAL'!$D$2:$D$467,0)-1,0) ->  | AX15: =OFFSET(INDEX('[1]SHIPMENTS - TOTAL'!$E$8:$BF$467,MATCH($C$12,'[1]SHIPMENTS - TOTAL'!$C$8:$C$25,0),MATCH(AX$13,'[1]SHIPMENTS - TOTAL'!$E$7:$BF$7,0)),MATCH($C$9,'[1]SHIPMENTS - TOTAL'!$D$2:$D$467,0)-1,0) ->  | AY15: =OFFSET(INDEX('[1]SHIPMENTS - TOTAL'!$E$8:$BF$467,MATCH($C$12,'[1]SHIPMENTS - TOTAL'!$C$8:$C$25,0),MATCH(AY$13,'[1]SHIPMENTS - TOTAL'!$E$7:$BF$7,0)),MATCH($C$9,'[1]SHIPMENTS - TOTAL'!$D$2:$D$467,0)-1,0) ->  | AZ15: =OFFSET(INDEX('[1]SHIPMENTS - TOTAL'!$E$8:$BF$467,MATCH($C$12,'[1]SHIPMENTS - TOTAL'!$C$8:$C$25,0),MATCH(AZ$13,'[1]SHIPMENTS - TOTAL'!$E$7:$BF$7,0)),MATCH($C$9,'[1]SHIPMENTS - TOTAL'!$D$2:$D$467,0)-1,0) -> 
C16: Net New Shipments | D16: (units) | E16: =OFFSET(INDEX('[1]SHIPMENTS - TOTAL'!$E$8:$BF$467,MATCH($C$12,'[1]SHIPMENTS - TOTAL'!$C$8:$C$25,0),MATCH(E$13,'[1]SHIPMENTS - TOTAL'!$E$7:$BF$7,0)),MATCH($C$9,'[1]SHIPMENTS - TOTAL'!$D$2:$D$467,0)-1+1,0) ->  | F16: =OFFSET(INDEX('[1]SHIPMENTS - TOTAL'!$E$8:$BF$467,MATCH($C$12,'[1]SHIPMENTS - TOTAL'!$C$8:$C$25,0),MATCH(F$13,'[1]SHIPMENTS - TOTAL'!$E$7:$BF$7,0)),MATCH($C$9,'[1]SHIPMENTS - TOTAL'!$D$2:$D$467,0)-1+1,0) ->  | G16: =OFFSET(INDEX('[1]SHIPMENTS - TOTAL'!$E$8:$BF$467,MATCH($C$12,'[1]SHIPMENTS - TOTAL'!$C$8:$C$25,0),MATCH(G$13,'[1]SHIPMENTS - TOTAL'!$E$7:$BF$7,0)),MATCH($C$9,'[1]SHIPMENTS - TOTAL'!$D$2:$D$467,0)-1+1,0) ->  | H16: =OFFSET(INDEX('[1]SHIPMENTS - TOTAL'!$E$8:$BF$467,MATCH($C$12,'[1]SHIPMENTS - TOTAL'!$C$8:$C$25,0),MATCH(H$13,'[1]SHIPMENTS - TOTAL'!$E$7:$BF$7,0)),MATCH($C$9,'[1]SHIPMENTS - TOTAL'!$D$2:$D$467,0)-1+1,0) ->  | I16: =OFFSET(INDEX('[1]SHIPMENTS - TOTAL'!$E$8:$BF$467,MATCH($C$12,'[1]SHIPMENTS - TOTAL'!$C$8:$C$25,0),MATCH(I$13,'[1]SHIPMENTS - TOTAL'!$E$7:$BF$7,0)),MATCH($C$9,'[1]SHIPMENTS - TOTAL'!$D$2:$D$467,0)-1+1,0) ->  | J16: =OFFSET(INDEX('[1]SHIPMENTS - TOTAL'!$E$8:$BF$467,MATCH($C$12,'[1]SHIPMENTS - TOTAL'!$C$8:$C$25,0),MATCH(J$13,'[1]SHIPMENTS - TOTAL'!$E$7:$BF$7,0)),MATCH($C$9,'[1]SHIPMENTS - TOTAL'!$D$2:$D$467,0)-1+1,0) ->  | K16: =OFFSET(INDEX('[1]SHIPMENTS - TOTAL'!$E$8:$BF$467,MATCH($C$12,'[1]SHIPMENTS - TOTAL'!$C$8:$C$25,0),MATCH(K$13,'[1]SHIPMENTS - TOTAL'!$E$7:$BF$7,0)),MATCH($C$9,'[1]SHIPMENTS - TOTAL'!$D$2:$D$467,0)-1+1,0) ->  | L16: =OFFSET(INDEX('[1]SHIPMENTS - TOTAL'!$E$8:$BF$467,MATCH($C$12,'[1]SHIPMENTS - TOTAL'!$C$8:$C$25,0),MATCH(L$13,'[1]SHIPMENTS - TOTAL'!$E$7:$BF$7,0)),MATCH($C$9,'[1]SHIPMENTS - TOTAL'!$D$2:$D$467,0)-1+1,0) ->  | M16: =OFFSET(INDEX('[1]SHIPMENTS - TOTAL'!$E$8:$BF$467,MATCH($C$12,'[1]SHIPMENTS - TOTAL'!$C$8:$C$25,0),MATCH(M$13,'[1]SHIPMENTS - TOTAL'!$E$7:$BF$7,0)),MATCH($C$9,'[1]SHIPMENTS - TOTAL'!$D$2:$D$467,0)-1+1,0) ->  | N16: =OFFSET(INDEX('[1]SHIPMENTS - TOTAL'!$E$8:$BF$467,MATCH($C$12,'[1]SHIPMENTS - TOTAL'!$C$8:$C$25,0),MATCH(N$13,'[1]SHIPMENTS - TOTAL'!$E$7:$BF$7,0)),MATCH($C$9,'[1]SHIPMENTS - TOTAL'!$D$2:$D$467,0)-1+1,0) ->  | O16: =OFFSET(INDEX('[1]SHIPMENTS - TOTAL'!$E$8:$BF$467,MATCH($C$12,'[1]SHIPMENTS - TOTAL'!$C$8:$C$25,0),MATCH(O$13,'[1]SHIPMENTS - TOTAL'!$E$7:$BF$7,0)),MATCH($C$9,'[1]SHIPMENTS - TOTAL'!$D$2:$D$467,0)-1+1,0) ->  | P16: =OFFSET(INDEX('[1]SHIPMENTS - TOTAL'!$E$8:$BF$467,MATCH($C$12,'[1]SHIPMENTS - TOTAL'!$C$8:$C$25,0),MATCH(P$13,'[1]SHIPMENTS - TOTAL'!$E$7:$BF$7,0)),MATCH($C$9,'[1]SHIPMENTS - TOTAL'!$D$2:$D$467,0)-1+1,0) ->  | Q16: =OFFSET(INDEX('[1]SHIPMENTS - TOTAL'!$E$8:$BF$467,MATCH($C$12,'[1]SHIPMENTS - TOTAL'!$C$8:$C$25,0),MATCH(Q$13,'[1]SHIPMENTS - TOTAL'!$E$7:$BF$7,0)),MATCH($C$9,'[1]SHIPMENTS - TOTAL'!$D$2:$D$467,0)-1+1,0) ->  | R16: =OFFSET(INDEX('[1]SHIPMENTS - TOTAL'!$E$8:$BF$467,MATCH($C$12,'[1]SHIPMENTS - TOTAL'!$C$8:$C$25,0),MATCH(R$13,'[1]SHIPMENTS - TOTAL'!$E$7:$BF$7,0)),MATCH($C$9,'[1]SHIPMENTS - TOTAL'!$D$2:$D$467,0)-1+1,0) ->  | S16: =OFFSET(INDEX('[1]SHIPMENTS - TOTAL'!$E$8:$BF$467,MATCH($C$12,'[1]SHIPMENTS - TOTAL'!$C$8:$C$25,0),MATCH(S$13,'[1]SHIPMENTS - TOTAL'!$E$7:$BF$7,0)),MATCH($C$9,'[1]SHIPMENTS - TOTAL'!$D$2:$D$467,0)-1+1,0) ->  | T16: =OFFSET(INDEX('[1]SHIPMENTS - TOTAL'!$E$8:$BF$467,MATCH($C$12,'[1]SHIPMENTS - TOTAL'!$C$8:$C$25,0),MATCH(T$13,'[1]SHIPMENTS - TOTAL'!$E$7:$BF$7,0)),MATCH($C$9,'[1]SHIPMENTS - TOTAL'!$D$2:$D$467,0)-1+1,0) ->  | U16: =OFFSET(INDEX('[1]SHIPMENTS - TOTAL'!$E$8:$BF$467,MATCH($C$12,'[1]SHIPMENTS - TOTAL'!$C$8:$C$25,0),MATCH(U$13,'[1]SHIPMENTS - TOTAL'!$E$7:$BF$7,0)),MATCH($C$9,'[1]SHIPMENTS - TOTAL'!$D$2:$D$467,0)-1+1,0) ->  | V16: =OFFSET(INDEX('[1]SHIPMENTS - TOTAL'!$E$8:$BF$467,MATCH($C$12,'[1]SHIPMENTS - TOTAL'!$C$8:$C$25,0),MATCH(V$13,'[1]SHIPMENTS - TOTAL'!$E$7:$BF$7,0)),MATCH($C$9,'[1]SHIPMENTS - TOTAL'!$D$2:$D$467,0)-1+1,0) ->  | W16: =OFFSET(INDEX('[1]SHIPMENTS - TOTAL'!$E$8:$BF$467,MATCH($C$12,'[1]SHIPMENTS - TOTAL'!$C$8:$C$25,0),MATCH(W$13,'[1]SHIPMENTS - TOTAL'!$E$7:$BF$7,0)),MATCH($C$9,'[1]SHIPMENTS - TOTAL'!$D$2:$D$467,0)-1+1,0) ->  | X16: =OFFSET(INDEX('[1]SHIPMENTS - TOTAL'!$E$8:$BF$467,MATCH($C$12,'[1]SHIPMENTS - TOTAL'!$C$8:$C$25,0),MATCH(X$13,'[1]SHIPMENTS - TOTAL'!$E$7:$BF$7,0)),MATCH($C$9,'[1]SHIPMENTS - TOTAL'!$D$2:$D$467,0)-1+1,0) ->  | Y16: =OFFSET(INDEX('[1]SHIPMENTS - TOTAL'!$E$8:$BF$467,MATCH($C$12,'[1]SHIPMENTS - TOTAL'!$C$8:$C$25,0),MATCH(Y$13,'[1]SHIPMENTS - TOTAL'!$E$7:$BF$7,0)),MATCH($C$9,'[1]SHIPMENTS - TOTAL'!$D$2:$D$467,0)-1+1,0) ->  | Z16: =OFFSET(INDEX('[1]SHIPMENTS - TOTAL'!$E$8:$BF$467,MATCH($C$12,'[1]SHIPMENTS - TOTAL'!$C$8:$C$25,0),MATCH(Z$13,'[1]SHIPMENTS - TOTAL'!$E$7:$BF$7,0)),MATCH($C$9,'[1]SHIPMENTS - TOTAL'!$D$2:$D$467,0)-1+1,0) ->  | AA16: =OFFSET(INDEX('[1]SHIPMENTS - TOTAL'!$E$8:$BF$467,MATCH($C$12,'[1]SHIPMENTS - TOTAL'!$C$8:$C$25,0),MATCH(AA$13,'[1]SHIPMENTS - TOTAL'!$E$7:$BF$7,0)),MATCH($C$9,'[1]SHIPMENTS - TOTAL'!$D$2:$D$467,0)-1+1,0) ->  | AB16: =OFFSET(INDEX('[1]SHIPMENTS - TOTAL'!$E$8:$BF$467,MATCH($C$12,'[1]SHIPMENTS - TOTAL'!$C$8:$C$25,0),MATCH(AB$13,'[1]SHIPMENTS - TOTAL'!$E$7:$BF$7,0)),MATCH($C$9,'[1]SHIPMENTS - TOTAL'!$D$2:$D$467,0)-1+1,0) ->  | AC16: =OFFSET(INDEX('[1]SHIPMENTS - TOTAL'!$E$8:$BF$467,MATCH($C$12,'[1]SHIPMENTS - TOTAL'!$C$8:$C$25,0),MATCH(AC$13,'[1]SHIPMENTS - TOTAL'!$E$7:$BF$7,0)),MATCH($C$9,'[1]SHIPMENTS - TOTAL'!$D$2:$D$467,0)-1+1,0) ->  | AD16: =OFFSET(INDEX('[1]SHIPMENTS - TOTAL'!$E$8:$BF$467,MATCH($C$12,'[1]SHIPMENTS - TOTAL'!$C$8:$C$25,0),MATCH(AD$13,'[1]SHIPMENTS - TOTAL'!$E$7:$BF$7,0)),MATCH($C$9,'[1]SHIPMENTS - TOTAL'!$D$2:$D$467,0)-1+1,0) ->  | AE16: =OFFSET(INDEX('[1]SHIPMENTS - TOTAL'!$E$8:$BF$467,MATCH($C$12,'[1]SHIPMENTS - TOTAL'!$C$8:$C$25,0),MATCH(AE$13,'[1]SHIPMENTS - TOTAL'!$E$7:$BF$7,0)),MATCH($C$9,'[1]SHIPMENTS - TOTAL'!$D$2:$D$467,0)-1+1,0) ->  | AF16: =OFFSET(INDEX('[1]SHIPMENTS - TOTAL'!$E$8:$BF$467,MATCH($C$12,'[1]SHIPMENTS - TOTAL'!$C$8:$C$25,0),MATCH(AF$13,'[1]SHIPMENTS - TOTAL'!$E$7:$BF$7,0)),MATCH($C$9,'[1]SHIPMENTS - TOTAL'!$D$2:$D$467,0)-1+1,0) ->  | AG16: =OFFSET(INDEX('[1]SHIPMENTS - TOTAL'!$E$8:$BF$467,MATCH($C$12,'[1]SHIPMENTS - TOTAL'!$C$8:$C$25,0),MATCH(AG$13,'[1]SHIPMENTS - TOTAL'!$E$7:$BF$7,0)),MATCH($C$9,'[1]SHIPMENTS - TOTAL'!$D$2:$D$467,0)-1+1,0) ->  | AH16: =OFFSET(INDEX('[1]SHIPMENTS - TOTAL'!$E$8:$BF$467,MATCH($C$12,'[1]SHIPMENTS - TOTAL'!$C$8:$C$25,0),MATCH(AH$13,'[1]SHIPMENTS - TOTAL'!$E$7:$BF$7,0)),MATCH($C$9,'[1]SHIPMENTS - TOTAL'!$D$2:$D$467,0)-1+1,0) ->  | AI16: =OFFSET(INDEX('[1]SHIPMENTS - TOTAL'!$E$8:$BF$467,MATCH($C$12,'[1]SHIPMENTS - TOTAL'!$C$8:$C$25,0),MATCH(AI$13,'[1]SHIPMENTS - TOTAL'!$E$7:$BF$7,0)),MATCH($C$9,'[1]SHIPMENTS - TOTAL'!$D$2:$D$467,0)-1+1,0) ->  | AJ16: =OFFSET(INDEX('[1]SHIPMENTS - TOTAL'!$E$8:$BF$467,MATCH($C$12,'[1]SHIPMENTS - TOTAL'!$C$8:$C$25,0),MATCH(AJ$13,'[1]SHIPMENTS - TOTAL'!$E$7:$BF$7,0)),MATCH($C$9,'[1]SHIPMENTS - TOTAL'!$D$2:$D$467,0)-1+1,0) ->  | AK16: =OFFSET(INDEX('[1]SHIPMENTS - TOTAL'!$E$8:$BF$467,MATCH($C$12,'[1]SHIPMENTS - TOTAL'!$C$8:$C$25,0),MATCH(AK$13,'[1]SHIPMENTS - TOTAL'!$E$7:$BF$7,0)),MATCH($C$9,'[1]SHIPMENTS - TOTAL'!$D$2:$D$467,0)-1+1,0) ->  | AL16: =OFFSET(INDEX('[1]SHIPMENTS - TOTAL'!$E$8:$BF$467,MATCH($C$12,'[1]SHIPMENTS - TOTAL'!$C$8:$C$25,0),MATCH(AL$13,'[1]SHIPMENTS - TOTAL'!$E$7:$BF$7,0)),MATCH($C$9,'[1]SHIPMENTS - TOTAL'!$D$2:$D$467,0)-1+1,0) ->  | AM16: =OFFSET(INDEX('[1]SHIPMENTS - TOTAL'!$E$8:$BF$467,MATCH($C$12,'[1]SHIPMENTS - TOTAL'!$C$8:$C$25,0),MATCH(AM$13,'[1]SHIPMENTS - TOTAL'!$E$7:$BF$7,0)),MATCH($C$9,'[1]SHIPMENTS - TOTAL'!$D$2:$D$467,0)-1+1,0) ->  | AN16: =OFFSET(INDEX('[1]SHIPMENTS - TOTAL'!$E$8:$BF$467,MATCH($C$12,'[1]SHIPMENTS - TOTAL'!$C$8:$C$25,0),MATCH(AN$13,'[1]SHIPMENTS - TOTAL'!$E$7:$BF$7,0)),MATCH($C$9,'[1]SHIPMENTS - TOTAL'!$D$2:$D$467,0)-1+1,0) ->  | AO16: =OFFSET(INDEX('[1]SHIPMENTS - TOTAL'!$E$8:$BF$467,MATCH($C$12,'[1]SHIPMENTS - TOTAL'!$C$8:$C$25,0),MATCH(AO$13,'[1]SHIPMENTS - TOTAL'!$E$7:$BF$7,0)),MATCH($C$9,'[1]SHIPMENTS - TOTAL'!$D$2:$D$467,0)-1+1,0) ->  | AP16: =OFFSET(INDEX('[1]SHIPMENTS - TOTAL'!$E$8:$BF$467,MATCH($C$12,'[1]SHIPMENTS - TOTAL'!$C$8:$C$25,0),MATCH(AP$13,'[1]SHIPMENTS - TOTAL'!$E$7:$BF$7,0)),MATCH($C$9,'[1]SHIPMENTS - TOTAL'!$D$2:$D$467,0)-1+1,0) ->  | AQ16: =OFFSET(INDEX('[1]SHIPMENTS - TOTAL'!$E$8:$BF$467,MATCH($C$12,'[1]SHIPMENTS - TOTAL'!$C$8:$C$25,0),MATCH(AQ$13,'[1]SHIPMENTS - TOTAL'!$E$7:$BF$7,0)),MATCH($C$9,'[1]SHIPMENTS - TOTAL'!$D$2:$D$467,0)-1+1,0) ->  | AR16: =OFFSET(INDEX('[1]SHIPMENTS - TOTAL'!$E$8:$BF$467,MATCH($C$12,'[1]SHIPMENTS - TOTAL'!$C$8:$C$25,0),MATCH(AR$13,'[1]SHIPMENTS - TOTAL'!$E$7:$BF$7,0)),MATCH($C$9,'[1]SHIPMENTS - TOTAL'!$D$2:$D$467,0)-1+1,0) ->  | AS16: =OFFSET(INDEX('[1]SHIPMENTS - TOTAL'!$E$8:$BF$467,MATCH($C$12,'[1]SHIPMENTS - TOTAL'!$C$8:$C$25,0),MATCH(AS$13,'[1]SHIPMENTS - TOTAL'!$E$7:$BF$7,0)),MATCH($C$9,'[1]SHIPMENTS - TOTAL'!$D$2:$D$467,0)-1+1,0) ->  | AT16: =OFFSET(INDEX('[1]SHIPMENTS - TOTAL'!$E$8:$BF$467,MATCH($C$12,'[1]SHIPMENTS - TOTAL'!$C$8:$C$25,0),MATCH(AT$13,'[1]SHIPMENTS - TOTAL'!$E$7:$BF$7,0)),MATCH($C$9,'[1]SHIPMENTS - TOTAL'!$D$2:$D$467,0)-1+1,0) ->  | AU16: =OFFSET(INDEX('[1]SHIPMENTS - TOTAL'!$E$8:$BF$467,MATCH($C$12,'[1]SHIPMENTS - TOTAL'!$C$8:$C$25,0),MATCH(AU$13,'[1]SHIPMENTS - TOTAL'!$E$7:$BF$7,0)),MATCH($C$9,'[1]SHIPMENTS - TOTAL'!$D$2:$D$467,0)-1+1,0) ->  | AV16: =OFFSET(INDEX('[1]SHIPMENTS - TOTAL'!$E$8:$BF$467,MATCH($C$12,'[1]SHIPMENTS - TOTAL'!$C$8:$C$25,0),MATCH(AV$13,'[1]SHIPMENTS - TOTAL'!$E$7:$BF$7,0)),MATCH($C$9,'[1]SHIPMENTS - TOTAL'!$D$2:$D$467,0)-1+1,0) ->  | AW16: =OFFSET(INDEX('[1]SHIPMENTS - TOTAL'!$E$8:$BF$467,MATCH($C$12,'[1]SHIPMENTS - TOTAL'!$C$8:$C$25,0),MATCH(AW$13,'[1]SHIPMENTS - TOTAL'!$E$7:$BF$7,0)),MATCH($C$9,'[1]SHIPMENTS - TOTAL'!$D$2:$D$467,0)-1+1,0) ->  | AX16: =OFFSET(INDEX('[1]SHIPMENTS - TOTAL'!$E$8:$BF$467,MATCH($C$12,'[1]SHIPMENTS - TOTAL'!$C$8:$C$25,0),MATCH(AX$13,'[1]SHIPMENTS - TOTAL'!$E$7:$BF$7,0)),MATCH($C$9,'[1]SHIPMENTS - TOTAL'!$D$2:$D$467,0)-1+1,0) ->  | AY16: =OFFSET(INDEX('[1]SHIPMENTS - TOTAL'!$E$8:$BF$467,MATCH($C$12,'[1]SHIPMENTS - TOTAL'!$C$8:$C$25,0),MATCH(AY$13,'[1]SHIPMENTS - TOTAL'!$E$7:$BF$7,0)),MATCH($C$9,'[1]SHIPMENTS - TOTAL'!$D$2:$D$467,0)-1+1,0) ->  | AZ16: =OFFSET(INDEX('[1]SHIPMENTS - TOTAL'!$E$8:$BF$467,MATCH($C$12,'[1]SHIPMENTS - TOTAL'!$C$8:$C$25,0),MATCH(AZ$13,'[1]SHIPMENTS - TOTAL'!$E$7:$BF$7,0)),MATCH($C$9,'[1]SHIPMENTS - TOTAL'!$D$2:$D$467,0)-1+1,0) -> 
C17: Total Model Shipments | D17: (units) | E17: =SUM(E15:E16) -> 
C18: Model Installed Stock | D18: (units) | E18: =OFFSET(INDEX('[1]STOCK - TOTAL'!$E$8:$BF$305,MATCH($C$12,'[1]STOCK - TOTAL'!$C$8:$C$16,0),MATCH(E$13,'[1]STOCK - TOTAL'!$E$7:$BF$7,0)),MATCH($C$9,'[1]STOCK - TOTAL'!$D:$D,0)-2,0) ->  | F18: =OFFSET(INDEX('[1]STOCK - TOTAL'!$E$8:$BF$305,MATCH($C$12,'[1]STOCK - TOTAL'!$C$8:$C$16,0),MATCH(F$13,'[1]STOCK - TOTAL'!$E$7:$BF$7,0)),MATCH($C$9,'[1]STOCK - TOTAL'!$D:$D,0)-2,0) ->  | G18: =OFFSET(INDEX('[1]STOCK - TOTAL'!$E$8:$BF$305,MATCH($C$12,'[1]STOCK - TOTAL'!$C$8:$C$16,0),MATCH(G$13,'[1]STOCK - TOTAL'!$E$7:$BF$7,0)),MATCH($C$9,'[1]STOCK - TOTAL'!$D:$D,0)-2,0) ->  | H18: =OFFSET(INDEX('[1]STOCK - TOTAL'!$E$8:$BF$305,MATCH($C$12,'[1]STOCK - TOTAL'!$C$8:$C$16,0),MATCH(H$13,'[1]STOCK - TOTAL'!$E$7:$BF$7,0)),MATCH($C$9,'[1]STOCK - TOTAL'!$D:$D,0)-2,0) ->  | I18: =OFFSET(INDEX('[1]STOCK - TOTAL'!$E$8:$BF$305,MATCH($C$12,'[1]STOCK - TOTAL'!$C$8:$C$16,0),MATCH(I$13,'[1]STOCK - TOTAL'!$E$7:$BF$7,0)),MATCH($C$9,'[1]STOCK - TOTAL'!$D:$D,0)-2,0) ->  | J18: =OFFSET(INDEX('[1]STOCK - TOTAL'!$E$8:$BF$305,MATCH($C$12,'[1]STOCK - TOTAL'!$C$8:$C$16,0),MATCH(J$13,'[1]STOCK - TOTAL'!$E$7:$BF$7,0)),MATCH($C$9,'[1]STOCK - TOTAL'!$D:$D,0)-2,0) ->  | K18: =OFFSET(INDEX('[1]STOCK - TOTAL'!$E$8:$BF$305,MATCH($C$12,'[1]STOCK - TOTAL'!$C$8:$C$16,0),MATCH(K$13,'[1]STOCK - TOTAL'!$E$7:$BF$7,0)),MATCH($C$9,'[1]STOCK - TOTAL'!$D:$D,0)-2,0) ->  | L18: =OFFSET(INDEX('[1]STOCK - TOTAL'!$E$8:$BF$305,MATCH($C$12,'[1]STOCK - TOTAL'!$C$8:$C$16,0),MATCH(L$13,'[1]STOCK - TOTAL'!$E$7:$BF$7,0)),MATCH($C$9,'[1]STOCK - TOTAL'!$D:$D,0)-2,0) ->  | M18: =OFFSET(INDEX('[1]STOCK - TOTAL'!$E$8:$BF$305,MATCH($C$12,'[1]STOCK - TOTAL'!$C$8:$C$16,0),MATCH(M$13,'[1]STOCK - TOTAL'!$E$7:$BF$7,0)),MATCH($C$9,'[1]STOCK - TOTAL'!$D:$D,0)-2,0) ->  | N18: =OFFSET(INDEX('[1]STOCK - TOTAL'!$E$8:$BF$305,MATCH($C$12,'[1]STOCK - TOTAL'!$C$8:$C$16,0),MATCH(N$13,'[1]STOCK - TOTAL'!$E$7:$BF$7,0)),MATCH($C$9,'[1]STOCK - TOTAL'!$D:$D,0)-2,0) ->  | O18: =OFFSET(INDEX('[1]STOCK - TOTAL'!$E$8:$BF$305,MATCH($C$12,'[1]STOCK - TOTAL'!$C$8:$C$16,0),MATCH(O$13,'[1]STOCK - TOTAL'!$E$7:$BF$7,0)),MATCH($C$9,'[1]STOCK - TOTAL'!$D:$D,0)-2,0) ->  | P18: =OFFSET(INDEX('[1]STOCK - TOTAL'!$E$8:$BF$305,MATCH($C$12,'[1]STOCK - TOTAL'!$C$8:$C$16,0),MATCH(P$13,'[1]STOCK - TOTAL'!$E$7:$BF$7,0)),MATCH($C$9,'[1]STOCK - TOTAL'!$D:$D,0)-2,0) ->  | Q18: =OFFSET(INDEX('[1]STOCK - TOTAL'!$E$8:$BF$305,MATCH($C$12,'[1]STOCK - TOTAL'!$C$8:$C$16,0),MATCH(Q$13,'[1]STOCK - TOTAL'!$E$7:$BF$7,0)),MATCH($C$9,'[1]STOCK - TOTAL'!$D:$D,0)-2,0) ->  | R18: =OFFSET(INDEX('[1]STOCK - TOTAL'!$E$8:$BF$305,MATCH($C$12,'[1]STOCK - TOTAL'!$C$8:$C$16,0),MATCH(R$13,'[1]STOCK - TOTAL'!$E$7:$BF$7,0)),MATCH($C$9,'[1]STOCK - TOTAL'!$D:$D,0)-2,0) ->  | S18: =OFFSET(INDEX('[1]STOCK - TOTAL'!$E$8:$BF$305,MATCH($C$12,'[1]STOCK - TOTAL'!$C$8:$C$16,0),MATCH(S$13,'[1]STOCK - TOTAL'!$E$7:$BF$7,0)),MATCH($C$9,'[1]STOCK - TOTAL'!$D:$D,0)-2,0) ->  | T18: =OFFSET(INDEX('[1]STOCK - TOTAL'!$E$8:$BF$305,MATCH($C$12,'[1]STOCK - TOTAL'!$C$8:$C$16,0),MATCH(T$13,'[1]STOCK - TOTAL'!$E$7:$BF$7,0)),MATCH($C$9,'[1]STOCK - TOTAL'!$D:$D,0)-2,0) ->  | U18: =OFFSET(INDEX('[1]STOCK - TOTAL'!$E$8:$BF$305,MATCH($C$12,'[1]STOCK - TOTAL'!$C$8:$C$16,0),MATCH(U$13,'[1]STOCK - TOTAL'!$E$7:$BF$7,0)),MATCH($C$9,'[1]STOCK - TOTAL'!$D:$D,0)-2,0) ->  | V18: =OFFSET(INDEX('[1]STOCK - TOTAL'!$E$8:$BF$305,MATCH($C$12,'[1]STOCK - TOTAL'!$C$8:$C$16,0),MATCH(V$13,'[1]STOCK - TOTAL'!$E$7:$BF$7,0)),MATCH($C$9,'[1]STOCK - TOTAL'!$D:$D,0)-2,0) ->  | W18: =OFFSET(INDEX('[1]STOCK - TOTAL'!$E$8:$BF$305,MATCH($C$12,'[1]STOCK - TOTAL'!$C$8:$C$16,0),MATCH(W$13,'[1]STOCK - TOTAL'!$E$7:$BF$7,0)),MATCH($C$9,'[1]STOCK - TOTAL'!$D:$D,0)-2,0) ->  | X18: =OFFSET(INDEX('[1]STOCK - TOTAL'!$E$8:$BF$305,MATCH($C$12,'[1]STOCK - TOTAL'!$C$8:$C$16,0),MATCH(X$13,'[1]STOCK - TOTAL'!$E$7:$BF$7,0)),MATCH($C$9,'[1]STOCK - TOTAL'!$D:$D,0)-2,0) ->  | Y18: =OFFSET(INDEX('[1]STOCK - TOTAL'!$E$8:$BF$305,MATCH($C$12,'[1]STOCK - TOTAL'!$C$8:$C$16,0),MATCH(Y$13,'[1]STOCK - TOTAL'!$E$7:$BF$7,0)),MATCH($C$9,'[1]STOCK - TOTAL'!$D:$D,0)-2,0) ->  | Z18: =OFFSET(INDEX('[1]STOCK - TOTAL'!$E$8:$BF$305,MATCH($C$12,'[1]STOCK - TOTAL'!$C$8:$C$16,0),MATCH(Z$13,'[1]STOCK - TOTAL'!$E$7:$BF$7,0)),MATCH($C$9,'[1]STOCK - TOTAL'!$D:$D,0)-2,0) ->  | AA18: =OFFSET(INDEX('[1]STOCK - TOTAL'!$E$8:$BF$305,MATCH($C$12,'[1]STOCK - TOTAL'!$C$8:$C$16,0),MATCH(AA$13,'[1]STOCK - TOTAL'!$E$7:$BF$7,0)),MATCH($C$9,'[1]STOCK - TOTAL'!$D:$D,0)-2,0) ->  | AB18: =OFFSET(INDEX('[1]STOCK - TOTAL'!$E$8:$BF$305,MATCH($C$12,'[1]STOCK - TOTAL'!$C$8:$C$16,0),MATCH(AB$13,'[1]STOCK - TOTAL'!$E$7:$BF$7,0)),MATCH($C$9,'[1]STOCK - TOTAL'!$D:$D,0)-2,0) ->  | AC18: =OFFSET(INDEX('[1]STOCK - TOTAL'!$E$8:$BF$305,MATCH($C$12,'[1]STOCK - TOTAL'!$C$8:$C$16,0),MATCH(AC$13,'[1]STOCK - TOTAL'!$E$7:$BF$7,0)),MATCH($C$9,'[1]STOCK - TOTAL'!$D:$D,0)-2,0) ->  | AD18: =OFFSET(INDEX('[1]STOCK - TOTAL'!$E$8:$BF$305,MATCH($C$12,'[1]STOCK - TOTAL'!$C$8:$C$16,0),MATCH(AD$13,'[1]STOCK - TOTAL'!$E$7:$BF$7,0)),MATCH($C$9,'[1]STOCK - TOTAL'!$D:$D,0)-2,0) ->  | AE18: =OFFSET(INDEX('[1]STOCK - TOTAL'!$E$8:$BF$305,MATCH($C$12,'[1]STOCK - TOTAL'!$C$8:$C$16,0),MATCH(AE$13,'[1]STOCK - TOTAL'!$E$7:$BF$7,0)),MATCH($C$9,'[1]STOCK - TOTAL'!$D:$D,0)-2,0) ->  | AF18: =OFFSET(INDEX('[1]STOCK - TOTAL'!$E$8:$BF$305,MATCH($C$12,'[1]STOCK - TOTAL'!$C$8:$C$16,0),MATCH(AF$13,'[1]STOCK - TOTAL'!$E$7:$BF$7,0)),MATCH($C$9,'[1]STOCK - TOTAL'!$D:$D,0)-2,0) ->  | AG18: =OFFSET(INDEX('[1]STOCK - TOTAL'!$E$8:$BF$305,MATCH($C$12,'[1]STOCK - TOTAL'!$C$8:$C$16,0),MATCH(AG$13,'[1]STOCK - TOTAL'!$E$7:$BF$7,0)),MATCH($C$9,'[1]STOCK - TOTAL'!$D:$D,0)-2,0) ->  | AH18: =OFFSET(INDEX('[1]STOCK - TOTAL'!$E$8:$BF$305,MATCH($C$12,'[1]STOCK - TOTAL'!$C$8:$C$16,0),MATCH(AH$13,'[1]STOCK - TOTAL'!$E$7:$BF$7,0)),MATCH($C$9,'[1]STOCK - TOTAL'!$D:$D,0)-2,0) ->  | AI18: =OFFSET(INDEX('[1]STOCK - TOTAL'!$E$8:$BF$305,MATCH($C$12,'[1]STOCK - TOTAL'!$C$8:$C$16,0),MATCH(AI$13,'[1]STOCK - TOTAL'!$E$7:$BF$7,0)),MATCH($C$9,'[1]STOCK - TOTAL'!$D:$D,0)-2,0) ->  | AJ18: =OFFSET(INDEX('[1]STOCK - TOTAL'!$E$8:$BF$305,MATCH($C$12,'[1]STOCK - TOTAL'!$C$8:$C$16,0),MATCH(AJ$13,'[1]STOCK - TOTAL'!$E$7:$BF$7,0)),MATCH($C$9,'[1]STOCK - TOTAL'!$D:$D,0)-2,0) ->  | AK18: =OFFSET(INDEX('[1]STOCK - TOTAL'!$E$8:$BF$305,MATCH($C$12,'[1]STOCK - TOTAL'!$C$8:$C$16,0),MATCH(AK$13,'[1]STOCK - TOTAL'!$E$7:$BF$7,0)),MATCH($C$9,'[1]STOCK - TOTAL'!$D:$D,0)-2,0) ->  | AL18: =OFFSET(INDEX('[1]STOCK - TOTAL'!$E$8:$BF$305,MATCH($C$12,'[1]STOCK - TOTAL'!$C$8:$C$16,0),MATCH(AL$13,'[1]STOCK - TOTAL'!$E$7:$BF$7,0)),MATCH($C$9,'[1]STOCK - TOTAL'!$D:$D,0)-2,0) ->  | AM18: =OFFSET(INDEX('[1]STOCK - TOTAL'!$E$8:$BF$305,MATCH($C$12,'[1]STOCK - TOTAL'!$C$8:$C$16,0),MATCH(AM$13,'[1]STOCK - TOTAL'!$E$7:$BF$7,0)),MATCH($C$9,'[1]STOCK - TOTAL'!$D:$D,0)-2,0) ->  | AN18: =OFFSET(INDEX('[1]STOCK - TOTAL'!$E$8:$BF$305,MATCH($C$12,'[1]STOCK - TOTAL'!$C$8:$C$16,0),MATCH(AN$13,'[1]STOCK - TOTAL'!$E$7:$BF$7,0)),MATCH($C$9,'[1]STOCK - TOTAL'!$D:$D,0)-2,0) ->  | AO18: =OFFSET(INDEX('[1]STOCK - TOTAL'!$E$8:$BF$305,MATCH($C$12,'[1]STOCK - TOTAL'!$C$8:$C$16,0),MATCH(AO$13,'[1]STOCK - TOTAL'!$E$7:$BF$7,0)),MATCH($C$9,'[1]STOCK - TOTAL'!$D:$D,0)-2,0) ->  | AP18: =OFFSET(INDEX('[1]STOCK - TOTAL'!$E$8:$BF$305,MATCH($C$12,'[1]STOCK - TOTAL'!$C$8:$C$16,0),MATCH(AP$13,'[1]STOCK - TOTAL'!$E$7:$BF$7,0)),MATCH($C$9,'[1]STOCK - TOTAL'!$D:$D,0)-2,0) ->  | AQ18: =OFFSET(INDEX('[1]STOCK - TOTAL'!$E$8:$BF$305,MATCH($C$12,'[1]STOCK - TOTAL'!$C$8:$C$16,0),MATCH(AQ$13,'[1]STOCK - TOTAL'!$E$7:$BF$7,0)),MATCH($C$9,'[1]STOCK - TOTAL'!$D:$D,0)-2,0) ->  | AR18: =OFFSET(INDEX('[1]STOCK - TOTAL'!$E$8:$BF$305,MATCH($C$12,'[1]STOCK - TOTAL'!$C$8:$C$16,0),MATCH(AR$13,'[1]STOCK - TOTAL'!$E$7:$BF$7,0)),MATCH($C$9,'[1]STOCK - TOTAL'!$D:$D,0)-2,0) ->  | AS18: =OFFSET(INDEX('[1]STOCK - TOTAL'!$E$8:$BF$305,MATCH($C$12,'[1]STOCK - TOTAL'!$C$8:$C$16,0),MATCH(AS$13,'[1]STOCK - TOTAL'!$E$7:$BF$7,0)),MATCH($C$9,'[1]STOCK - TOTAL'!$D:$D,0)-2,0) ->  | AT18: =OFFSET(INDEX('[1]STOCK - TOTAL'!$E$8:$BF$305,MATCH($C$12,'[1]STOCK - TOTAL'!$C$8:$C$16,0),MATCH(AT$13,'[1]STOCK - TOTAL'!$E$7:$BF$7,0)),MATCH($C$9,'[1]STOCK - TOTAL'!$D:$D,0)-2,0) ->  | AU18: =OFFSET(INDEX('[1]STOCK - TOTAL'!$E$8:$BF$305,MATCH($C$12,'[1]STOCK - TOTAL'!$C$8:$C$16,0),MATCH(AU$13,'[1]STOCK - TOTAL'!$E$7:$BF$7,0)),MATCH($C$9,'[1]STOCK - TOTAL'!$D:$D,0)-2,0) ->  | AV18: =OFFSET(INDEX('[1]STOCK - TOTAL'!$E$8:$BF$305,MATCH($C$12,'[1]STOCK - TOTAL'!$C$8:$C$16,0),MATCH(AV$13,'[1]STOCK - TOTAL'!$E$7:$BF$7,0)),MATCH($C$9,'[1]STOCK - TOTAL'!$D:$D,0)-2,0) ->  | AW18: =OFFSET(INDEX('[1]STOCK - TOTAL'!$E$8:$BF$305,MATCH($C$12,'[1]STOCK - TOTAL'!$C$8:$C$16,0),MATCH(AW$13,'[1]STOCK - TOTAL'!$E$7:$BF$7,0)),MATCH($C$9,'[1]STOCK - TOTAL'!$D:$D,0)-2,0) ->  | AX18: =OFFSET(INDEX('[1]STOCK - TOTAL'!$E$8:$BF$305,MATCH($C$12,'[1]STOCK - TOTAL'!$C$8:$C$16,0),MATCH(AX$13,'[1]STOCK - TOTAL'!$E$7:$BF$7,0)),MATCH($C$9,'[1]STOCK - TOTAL'!$D:$D,0)-2,0) ->  | AY18: =OFFSET(INDEX('[1]STOCK - TOTAL'!$E$8:$BF$305,MATCH($C$12,'[1]STOCK - TOTAL'!$C$8:$C$16,0),MATCH(AY$13,'[1]STOCK - TOTAL'!$E$7:$BF$7,0)),MATCH($C$9,'[1]STOCK - TOTAL'!$D:$D,0)-2,0) ->  | AZ18: =OFFSET(INDEX('[1]STOCK - TOTAL'!$E$8:$BF$305,MATCH($C$12,'[1]STOCK - TOTAL'!$C$8:$C$16,0),MATCH(AZ$13,'[1]STOCK - TOTAL'!$E$7:$BF$7,0)),MATCH($C$9,'[1]STOCK - TOTAL'!$D:$D,0)-2,0) -> 

Sheet 6P UEC Development
C2: Council UEC Development
C4: NAVIGATION
C6: COMMENTS
C9: 6P Average UEC | D9: 7171.810446 | E9: kWh/year
C11: Source
C12: Calculated from 6th plan UEC values using DOE 2014 Final Rule market share of each included product class.

Sheet UEC Development
C2: UEC Development
C4: NAVIGATION
C6: COMMENTS
C9: ='Product Classes'!O10 -> VOP.RC.M
D11: Energy Consumption
C12: Efficiency Level | D12: Energy Factor
D13: kWh/year Calculated | E13: kWh/year per ft
C14: ='Efficiency Levels'!C12 -> EL0 | D14: =E14*'Equipment Specifications'!$D$12 -> 17611.87657 | E14: 1761.187657
C15: ='Efficiency Levels'!C13 -> EL1 | D15: =E15*'Equipment Specifications'!$D$12 -> 14504.25415 | E15: 1450.425415
C16: ='Efficiency Levels'!C14 -> EL2 | D16: =E16*'Equipment Specifications'!$D$12 -> 14246.11418 | E16: 1424.611418
C17: ='Efficiency Levels'!C15 -> EL3 | D17: =E17*'Equipment Specifications'!$D$12 -> 11564.01125 | E17: 1156.401125
C18: ='Efficiency Levels'!C16 -> EL4 | D18: =E18*'Equipment Specifications'!$D$12 -> 11483.86454 | E18: 1148.386454
C19: ='Efficiency Levels'!C17 -> EL5 | D19: =E19*'Equipment Specifications'!$D$12 -> 10980.76952 | E19: 1098.076952
C20: ='Efficiency Levels'!C18 -> EL6 | D20: =E20*'Equipment Specifications'!$D$12 -> 10844.09597 | E20: 1084.409597
C21: ='Efficiency Levels'!C19 -> EL7 | D21: =E21*'Equipment Specifications'!$D$12 -> 10844.09597 | E21: 1084.409597
C22: ='Efficiency Levels'!C20 -> EL8 | D22: =E22*'Equipment Specifications'!$D$12 -> 10844.09597 | E22: 1084.409597
C23: ='Efficiency Levels'!C21 -> EL9 | D23: =E23*'Equipment Specifications'!$D$12 -> 10844.09597 | E23: 1084.409597
C25: Sources: DOE Commercial Refrigeration Equipment 2014 Final Rule, Technical Support Document: Final Rule National Impact Analysis Spreadsheet, 'LCC Inputs' tab, cells B3:29, http://www.regulations.gov/#!documentDetail;D=EERE-2010-BT-STD-0003-0101
C26: DOE Commercial Refrigeration Equipment 2009 Final Rule, Technical Support Document: 2008-12-31 National Impact Analysis Spreadsheet, 'Equipment parameters' tab, cells E19:M34, http://www.regulations.gov/#!documentDetail;D=EERE-2006-STD-0126-0080
C27: TSL 4 was selected in the 2009 Final Rule. DOE Commercial Refrigeration Equipment 2009 Final Rule, Federal Register Notice, page 1136, "Conclusion" section, http://www.regulations.gov/#!documentDetail;D=EERE-2006-STD-0126-0005
C28: TSL Mapping: DOE Commercial Refrigeration Equipment 2009 Final Rule, Technical Support Document: 2008-12-31 National Impact Analysis Spreadsheet, 'Labels' tab, cells B134:K151, http://www.regulations.gov/#!documentDetail;D=EERE-2006-STD-0126-0080
C32: ='Product Classes'!O11 -> VOP.RC.L
D34: Energy Consumption
C35: Efficiency Level | D35: Energy Factor
D36: kWh/year Calculated | E36: kWh/year per ft
C37: ='Efficiency Levels'!C30 -> EL0 | D37: =E37*'Equipment Specifications'!$D$13 -> 40637.03898 | E37: 4063.703898
C38: ='Efficiency Levels'!C31 -> EL1 | D38: =E38*'Equipment Specifications'!$D$13 -> 32971.89553 | E38: 3297.189553
C39: ='Efficiency Levels'!C32 -> EL2 | D39: =E39*'Equipment Specifications'!$D$13 -> 32119.88336 | E39: 3211.988336
C40: ='Efficiency Levels'!C33 -> EL3 | D40: =E40*'Equipment Specifications'!$D$13 -> 31917.73851 | E40: 3191.773851
C41: ='Efficiency Levels'!C34 -> EL4 | D41: =E41*'Equipment Specifications'!$D$13 -> 30931.20202 | E41: 3093.120202
C42: ='Efficiency Levels'!C35 -> EL5 | D42: =E42*'Equipment Specifications'!$D$13 -> 30418.54112 | E42: 3041.854112
C43: ='Efficiency Levels'!C36 -> EL6 | D43: =E43*'Equipment Specifications'!$D$13 -> 30418.54112 | E43: 3041.854112
C44: ='Efficiency Levels'!C37 -> EL7 | D44: =E44*'Equipment Specifications'!$D$13 -> 30418.54112 | E44: 3041.854112
C45: ='Efficiency Levels'!C38 -> EL8 | D45: =E45*'Equipment Specifications'!$D$13 -> 30418.54112 | E45: 3041.854112
C46: ='Efficiency Levels'!C39 -> EL9 | D46: =E46*'Equipment Specifications'!$D$13 -> 30418.54112 | E46: 3041.854112
C48: Sources: DOE Commercial Refrigeration Equipment 2014 Final Rule, Technical Support Document: Final Rule National Impact Analysis Spreadsheet, 'LCC Inputs' tab, cells B3:29, http://www.regulations.gov/#!documentDetail;D=EERE-2010-BT-STD-0003-0101
C49: DOE Commercial Refrigeration Equipment 2009 Final Rule, Technical Support Document: 2008-12-31 National Impact Analysis Spreadsheet, 'Equipment parameters' tab, cells E19:M34, http://www.regulations.gov/#!documentDetail;D=EERE-2006-STD-0126-0080
C50: TSL 4 was selected in the 2009 Final Rule. DOE Commercial Refrigeration Equipment 2009 Final Rule, Federal Register Notice, page 1136, "Conclusion" section, http://www.regulations.gov/#!documentDetail;D=EERE-2006-STD-0126-0005
C51: TSL Mapping: DOE Commercial Refrigeration Equipment 2009 Final Rule, Technical Support Document: 2008-12-31 National Impact Analysis Spreadsheet, 'Labels' tab, cells B134:K151, http://www.regulations.gov/#!documentDetail;D=EERE-2006-STD-0126-0080
C55: ='Product Classes'!O12 -> SVO.RC.M
D57: Energy Consumption
C58: Efficiency Level | D58: Energy Factor
D59: kWh/year Calculated | E59: kWh/year per ft
C60: ='Efficiency Levels'!C48 -> EL0 | D60: =E60*'Equipment Specifications'!$D$14 -> 13250.86175 | E60: 1325.086175
C61: ='Efficiency Levels'!C49 -> EL1 | D61: =E61*'Equipment Specifications'!$D$14 -> 11053.50071 | E61: 1105.350071
C62: ='Efficiency Levels'!C50 -> EL2 | D62: =E62*'Equipment Specifications'!$D$14 -> 10869.84386 | E62: 1086.984386
C63: ='Efficiency Levels'!C51 -> EL3 | D63: =E63*'Equipment Specifications'!$D$14 -> 8956.621383 | E63: 895.6621383
C64: ='Efficiency Levels'!C52 -> EL4 | D64: =E64*'Equipment Specifications'!$D$14 -> 8563.634712 | E64: 856.3634712
C65: ='Efficiency Levels'!C53 -> EL5 | D65: =E65*'Equipment Specifications'!$D$14 -> 8521.656576 | E65: 852.1656576
C66: ='Efficiency Levels'!C54 -> EL6 | D66: =E66*'Equipment Specifications'!$D$14 -> 8426.003025 | E66: 842.6003025
C67: ='Efficiency Levels'!C55 -> EL7 | D67: =E67*'Equipment Specifications'!$D$14 -> 8426.003025 | E67: 842.6003025
C68: ='Efficiency Levels'!C56 -> EL8 | D68: =E68*'Equipment Specifications'!$D$14 -> 8426.003025 | E68: 842.6003025
C69: ='Efficiency Levels'!C57 -> EL9 | D69: =E69*'Equipment Specifications'!$D$14 -> 8426.003025 | E69: 842.6003025
C71: Sources: DOE Commercial Refrigeration Equipment 2014 Final Rule, Technical Support Document: Final Rule National Impact Analysis Spreadsheet, 'LCC Inputs' tab, cells B3:29, http://www.regulations.gov/#!documentDetail;D=EERE-2010-BT-STD-0003-0101
C72: DOE Commercial Refrigeration Equipment 2009 Final Rule, Technical Support Document: 2008-12-31 National Impact Analysis Spreadsheet, 'Equipment parameters' tab, cells E19:M34, http://www.regulations.gov/#!documentDetail;D=EERE-2006-STD-0126-0080
C73: TSL 4 was selected in the 2009 Final Rule. DOE Commercial Refrigeration Equipment 2009 Final Rule, Federal Register Notice, page 1136, "Conclusion" section, http://www.regulations.gov/#!documentDetail;D=EERE-2006-STD-0126-0005
C74: TSL Mapping: DOE Commercial Refrigeration Equipment 2009 Final Rule, Technical Support Document: 2008-12-31 National Impact Analysis Spreadsheet, 'Labels' tab, cells B134:K151, http://www.regulations.gov/#!documentDetail;D=EERE-2006-STD-0126-0080
C78: ='Product Classes'!O13 -> HZO.RC.M
D80: Energy Consumption
C81: Efficiency Level | D81: Energy Factor
D82: kWh/year Calculated | E82: kWh/year per ft
C83: ='Efficiency Levels'!C66 -> EL0 | D83: =E83*'Equipment Specifications'!$D$15 -> 5971.27193 | E83: 597.127193
C84: ='Efficiency Levels'!C67 -> EL1 | D84: =E84*'Equipment Specifications'!$D$15 -> 4421.844582 | E84: 442.1844582
C85: ='Efficiency Levels'!C68 -> EL2 | D85: =E85*'Equipment Specifications'!$D$15 -> 4401.409424 | E85: 440.1409424
C86: ='Efficiency Levels'!C69 -> EL3 | D86: =E86*'Equipment Specifications'!$D$15 -> 4303.846939 | E86: 430.3846939
C87: ='Efficiency Levels'!C70 -> EL4 | D87: =E87*'Equipment Specifications'!$D$15 -> 4303.846939 | E87: 430.3846939
C88: ='Efficiency Levels'!C71 -> EL5 | D88: =E88*'Equipment Specifications'!$D$15 -> 4303.846939 | E88: 430.3846939
C89: ='Efficiency Levels'!C72 -> EL6 | D89: =E89*'Equipment Specifications'!$D$15 -> 4303.846939 | E89: 430.3846939
C90: ='Efficiency Levels'!C73 -> EL7 | D90: =E90*'Equipment Specifications'!$D$15 -> 4303.846939 | E90: 430.3846939
C91: ='Efficiency Levels'!C74 -> EL8 | D91: =E91*'Equipment Specifications'!$D$15 -> 4303.846939 | E91: 430.3846939
C92: ='Efficiency Levels'!C75 -> EL9 | D92: =E92*'Equipment Specifications'!$D$15 -> 4303.846939 | E92: 430.3846939
C94: Sources: DOE Commercial Refrigeration Equipment 2014 Final Rule, Technical Support Document: Final Rule National Impact Analysis Spreadsheet, 'LCC Inputs' tab, cells B3:29, http://www.regulations.gov/#!documentDetail;D=EERE-2010-BT-STD-0003-0101
C95: DOE Commercial Refrigeration Equipment 2009 Final Rule, Technical Support Document: 2008-12-31 National Impact Analysis Spreadsheet, 'Equipment parameters' tab, cells E19:M34, http://www.regulations.gov/#!documentDetail;D=EERE-2006-STD-0126-0080
C96: TSL 4 was selected in the 2009 Final Rule. DOE Commercial Refrigeration Equipment 2009 Final Rule, Federal Register Notice, page 1136, "Conclusion" section, http://www.regulations.gov/#!documentDetail;D=EERE-2006-STD-0126-0005
C97: TSL Mapping: DOE Commercial Refrigeration Equipment 2009 Final Rule, Technical Support Document: 2008-12-31 National Impact Analysis Spreadsheet, 'Labels' tab, cells B134:K151, http://www.regulations.gov/#!documentDetail;D=EERE-2006-STD-0126-0080
C101: ='Product Classes'!O14 -> HZO.RC.L
D103: Energy Consumption
C104: Efficiency Level | D104: Energy Factor
D105: kWh/year Calculated | E105: kWh/year per ft
C106: ='Efficiency Levels'!C84 -> EL0 | D106: =E106*'Equipment Specifications'!$D$16 -> 11673.20245 | E106: 1167.320245
C107: ='Efficiency Levels'!C85 -> EL1 | D107: =E107*'Equipment Specifications'!$D$16 -> 10027.13578 | E107: 1002.713578
C108: ='Efficiency Levels'!C86 -> EL2 | D108: =E108*'Equipment Specifications'!$D$16 -> 9843.05877 | E108: 984.305877
C109: ='Efficiency Levels'!C87 -> EL3 | D109: =E109*'Equipment Specifications'!$D$16 -> 9453.038769 | E109: 945.3038769
C110: ='Efficiency Levels'!C88 -> EL4 | D110: =E110*'Equipment Specifications'!$D$16 -> 9453.038769 | E110: 945.3038769
C111: ='Efficiency Levels'!C89 -> EL5 | D111: =E111*'Equipment Specifications'!$D$16 -> 9453.038769 | E111: 945.3038769
C112: ='Efficiency Levels'!C90 -> EL6 | D112: =E112*'Equipment Specifications'!$D$16 -> 9453.038769 | E112: 945.3038769
C113: ='Efficiency Levels'!C91 -> EL7 | D113: =E113*'Equipment Specifications'!$D$16 -> 9453.038769 | E113: 945.3038769
C114: ='Efficiency Levels'!C92 -> EL8 | D114: =E114*'Equipment Specifications'!$D$16 -> 9453.038769 | E114: 945.3038769
C115: ='Efficiency Levels'!C93 -> EL9 | D115: =E115*'Equipment Specifications'!$D$16 -> 9453.038769 | E115: 945.3038769
C117: Sources: DOE Commercial Refrigeration Equipment 2014 Final Rule, Technical Support Document: Final Rule National Impact Analysis Spreadsheet, 'LCC Inputs' tab, cells B3:29, http://www.regulations.gov/#!documentDetail;D=EERE-2010-BT-STD-0003-0101
C118: DOE Commercial Refrigeration Equipment 2009 Final Rule, Technical Support Document: 2008-12-31 National Impact Analysis Spreadsheet, 'Equipment parameters' tab, cells E19:M34, http://www.regulations.gov/#!documentDetail;D=EERE-2006-STD-0126-0080
C119: TSL 4 was selected in the 2009 Final Rule. DOE Commercial Refrigeration Equipment 2009 Final Rule, Federal Register Notice, page 1136, "Conclusion" section, http://www.regulations.gov/#!documentDetail;D=EERE-2006-STD-0126-0005
C120: TSL Mapping: DOE Commercial Refrigeration Equipment 2009 Final Rule, Technical Support Document: 2008-12-31 National Impact Analysis Spreadsheet, 'Labels' tab, cells B134:K151, http://www.regulations.gov/#!documentDetail;D=EERE-2006-STD-0126-0080
C124: ='Product Classes'!O15 -> VCT.RC.M
D126: Energy Consumption
C127: Efficiency Level | D127: Energy Factor
D128: kWh/year Calculated | E128: kWh/year per ft
C129: ='Efficiency Levels'!C102 -> EL0 | D129: =E129*'Equipment Specifications'!$D$17 -> 9518.125464 | E129: 951.8125464
C130: ='Efficiency Levels'!C103 -> EL1 | D130: =E130*'Equipment Specifications'!$D$17 -> 4639.691892 | E130: 463.9691892
C131: ='Efficiency Levels'!C104 -> EL2 | D131: =E131*'Equipment Specifications'!$D$17 -> 3914.021472 | E131: 391.4021472
C132: ='Efficiency Levels'!C105 -> EL3 | D132: =E132*'Equipment Specifications'!$D$17 -> 3384.815267 | E132: 338.4815267
C133: ='Efficiency Levels'!C106 -> EL4 | D133: =E133*'Equipment Specifications'!$D$17 -> 3313.40124 | E133: 331.340124
C134: ='Efficiency Levels'!C107 -> EL5 | D134: =E134*'Equipment Specifications'!$D$17 -> 3294.311543 | E134: 329.4311543
C135: ='Efficiency Levels'!C108 -> EL6 | D135: =E135*'Equipment Specifications'!$D$17 -> 3151.847562 | E135: 315.1847562
C136: ='Efficiency Levels'!C109 -> EL7 | D136: =E136*'Equipment Specifications'!$D$17 -> 3151.847562 | E136: 315.1847562
C137: ='Efficiency Levels'!C110 -> EL8 | D137: =E137*'Equipment Specifications'!$D$17 -> 3151.847562 | E137: 315.1847562
C138: ='Efficiency Levels'!C111 -> EL9 | D138: =E138*'Equipment Specifications'!$D$17 -> 3151.847562 | E138: 315.1847562
C140: Sources: DOE Commercial Refrigeration Equipment 2014 Final Rule, Technical Support Document: Final Rule National Impact Analysis Spreadsheet, 'LCC Inputs' tab, cells B3:29, http://www.regulations.gov/#!documentDetail;D=EERE-2010-BT-STD-0003-0101
C141: DOE Commercial Refrigeration Equipment 2009 Final Rule, Technical Support Document: 2008-12-31 National Impact Analysis Spreadsheet, 'Equipment parameters' tab, cells E19:M34, http://www.regulations.gov/#!documentDetail;D=EERE-2006-STD-0126-0080
C142: TSL 4 was selected in the 2009 Final Rule. DOE Commercial Refrigeration Equipment 2009 Final Rule, Federal Register Notice, page 1136, "Conclusion" section, http://www.regulations.gov/#!documentDetail;D=EERE-2006-STD-0126-0005
C143: TSL Mapping: DOE Commercial Refrigeration Equipment 2009 Final Rule, Technical Support Document: 2008-12-31 National Impact Analysis Spreadsheet, 'Labels' tab, cells B134:K151, http://www.regulations.gov/#!documentDetail;D=EERE-2006-STD-0126-0080
C147: ='Product Classes'!O16 -> VCT.RC.L
D149: Energy Consumption
C150: Efficiency Level | D150: Energy Factor
D151: kWh/year Calculated | E151: kWh/year per ft
C152: ='Efficiency Levels'!C120 -> EL0 | D152: =E152*'Equipment Specifications'!$D$18 -> 19856.60125 | E152: 1985.660125
C153: ='Efficiency Levels'!C121 -> EL1 | D153: =E153*'Equipment Specifications'!$D$18 -> 11226.41415 | E153: 1122.641415
C154: ='Efficiency Levels'!C122 -> EL2 | D154: =E154*'Equipment Specifications'!$D$18 -> 10741.1623 | E154: 1074.11623
C155: ='Efficiency Levels'!C123 -> EL3 | D155: =E155*'Equipment Specifications'!$D$18 -> 10124.07001 | E155: 1012.407001
C156: ='Efficiency Levels'!C124 -> EL4 | D156: =E156*'Equipment Specifications'!$D$18 -> 9964.079975 | E156: 996.4079975
C157: ='Efficiency Levels'!C125 -> EL5 | D157: =E157*'Equipment Specifications'!$D$18 -> 9884.887808 | E157: 988.4887808
C158: ='Efficiency Levels'!C126 -> EL6 | D158: =E158*'Equipment Specifications'!$D$18 -> 9467.087066 | E158: 946.7087066
C159: ='Efficiency Levels'!C127 -> EL7 | D159: =E159*'Equipment Specifications'!$D$18 -> 9467.087066 | E159: 946.7087066
C160: ='Efficiency Levels'!C128 -> EL8 | D160: =E160*'Equipment Specifications'!$D$18 -> 9467.087066 | E160: 946.7087066
C161: ='Efficiency Levels'!C129 -> EL9 | D161: =E161*'Equipment Specifications'!$D$18 -> 9467.087066 | E161: 946.7087066
C163: Sources: DOE Commercial Refrigeration Equipment 2014 Final Rule, Technical Support Document: Final Rule National Impact Analysis Spreadsheet, 'LCC Inputs' tab, cells B3:29, http://www.regulations.gov/#!documentDetail;D=EERE-2010-BT-STD-0003-0101
C164: DOE Commercial Refrigeration Equipment 2009 Final Rule, Technical Support Document: 2008-12-31 National Impact Analysis Spreadsheet, 'Equipment parameters' tab, cells E19:M34, http://www.regulations.gov/#!documentDetail;D=EERE-2006-STD-0126-0080
C165: TSL 4 was selected in the 2009 Final Rule. DOE Commercial Refrigeration Equipment 2009 Final Rule, Federal Register Notice, page 1136, "Conclusion" section, http://www.regulations.gov/#!documentDetail;D=EERE-2006-STD-0126-0005
C166: TSL Mapping: DOE Commercial Refrigeration Equipment 2009 Final Rule, Technical Support Document: 2008-12-31 National Impact Analysis Spreadsheet, 'Labels' tab, cells B134:K151, http://www.regulations.gov/#!documentDetail;D=EERE-2006-STD-0126-0080
C170: ='Product Classes'!O17 -> SOC.RC.M
D172: Energy Consumption
C173: Efficiency Level | D173: Energy Factor
D174: kWh/year Calculated | E174: kWh/year per ft
C175: ='Efficiency Levels'!C138 -> EL0 | D175: =E175*'Equipment Specifications'!$D$19 -> 7713.012822 | E175: 964.1266027
C176: ='Efficiency Levels'!C139 -> EL1 | D176: =E176*'Equipment Specifications'!$D$19 -> 6384.838274 | E176: 798.1047843
C177: ='Efficiency Levels'!C140 -> EL2 | D177: =E177*'Equipment Specifications'!$D$19 -> 5533.450295 | E177: 691.6812869
C178: ='Efficiency Levels'!C141 -> EL3 | D178: =E178*'Equipment Specifications'!$D$19 -> 5429.305629 | E178: 678.6632036
C179: ='Efficiency Levels'!C142 -> EL4 | D179: =E179*'Equipment Specifications'!$D$19 -> 5333.271721 | E179: 666.6589651
C180: ='Efficiency Levels'!C143 -> EL5 | D180: =E180*'Equipment Specifications'!$D$19 -> 5304.527429 | E180: 663.0659286
C181: ='Efficiency Levels'!C144 -> EL6 | D181: =E181*'Equipment Specifications'!$D$19 -> 5246.252128 | E181: 655.781516
C182: ='Efficiency Levels'!C145 -> EL7 | D182: =E182*'Equipment Specifications'!$D$19 -> 5246.252128 | E182: 655.781516
C183: ='Efficiency Levels'!C146 -> EL8 | D183: =E183*'Equipment Specifications'!$D$19 -> 5246.252128 | E183: 655.781516
C184: ='Efficiency Levels'!C147 -> EL9 | D184: =E184*'Equipment Specifications'!$D$19 -> 5246.252128 | E184: 655.781516
C186: Sources: DOE Commercial Refrigeration Equipment 2014 Final Rule, Technical Support Document: Final Rule National Impact Analysis Spreadsheet, 'LCC Inputs' tab, cells B3:29, http://www.regulations.gov/#!documentDetail;D=EERE-2010-BT-STD-0003-0101
C187: DOE Commercial Refrigeration Equipment 2009 Final Rule, Technical Support Document: 2008-12-31 National Impact Analysis Spreadsheet, 'Equipment parameters' tab, cells E19:M34, http://www.regulations.gov/#!documentDetail;D=EERE-2006-STD-0126-0080
C188: TSL 4 was selected in the 2009 Final Rule. DOE Commercial Refrigeration Equipment 2009 Final Rule, Federal Register Notice, page 1136, "Conclusion" section, http://www.regulations.gov/#!documentDetail;D=EERE-2006-STD-0126-0005
C189: TSL Mapping: DOE Commercial Refrigeration Equipment 2009 Final Rule, Technical Support Document: 2008-12-31 National Impact Analysis Spreadsheet, 'Labels' tab, cells B134:K151, http://www.regulations.gov/#!documentDetail;D=EERE-2006-STD-0126-0080
C193: ='Product Classes'!O18 -> VOP.SC.M
D195: Energy Consumption
C196: Efficiency Level | D196: Energy Factor
D197: kWh/year Calculated | E197: kWh/year per ft
C198: ='Efficiency Levels'!C156 -> EL0 | D198: =E198*'Equipment Specifications'!$D$20 -> 14454.02289 | E198: 3613.505723
C199: ='Efficiency Levels'!C157 -> EL1 | D199: =E199*'Equipment Specifications'!$D$20 -> 11206.31092 | E199: 2801.57773
C200: ='Efficiency Levels'!C158 -> EL2 | D200: =E200*'Equipment Specifications'!$D$20 -> 10952.58938 | E200: 2738.147345
C201: ='Efficiency Levels'!C159 -> EL3 | D201: =E201*'Equipment Specifications'!$D$20 -> 10917.33283 | E201: 2729.333208
C202: ='Efficiency Levels'!C160 -> EL4 | D202: =E202*'Equipment Specifications'!$D$20 -> 10845.61048 | E202: 2711.40262
C203: ='Efficiency Levels'!C161 -> EL5 | D203: =E203*'Equipment Specifications'!$D$20 -> 10845.61048 | E203: 2711.40262
C204: ='Efficiency Levels'!C162 -> EL6 | D204: =E204*'Equipment Specifications'!$D$20 -> 10845.61048 | E204: 2711.40262
C205: ='Efficiency Levels'!C163 -> EL7 | D205: =E205*'Equipment Specifications'!$D$20 -> 10845.61048 | E205: 2711.40262
C206: ='Efficiency Levels'!C164 -> EL8 | D206: =E206*'Equipment Specifications'!$D$20 -> 10845.61048 | E206: 2711.40262
C207: ='Efficiency Levels'!C165 -> EL9 | D207: =E207*'Equipment Specifications'!$D$20 -> 10845.61048 | E207: 2711.40262
C209: Sources: DOE Commercial Refrigeration Equipment 2014 Final Rule, Technical Support Document: Final Rule National Impact Analysis Spreadsheet, 'LCC Inputs' tab, cells B3:29, http://www.regulations.gov/#!documentDetail;D=EERE-2010-BT-STD-0003-0101
C210: DOE Commercial Refrigeration Equipment 2009 Final Rule, Technical Support Document: 2008-12-31 National Impact Analysis Spreadsheet, 'Equipment parameters' tab, cells E19:M34, http://www.regulations.gov/#!documentDetail;D=EERE-2006-STD-0126-0080
C211: TSL 4 was selected in the 2009 Final Rule. DOE Commercial Refrigeration Equipment 2009 Final Rule, Federal Register Notice, page 1136, "Conclusion" section, http://www.regulations.gov/#!documentDetail;D=EERE-2006-STD-0126-0005
C212: TSL Mapping: DOE Commercial Refrigeration Equipment 2009 Final Rule, Technical Support Document: 2008-12-31 National Impact Analysis Spreadsheet, 'Labels' tab, cells B134:K151, http://www.regulations.gov/#!documentDetail;D=EERE-2006-STD-0126-0080
C216: ='Product Classes'!O19 -> SVO.SC.M
D218: Energy Consumption
C219: Efficiency Level | D219: Energy Factor
D220: kWh/year Calculated | E220: kWh/year per ft
C221: ='Efficiency Levels'!C174 -> EL0 | D221: =E221*'Equipment Specifications'!$D$21 -> 12084.08387 | E221: 3021.020968
C222: ='Efficiency Levels'!C175 -> EL1 | D222: =E222*'Equipment Specifications'!$D$21 -> 9758.420762 | E222: 2439.605191
C223: ='Efficiency Levels'!C176 -> EL2 | D223: =E223*'Equipment Specifications'!$D$21 -> 9607.7583 | E223: 2401.939575
C224: ='Efficiency Levels'!C177 -> EL3 | D224: =E224*'Equipment Specifications'!$D$21 -> 9360.910243 | E224: 2340.227561
C225: ='Efficiency Levels'!C178 -> EL4 | D225: =E225*'Equipment Specifications'!$D$21 -> 9331.272689 | E225: 2332.818172
C226: ='Efficiency Levels'!C179 -> EL5 | D226: =E226*'Equipment Specifications'!$D$21 -> 9270.930575 | E226: 2317.732644
C227: ='Efficiency Levels'!C180 -> EL6 | D227: =E227*'Equipment Specifications'!$D$21 -> 9270.930575 | E227: 2317.732644
C228: ='Efficiency Levels'!C181 -> EL7 | D228: =E228*'Equipment Specifications'!$D$21 -> 9270.930575 | E228: 2317.732644
C229: ='Efficiency Levels'!C182 -> EL8 | D229: =E229*'Equipment Specifications'!$D$21 -> 9270.930575 | E229: 2317.732644
C230: ='Efficiency Levels'!C183 -> EL9 | D230: =E230*'Equipment Specifications'!$D$21 -> 9270.930575 | E230: 2317.732644
C232: Sources: DOE Commercial Refrigeration Equipment 2014 Final Rule, Technical Support Document: Final Rule National Impact Analysis Spreadsheet, 'LCC Inputs' tab, cells B3:29, http://www.regulations.gov/#!documentDetail;D=EERE-2010-BT-STD-0003-0101
C233: DOE Commercial Refrigeration Equipment 2009 Final Rule, Technical Support Document: 2008-12-31 National Impact Analysis Spreadsheet, 'Equipment parameters' tab, cells E19:M34, http://www.regulations.gov/#!documentDetail;D=EERE-2006-STD-0126-0080
C234: TSL 4 was selected in the 2009 Final Rule. DOE Commercial Refrigeration Equipment 2009 Final Rule, Federal Register Notice, page 1136, "Conclusion" section, http://www.regulations.gov/#!documentDetail;D=EERE-2006-STD-0126-0005
C235: TSL Mapping: DOE Commercial Refrigeration Equipment 2009 Final Rule, Technical Support Document: 2008-12-31 National Impact Analysis Spreadsheet, 'Labels' tab, cells B134:K151, http://www.regulations.gov/#!documentDetail;D=EERE-2006-STD-0126-0080
C239: ='Product Classes'!O20 -> HZO.SC.M
D241: Energy Consumption
C242: Efficiency Level | D242: Energy Factor
D243: kWh/year Calculated | E243: kWh/year per ft
C244: ='Efficiency Levels'!C192 -> EL0 | D244: =E244*'Equipment Specifications'!$D$22 -> 7019.951209 | E244: 1754.987802
C245: ='Efficiency Levels'!C193 -> EL1 | D245: =E245*'Equipment Specifications'!$D$22 -> 5404.124826 | E245: 1351.031207
C246: ='Efficiency Levels'!C194 -> EL2 | D246: =E246*'Equipment Specifications'!$D$22 -> 5351.238716 | E246: 1337.809679
C247: ='Efficiency Levels'!C195 -> EL3 | D247: =E247*'Equipment Specifications'!$D$22 -> 5167.587923 | E247: 1291.896981
C248: ='Efficiency Levels'!C196 -> EL4 | D248: =E248*'Equipment Specifications'!$D$22 -> 5118.194588 | E248: 1279.548647
C249: ='Efficiency Levels'!C197 -> EL5 | D249: =E249*'Equipment Specifications'!$D$22 -> 5018.189226 | E249: 1254.547306
C250: ='Efficiency Levels'!C198 -> EL6 | D250: =E250*'Equipment Specifications'!$D$22 -> 5018.189226 | E250: 1254.547306
C251: ='Efficiency Levels'!C199 -> EL7 | D251: =E251*'Equipment Specifications'!$D$22 -> 5018.189226 | E251: 1254.547306
C252: ='Efficiency Levels'!C200 -> EL8 | D252: =E252*'Equipment Specifications'!$D$22 -> 5018.189226 | E252: 1254.547306
C253: ='Efficiency Levels'!C201 -> EL9 | D253: =E253*'Equipment Specifications'!$D$22 -> 5018.189226 | E253: 1254.547306
C255: Sources: DOE Commercial Refrigeration Equipment 2014 Final Rule, Technical Support Document: Final Rule National Impact Analysis Spreadsheet, 'LCC Inputs' tab, cells B3:29, http://www.regulations.gov/#!documentDetail;D=EERE-2010-BT-STD-0003-0101
C256: DOE Commercial Refrigeration Equipment 2009 Final Rule, Technical Support Document: 2008-12-31 National Impact Analysis Spreadsheet, 'Equipment parameters' tab, cells E19:M34, http://www.regulations.gov/#!documentDetail;D=EERE-2006-STD-0126-0080
C257: TSL 4 was selected in the 2009 Final Rule. DOE Commercial Refrigeration Equipment 2009 Final Rule, Federal Register Notice, page 1136, "Conclusion" section, http://www.regulations.gov/#!documentDetail;D=EERE-2006-STD-0126-0005
... 228 more rows

Sheet UEC
C2: Weighted Annual UEC
C4: NAVIGATION
C6: COMMENTS
C9: Market UEC (Shipment Weighted Average)
D10: 1990 | E10: =D10+1 -> 1991 | F10: =E10+1 -> 1992 | G10: =F10+1 -> 1993 | H10: =G10+1 -> 1994 | I10: =H10+1 -> 1995 | J10: =I10+1 -> 1996 | K10: =J10+1 -> 1997 | L10: =K10+1 -> 1998 | M10: =L10+1 -> 1999 | N10: =M10+1 -> 2000 | O10: =N10+1 -> 2001 | P10: =O10+1 -> 2002 | Q10: =P10+1 -> 2003 | R10: =Q10+1 -> 2004 | S10: =R10+1 -> 2005 | T10: =S10+1 -> 2006 | U10: =T10+1 -> 2007 | V10: =U10+1 -> 2008 | W10: =V10+1 -> 2009 | X10: =W10+1 -> 2010 | Y10: =X10+1 -> 2011 | Z10: =Y10+1 -> 2012 | AA10: =Z10+1 -> 2013 | AB10: =AA10+1 -> 2014 | AC10: =AB10+1 -> 2015 | AD10: =AC10+1 -> 2016 | AE10: =AD10+1 -> 2017 | AF10: =AE10+1 -> 2018 | AG10: =AF10+1 -> 2019 | AH10: =AG10+1 -> 2020 | AI10: =AH10+1 -> 2021 | AJ10: =AI10+1 -> 2022 | AK10: =AJ10+1 -> 2023 | AL10: =AK10+1 -> 2024 | AM10: =AL10+1 -> 2025 | AN10: =AM10+1 -> 2026 | AO10: =AN10+1 -> 2027 | AP10: =AO10+1 -> 2028 | AQ10: =AP10+1 -> 2029 | AR10: =AQ10+1 -> 2030 | AS10: =AR10+1 -> 2031 | AT10: =AS10+1 -> 2032 | AU10: =AT10+1 -> 2033 | AV10: =AU10+1 -> 2034
